Workbook

Sheet INFO
G4: Quest'opera è distribuita con LicenzaCreative Commons Attribuzione - Condividi allo stesso modo 4.0 Internazionale.http://creativecommons.org/licenses/by-sa/4.0/
A10: Questo modello di foglio elettronico è distribuito con la convinzione che possa essere utile, ma SENZA NESSUNA GARANZIA, IMPLICITA O ESPLICITA, di nessun genere. In nessun caso l'autore potrà essere ritenuto responsabile per qualsiasi danno diretto, indiretto o accidentale dovuto all'uso di questo prodotto, inclusi (ma non limitati a) perdita di beni, dati, profitti o quant'altro. L'USO DI QUESTO MODELLO DI FOGLIO DI CALCOLO COSTITUISCE DI PER SÈ IMPLICITA ACCETTAZIONE DI QUANTO SOPRA, NONCHÉ DEI TERMINI DELLA LICENZA D'USO.
K11: This spreadsheet model is distributed with the belief that it will be useful, but WITHOUT ANY WARRANTY, IMPLIED OR EXPRESS, of any kind. In no event shall the author be liable for any direct, indirect or incidental damages due to the use of this product, including (but not limited to) loss of property, data, profits or whatever. USE OF THIS MODEL SHEET OF CALCULATION IS IN ITSELF IMPLIED ACCEPTANCE OF THE FOREGOING, AND THE TERMS OF THE LICENSE.
B20: Ti piace il mio lavoro ? Pensi che sia utile ? Inviami un email di incoraggiamento, magari per segnalarmi possibili malfunzionamenti, bugs o, meglio ancora, eventuali suggerimenti per migliorare il presente lavoro. | L20: Like my work ? Do you think that it is useful ? Send me an email of encouragement, perhaps to signal me possible malfunctions, bugs or, better yet, any suggestions to improve this work.
D25: Pubblicato in collaborazione con:
D26: https://www.libresoftwareclub.it/
J27: per contatti:
I28: mailto:arck-a.borghini@libero.it
C29: Tengo infine a precisare che negli orari riportati é possibile riscontrare errori pari a circa 2/3 minuti. | M29: Finally, I should point out that in the times shown it is possible to encounter errors approximately 2/3 minutes.
B36: Un particolare ringraziamento va al grande astronomo JEAN MEEUS che con il suo libro “Astronomia con il computer”, pubblicato per la prima volta nel lontano 1979, ci ha insegnato le formule per poter calcolare le fasi lunari, e tante altre belle cose… | L36: Special thanks to the great astronomer JEAN MEEUS that with his book "Astronomical Formulae for Calculators", published for the first time in 1979, he taught us the formulas to calculate the moon phase, and many other beautiful things …

Sheet CALENDARY_MoonPhaase
G2: MoonPhase ® | M2: by “ab Solutions” | V2: 2017 | X2: < < < inserisci qui l'anno
A4: =of:="Gennaio "&YEAR([Calcoli.D4]) -> Gennaio 2017 | F4: =of:="Febbraio "&YEAR([Calcoli.G4]) -> Febbraio 2017 | K4: =of:="Marzo "&YEAR([Calcoli.J4]) -> Marzo 2017 | P4: =of:="Aprile "&YEAR([Calcoli.M4]) -> Aprile 2017
A5: =of:=IF([.B5]=[Calcoli.B169];"L.N. ";IF([.B5]=[Calcoli.B185];"P.Q. ";IF([.B5]=[Calcoli.B201];"L.P. ";IF([.B5]=[Calcoli.B217];"U.Q. ";IF([.B5]=[Calcoli.E61];"L.N. ";""))))) -> P.Q. | B5: =of:=IF(MONTH([Calcoli.B169])=1;[Calcoli.B169];IF(MONTH([Calcoli.B185])=1;[Calcoli.B185];IF(MONTH([Calcoli.B201])=1;[Calcoli.B201];IF(MONTH([Calcoli.B217])=1;[Calcoli.B217];IF(MONTH([Calcoli.E61])=1;[Calcoli.E61];""))))) -> 2017-01-05 | C5: =of:=IF([.B5]="";"";"alle ore ") -> alle ore | D5: =of:=IF([.B5]=[Calcoli.B169];TIME([Calcoli.B170];[Calcoli.B171];[Calcoli.B172]);IF([.B5]=[Calcoli.B185];TIME([Calcoli.B186];[Calcoli.B187];[Calcoli.B188]);IF([.B5]=[Calcoli.B201];TIME([Calcoli.B202];[Calcoli.B203];[Calcoli.B204]);IF([.B5]=[Calcoli.B217];TIME([Calcoli.B218];[Calcoli.B219];[Calcoli.B220]);IF([.B5]=[Calcoli.E61];TIME([Calcoli.E62];[Calcoli.E63];[Calcoli.E64]);""))))) -> PT20H43M58S | F5: =of:=IF([.G5]=[Calcoli.E169];"L.N. ";IF([.G5]=[Calcoli.E185];"P.Q. ";IF([.G5]=[Calcoli.E201];"L.P. ";IF([.G5]=[Calcoli.E217];"U.Q. ";IF([.G5]=[Calcoli.H61];"L.N. ";""))))) -> P.Q. | G5: =of:=IF(MONTH([Calcoli.E169])=2;[Calcoli.E169];IF(MONTH([Calcoli.E185])=2;[Calcoli.E185];IF(MONTH([Calcoli.E201])=2;[Calcoli.E201];IF(MONTH([Calcoli.E217])=2;[Calcoli.E217];IF(MONTH([Calcoli.H61])=2;[Calcoli.H61];""))))) -> 2017-02-04 | H5: =of:=IF([.G5]="";"";"alle ore ") -> alle ore | I5: =of:=IF([.G5]=[Calcoli.E169];TIME([Calcoli.E170];[Calcoli.E171];[Calcoli.E172]);IF([.G5]=[Calcoli.E185];TIME([Calcoli.E186];[Calcoli.E187];[Calcoli.E188]);IF([.G5]=[Calcoli.E201];TIME([Calcoli.E202];[Calcoli.E203];[Calcoli.E204]);IF([.G5]=[Calcoli.E217];TIME([Calcoli.E218];[Calcoli.E219];[Calcoli.E220]);IF([.G5]=[Calcoli.H61];TIME([Calcoli.H62];[Calcoli.H63];[Calcoli.H64]);""))))) -> PT05H15M53S | K5: =of:=IF([.L5]=[Calcoli.H169];"L.N. ";IF([.L5]=[Calcoli.H185];"P.Q. ";IF([.L5]=[Calcoli.H201];"L.P. ";IF([.L5]=[Calcoli.H217];"U.Q. ";IF([.L5]=[Calcoli.K61];"L.N. ";""))))) -> P.Q. | L5: =of:=IF(MONTH([Calcoli.H169])=3;[Calcoli.H169];IF(MONTH([Calcoli.H185])=3;[Calcoli.H185];IF(MONTH([Calcoli.H201])=3;[Calcoli.H201];IF(MONTH([Calcoli.H217])=3;[Calcoli.H217];IF(MONTH([Calcoli.K61])=3;[Calcoli.K61];""))))) -> 2017-03-05 | M5: =of:=IF([.L5]="";"";"alle ore ") -> alle ore | N5: =of:=IF([.L5]=[Calcoli.H169];TIME([Calcoli.H170];[Calcoli.H171];[Calcoli.H172]);IF([.L5]=[Calcoli.H185];TIME([Calcoli.H186];[Calcoli.H187];[Calcoli.H188]);IF([.L5]=[Calcoli.H201];TIME([Calcoli.H202];[Calcoli.H203];[Calcoli.H204]);IF([.L5]=[Calcoli.H217];TIME([Calcoli.H218];[Calcoli.H219];[Calcoli.H220]);IF([.L5]=[Calcoli.K61];TIME([Calcoli.K62];[Calcoli.K63];[Calcoli.K64]);""))))) -> PT12H29M36S | P5: =of:=IF([.Q5]=[Calcoli.K169];"L.N. ";IF([.Q5]=[Calcoli.K185];"P.Q. ";IF([.Q5]=[Calcoli.K201];"L.P. ";IF([.Q5]=[Calcoli.K217];"U.Q. ";IF([.Q5]=[Calcoli.N61];"L.N. ";""))))) -> P.Q. | Q5: =of:=IF(MONTH([Calcoli.K169])=4;[Calcoli.K169];IF(MONTH([Calcoli.K185])=4;[Calcoli.K185];IF(MONTH([Calcoli.K201])=4;[Calcoli.K201];IF(MONTH([Calcoli.K217])=4;[Calcoli.K217];IF(MONTH([Calcoli.N61])=4;[Calcoli.N61];""))))) -> 2017-04-03 | R5: =of:=IF([.Q5]="";"";"alle ore ") -> alle ore | S5: =of:=IF([.Q5]=[Calcoli.K169];TIME([Calcoli.K170];[Calcoli.K171];[Calcoli.K172]);IF([.Q5]=[Calcoli.K185];TIME([Calcoli.K186];[Calcoli.K187];[Calcoli.K188]);IF([.Q5]=[Calcoli.K201];TIME([Calcoli.K202];[Calcoli.K203];[Calcoli.K204]);IF([.Q5]=[Calcoli.K217];TIME([Calcoli.K218];[Calcoli.K219];[Calcoli.K220]);IF([.Q5]=[Calcoli.N61];TIME([Calcoli.N62];[Calcoli.N63];[Calcoli.N64]);"")))))+TIME(1;0;0) -> PT20H36M51S
A6: =of:=IF([.B6]="";"";IF([.A5]="L.N. ";"P.Q. ";IF([.A5]="P.Q. ";"L.P. ";IF([.A5]="L.P. ";"U.Q. ";IF([.A5]="U.Q. ";"L.N. ";""))))) -> L.P. | B6: =of:=IF(MONTH([Calcoli.B185])=1 AND ([Calcoli.B185]-[.B5]>1) AND ([Calcoli.B185]-[.B5]<10);[Calcoli.B185];IF(MONTH([Calcoli.B201])=1 AND ([Calcoli.B201]-[.B5]>1) AND ([Calcoli.B201]-[.B5]<10);[Calcoli.B201];IF(MONTH([Calcoli.B217])=1 AND ([Calcoli.B217]-[.B5]>1) AND ([Calcoli.B217]-[.B5]<10);[Calcoli.B217];IF(MONTH([Calcoli.E61])=1 AND ([Calcoli.E61]-[.B5]>1) AND ([Calcoli.E61]-[.B5]<10);[Calcoli.E61];IF(MONTH([Calcoli.E77])=1 AND ([Calcoli.E77]-[.B5]>1) AND ([Calcoli.E77]-[.B5]<10);[Calcoli.E77];""))))) -> 2017-01-12 | C6: =of:=IF([.B6]="";"";"alle ore ") -> alle ore | D6: =of:=IF([.B6]=[Calcoli.B185];TIME([Calcoli.B186];[Calcoli.B187];[Calcoli.B188]);IF([.B6]=[Calcoli.B201];TIME([Calcoli.B202];[Calcoli.B203];[Calcoli.B204]);IF([.B6]=[Calcoli.B217];TIME([Calcoli.B218];[Calcoli.B219];[Calcoli.B220]);IF([.B6]=[Calcoli.E61];TIME([Calcoli.E62];[Calcoli.E63];[Calcoli.E64]);IF([.B6]=[Calcoli.E77];TIME([Calcoli.E78];[Calcoli.E79];[Calcoli.E80]);""))))) -> PT12H35M13S | F6: =of:=IF([.G6]="";"";IF([.F5]="L.N. ";"P.Q. ";IF([.F5]="P.Q. ";"L.P. ";IF([.F5]="L.P. ";"U.Q. ";IF([.F5]="U.Q. ";"L.N. ";""))))) -> L.P. | G6: =of:=IF(MONTH([Calcoli.E185])=2 AND ([Calcoli.E185]-[.G5]>1) AND ([Calcoli.E185]-[.G5]<10);[Calcoli.E185];IF(MONTH([Calcoli.E201])=2 AND ([Calcoli.E201]-[.G5]>1) AND ([Calcoli.E201]-[.G5]<10);[Calcoli.E201];IF(MONTH([Calcoli.E217])=2 AND ([Calcoli.E217]-[.G5]>1) AND ([Calcoli.E217]-[.G5]<10);[Calcoli.E217];IF(MONTH([Calcoli.H61])=2 AND ([Calcoli.H61]-[.G5]>1) AND ([Calcoli.H61]-[.G5]<10);[Calcoli.H61];IF(MONTH([Calcoli.H77])=2 AND ([Calcoli.H77]-[.G5]>1) AND ([Calcoli.H77]-[.G5]<10);[Calcoli.H77];""))))) -> 2017-02-11 | H6: =of:=IF([.G6]="";"";"alle ore ") -> alle ore | I6: =of:=IF([.G6]=[Calcoli.E185];TIME([Calcoli.E186];[Calcoli.E187];[Calcoli.E188]);IF([.G6]=[Calcoli.E201];TIME([Calcoli.E202];[Calcoli.E203];[Calcoli.E204]);IF([.G6]=[Calcoli.E217];TIME([Calcoli.E218];[Calcoli.E219];[Calcoli.E220]);IF([.G6]=[Calcoli.H61];TIME([Calcoli.H62];[Calcoli.H63];[Calcoli.H64]);IF([.G6]=[Calcoli.H77];TIME([Calcoli.H78];[Calcoli.H79];[Calcoli.H80]);""))))) -> PT01H34M07S | K6: =of:=IF([.L6]="";"";IF([.K5]="L.N. ";"P.Q. ";IF([.K5]="P.Q. ";"L.P. ";IF([.K5]="L.P. ";"U.Q. ";IF([.K5]="U.Q. ";"L.N. ";""))))) -> L.P. | L6: =of:=IF(MONTH([Calcoli.H185])=3 AND ([Calcoli.H185]-[.L5]>1) AND ([Calcoli.H185]-[.L5]<10);[Calcoli.H185];IF(MONTH([Calcoli.H201])=3 AND ([Calcoli.H201]-[.L5]>1) AND ([Calcoli.H201]-[.L5]<10);[Calcoli.H201];IF(MONTH([Calcoli.H217])=3 AND ([Calcoli.H217]-[.L5]>1) AND ([Calcoli.H217]-[.L5]<10);[Calcoli.H217];IF(MONTH([Calcoli.K61])=3 AND ([Calcoli.K61]-[.L5]>1) AND ([Calcoli.K61]-[.L5]<10);[Calcoli.K61];IF(MONTH([Calcoli.K77])=3 AND ([Calcoli.K77]-[.L5]>1) AND ([Calcoli.K77]-[.L5]<10);[Calcoli.K77];""))))) -> 2017-03-12 | M6: =of:=IF([.L6]="";"";"alle ore ") -> alle ore | N6: =of:=IF([.L6]=[Calcoli.H185];TIME([Calcoli.H186];[Calcoli.H187];[Calcoli.H188]);IF([.L6]=[Calcoli.H201];TIME([Calcoli.H202];[Calcoli.H203];[Calcoli.H204]);IF([.L6]=[Calcoli.H217];TIME([Calcoli.H218];[Calcoli.H219];[Calcoli.H220]);IF([.L6]=[Calcoli.K61];TIME([Calcoli.K62];[Calcoli.K63];[Calcoli.K64]);IF([.L6]=[Calcoli.K77];TIME([Calcoli.K78];[Calcoli.K79];[Calcoli.K80]);""))))) -> PT15H54M57S | P6: =of:=IF([.Q6]="";"";IF([.P5]="L.N. ";"P.Q. ";IF([.P5]="P.Q. ";"L.P. ";IF([.P5]="L.P. ";"U.Q. ";IF([.P5]="U.Q. ";"L.N. ";""))))) -> L.P. | Q6: =of:=IF(MONTH([Calcoli.K185])=4 AND ([Calcoli.K185]-[.Q5]>1) AND ([Calcoli.K185]-[.Q5]<10);[Calcoli.K185];IF(MONTH([Calcoli.K201])=4 AND ([Calcoli.K201]-[.Q5]>1) AND ([Calcoli.K201]-[.Q5]<10);[Calcoli.K201];IF(MONTH([Calcoli.K217])=4 AND ([Calcoli.K217]-[.Q5]>1) AND ([Calcoli.K217]-[.Q5]<10);[Calcoli.K217];IF(MONTH([Calcoli.N61])=4 AND ([Calcoli.N61]-[.Q5]>1) AND ([Calcoli.N61]-[.Q5]<10);[Calcoli.N61];IF(MONTH([Calcoli.N77])=4 AND ([Calcoli.N77]-[.Q5]>1) AND ([Calcoli.N77]-[.Q5]<10);[Calcoli.N77];""))))) -> 2017-04-11 | R6: =of:=IF([.Q6]="";"";"alle ore ") -> alle ore | S6: =of:=IF([.Q6]=[Calcoli.K185];TIME([Calcoli.K186];[Calcoli.K187];[Calcoli.K188]);IF([.Q6]=[Calcoli.K201];TIME([Calcoli.K202];[Calcoli.K203];[Calcoli.K204]);IF([.Q6]=[Calcoli.K217];TIME([Calcoli.K218];[Calcoli.K219];[Calcoli.K220]);IF([.Q6]=[Calcoli.N61];TIME([Calcoli.N62];[Calcoli.N63];[Calcoli.N64]);IF([.Q6]=[Calcoli.N77];TIME([Calcoli.N78];[Calcoli.N79];[Calcoli.N80]);"")))))+TIME(1;0;0) -> PT08H09M30S | U6: =of:=IF([.V6]=[Calcoli.B169];"L.N. ";IF([.V6]=[Calcoli.B185];"P.Q. ";IF([.V6]=[Calcoli.B201];"L.P. ";IF([.V6]=[Calcoli.B217];"U.Q. ";"")))) -> 
A7: =of:=IF([.B7]="";"";IF([.A6]="L.N. ";"P.Q. ";IF([.A6]="P.Q. ";"L.P. ";IF([.A6]="L.P. ";"U.Q. ";IF([.A6]="U.Q. ";"L.N. ";""))))) -> U.Q. | B7: =of:=IF(MONTH([Calcoli.B201])=1 AND ([Calcoli.B201]-[.B6]>1) AND ([Calcoli.B201]-[.B6]<10);[Calcoli.B201];IF(MONTH([Calcoli.B217])=1 AND ([Calcoli.B217]-[.B6]>1) AND ([Calcoli.B217]-[.B6]<10);[Calcoli.B217];IF(MONTH([Calcoli.E61])=1 AND ([Calcoli.E61]-[.B6]>1) AND ([Calcoli.E61]-[.B6]<10);[Calcoli.E61];IF(MONTH([Calcoli.E77])=1 AND ([Calcoli.E77]-[.B6]>1) AND ([Calcoli.E77]-[.B6]<10);[Calcoli.E77];IF(MONTH([Calcoli.E93])=1 AND ([Calcoli.E93]-[.B6]>1) AND ([Calcoli.E93]-[.B6]<10);[Calcoli.E93];IF(MONTH([Calcoli.E109])=1 AND ([Calcoli.E109]-[.B6]>1) AND ([Calcoli.E109]-[.B6]<10);[Calcoli.E109];IF(MONTH([Calcoli.E169])=1 AND ([Calcoli.E169]-[.B6]>1) AND ([Calcoli.E169]-[.B6]<10);[Calcoli.E169];""))))))) -> 2017-01-19 | C7: =of:=IF([.B7]="";"";"alle ore ") -> alle ore | D7: =of:=IF([.B7]=[Calcoli.B201];TIME([Calcoli.B202];[Calcoli.B203];[Calcoli.B204]);IF([.B7]=[Calcoli.B217];TIME([Calcoli.B218];[Calcoli.B219];[Calcoli.B220]);IF([.B7]=[Calcoli.E61];TIME([Calcoli.E62];[Calcoli.E63];[Calcoli.E64]);IF([.B7]=[Calcoli.E77];TIME([Calcoli.E78];[Calcoli.E79];calcoli:80);IF([.B7]=[Calcoli.E93];TIME([Calcoli.E94];[Calcoli.E95];[Calcoli.E96]);IF([.B7]=[Calcoli.E109];TIME([Calcoli.E110];[Calcoli.E111];[Calcoli.E112]);IF([.B7]=[Calcoli.E169];TIME([Calcoli.E170];[Calcoli.E171];[Calcoli.E172]);""))))))) -> PT23H14M28S | F7: =of:=IF([.G7]="";"";IF([.F6]="L.N. ";"P.Q. ";IF([.F6]="P.Q. ";"L.P. ";IF([.F6]="L.P. ";"U.Q. ";IF([.F6]="U.Q. ";"L.N. ";""))))) -> U.Q. | G7: =of:=IF(MONTH([Calcoli.E201])=2 AND ([Calcoli.E201]-[.G6]>1) AND ([Calcoli.E201]-[.G6]<10);[Calcoli.E201];IF(MONTH([Calcoli.E217])=2 AND ([Calcoli.E217]-[.G6]>1) AND ([Calcoli.E217]-[.G6]<10);[Calcoli.E217];IF(MONTH([Calcoli.H61])=2 AND ([Calcoli.H61]-[.G6]>1) AND ([Calcoli.H61]-[.G6]<10);[Calcoli.H61];IF(MONTH([Calcoli.H77])=2 AND ([Calcoli.H77]-[.G6]>1) AND ([Calcoli.H77]-[.G6]<10);[Calcoli.H77];IF(MONTH([Calcoli.H93])=2 AND ([Calcoli.H93]-[.G6]>1) AND ([Calcoli.H93]-[.G6]<10);[Calcoli.H93];IF(MONTH([Calcoli.H109])=2 AND ([Calcoli.H109]-[.G6]>1) AND ([Calcoli.H109]-[.G6]<10);[Calcoli.H109];IF(MONTH([Calcoli.H169])=2 AND ([Calcoli.H169]-[.G6]>1) AND ([Calcoli.H169]-[.G6]<10);[Calcoli.H169];""))))))) -> 2017-02-18 | H7: =of:=IF([.G7]="";"";"alle ore ") -> alle ore | I7: =of:=IF([.G7]=[Calcoli.E201];TIME([Calcoli.E202];[Calcoli.E203];[Calcoli.E204]);IF([.G7]=[Calcoli.E217];TIME([Calcoli.E218];[Calcoli.E219];[Calcoli.E220]);IF([.G7]=[Calcoli.H61];TIME([Calcoli.H62];[Calcoli.H63];[Calcoli.H64]);IF([.G7]=[Calcoli.H77];TIME([Calcoli.H78];[Calcoli.H79];[Calcoli.H80]);IF([.G7]=[Calcoli.H93];TIME([Calcoli.H94];[Calcoli.H95];[Calcoli.H96]);IF([.G7]=[Calcoli.H109];TIME([Calcoli.H110];[Calcoli.H111];[Calcoli.H112]);IF([.G7]=[Calcoli.H169];TIME([Calcoli.H170];[Calcoli.H171];[Calcoli.H172]);""))))))) -> PT20H35M29S | K7: =of:=IF([.L7]="";"";IF([.K6]="L.N. ";"P.Q. ";IF([.K6]="P.Q. ";"L.P. ";IF([.K6]="L.P. ";"U.Q. ";IF([.K6]="U.Q. ";"L.N. ";""))))) -> U.Q. | L7: =of:=IF(MONTH([Calcoli.H201])=3 AND ([Calcoli.H201]-[.L6]>1) AND ([Calcoli.H201]-[.L6]<10);[Calcoli.H201];IF(MONTH([Calcoli.H217])=3 AND ([Calcoli.H217]-[.L6]>1) AND ([Calcoli.H217]-[.L6]<10);[Calcoli.H217];IF(MONTH([Calcoli.K61])=3 AND ([Calcoli.K61]-[.L6]>1) AND ([Calcoli.K61]-[.L6]<10);[Calcoli.K61];IF(MONTH([Calcoli.K77])=3 AND ([Calcoli.K77]-[.L6]>1) AND ([Calcoli.K77]-[.L6]<10);[Calcoli.K77];IF(MONTH([Calcoli.K93])=3 AND ([Calcoli.K93]-[.L6]>1) AND ([Calcoli.K93]-[.L6]<10);[Calcoli.K93];IF(MONTH([Calcoli.K109])=3 AND ([Calcoli.K109]-[.L6]>1) AND ([Calcoli.K109]-[.L6]<10);[Calcoli.K109];IF(MONTH([Calcoli.K169])=3 AND ([Calcoli.K169]-[.L6]>1) AND ([Calcoli.K169]-[.L6]<10);[Calcoli.K169];""))))))) -> 2017-03-20 | M7: =of:=IF([.L7]="";"";"alle ore ") -> alle ore | N7: =of:=IF([.L7]=[Calcoli.H201];TIME([Calcoli.H202];[Calcoli.H203];[Calcoli.H204]);IF([.L7]=[Calcoli.H217];TIME([Calcoli.H218];[Calcoli.H219];[Calcoli.H220]);IF([.L7]=[Calcoli.K61];TIME([Calcoli.K62];[Calcoli.K63];[Calcoli.K64]);IF([.L7]=[Calcoli.K77];TIME([Calcoli.K78];[Calcoli.K79];[Calcoli.K80]);IF([.L7]=[Calcoli.K93];TIME([Calcoli.K94];[Calcoli.K95];[Calcoli.K96]);IF([.L7]=[Calcoli.K109];TIME([Calcoli.K110];[Calcoli.K111];[Calcoli.K112]);IF([.L7]=[Calcoli.K169];TIME([Calcoli.K170];[Calcoli.K171];[Calcoli.K172]);""))))))) -> PT17H02M05S | P7: =of:=IF([.Q7]="";"";IF([.P6]="L.N. ";"P.Q. ";IF([.P6]="P.Q. ";"L.P. ";IF([.P6]="L.P. ";"U.Q. ";IF([.P6]="U.Q. ";"L.N. ";""))))) -> U.Q. | Q7: =of:=IF(MONTH([Calcoli.K201])=4 AND ([Calcoli.K201]-[.Q6]>1) AND ([Calcoli.K201]-[.Q6]<10);[Calcoli.K201];IF(MONTH([Calcoli.K217])=4 AND ([Calcoli.K217]-[.Q6]>1) AND ([Calcoli.K217]-[.Q6]<10);[Calcoli.K217];IF(MONTH([Calcoli.N61])=4 AND ([Calcoli.N61]-[.Q6]>1) AND ([Calcoli.N61]-[.Q6]<10);[Calcoli.N61];IF(MONTH([Calcoli.N77])=4 AND ([Calcoli.N77]-[.Q6]>1) AND ([Calcoli.N77]-[.Q6]<10);[Calcoli.N77];IF(MONTH([Calcoli.N93])=4 AND ([Calcoli.N93]-[.Q6]>1) AND ([Calcoli.N93]-[.Q6]<10);[Calcoli.N93];IF(MONTH([Calcoli.N109])=4 AND ([Calcoli.N109]-[.Q6]>1) AND ([Calcoli.N109]-[.Q6]<10);[Calcoli.N109];IF(MONTH([Calcoli.N169])=4 AND ([Calcoli.N169]-[.Q6]>1) AND ([Calcoli.N169]-[.Q6]<10);[Calcoli.N169];""))))))) -> 2017-04-19 | R7: =of:=IF([.Q7]="";"";"alle ore ") -> alle ore | S7: =of:=IF([.Q7]=[Calcoli.K201];TIME([Calcoli.K202];[Calcoli.K203];[Calcoli.K204]);IF([.Q7]=[Calcoli.K217];TIME([Calcoli.K218];[Calcoli.K219];[Calcoli.K220]);IF([.Q7]=[Calcoli.N61];TIME([Calcoli.N62];[Calcoli.N63];[Calcoli.N64]);IF([.Q7]=[Calcoli.N77];TIME([Calcoli.N78];[Calcoli.N79];[Calcoli.N80]);IF([.Q7]=[Calcoli.N93];TIME([Calcoli.N94];[Calcoli.N95];[Calcoli.N96]);IF([.Q7]=[Calcoli.N109];TIME([Calcoli.N110];[Calcoli.N111];[Calcoli.N112]);IF([.Q7]=[Calcoli.N169];TIME([Calcoli.N170];[Calcoli.N171];[Calcoli.N172]);"")))))))+TIME(1;0;0) -> PT12H01M13S
A8: =of:=IF([.B8]="";"";IF([.A7]="L.N. ";"P.Q. ";IF([.A7]="P.Q. ";"L.P. ";IF([.A7]="L.P. ";"U.Q. ";IF([.A7]="U.Q. ";"L.N. ";""))))) -> L.N. | B8: =of:=IF(MONTH([Calcoli.B217])=1 AND ([Calcoli.B217]-[.B7]>1) AND ([Calcoli.B217]-[.B7]<10);[Calcoli.B217];IF(MONTH([Calcoli.E61])=1 AND ([Calcoli.E61]-[.B7]>1) AND ([Calcoli.E61]-[.B7]<10);[Calcoli.E61];IF(MONTH([Calcoli.E77])=1 AND ([Calcoli.E77]-[.B7]>1) AND ([Calcoli.E77]-[.B7]<10);[Calcoli.E77];IF(MONTH([Calcoli.E93])=1 AND ([Calcoli.E93]-[.B7]>1) AND ([Calcoli.E93]-[.B7]<10);[Calcoli.E93];IF(MONTH([Calcoli.E109])=1 AND ([Calcoli.E109]-[.B7]>1) AND ([Calcoli.E109]-[.B7]<10);[Calcoli.E109];IF(MONTH([Calcoli.E169])=1 AND ([Calcoli.E169]-[.B7]>1) AND ([Calcoli.E169]-[.B7]<10);[Calcoli.E169];IF(MONTH([Calcoli.E185])=1 AND ([Calcoli.E185]-[.B7]>1) AND ([Calcoli.E185]-[.B7]<10);[Calcoli.E185];""))))))) -> 2017-01-28 | C8: =of:=IF([.B8]="";"";"alle ore ") -> alle ore | D8: =of:=IF([.B8]=[Calcoli.B217];TIME([Calcoli.B218];[Calcoli.B219];[Calcoli.B220]);IF([.B8]=[Calcoli.E61];TIME([Calcoli.E62];[Calcoli.E63];[Calcoli.E64]);IF([.B8]=[Calcoli.E77];TIME([Calcoli.E78];[Calcoli.E79];[Calcoli.E80]);IF([.B8]=[Calcoli.E93];TIME([Calcoli.E94];[Calcoli.E95];[Calcoli.E96]);IF([.B8]=[Calcoli.E109];TIME([Calcoli.E110];[Calcoli.E111];[Calcoli.E112]);IF([.B8]=[Calcoli.E169];TIME([Calcoli.E170];[Calcoli.E171];[Calcoli.E172]);IF([.B8]=[Calcoli.E185];TIME([Calcoli.E186];[Calcoli.E187];[Calcoli.E188]);""))))))) -> PT01H08M29S | F8: =of:=IF([.G8]="";"";IF([.F7]="L.N. ";"P.Q. ";IF([.F7]="P.Q. ";"L.P. ";IF([.F7]="L.P. ";"U.Q. ";IF([.F7]="U.Q. ";"L.N. ";""))))) -> L.N. | G8: =of:=IF(MONTH([Calcoli.E217])=2 AND ([Calcoli.E217]-[.G7]>1) AND ([Calcoli.E217]-[.G7]<10);[Calcoli.E217];IF(MONTH([Calcoli.H61])=2 AND ([Calcoli.H61]-[.G7]>1) AND ([Calcoli.H61]-[.G7]<10);[Calcoli.H61];IF(MONTH([Calcoli.H77])=2 AND ([Calcoli.H77]-[.G7]>1) AND ([Calcoli.H77]-[.G7]<10);[Calcoli.H77];IF(MONTH([Calcoli.H93])=2 AND ([Calcoli.H93]-[.G7]>1) AND ([Calcoli.H93]-[.G7]<10);[Calcoli.H93];IF(MONTH([Calcoli.H109])=2 AND ([Calcoli.H109]-[.G7]>1) AND ([Calcoli.H109]-[.G7]<10);[Calcoli.H109];IF(MONTH([Calcoli.H169])=2 AND ([Calcoli.H169]-[.G7]>1) AND ([Calcoli.H169]-[.G7]<10);[Calcoli.H169];IF(MONTH([Calcoli.H185])=2 AND ([Calcoli.H185]-[.G7]>1) AND ([Calcoli.H185]-[.G7]<10);[Calcoli.H185];""))))))) -> 2017-02-26 | H8: =of:=IF([.G8]="";"";"alle ore ") -> alle ore | I8: =of:=IF([.G8]=[Calcoli.E217];TIME([Calcoli.E218];[Calcoli.E219];[Calcoli.E220]);IF([.G8]=[Calcoli.H61];TIME([Calcoli.H62];[Calcoli.H63];[Calcoli.H64]);IF([.G8]=[Calcoli.H77];TIME([Calcoli.HJ78];[Calcoli.H79];[Calcoli.H80]);IF([.G8]=[Calcoli.H93];TIME([Calcoli.H94];[Calcoli.H95];[Calcoli.H96]);IF([.G8]=[Calcoli.H109];TIME([Calcoli.H110];[Calcoli.H111];[Calcoli.H112]);IF([.G8]=[Calcoli.H169];TIME([Calcoli.H170];[Calcoli.H171];[Calcoli.H172]);IF([.G8]=[Calcoli.H185];TIME([Calcoli.H186];[Calcoli.H187];[Calcoli.H188]);""))))))) -> PT16H00M25S | K8: =of:=IF([.L8]="";"";IF([.K7]="L.N. ";"P.Q. ";IF([.K7]="P.Q. ";"L.P. ";IF([.K7]="L.P. ";"U.Q. ";IF([.K7]="U.Q. ";"L.N. ";""))))) -> L.N. | L8: =of:=IF(MONTH([Calcoli.H217])=3 AND ([Calcoli.H217]-[.L7]>1) AND ([Calcoli.H217]-[.L7]<10);[Calcoli.H217];IF(MONTH([Calcoli.K61])=3 AND ([Calcoli.K61]-[.L7]>1) AND ([Calcoli.K61]-[.L7]<10);[Calcoli.K61];IF(MONTH([Calcoli.K77])=3 AND ([Calcoli.K77]-[.L7]>1) AND ([Calcoli.K77]-[.L7]<10);[Calcoli.K77];IF(MONTH([Calcoli.K93])=3 AND ([Calcoli.K93]-[.L7]>1) AND ([Calcoli.K93]-[.L7]<10);[Calcoli.K93];IF(MONTH([Calcoli.K109])=3 AND ([Calcoli.K109]-[.L7]>1) AND ([Calcoli.K109]-[.L7]<10);[Calcoli.K109];IF(MONTH([Calcoli.K169])=3 AND ([Calcoli.K169]-[.L7]>1) AND ([Calcoli.K169]-[.L7]<10);[Calcoli.K169];IF(MONTH([Calcoli.K185])=3 AND ([Calcoli.K185]-[.L7]>1) AND ([Calcoli.K185]-[.L7]<10);[Calcoli.K185];""))))))) -> 2017-03-28 | M8: =of:=IF([.L8]="";"";"alle ore ") -> alle ore | N8: =of:=IF([.L8]=[Calcoli.H217];TIME([Calcoli.H218];[Calcoli.H219];[Calcoli.H220]);IF([.L8]=[Calcoli.K61];TIME([Calcoli.K62];[Calcoli.K63];[Calcoli.K64]);IF([.L8]=[Calcoli.K77];TIME([Calcoli.K78];[Calcoli.K79];[Calcoli.K80]);IF([.L8]=[Calcoli.K93];TIME([Calcoli.K94];[Calcoli.K95];[Calcoli.K96]);IF([.L8]=[Calcoli.K109];TIME([Calcoli.K110];[Calcoli.K111];[Calcoli.K112]);IF([.L8]=[Calcoli.K169];TIME([Calcoli.K170];[Calcoli.K171];[Calcoli.K172]);IF([.L8]=[Calcoli.K185];TIME([Calcoli.K186];[Calcoli.K187];[Calcoli.K188]);"")))))))+IF([.G24]>=[Calcoli.B241];+TIME(0;0;0);+TIME(1;0;0)) -> PT04H59M34S | P8: =of:=IF([.Q8]="";"";IF([.P7]="L.N. ";"P.Q. ";IF([.P7]="P.Q. ";"L.P. ";IF([.P7]="L.P. ";"U.Q. ";IF([.P7]="U.Q. ";"L.N. ";""))))) -> L.N. | Q8: =of:=IF(MONTH([Calcoli.K217])=4 AND ([Calcoli.K217]-[.Q7]>1) AND ([Calcoli.K217]-[.Q7]<10);[Calcoli.K217];IF(MONTH([Calcoli.N61])=4 AND ([Calcoli.N61]-[.Q7]>1) AND ([Calcoli.N61]-[.Q7]<10);[Calcoli.N61];IF(MONTH([Calcoli.N77])=4 AND ([Calcoli.N77]-[.Q7]>1) AND ([Calcoli.N77]-[.Q7]<10);[Calcoli.N77];IF(MONTH([Calcoli.N93])=4 AND ([Calcoli.N93]-[.Q7]>1) AND ([Calcoli.N93]-[.Q7]<10);[Calcoli.N93];IF(MONTH([Calcoli.N109])=4 AND ([Calcoli.N109]-[.Q7]>1) AND ([Calcoli.N109]-[.Q7]<10);[Calcoli.N109];IF(MONTH([Calcoli.N169])=4 AND ([Calcoli.N169]-[.Q7]>1) AND ([Calcoli.N169]-[.Q7]<10);[Calcoli.N169];IF(MONTH([Calcoli.N185])=4 AND ([Calcoli.N185]-[.Q7]>1) AND ([Calcoli.N185]-[.Q7]<10);[Calcoli.N185];""))))))) -> 2017-04-26 | R8: =of:=IF([.Q8]="";"";"alle ore ") -> alle ore | S8: =of:=IF([.Q8]=[Calcoli.K217];TIME([Calcoli.K218];[Calcoli.K219];[Calcoli.K220]);IF([.Q8]=[Calcoli.N61];TIME([Calcoli.N62];[Calcoli.N63];[Calcoli.N64]);IF([.Q8]=[Calcoli.N77];TIME([Calcoli.N78];[Calcoli.N79];[Calcoli.N80]);IF([.Q8]=[Calcoli.N93];TIME([Calcoli.N94];[Calcoli.N95];[Calcoli.N96]);IF([.Q8]=[Calcoli.N109];TIME([Calcoli.N110];[Calcoli.N111];[Calcoli.N112]);IF([.Q8]=[Calcoli.N169];TIME([Calcoli.N170];[Calcoli.N171];[Calcoli.N172]);IF([.Q8]=[Calcoli.N185];TIME([Calcoli.N186];[Calcoli.N187];[Calcoli.N188]);"")))))))+TIME(1;0;0) -> PT14H18M25S
A9: =of:=IF([.B9]="";"";IF([.A8]="L.N. ";"P.Q. ";IF([.A8]="P.Q. ";"L.P. ";IF([.A8]="L.P. ";"U.Q. ";IF([.A8]="U.Q. ";"L.N. ";""))))) ->  | B9: =of:=IF(MONTH([Calcoli.B217])=1 AND ([Calcoli.B217]-[.B8]>1) AND ([Calcoli.B217]-[.B8]<10);[Calcoli.B217];IF(MONTH([Calcoli.E61])=1 AND ([Calcoli.E61]-[.B8]>1) AND ([Calcoli.E61]-[.B8]<10);[Calcoli.E61];IF(MONTH([Calcoli.E77])=1 AND ([Calcoli.E77]-[.B8]>1) AND ([Calcoli.E77]-[.B8]<10);[Calcoli.E77];IF(MONTH([Calcoli.E93])=1 AND ([Calcoli.E93]-[.B8]>1) AND ([Calcoli.E93]-[.B8]<10);[Calcoli.E93];IF(MONTH([Calcoli.E109])=1 AND ([Calcoli.E109]-[.B8]>1) AND ([Calcoli.E109]-[.B8]<10);[Calcoli.E109];IF(MONTH([Calcoli.E169])=1 AND ([Calcoli.E169]-[.B8]>1) AND ([Calcoli.E169]-[.B8]<10);[Calcoli.E169];IF(MONTH([Calcoli.E185])=1 AND ([Calcoli.E185]-[.B8]>1) AND ([Calcoli.E185]-[.B8]<10);[Calcoli.E185];""))))))) ->  | C9: =of:=IF([.B9]="";"";"alle ore ") ->  | D9: =of:=IF([.B9]=[Calcoli.B217];TIME([Calcoli.B218];[Calcoli.B219];[Calcoli.B220]);IF([.B9]=[Calcoli.E61];TIME([Calcoli.E62];[Calcoli.E63];[Calcoli.E64]);IF([.B9]=[Calcoli.E77];TIME([Calcoli.E78];[Calcoli.E79];[Calcoli.E80]);IF([.B9]=[Calcoli.E93];TIME([Calcoli.E94];[Calcoli.E95];[Calcoli.E96]);IF([.B9]=[Calcoli.E109];TIME([Calcoli.E110];[Calcoli.E111];[Calcoli.E112]);IF([.B9]=[Calcoli.E169];TIME([Calcoli.E170];[Calcoli.E171];[Calcoli.E172]);IF([.B9]=[Calcoli.E185];TIME([Calcoli.E186];[Calcoli.E187];[Calcoli.E180]);""))))))) ->  | F9: =of:=IF([.G9]="";"";IF([.F8]="L.N. ";"P.Q. ";IF([.F8]="P.Q. ";"L.P. ";IF([.F8]="L.P. ";"U.Q. ";IF([.F8]="U.Q. ";"L.N. ";""))))) ->  | H9: =of:=IF([.G9]="";"";"alle ore ") ->  | K9: =of:=IF([.L9]="";"";IF([.K8]="L.N. ";"P.Q. ";IF([.K8]="P.Q. ";"L.P. ";IF([.K8]="L.P. ";"U.Q. ";IF([.K8]="U.Q. ";"L.N. ";""))))) ->  | L9: =of:=IF(MONTH([Calcoli.H217])=3 AND ([Calcoli.H217]-[.L8]>1) AND ([Calcoli.H217]-[.L8]<10);[Calcoli.H217];IF(MONTH([Calcoli.K61])=3 AND ([Calcoli.K61]-[.L8]>1) AND ([Calcoli.K61]-[.L8]<10);[Calcoli.K61];IF(MONTH([Calcoli.K77])=3 AND ([Calcoli.K77]-[.L8]>1) AND ([Calcoli.K77]-[.L8]<10);[Calcoli.K77];IF(MONTH([Calcoli.K93])=3 AND ([Calcoli.K93]-[.L8]>1) AND ([Calcoli.K93]-[.L8]<10);[Calcoli.K93];IF(MONTH([Calcoli.K109])=3 AND ([Calcoli.K109]-[.L8]>1) AND ([Calcoli.K109]-[.L8]<10);[Calcoli.K109];IF(MONTH([Calcoli.K169])=3 AND ([Calcoli.K169]-[.L8]>1) AND ([Calcoli.K169]-[.L8]<10);[Calcoli.K169];IF(MONTH([Calcoli.K185])=3 AND ([Calcoli.K185]-[.L8]>1) AND ([Calcoli.K185]-[.L8]<10);[Calcoli.K185];""))))))) ->  | M9: =of:=IF([.L9]="";"";"alle ore ") ->  | N9: =of:=IF([.L9]=[Calcoli.H217];TIME([Calcoli.H218];[Calcoli.H219];[Calcoli.H220])+TIME(1;0;0);IF([.L9]=[Calcoli.K61];TIME([Calcoli.K62];[Calcoli.K63];[Calcoli.K64])+TIME(1;0;0);IF([.L9]=[Calcoli.K77];TIME([Calcoli.K78];[Calcoli.K79];[Calcoli.K80])+TIME(1;0;0);IF([.L9]=[Calcoli.K93];TIME([Calcoli.K94];[Calcoli.K95];[Calcoli.K96])+TIME(1;0;0);IF([.L9]=[Calcoli.K109];TIME([Calcoli.K110];[Calcoli.K111];[Calcoli.K112])+TIME(1;0;0);IF([.L9]=[Calcoli.K169];TIME([Calcoli.K170];[Calcoli.K171];[Calcoli.K172])+TIME(1;0;0);IF([.L9]=[Calcoli.K185];TIME([Calcoli.K186];[Calcoli.K187];[Calcoli.K188])+TIME(1;0;0);""))))))) ->  | P9: =of:=IF([.Q9]="";"";IF([.P8]="L.N. ";"P.Q. ";IF([.P8]="P.Q. ";"L.P. ";IF([.P8]="L.P. ";"U.Q. ";IF([.P8]="U.Q. ";"L.N. ";""))))) ->  | Q9: =of:=IF(MONTH([Calcoli.K217])=4 AND ([Calcoli.K217]-[.Q8]>1) AND ([Calcoli.K217]-[.Q8]<10);[Calcoli.K217];IF(MONTH([Calcoli.N61])=4 AND ([Calcoli.N61]-[.Q8]>1) AND ([Calcoli.N61]-[.Q8]<10);[Calcoli.N61];IF(MONTH([Calcoli.N77])=4 AND ([Calcoli.N77]-[.Q8]>1) AND ([Calcoli.N77]-[.Q8]<10);[Calcoli.N77];IF(MONTH([Calcoli.N93])=4 AND ([Calcoli.N93]-[.Q8]>1) AND ([Calcoli.N93]-[.Q8]<10);[Calcoli.N93];IF(MONTH([Calcoli.N109])=4 AND ([Calcoli.N109]-[.Q8]>1) AND ([Calcoli.N109]-[.Q8]<10);[Calcoli.N109];IF(MONTH([Calcoli.N169])=4 AND ([Calcoli.N169]-[.Q8]>1) AND ([Calcoli.N169]-[.Q8]<10);[Calcoli.N169];IF(MONTH([Calcoli.N185])=4 AND ([Calcoli.N185]-[.Q8]>1) AND ([Calcoli.N185]-[.Q8]<10);[Calcoli.N185];""))))))) ->  | R9: =of:=IF([.Q9]="";"";"alle ore ") ->  | S9: =of:=IF([.Q9]=[Calcoli.K217];TIME([Calcoli.K218];[Calcoli.K219];[Calcoli.K220])+TIME(1;0;0);IF([.Q9]=[Calcoli.N61];TIME([Calcoli.N62];[Calcoli.N63];[Calcoli.N64])+TIME(1;0;0);IF([.Q9]=[Calcoli.N77];TIME([Calcoli.N78];[Calcoli.N79];[Calcoli.N80])+TIME(1;0;0);IF([.Q9]=[Calcoli.N93];TIME([Calcoli.N94];[Calcoli.N95];[Calcoli.N96])+TIME(1;0;0);IF([.Q9]=[Calcoli.N109];TIME([Calcoli.N110];[Calcoli.N111];[Calcoli.N112])+TIME(1;0;0);IF([.Q9]=[Calcoli.N169];TIME([Calcoli.N170];[Calcoli.N171];[Calcoli.N172])+TIME(1;0;0);IF([.Q9]=[Calcoli.N185];TIME([Calcoli.N186];[Calcoli.N187];[Calcoli.N188])+TIME(1;0;0);""))))))) -> 
A11: =of:=IF([CALENDARY_MoonPhaase.B11]="";"";"L.P. ") ->  | B11: =of:=IF(MONTH([Calcoli.H93])=1;[Calcoli.H93];"") ->  | C11: =of:=IF([CALENDARY_MoonPhaase.B11]="";"";"alle ore ") ->  | D11: =of:=IF([CALENDARY_MoonPhaase.B11]="";"";TIME([Calcoli.H94];[Calcoli.H95];[Calcoli.H96])) ->  | F11: =of:=IF([CALENDARY_MoonPhaase.G11]="";"";"L.P. ") ->  | H11: =of:=IF([CALENDARY_MoonPhaase.G11]="";"";"alle ore ") ->  | K11: =of:=IF([CALENDARY_MoonPhaase.L11]="";"";"L.P. ") ->  | L11: =of:=IF(MONTH([Calcoli.N93])=3;[Calcoli.N93];"") ->  | M11: =of:=IF([CALENDARY_MoonPhaase.L11]="";"";"alle ore ") ->  | N11: =of:=IF([CALENDARY_MoonPhaase.L11]="";"";TIME([Calcoli.N94]+1;[Calcoli.N95];[Calcoli.N96])) ->  | P11: =of:=IF([CALENDARY_MoonPhaase.Q11]="";"";"L.P. ") -> 
A12: =of:="Maggio "&YEAR([Calcoli.P4]) -> Maggio 2017 | F12: =of:="Giugno "&YEAR([Calcoli.S4]) -> Giugno 2017 | K12: =of:="Luglio "&YEAR([Calcoli.V4]) -> Luglio 2017 | P12: =of:="Agosto "&YEAR([Calcoli.Y4]) -> Agosto 2017
A13: =of:=IF([.B13]=[Calcoli.N169];"L.N. ";IF([.B13]=[Calcoli.N185];"P.Q. ";IF([.B13]=[Calcoli.N201];"L.P. ";IF([.B13]=[Calcoli.N217];"U.Q. ";IF([.B13]=[Calcoli.Q61];"L.N. ";""))))) -> P.Q. | B13: =of:=IF(MONTH([Calcoli.N169])=5;[Calcoli.N169];IF(MONTH([Calcoli.N185])=5;[Calcoli.N185];IF(MONTH([Calcoli.N201])=5;[Calcoli.N201];IF(MONTH([Calcoli.N217])=5;[Calcoli.N217];IF(MONTH([Calcoli.Q61])=5;[Calcoli.Q61];""))))) -> 2017-05-03 | C13: =of:=IF([.B13]="";"";"alle ore ") -> alle ore | D13: =of:=IF([.B13]=[Calcoli.N169];TIME([Calcoli.N170];[Calcoli.N171];0);IF([.B13]=[Calcoli.N185];TIME([Calcoli.N186];[Calcoli.N187];0);IF([.B13]=[Calcoli.N201];TIME([Calcoli.N202];[Calcoli.N203];0);IF([.B13]=[Calcoli.N217];TIME([Calcoli.N218];[Calcoli.N219];0);IF([.B13]=[Calcoli.Q61];TIME([Calcoli.Q62];[Calcoli.Q63];0);"")))))+TIME(1;0;0) -> PT04H44M00S | F13: =of:=IF([.G13]=[Calcoli.Q169];"L.N. ";IF([.G13]=[Calcoli.Q185];"P.Q. ";IF([.G13]=[Calcoli.Q201];"L.P. ";IF([.G13]=[Calcoli.Q217];"U.Q. ";IF([.G13]=[Calcoli.T61];"L.N. ";""))))) -> P.Q. | G13: =of:=IF(MONTH([Calcoli.Q169])=6;[Calcoli.Q169];IF(MONTH([Calcoli.Q185])=6;[Calcoli.Q185];IF(MONTH([Calcoli.Q201])=6;[Calcoli.Q201];IF(MONTH([Calcoli.Q217])=6;[Calcoli.Q217];IF(MONTH([Calcoli.T61])=6;[Calcoli.T61];""))))) -> 2017-06-01 | H13: =of:=IF([.G13]="";"";"alle ore ") -> alle ore | I13: =of:=IF([.G13]=[Calcoli.Q169];TIME([Calcoli.Q170];[Calcoli.Q171];0);IF([.G13]=[Calcoli.Q185];TIME([Calcoli.Q186];[Calcoli.Q187];0);IF([.G13]=[Calcoli.Q201];TIME([Calcoli.Q202];[Calcoli.Q203];0);IF([.G13]=[Calcoli.Q217];TIME([Calcoli.Q218];[Calcoli.Q219];0);IF([.G13]=[Calcoli.T61];TIME([Calcoli.T62];[Calcoli.T63];0);"")))))+TIME(1;0;0) -> PT14H38M00S | K13: =of:=IF([.L13]=[Calcoli.T169];"L.N. ";IF([.L13]=[Calcoli.T185];"P.Q. ";IF([.L13]=[Calcoli.T201];"L.P. ";IF([.L13]=[Calcoli.T217];"U.Q. ";IF([.L13]=[Calcoli.W61];"L.N. ";""))))) -> P.Q. | L13: =of:=IF(MONTH([Calcoli.T169])=7;[Calcoli.T169];IF(MONTH([Calcoli.T185])=7;[Calcoli.T185];IF(MONTH([Calcoli.T201])=7;[Calcoli.T201];IF(MONTH([Calcoli.T217])=7;[Calcoli.T217];IF(MONTH([Calcoli.W61])=7;[Calcoli.W61];""))))) -> 2017-07-01 | M13: =of:=IF([.L13]="";"";"alle ore ") -> alle ore | N13: =of:=IF([.L13]=[Calcoli.T169];TIME([Calcoli.T170];[Calcoli.T171];0);IF([.L13]=[Calcoli.T185];TIME([Calcoli.T186];[Calcoli.T187];0);IF([.L13]=[Calcoli.T201];TIME([Calcoli.T202];[Calcoli.T203];0);IF([.L13]=[Calcoli.T217];TIME([Calcoli.T218];[Calcoli.T219];0);IF([.L13]=[Calcoli.W61];TIME([Calcoli.W62];[Calcoli.W63];0);"")))))+TIME(1;0;0) -> PT02H47M00S | P13: =of:=IF([.Q13]=[Calcoli.W169];"L.N. ";IF([.Q13]=[Calcoli.W185];"P.Q. ";IF([.Q13]=[Calcoli.W201];"L.P. ";IF([.Q13]=[Calcoli.W217];"U.Q. ";IF([.Q13]=[Calcoli.Z61];"L.N. ";""))))) -> L.P. | Q13: =of:=IF(MONTH([Calcoli.W169])=8;[Calcoli.W169];IF(MONTH([Calcoli.W185])=8;[Calcoli.W185];IF(MONTH([Calcoli.W201])=8;[Calcoli.W201];IF(MONTH([Calcoli.W217])=8;[Calcoli.W217];IF(MONTH([Calcoli.Z61])=8;[Calcoli.Z61];""))))) -> 2017-08-07 | R13: =of:=IF([.Q13]="";"";"alle ore ") -> alle ore | S13: =of:=IF([.Q13]=[Calcoli.W169];TIME([Calcoli.W170];[Calcoli.W171];0);IF([.Q13]=[Calcoli.W185];TIME([Calcoli.W186];[Calcoli.W187];0);IF([.Q13]=[Calcoli.W201];TIME([Calcoli.W202];[Calcoli.W203];0);IF([.Q13]=[Calcoli.W217];TIME([Calcoli.W218];[Calcoli.W219];0);IF([.Q13]=[Calcoli.Z61];TIME([Calcoli.Z62];[Calcoli.Z63];0);"")))))+TIME(1;0;0) -> PT20H13M00S
A14: =of:=IF([.B14]="";"";IF([.A13]="L.N. ";"P.Q. ";IF([.A13]="P.Q. ";"L.P. ";IF([.A13]="L.P. ";"U.Q. ";IF([.A13]="U.Q. ";"L.N. ";""))))) -> L.P. | B14: =of:=IF(MONTH([Calcoli.N185])=5 AND ([Calcoli.N185]-[.B13]>1) AND ([Calcoli.N185]-[.B13]<10);[Calcoli.N185];IF(MONTH([Calcoli.N201])=5 AND ([Calcoli.N201]-[.B13]>1) AND ([Calcoli.N201]-[.B13]<10);[Calcoli.N201];IF(MONTH([Calcoli.N217])=5 AND ([Calcoli.N217]-[.B13]>1) AND ([Calcoli.N217]-[.B13]<10);[Calcoli.N217];IF(MONTH([Calcoli.Q61])=5 AND ([Calcoli.Q61]-[.B13]>1) AND ([Calcoli.Q61]-[.B13]<10);[Calcoli.Q61];IF(MONTH([Calcoli.Q77])=5 AND ([Calcoli.Q77]-[.B13]>1) AND ([Calcoli.Q77]-[.B13]<10);[Calcoli.Q77];""))))) -> 2017-05-10 | C14: =of:=IF([.B14]="";"";"alle ore ") -> alle ore | D14: =of:=IF([.B14]=[Calcoli.N185];TIME([Calcoli.N186];[Calcoli.N187];0);IF([.B14]=[Calcoli.N201];TIME([Calcoli.N202];[Calcoli.N203];0);IF([.B14]=[Calcoli.N217];TIME([Calcoli.N218];[Calcoli.N219];0);IF([.B14]=[Calcoli.Q61];TIME([Calcoli.Q62];[Calcoli.Q63];0);IF([.B14]=[Calcoli.Q77];TIME([Calcoli.Q78];[Calcoli.Q79];0);"")))))+TIME(1;0;0) -> PT23H44M00S | F14: =of:=IF([.G14]="";"";IF([.F13]="L.N. ";"P.Q. ";IF([.F13]="P.Q. ";"L.P. ";IF([.F13]="L.P. ";"U.Q. ";IF([.F13]="U.Q. ";"L.N. ";""))))) -> L.P. | G14: =of:=IF(MONTH([Calcoli.Q185])=6 AND ([Calcoli.Q185]-[.G13]>1) AND ([Calcoli.Q185]-[.G13]<10);[Calcoli.Q185];IF(MONTH([Calcoli.Q201])=6 AND ([Calcoli.Q201]-[.G13]>1) AND ([Calcoli.Q201]-[.G13]<10);[Calcoli.Q201];IF(MONTH([Calcoli.Q217])=6 AND ([Calcoli.Q217]-[.G13]>1) AND ([Calcoli.Q217]-[.G13]<10);[Calcoli.Q217];IF(MONTH([Calcoli.T61])=6 AND ([Calcoli.T61]-[.G13]>1) AND ([Calcoli.T61]-[.G13]<10);[Calcoli.T61];IF(MONTH([Calcoli.T77])=6 AND ([Calcoli.T77]-[.G13]>1) AND ([Calcoli.T77]-[.G13]<10);[Calcoli.T77];""))))) -> 2017-06-09 | H14: =of:=IF([.G14]="";"";"alle ore ") -> alle ore | I14: =of:=IF([.G14]=[Calcoli.Q185];TIME([Calcoli.Q186];[Calcoli.Q187];0);IF([.G14]=[Calcoli.Q201];TIME([Calcoli.Q202];[Calcoli.Q203];0);IF([.G14]=[Calcoli.Q217];TIME([Calcoli.Q218];[Calcoli.Q219];0);IF([.G14]=[Calcoli.T61];TIME([Calcoli.T62];[Calcoli.T63];0);IF([.G14]=[Calcoli.T77];TIME([Calcoli.T78];[Calcoli.T79];0);"")))))+TIME(1;0;0) -> PT15H11M00S | K14: =of:=IF([.L14]="";"";IF([.K13]="L.N. ";"P.Q. ";IF([.K13]="P.Q. ";"L.P. ";IF([.K13]="L.P. ";"U.Q. ";IF([.K13]="U.Q. ";"L.N. ";""))))) -> L.P. | L14: =of:=IF(MONTH([Calcoli.T185])=7 AND ([Calcoli.T185]-[.L13]>1) AND ([Calcoli.T185]-[.L13]<10);[Calcoli.T185];IF(MONTH([Calcoli.T201])=7 AND ([Calcoli.T201]-[.L13]>1) AND ([Calcoli.T201]-[.L13]<10);[Calcoli.T201];IF(MONTH([Calcoli.T217])=7 AND ([Calcoli.T217]-[.L13]>1) AND ([Calcoli.T217]-[.L13]<10);[Calcoli.T217];IF(MONTH([Calcoli.W61])=7 AND ([Calcoli.W61]-[.L13]>1) AND ([Calcoli.W61]-[.L13]<10);[Calcoli.W61];IF(MONTH([Calcoli.W77])=7 AND ([Calcoli.W77]-[.L13]>1) AND ([Calcoli.W77]-[.L13]<10);[Calcoli.W77];""))))) -> 2017-07-09 | M14: =of:=IF([.L14]="";"";"alle ore ") -> alle ore | N14: =of:=IF([.L14]=[Calcoli.T185];TIME([Calcoli.T186];[Calcoli.T187];0);IF([.L14]=[Calcoli.T201];TIME([Calcoli.T202];[Calcoli.T203];0);IF([.L14]=[Calcoli.T217];TIME([Calcoli.T218];[Calcoli.T219];0);IF([.L14]=[Calcoli.W61];TIME([Calcoli.W62];[Calcoli.W63];0);IF([.L14]=[Calcoli.W77];TIME([Calcoli.W78];[Calcoli.W79];0);"")))))+TIME(1;0;0) -> PT06H08M00S | P14: =of:=IF([.Q14]="";"";IF([.P13]="L.N. ";"P.Q. ";IF([.P13]="P.Q. ";"L.P. ";IF([.P13]="L.P. ";"U.Q. ";IF([.P13]="U.Q. ";"L.N. ";""))))) -> U.Q. | Q14: =of:=IF(MONTH([Calcoli.W185])=8 AND ([Calcoli.W185]-[.Q13]>1) AND ([Calcoli.W185]-[.Q13]<10);[Calcoli.W185];IF(MONTH([Calcoli.W201])=8 AND ([Calcoli.W201]-[.Q13]>1) AND ([Calcoli.W201]-[.Q13]<10);[Calcoli.W201];IF(MONTH([Calcoli.W217])=8 AND ([Calcoli.W217]-[.Q13]>1) AND ([Calcoli.W217]-[.Q13]<10);[Calcoli.W217];IF(MONTH([Calcoli.Z61])=8 AND ([Calcoli.Z61]-[.Q13]>1) AND ([Calcoli.Z61]-[.Q13]<10);[Calcoli.Z61];IF(MONTH([Calcoli.Z77])=8 AND ([Calcoli.Z77]-[.Q13]>1) AND ([Calcoli.Z77]-[.Q13]<10);[Calcoli.Z77];""))))) -> 2017-08-15 | R14: =of:=IF([.Q14]="";"";"alle ore ") -> alle ore | S14: =of:=IF([.Q14]=[Calcoli.W185];TIME([Calcoli.W186];[Calcoli.W187];0);IF([.Q14]=[Calcoli.W201];TIME([Calcoli.W202];[Calcoli.W203];0);IF([.Q14]=[Calcoli.W217];TIME([Calcoli.W218];[Calcoli.W219];0);IF([.Q14]=[Calcoli.Z61];TIME([Calcoli.Z62];[Calcoli.Z63];0);IF([.Q14]=[Calcoli.Z77];TIME([Calcoli.Z78];[Calcoli.Z79];0);"")))))+TIME(1;0;0) -> PT03H18M00S
A15: =of:=IF([.B15]="";"";IF([.A14]="L.N. ";"P.Q. ";IF([.A14]="P.Q. ";"L.P. ";IF([.A14]="L.P. ";"U.Q. ";IF([.A14]="U.Q. ";"L.N. ";""))))) -> U.Q. | B15: =of:=IF(MONTH([Calcoli.N201])=5 AND ([Calcoli.N201]-[.B14]>1) AND ([Calcoli.N201]-[.B14]<10);[Calcoli.N201];IF(MONTH([Calcoli.N217])=5 AND ([Calcoli.N217]-[.B14]>1) AND ([Calcoli.N217]-[.B14]<10);[Calcoli.N217];IF(MONTH([Calcoli.Q61])=5 AND ([Calcoli.Q61]-[.B14]>1) AND ([Calcoli.Q61]-[.B14]<10);[Calcoli.Q61];IF(MONTH([Calcoli.Q77])=5 AND ([Calcoli.Q77]-[.B14]>1) AND ([Calcoli.Q77]-[.B14]<10);[Calcoli.Q77];IF(MONTH([Calcoli.Q93])=5 AND ([Calcoli.Q93]-[.B14]>1) AND ([Calcoli.Q93]-[.B14]<10);[Calcoli.Q93];IF(MONTH([Calcoli.Q109])=5 AND ([Calcoli.Q109]-[.B14]>1) AND ([Calcoli.Q109]-[.B14]<10);[Calcoli.Q109];IF(MONTH([Calcoli.Q169])=5 AND ([Calcoli.Q169]-[.B14]>1) AND ([Calcoli.Q169]-[.B14]<10);[Calcoli.Q169];""))))))) -> 2017-05-19 | C15: =of:=IF([.B15]="";"";"alle ore ") -> alle ore | D15: =of:=IF([.B15]=[Calcoli.N201];TIME([Calcoli.N202];[Calcoli.N203];0);IF([.B15]=[Calcoli.N217];TIME([Calcoli.N218];[Calcoli.N219];0);IF([.B15]=[Calcoli.Q61];TIME([Calcoli.Q62];[Calcoli.Q63];0);IF([.B15]=[Calcoli.Q77];TIME([Calcoli.Q78];[Calcoli.Q79];0);IF([.B15]=[Calcoli.Q93];TIME([Calcoli.Q94];[Calcoli.Q95];0);IF([.B15]=[Calcoli.Q109];TIME([Calcoli.Q110];[Calcoli.Q111];0);IF([.B15]=[Calcoli.Q169];TIME([Calcoli.Q170];[Calcoli.Q171];0);"")))))))+TIME(1;0;0) -> PT02H36M00S | F15: =of:=IF([.G15]="";"";IF([.F14]="L.N. ";"P.Q. ";IF([.F14]="P.Q. ";"L.P. ";IF([.F14]="L.P. ";"U.Q. ";IF([.F14]="U.Q. ";"L.N. ";""))))) -> U.Q. | G15: =of:=IF(MONTH([Calcoli.Q201])=6 AND ([Calcoli.Q201]-[.G14]>1) AND ([Calcoli.Q201]-[.G14]<10);[Calcoli.Q201];IF(MONTH([Calcoli.Q217])=6 AND ([Calcoli.Q217]-[.G14]>1) AND ([Calcoli.Q217]-[.G14]<10);[Calcoli.Q217];IF(MONTH([Calcoli.T61])=6 AND ([Calcoli.T61]-[.G14]>1) AND ([Calcoli.T61]-[.G14]<10);[Calcoli.T61];IF(MONTH([Calcoli.T77])=6 AND ([Calcoli.T77]-[.G14]>1) AND ([Calcoli.T77]-[.G14]<10);[Calcoli.T77];IF(MONTH([Calcoli.T93])=6 AND ([Calcoli.T93]-[.G14]>1) AND ([Calcoli.T93]-[.G14]<10);[Calcoli.T93];IF(MONTH([Calcoli.T109])=6 AND ([Calcoli.T109]-[.G14]>1) AND ([Calcoli.T109]-[.G14]<10);[Calcoli.T109];IF(MONTH([Calcoli.T169])=6 AND ([Calcoli.T169]-[.G14]>1) AND ([Calcoli.T169]-[.G14]<10);[Calcoli.T169];""))))))) -> 2017-06-17 | H15: =of:=IF([.G15]="";"";"alle ore ") -> alle ore | I15: =of:=IF([.G15]=[Calcoli.Q201];TIME([Calcoli.Q202];[Calcoli.Q203];0);IF([.G15]=[Calcoli.Q217];TIME([Calcoli.Q218];[Calcoli.Q219];0);IF([.G15]=[Calcoli.T61];TIME([Calcoli.T62];[Calcoli.T63];0);IF([.G15]=[Calcoli.T77];TIME([Calcoli.T78];[Calcoli.T79];0);IF([.G15]=[Calcoli.T93];TIME([Calcoli.T94];[Calcoli.T95];0);IF([.G15]=[Calcoli.T109];TIME([Calcoli.T110];[Calcoli.T111];0);IF([.G15]=[Calcoli.T169];TIME([Calcoli.T170];[Calcoli.T171];0);"")))))))+TIME(1;0;0) -> PT13H35M00S | K15: =of:=IF([.L15]="";"";IF([.K14]="L.N. ";"P.Q. ";IF([.K14]="P.Q. ";"L.P. ";IF([.K14]="L.P. ";"U.Q. ";IF([.K14]="U.Q. ";"L.N. ";""))))) -> U.Q. | L15: =of:=IF(MONTH([Calcoli.T201])=7 AND ([Calcoli.T201]-[.L14]>1) AND ([Calcoli.T201]-[.L14]<10);[Calcoli.T201];IF(MONTH([Calcoli.T217])=7 AND ([Calcoli.T217]-[.L14]>1) AND ([Calcoli.T217]-[.L14]<10);[Calcoli.T217];IF(MONTH([Calcoli.W61])=7 AND ([Calcoli.W61]-[.L14]>1) AND ([Calcoli.W61]-[.L14]<10);[Calcoli.W61];IF(MONTH([Calcoli.W77])=7 AND ([Calcoli.W77]-[.L14]>1) AND ([Calcoli.W77]-[.L14]<10);[Calcoli.W77];IF(MONTH([Calcoli.W93])=7 AND ([Calcoli.W93]-[.L14]>1) AND ([Calcoli.W93]-[.L14]<10);[Calcoli.W93];IF(MONTH([Calcoli.W109])=7 AND ([Calcoli.W109]-[.L14]>1) AND ([Calcoli.W109]-[.L14]<10);[Calcoli.W109];IF(MONTH([Calcoli.W169])=7 AND ([Calcoli.W169]-[.L14]>1) AND ([Calcoli.W169]-[.L14]<10);[Calcoli.W169];""))))))) -> 2017-07-16 | M15: =of:=IF([.L15]="";"";"alle ore ") -> alle ore | N15: =of:=IF([.L15]=[Calcoli.T201];TIME([Calcoli.T202];[Calcoli.T203];0);IF([.L15]=[Calcoli.T217];TIME([Calcoli.T218];[Calcoli.T219];0);IF([.L15]=[Calcoli.W61];TIME([Calcoli.W62];[Calcoli.EW63];0);IF([.L15]=[Calcoli.W77];TIME([Calcoli.W78];[Calcoli.W79];0);IF([.L15]=[Calcoli.W93];TIME([Calcoli.W94];[Calcoli.W95];0);IF([.L15]=[Calcoli.W109];TIME([Calcoli.W110];[Calcoli.W111];0);IF([.L15]=[Calcoli.W169];TIME([Calcoli.W170];[Calcoli.W171];0);"")))))))+TIME(1;0;0) -> PT21H28M00S | P15: =of:=IF([.Q15]="";"";IF([.P14]="L.N. ";"P.Q. ";IF([.P14]="P.Q. ";"L.P. ";IF([.P14]="L.P. ";"U.Q. ";IF([.P14]="U.Q. ";"L.N. ";""))))) -> L.N. | Q15: =of:=IF(MONTH([Calcoli.W201])=8 AND ([Calcoli.W201]-[.Q14]>1) AND ([Calcoli.W201]-[.Q14]<10);[Calcoli.W201];IF(MONTH([Calcoli.W217])=8 AND ([Calcoli.W217]-[.Q14]>1) AND ([Calcoli.W217]-[.Q14]<10);[Calcoli.W217];IF(MONTH([Calcoli.Z61])=8 AND ([Calcoli.Z61]-[.Q14]>1) AND ([Calcoli.Z61]-[.Q14]<10);[Calcoli.Z61];IF(MONTH([Calcoli.Z77])=8 AND ([Calcoli.Z77]-[.Q14]>1) AND ([Calcoli.Z77]-[.Q14]<10);[Calcoli.Z77];IF(MONTH([Calcoli.Z93])=8 AND ([Calcoli.Z93]-[.Q14]>1) AND ([Calcoli.Z93]-[.Q14]<10);[Calcoli.Z93];IF(MONTH([Calcoli.Z109])=8 AND ([Calcoli.Z109]-[.Q14]>1) AND ([Calcoli.Z109]-[.Q14]<10);[Calcoli.Z109];IF(MONTH([Calcoli.Z169])=8 AND ([Calcoli.Z169]-[.Q14]>1) AND ([Calcoli.Z169]-[.Q14]<10);[Calcoli.Z169];""))))))) -> 2017-08-21 | R15: =of:=IF([.Q15]="";"";"alle ore ") -> alle ore | S15: =of:=IF([.Q15]=[Calcoli.W201];TIME([Calcoli.W202];[Calcoli.W203];0);IF([.Q15]=[Calcoli.W217];TIME([Calcoli.W218];[Calcoli.W219];0);IF([.Q15]=[Calcoli.Z61];TIME([Calcoli.Z62];[Calcoli.Z63];0);IF([.Q15]=[Calcoli.Z77];TIME([Calcoli.Z78];[Calcoli.Z79];0);IF([.Q15]=[Calcoli.Z93];TIME([Calcoli.Z94];[Calcoli.Z95];0);IF([.Q15]=[Calcoli.Z109];TIME([Calcoli.Z110];[Calcoli.Z111];0);IF([.Q15]=[Calcoli.Z169];TIME([Calcoli.Z170];[Calcoli.Z171];0);"")))))))+TIME(1;0;0) -> PT20H31M00S
A16: =of:=IF([.B16]="";"";IF([.A15]="L.N. ";"P.Q. ";IF([.A15]="P.Q. ";"L.P. ";IF([.A15]="L.P. ";"U.Q. ";IF([.A15]="U.Q. ";"L.N. ";""))))) -> L.N. | B16: =of:=IF(MONTH([Calcoli.N217])=5 AND ([Calcoli.N217]-[.B15]>1) AND ([Calcoli.N217]-[.B15]<10);[Calcoli.N217];IF(MONTH([Calcoli.Q61])=5 AND ([Calcoli.Q61]-[.B15]>1) AND ([Calcoli.Q61]-[.B15]<10);[Calcoli.Q61];IF(MONTH([Calcoli.Q77])=5 AND ([Calcoli.Q77]-[.B15]>1) AND ([Calcoli.Q77]-[.B15]<10);[Calcoli.Q77];IF(MONTH([Calcoli.Q93])=5 AND ([Calcoli.Q93]-[.B15]>1) AND ([Calcoli.Q93]-[.B15]<10);[Calcoli.Q93];IF(MONTH([Calcoli.Q109])=5 AND ([Calcoli.Q109]-[.B15]>1) AND ([Calcoli.Q109]-[.B15]<10);[Calcoli.Q109];IF(MONTH([Calcoli.Q169])=5 AND ([Calcoli.Q169]-[.B15]>1) AND ([Calcoli.Q169]-[.B15]<10);[Calcoli.Q169];IF(MONTH([Calcoli.Q185])=5 AND ([Calcoli.Q185]-[.B15]>1) AND ([Calcoli.Q185]-[.B15]<10);[Calcoli.Q185];""))))))) -> 2017-05-25 | C16: =of:=IF([.B16]="";"";"alle ore ") -> alle ore | D16: =of:=IF([.B16]=[Calcoli.N217];TIME([Calcoli.N218];[Calcoli.N219];0);IF([.B16]=[Calcoli.Q61];TIME([Calcoli.Q62];[Calcoli.Q63];0);IF([.B16]=[Calcoli.Q77];TIME([Calcoli.Q78];[Calcoli.Q79];0);IF([.B16]=[Calcoli.Q93];TIME([Calcoli.Q94];[Calcoli.Q95];0);IF([.B16]=[Calcoli.Q109];TIME([Calcoli.Q110];[Calcoli.Q111];0);IF([.B16]=[Calcoli.Q169];TIME([Calcoli.Q170];[Calcoli.Q171];0);IF([.B16]=[Calcoli.Q185];TIME([Calcoli.Q186];[Calcoli.Q187];0);"")))))))+TIME(1;0;0) -> PT21H46M00S | F16: =of:=IF([.G16]="";"";IF([.F15]="L.N. ";"P.Q. ";IF([.F15]="P.Q. ";"L.P. ";IF([.F15]="L.P. ";"U.Q. ";IF([.F15]="U.Q. ";"L.N. ";""))))) -> L.N. | G16: =of:=IF(MONTH([Calcoli.Q217])=6 AND ([Calcoli.Q217]-[.G15]>1) AND ([Calcoli.Q217]-[.G15]<10);[Calcoli.Q217];IF(MONTH([Calcoli.T61])=6 AND ([Calcoli.T61]-[.G15]>1) AND ([Calcoli.T61]-[.G15]<10);[Calcoli.T61];IF(MONTH([Calcoli.T77])=6 AND ([Calcoli.T77]-[.G15]>1) AND ([Calcoli.T77]-[.G15]<10);[Calcoli.T77];IF(MONTH([Calcoli.T93])=6 AND ([Calcoli.T93]-[.G15]>1) AND ([Calcoli.T93]-[.G15]<10);[Calcoli.T93];IF(MONTH([Calcoli.T109])=6 AND ([Calcoli.T109]-[.G15]>1) AND ([Calcoli.T109]-[.G15]<10);[Calcoli.T109];IF(MONTH([Calcoli.T169])=6 AND ([Calcoli.T169]-[.G15]>1) AND ([Calcoli.T169]-[.G15]<10);[Calcoli.T169];IF(MONTH([Calcoli.T185])=6 AND ([Calcoli.T185]-[.G15]>1) AND ([Calcoli.T185]-[.G15]<10);[Calcoli.T185];""))))))) -> 2017-06-24 | H16: =of:=IF([.G16]="";"";"alle ore ") -> alle ore | I16: =of:=IF([.G16]=[Calcoli.Q217];TIME([Calcoli.Q218];[Calcoli.Q219];0);IF([.G16]=[Calcoli.T61];TIME([Calcoli.T62];[Calcoli.T63];0);IF([.G16]=[Calcoli.T77];TIME([Calcoli.T78];[Calcoli.T79];0);IF([.G16]=[Calcoli.T93];TIME([Calcoli.T94];[Calcoli.T95];0);IF([.G16]=[Calcoli.T109];TIME([Calcoli.T110];[Calcoli.T111];0);IF([.G16]=[Calcoli.T169];TIME([Calcoli.T170];[Calcoli.T171];0);IF([.G16]=[Calcoli.T185];TIME([Calcoli.T186];[Calcoli.T187];0);"")))))))+TIME(1;0;0) -> PT04H33M00S | K16: =of:=IF([.L16]="";"";IF([.K15]="L.N. ";"P.Q. ";IF([.K15]="P.Q. ";"L.P. ";IF([.K15]="L.P. ";"U.Q. ";IF([.K15]="U.Q. ";"L.N. ";""))))) -> L.N. | L16: =of:=IF(MONTH([Calcoli.T217])=7 AND ([Calcoli.T217]-[.L15]>1) AND ([Calcoli.T217]-[.L15]<10);[Calcoli.T217];IF(MONTH([Calcoli.W61])=7 AND ([Calcoli.W61]-[.L15]>1) AND ([Calcoli.W61]-[.L15]<10);[Calcoli.W61];IF(MONTH([Calcoli.W77])=7 AND ([Calcoli.W77]-[.L15]>1) AND ([Calcoli.W77]-[.L15]<10);[Calcoli.W77];IF(MONTH([Calcoli.W93])=7 AND ([Calcoli.W93]-[.L15]>1) AND ([Calcoli.W93]-[.L15]<10);[Calcoli.W93];IF(MONTH([Calcoli.W109])=7 AND ([Calcoli.W109]-[.L15]>1) AND ([Calcoli.W109]-[.L15]<10);[Calcoli.W109];IF(MONTH([Calcoli.W169])=7 AND ([Calcoli.W169]-[.L15]>1) AND ([Calcoli.W169]-[.L15]<10);[Calcoli.W169];IF(MONTH([Calcoli.W185])=7 AND ([Calcoli.W185]-[.L15]>1) AND ([Calcoli.W185]-[.L15]<10);[Calcoli.W185];""))))))) -> 2017-07-23 | M16: =of:=IF([.L16]="";"";"alle ore ") -> alle ore | N16: =of:=IF([.L16]=[Calcoli.T217];TIME([Calcoli.T218];[Calcoli.T219];0);IF([.L16]=[Calcoli.W61];TIME([Calcoli.W62];[Calcoli.W63];0);IF([.L16]=[Calcoli.W77];TIME([Calcoli.W78];[Calcoli.W79];0);IF([.L16]=[Calcoli.W93];TIME([Calcoli.W94];[Calcoli.W95];0);IF([.L16]=[Calcoli.W109];TIME([Calcoli.W110];[Calcoli.W111];0);IF([.L16]=[Calcoli.W169];TIME([Calcoli.W170];[Calcoli.W171];0);IF([.L16]=[Calcoli.W185];TIME([Calcoli.W186];[Calcoli.W187];0);"")))))))+TIME(1;0;0) -> PT11H47M00S | P16: =of:=IF([.Q16]="";"";IF([.P15]="L.N. ";"P.Q. ";IF([.P15]="P.Q. ";"L.P. ";IF([.P15]="L.P. ";"U.Q. ";IF([.P15]="U.Q. ";"L.N. ";""))))) -> P.Q. | Q16: =of:=IF(MONTH([Calcoli.W217])=8 AND ([Calcoli.W217]-[.Q15]>1) AND ([Calcoli.W217]-[.Q15]<10);[Calcoli.W217];IF(MONTH([Calcoli.Z61])=8 AND ([Calcoli.Z61]-[.Q15]>1) AND ([Calcoli.Z61]-[.Q15]<10);[Calcoli.Z61];IF(MONTH([Calcoli.Z77])=8 AND ([Calcoli.Z77]-[.Q15]>1) AND ([Calcoli.Z77]-[.Q15]<10);[Calcoli.Z77];IF(MONTH([Calcoli.Z93])=8 AND ([Calcoli.Z93]-[.Q15]>1) AND ([Calcoli.Z93]-[.Q15]<10);[Calcoli.Z93];IF(MONTH([Calcoli.Z109])=8 AND ([Calcoli.Z109]-[.Q15]>1) AND ([Calcoli.Z109]-[.Q15]<10);[Calcoli.Z109];IF(MONTH([Calcoli.Z169])=8 AND ([Calcoli.Z169]-[.Q15]>1) AND ([Calcoli.Z169]-[.Q15]<10);[Calcoli.Z169];IF(MONTH([Calcoli.Z185])=8 AND ([Calcoli.Z185]-[.Q15]>1) AND ([Calcoli.Z185]-[.Q15]<10);[Calcoli.Z185];""))))))) -> 2017-08-29 | R16: =of:=IF([.Q16]="";"";"alle ore ") -> alle ore | S16: =of:=IF([.Q16]=[Calcoli.W217];TIME([Calcoli.W218];[Calcoli.W219];0);IF([.Q16]=[Calcoli.Z61];TIME([Calcoli.Z62];[Calcoli.Z63];0);IF([.Q16]=[Calcoli.Z77];TIME([Calcoli.Z78];[Calcoli.Z79];0);IF([.Q16]=[Calcoli.Z93];TIME([Calcoli.Z94];[Calcoli.Z95];0);IF([.Q16]=[Calcoli.Z109];TIME([Calcoli.Z110];[Calcoli.Z111];0);IF([.Q16]=[Calcoli.Z169];TIME([Calcoli.Z170];[Calcoli.Z171];0);IF([.Q16]=[Calcoli.Z185];TIME([Calcoli.Z186];[Calcoli.Z187];0);"")))))))+TIME(1;0;0) -> PT10H10M00S
A17: =of:=IF([.B17]="";"";IF([.A16]="L.N. ";"P.Q. ";IF([.A16]="P.Q. ";"L.P. ";IF([.A16]="L.P. ";"U.Q. ";IF([.A16]="U.Q. ";"L.N. ";""))))) ->  | B17: =of:=IF(MONTH([Calcoli.N217])=5 AND ([Calcoli.N217]-[.B16]>1) AND ([Calcoli.N217]-[.B16]<10);[Calcoli.N217];IF(MONTH([Calcoli.Q61])=5 AND ([Calcoli.Q61]-[.B16]>1) AND ([Calcoli.Q61]-[.B16]<10);[Calcoli.Q61];IF(MONTH([Calcoli.Q77])=5 AND ([Calcoli.Q77]-[.B16]>1) AND ([Calcoli.Q77]-[.B16]<10);[Calcoli.Q77];IF(MONTH([Calcoli.Q93])=5 AND ([Calcoli.Q93]-[.B16]>1) AND ([Calcoli.Q93]-[.B16]<10);[Calcoli.Q93];IF(MONTH([Calcoli.Q109])=5 AND ([Calcoli.Q109]-[.B16]>1) AND ([Calcoli.Q109]-[.B16]<10);[Calcoli.Q109];IF(MONTH([Calcoli.Q169])=5 AND ([Calcoli.Q169]-[.B16]>1) AND ([Calcoli.Q169]-[.B16]<10);[Calcoli.Q169];IF(MONTH([Calcoli.Q185])=5 AND ([Calcoli.Q185]-[.B16]>1) AND ([Calcoli.Q185]-[.B16]<10);[Calcoli.Q185];""))))))) ->  | C17: =of:=IF([.B17]="";"";"alle ore ") ->  | D17: =of:=IF([.B17]=[Calcoli.N217];TIME([Calcoli.N218];[Calcoli.N219];0+TIME(1;0;0));IF([.B17]=[Calcoli.Q61];TIME([Calcoli.Q62];[Calcoli.Q63];0)+TIME(1;0;0);IF([.B17]=[Calcoli.Q77];TIME([Calcoli.Q78];[Calcoli.Q79];0)+TIME(1;0;0);IF([.B17]=[Calcoli.Q93];TIME([Calcoli.Q94];[Calcoli.Q95];0)+TIME(1;0;0);IF([.B17]=[Calcoli.Q109];TIME([Calcoli.Q110];[Calcoli.Q111];0)+TIME(1;0;0);IF([.B17]=[Calcoli.Q169];TIME([Calcoli.Q170];[Calcoli.Q171];0)+TIME(1;0;0);IF([.B17]=[Calcoli.Q185];TIME([Calcoli.Q186];[Calcoli.Q187];0)+TIME(1;0;0);""))))))) ->  | F17: =of:=IF([.G17]="";"";IF([.F16]="L.N. ";"P.Q. ";IF([.F16]="P.Q. ";"L.P. ";IF([.F16]="L.P. ";"U.Q. ";IF([.F16]="U.Q. ";"L.N. ";""))))) ->  | G17: =of:=IF(MONTH([Calcoli.Q217])=6 AND ([Calcoli.Q217]-[.G16]>1) AND ([Calcoli.Q217]-[.G16]<10);[Calcoli.Q217];IF(MONTH([Calcoli.T61])=6 AND ([Calcoli.T61]-[.G16]>1) AND ([Calcoli.T61]-[.G16]<10);[Calcoli.T61];IF(MONTH([Calcoli.T77])=6 AND ([Calcoli.T77]-[.G16]>1) AND ([Calcoli.T77]-[.G16]<10);[Calcoli.T77];IF(MONTH([Calcoli.T93])=6 AND ([Calcoli.T93]-[.G16]>1) AND ([Calcoli.T93]-[.G16]<10);[Calcoli.T93];IF(MONTH([Calcoli.T109])=6 AND ([Calcoli.T109]-[.G16]>1) AND ([Calcoli.T109]-[.G16]<10);[Calcoli.T109];IF(MONTH([Calcoli.T169])=6 AND ([Calcoli.T169]-[.G16]>1) AND ([Calcoli.T169]-[.G16]<10);[Calcoli.T169];IF(MONTH([Calcoli.T185])=6 AND ([Calcoli.T185]-[.G16]>1) AND ([Calcoli.T185]-[.G16]<10);[Calcoli.T185];""))))))) ->  | H17: =of:=IF([.G17]="";"";"alle ore ") ->  | I17: =of:=IF([.G17]=[Calcoli.Q217];TIME([Calcoli.Q218];[Calcoli.Q219];0)+TIME(1;0;0);IF([.G17]=[Calcoli.T61];TIME([Calcoli.T62];[Calcoli.T63];0)+TIME(1;0;0);IF([.G17]=[Calcoli.T77];TIME([Calcoli.T78];[Calcoli.T79];0)+TIME(1;0;0);IF([.G17]=[Calcoli.T93];TIME([Calcoli.T94];[Calcoli.T95];0)+TIME(1;0;0);IF([.G17]=[Calcoli.T109];TIME([Calcoli.T110];[Calcoli.T111];0)+TIME(1;0;0);IF([.G17]=[Calcoli.T169];TIME([Calcoli.T170];[Calcoli.T171];0)+TIME(1;0;0);IF([.G17]=[Calcoli.T185];TIME([Calcoli.T186];[Calcoli.T187];0)+TIME(1;0;0);""))))))) ->  | K17: =of:=IF([.L17]="";"";IF([.K16]="L.N. ";"P.Q. ";IF([.K16]="P.Q. ";"L.P. ";IF([.K16]="L.P. ";"U.Q. ";IF([.K16]="U.Q. ";"L.N. ";""))))) -> P.Q. | L17: =of:=IF(MONTH([Calcoli.T217])=7 AND ([Calcoli.T217]-[.L16]>1) AND ([Calcoli.T217]-[.L16]<10);[Calcoli.T217];IF(MONTH([Calcoli.W61])=7 AND ([Calcoli.W61]-[.L16]>1) AND ([Calcoli.W61]-[.L16]<10);[Calcoli.W61];IF(MONTH([Calcoli.W77])=7 AND ([Calcoli.W77]-[.L16]>1) AND ([Calcoli.W77]-[.L16]<10);[Calcoli.W77];IF(MONTH([Calcoli.W93])=7 AND ([Calcoli.W93]-[.L16]>1) AND ([Calcoli.W93]-[.L16]<10);[Calcoli.W93];IF(MONTH([Calcoli.W109])=7 AND ([Calcoli.W109]-[.L16]>1) AND ([Calcoli.W109]-[.L16]<10);[Calcoli.W109];IF(MONTH([Calcoli.W169])=7 AND ([Calcoli.W169]-[.L16]>1) AND ([Calcoli.W169]-[.L16]<10);[Calcoli.W169];IF(MONTH([Calcoli.W185])=7 AND ([Calcoli.W185]-[.L16]>1) AND ([Calcoli.W185]-[.L16]<10);[Calcoli.W185];""))))))) -> 2017-07-30 | M17: =of:=IF([.L17]="";"";"alle ore ") -> alle ore | N17: =of:=IF([.L17]=[Calcoli.T217];TIME([Calcoli.T218];[Calcoli.T219];0)+TIME(1;0;0);IF([.L17]=[Calcoli.W61];TIME([Calcoli.W62];[Calcoli.W63];0)+TIME(1;0;0);IF([.L17]=[Calcoli.W77];TIME([Calcoli.W78];[Calcoli.W79];0)+TIME(1;0;0);IF([.L17]=[Calcoli.W93];TIME([Calcoli.W94];[Calcoli.W95];0)+TIME(1;0;0);IF([.L17]=[Calcoli.W109];TIME([Calcoli.W110];[Calcoli.W111];0)+TIME(1;0;0);IF([.L17]=[Calcoli.W169];TIME([Calcoli.W170];[Calcoli.W171];0)+TIME(1;0;0);IF([.L17]=[Calcoli.W185];TIME([Calcoli.W186];[Calcoli.W187];0)+TIME(1;0;0);""))))))) -> PT17H20M00S | P17: =of:=IF([.Q17]="";"";IF([.P16]="L.N. ";"P.Q. ";IF([.P16]="P.Q. ";"L.P. ";IF([.P16]="L.P. ";"U.Q. ";IF([.P16]="U.Q. ";"L.N. ";""))))) ->  | Q17: =of:=IF(MONTH([Calcoli.W217])=8 AND ([Calcoli.W217]-[.Q16]>1) AND ([Calcoli.W217]-[.Q16]<10);[Calcoli.W217];IF(MONTH([Calcoli.Z61])=8 AND ([Calcoli.Z61]-[.Q16]>1) AND ([Calcoli.Z61]-[.Q16]<10);[Calcoli.Z61];IF(MONTH([Calcoli.Z77])=8 AND ([Calcoli.Z77]-[.Q16]>1) AND ([Calcoli.Z77]-[.Q16]<10);[Calcoli.Z77];IF(MONTH([Calcoli.Z93])=8 AND ([Calcoli.Z93]-[.Q16]>1) AND ([Calcoli.Z93]-[.Q16]<10);[Calcoli.Z93];IF(MONTH([Calcoli.Z109])=8 AND ([Calcoli.Z109]-[.Q16]>1) AND ([Calcoli.Z109]-[.Q16]<10);[Calcoli.Z109];IF(MONTH([Calcoli.Z169])=8 AND ([Calcoli.Z169]-[.Q16]>1) AND ([Calcoli.Z169]-[.Q16]<10);[Calcoli.Z169];IF(MONTH([Calcoli.Z185])=8 AND ([Calcoli.Z185]-[.Q16]>1) AND ([Calcoli.Z185]-[.Q16]<10);[Calcoli.Z185];""))))))) ->  | R17: =of:=IF([.Q17]="";"";"alle ore ") ->  | S17: =of:=IF([.Q17]=[Calcoli.W217];TIME([Calcoli.W218];[Calcoli.W219];0)+TIME(1;0;0);IF([.Q17]=[Calcoli.Z61];TIME([Calcoli.Z62];[Calcoli.Z63];0)+TIME(1;0;0);IF([.Q17]=[Calcoli.Z77];TIME([Calcoli.Z78];[Calcoli.Z79];0+TIME(1;0;0));IF([.Q17]=[Calcoli.Z93];TIME([Calcoli.Z94];[Calcoli.Z95];0)+TIME(1;0;0);IF([.Q17]=[Calcoli.Z109];TIME([Calcoli.Z110];[Calcoli.Z111];0)+TIME(1;0;0);IF([.Q17]=[Calcoli.Z169];TIME([Calcoli.Z170];[Calcoli.Z171];0)+TIME(1;0;0);IF([.Q17]=[Calcoli.Z185];TIME([Calcoli.Z186];[Calcoli.Z187];0)+TIME(1;0;0);""))))))) -> 
A20: =of:="Settembre "&YEAR([Calcoli.AB4]) -> Settembre 2017 | F20: =of:="Ottobre "&YEAR([Calcoli.AE4]) -> Ottobre 2017 | K20: =of:="Novembre "&YEAR([Calcoli.AH4]) -> Novembre 2017 | P20: =of:="Dicembre "&YEAR([Calcoli.AK4]) -> Dicembre 2017
A21: =of:=IF([.B21]=[Calcoli.Z169];"L.N. ";IF([.B21]=[Calcoli.Z185];"P.Q. ";IF([.B21]=[Calcoli.Z201];"L.P. ";IF([.B21]=[Calcoli.Z217];"U.Q. ";IF([.B21]=[Calcoli.AC61];"L.N. ";""))))) -> L.P. | B21: =of:=IF(MONTH([Calcoli.Z169])=9;[Calcoli.Z169];IF(MONTH([Calcoli.Z185])=9;[Calcoli.Z185];IF(MONTH([Calcoli.Z201])=9;[Calcoli.Z201];IF(MONTH([Calcoli.Z217])=9;[Calcoli.Z217];IF(MONTH([Calcoli.AC61])=9;[Calcoli.AC61];""))))) -> 2017-09-06 | C21: =of:=IF([.B21]="";"";"alle ore ") -> alle ore | D21: =of:=IF([.B21]=[Calcoli.Z169];TIME([Calcoli.Z170];[Calcoli.Z171];0);IF([.B21]=[Calcoli.Z185];TIME([Calcoli.Z186];[Calcoli.Z187];0);IF([.B21]=[Calcoli.Z201];TIME([Calcoli.Z202];[Calcoli.Z203];0);IF([.B21]=[Calcoli.Z217];TIME([Calcoli.Z218];[Calcoli.Z219];0);IF([.B21]=[Calcoli.AC61];TIME([Calcoli.AC62];[Calcoli.AC63];0);"")))))+TIME(1;0;0) -> PT09H05M00S | F21: =of:=IF([.G21]=[Calcoli.AC169];"L.N. ";IF([.G21]=[Calcoli.AC185];"P.Q. ";IF([.G21]=[Calcoli.AC201];"L.P. ";IF([.G21]=[Calcoli.AC217];"U.Q. ";IF([.G21]=[Calcoli.AF61];"L.N. ";""))))) -> L.P. | G21: =of:=IF(MONTH([Calcoli.AC169])=10;[Calcoli.AC169];IF(MONTH([Calcoli.AC185])=10;[Calcoli.AC185];IF(MONTH([Calcoli.AC201])=10;[Calcoli.AC201];IF(MONTH([Calcoli.AC217])=10;[Calcoli.AC217];IF(MONTH([Calcoli.AF61])=10;[Calcoli.AF61];""))))) -> 2017-10-05 | H21: =of:=IF([.G21]="";"";"alle ore ") -> alle ore | I21: =of:=IF([.G21]=[Calcoli.AC169];TIME([Calcoli.AC170];[Calcoli.AC171];0);IF([.G21]=[Calcoli.AC185];TIME([Calcoli.AC186];[Calcoli.AC187];0);IF([.G21]=[Calcoli.AC201];TIME([Calcoli.AC202];[Calcoli.AC203];0);IF([.G21]=[Calcoli.AC217];TIME([Calcoli.AC218];[Calcoli.AC219];0);IF([.G21]=[Calcoli.AF61];TIME([Calcoli.AF62];[Calcoli.AF63];0);"")))))+TIME(1;0;0) -> PT20H42M00S | K21: =of:=IF([.L21]=[Calcoli.AF169];"L.N. ";IF([.L21]=[Calcoli.AF185];"P.Q. ";IF([.L21]=[Calcoli.AF201];"L.P. ";IF([.L21]=[Calcoli.AF217];"U.Q. ";IF([.L21]=[Calcoli.AI61];"L.N. ";""))))) -> L.P. | L21: =of:=IF(MONTH([Calcoli.AF169])=11;[Calcoli.AF169];IF(MONTH([Calcoli.AF185])=11;[Calcoli.AF185];IF(MONTH([Calcoli.AF201])=11;[Calcoli.AF201];IF(MONTH([Calcoli.AF217])=11;[Calcoli.AF217];IF(MONTH([Calcoli.AI61])=11;[Calcoli.AI61];""))))) -> 2017-11-04 | M21: =of:=IF([.L21]="";"";"alle ore ") -> alle ore | N21: =of:=IF([.L21]=[Calcoli.AF169];TIME([Calcoli.AF170];[Calcoli.AF171];0);IF([.L21]=[Calcoli.AF185];TIME([Calcoli.AF186];[Calcoli.AF187];0);IF([.L21]=[Calcoli.AF201];TIME([Calcoli.AF202];[Calcoli.AF203];0);IF([.L21]=[Calcoli.AF217];TIME([Calcoli.AF218];[Calcoli.AF219];0);IF([.L21]=[Calcoli.AI61];TIME([Calcoli.AI62];[Calcoli.AI63];0);""))))) -> PT06H25M00S | P21: =of:=IF([.Q21]=[Calcoli.AI169];"L.N. ";IF([.Q21]=[Calcoli.AI185];"P.Q. ";IF([.Q21]=[Calcoli.AI201];"L.P. ";IF([.Q21]=[Calcoli.AI217];"U.Q. ";IF([.Q21]=[Calcoli.AL61];"L.N. ";""))))) -> L.P. | Q21: =of:=IF(MONTH([Calcoli.AI169])=12;[Calcoli.AI169];IF(MONTH([Calcoli.AI185])=12;[Calcoli.AI185];IF(MONTH([Calcoli.AI201])=12;[Calcoli.AI201];IF(MONTH([Calcoli.AI217])=12;[Calcoli.AI217];IF(MONTH([Calcoli.AL61])=12;[Calcoli.AL61];""))))) -> 2017-12-03 | R21: =of:=IF([.Q21]="";"";"alle ore ") -> alle ore | S21: =of:=IF([.Q21]=[Calcoli.AI169];TIME([Calcoli.AI170];[Calcoli.AI171];0);IF([.Q21]=[Calcoli.AI185];TIME([Calcoli.AI186];[Calcoli.AI187];0);IF([.Q21]=[Calcoli.AI201];TIME([Calcoli.AI202];[Calcoli.AI203];0);IF([.Q21]=[Calcoli.AI217];TIME([Calcoli.AI218];[Calcoli.AI219];0);IF([.Q21]=[Calcoli.AL61];TIME([Calcoli.AL62];[Calcoli.AL63];0);""))))) -> PT16H49M00S
A22: =of:=IF([.B22]="";"";IF([.A21]="L.N. ";"P.Q. ";IF([.A21]="P.Q. ";"L.P. ";IF([.A21]="L.P. ";"U.Q. ";IF([.A21]="U.Q. ";"L.N. ";""))))) -> U.Q. | B22: =of:=IF(MONTH([Calcoli.Z185])=9 AND ([Calcoli.Z185]-[.B21]>1) AND ([Calcoli.Z185]-[.B21]<10);[Calcoli.Z185];IF(MONTH([Calcoli.Z201])=9 AND ([Calcoli.Z201]-[.B21]>1) AND ([Calcoli.Z201]-[.B21]<10);[Calcoli.Z201];IF(MONTH([Calcoli.Z217])=9 AND ([Calcoli.Z217]-[.B21]>1) AND ([Calcoli.Z217]-[.B21]<10);[Calcoli.Z217];IF(MONTH([Calcoli.AC61])=9 AND ([Calcoli.AC61]-[.B21]>1) AND ([Calcoli.AC61]-[.B21]<10);[Calcoli.AC61];IF(MONTH([Calcoli.AC77])=9 AND ([Calcoli.AC77]-[.B21]>1) AND ([Calcoli.AC77]-[.B21]<10);[Calcoli.AC77];""))))) -> 2017-09-13 | C22: =of:=IF([.B22]="";"";"alle ore ") -> alle ore | D22: =of:=IF([.B22]=[Calcoli.Z185];TIME([Calcoli.Z186];[Calcoli.Z187];0);IF([.B22]=[Calcoli.Z201];TIME([Calcoli.XZ202];[Calcoli.Z203];0);IF([.B22]=[Calcoli.Z217];TIME([Calcoli.Z218];[Calcoli.Z219];0);IF([.B22]=[Calcoli.AC61];TIME([Calcoli.AC62];[Calcoli.AC63];0);IF([.B22]=[Calcoli.AC77];TIME([Calcoli.AC78];[Calcoli.AC79];0);"")))))+TIME(1;0;0) -> PT08H27M00S | F22: =of:=IF([.G22]="";"";IF([.F21]="L.N. ";"P.Q. ";IF([.F21]="P.Q. ";"L.P. ";IF([.F21]="L.P. ";"U.Q. ";IF([.F21]="U.Q. ";"L.N. ";""))))) -> U.Q. | G22: =of:=IF(MONTH([Calcoli.AC185])=10 AND ([Calcoli.AC185]-[.G21]>1) AND ([Calcoli.AC185]-[.G21]<10);[Calcoli.AC185];IF(MONTH([Calcoli.AC201])=10 AND ([Calcoli.AC201]-[.G21]>1) AND ([Calcoli.AC201]-[.G21]<10);[Calcoli.AC201];IF(MONTH([Calcoli.AC217])=10 AND ([Calcoli.AC217]-[.G21]>1) AND ([Calcoli.AC217]-[.G21]<10);[Calcoli.AC217];IF(MONTH([Calcoli.AF61])=10 AND ([Calcoli.AF61]-[.G21]>1) AND ([Calcoli.AF61]-[.G21]<10);[Calcoli.AF61];IF(MONTH([Calcoli.AF77])=10 AND ([Calcoli.AF77]-[.G21]>1) AND ([Calcoli.AF77]-[.G21]<10);[Calcoli.AF77];""))))) -> 2017-10-12 | H22: =of:=IF([.G22]="";"";"alle ore ") -> alle ore | I22: =of:=IF([.G22]=[Calcoli.AC185];TIME([Calcoli.AC186];[Calcoli.AC187];0);IF([.G22]=[Calcoli.AC201];TIME([Calcoli.AC202];[Calcoli.AC203];0);IF([.G22]=[Calcoli.AC217];TIME([Calcoli.AC218];[Calcoli.AC219];0);IF([.G22]=[Calcoli.AF61];TIME([Calcoli.AF62];[Calcoli.AF63];0);IF([.G22]=[Calcoli.AF77];TIME([Calcoli.AF78];[Calcoli.AF79];0);"")))))+TIME(1;0;0) -> PT14H28M00S | K22: =of:=IF([.L22]="";"";IF([.K21]="L.N. ";"P.Q. ";IF([.K21]="P.Q. ";"L.P. ";IF([.K21]="L.P. ";"U.Q. ";IF([.K21]="U.Q. ";"L.N. ";""))))) -> U.Q. | L22: =of:=IF(MONTH([Calcoli.AF185])=11 AND ([Calcoli.AF185]-[.L21]>1) AND ([Calcoli.AF185]-[.L21]<10);[Calcoli.AF185];IF(MONTH([Calcoli.AF201])=11 AND ([Calcoli.AF201]-[.L21]>1) AND ([Calcoli.AF201]-[.L21]<10);[Calcoli.AF201];IF(MONTH([Calcoli.AF217])=11 AND ([Calcoli.AF217]-[.L21]>1) AND ([Calcoli.AF217]-[.L21]<10);[Calcoli.AF217];IF(MONTH([Calcoli.AI61])=11 AND ([Calcoli.AI61]-[.L21]>1) AND ([Calcoli.AI61]-[.L21]<10);[Calcoli.AI61];IF(MONTH([Calcoli.AI77])=11 AND ([Calcoli.AI77]-[.L21]>1) AND ([Calcoli.AI77]-[.L21]<10);[Calcoli.AI77];""))))) -> 2017-11-10 | M22: =of:=IF([.L22]="";"";"alle ore ") -> alle ore | N22: =of:=IF([.L22]=[Calcoli.AF185];TIME([Calcoli.AF186];[Calcoli.AF187];0);IF([.L22]=[Calcoli.AF201];TIME([Calcoli.AF202];[Calcoli.AF203];0);IF([.L22]=[Calcoli.AF217];TIME([Calcoli.AF218];[Calcoli.AF219];0);IF([.L22]=[Calcoli.AI61];TIME([Calcoli.AI62];[Calcoli.AI63];0);IF([.L22]=[Calcoli.AI77];TIME([Calcoli.AI78];[Calcoli.AI79];0);""))))) -> PT21H38M00S | P22: =of:=IF([.Q22]="";"";IF([.P21]="L.N. ";"P.Q. ";IF([.P21]="P.Q. ";"L.P. ";IF([.P21]="L.P. ";"U.Q. ";IF([.P21]="U.Q. ";"L.N. ";""))))) -> U.Q. | Q22: =of:=IF(MONTH([Calcoli.AI185])=12 AND ([Calcoli.AI185]-[.Q21]>1) AND ([Calcoli.AI185]-[.Q21]<10);[Calcoli.AI185];IF(MONTH([Calcoli.AI201])=12 AND ([Calcoli.AI201]-[.Q21]>1) AND ([Calcoli.AI201]-[.Q21]<10);[Calcoli.AI201];IF(MONTH([Calcoli.AI217])=12 AND ([Calcoli.AI217]-[.Q21]>1) AND ([Calcoli.AI217]-[.Q21]<10);[Calcoli.AI217];IF(MONTH([Calcoli.AL61])=12 AND ([Calcoli.AL61]-[.Q21]>1) AND ([Calcoli.AL61]-[.Q21]<10);[Calcoli.AL61];IF(MONTH([Calcoli.AL77])=12 AND ([Calcoli.AL77]-[.Q21]>1) AND ([Calcoli.AL77]-[.Q21]<10);[Calcoli.AL77];""))))) -> 2017-12-10 | R22: =of:=IF([.Q22]="";"";"alle ore ") -> alle ore | S22: =of:=IF([.Q22]=[Calcoli.AI185];TIME([Calcoli.AI186];[Calcoli.AI187];0);IF([.Q22]=[Calcoli.AI201];TIME([Calcoli.AI202];[Calcoli.AI203];0);IF([.Q22]=[Calcoli.AI217];TIME([Calcoli.AI218];[Calcoli.AI219];0);IF([.Q22]=[Calcoli.AL61];TIME([Calcoli.AL62];[Calcoli.AL63];0);IF([.Q22]=[Calcoli.AL77];TIME([Calcoli.AL78];[Calcoli.AL79];0);""))))) -> PT08H53M00S
A23: =of:=IF([.B23]="";"";IF([.A22]="L.N. ";"P.Q. ";IF([.A22]="P.Q. ";"L.P. ";IF([.A22]="L.P. ";"U.Q. ";IF([.A22]="U.Q. ";"L.N. ";""))))) -> L.N. | B23: =of:=IF(MONTH([Calcoli.Z201])=9 AND ([Calcoli.Z201]-[.B22]>1) AND ([Calcoli.Z201]-[.B22]<10);[Calcoli.Z201];IF(MONTH([Calcoli.Z217])=9 AND ([Calcoli.Z217]-[.B22]>1) AND ([Calcoli.Z217]-[.B22]<10);[Calcoli.Z217];IF(MONTH([Calcoli.AC61])=9 AND ([Calcoli.AC61]-[.B22]>1) AND ([Calcoli.AC61]-[.B22]<10);[Calcoli.AC61];IF(MONTH([Calcoli.AC77])=9 AND ([Calcoli.AC77]-[.B22]>1) AND ([Calcoli.AC77]-[.B22]<10);[Calcoli.AC77];IF(MONTH([Calcoli.AC93])=9 AND ([Calcoli.AC93]-[.B22]>1) AND ([Calcoli.AC93]-[.B22]<10);[Calcoli.AC93];IF(MONTH([Calcoli.AC109])=9 AND ([Calcoli.AC109]-[.B22]>1) AND ([Calcoli.AC109]-[.B22]<10);[Calcoli.AC109];IF(MONTH([Calcoli.AC169])=9 AND ([Calcoli.AC169]-[.B22]>1) AND ([Calcoli.AC169]-[.B22]<10);[Calcoli.AC169];""))))))) -> 2017-09-20 | C23: =of:=IF([.B23]="";"";"alle ore ") -> alle ore | D23: =of:=IF([.B23]=[Calcoli.Z201];TIME([Calcoli.Z202];[Calcoli.Z203];0);IF([.B23]=[Calcoli.Z217];TIME([Calcoli.Z218];[Calcoli.Z219];0);IF([.B23]=[Calcoli.AC61];TIME([Calcoli.AC62];[Calcoli.AC63];0);IF([.B23]=[Calcoli.AC77];TIME([Calcoli.AC78];[Calcoli.AC79];0);IF([.B23]=[Calcoli.AC93];TIME([Calcoli.AC94];[Calcoli.AC95];0);IF([.B23]=[Calcoli.AC109];TIME([Calcoli.AC110];[Calcoli.AC111];0);IF([.B23]=[Calcoli.AC169];TIME([Calcoli.AC170];[Calcoli.AC171];0);"")))))))+TIME(1;0;0) -> PT07H31M00S | F23: =of:=IF([.G23]="";"";IF([.F22]="L.N. ";"P.Q. ";IF([.F22]="P.Q. ";"L.P. ";IF([.F22]="L.P. ";"U.Q. ";IF([.F22]="U.Q. ";"L.N. ";""))))) -> L.N. | G23: =of:=IF(MONTH([Calcoli.AC201])=10 AND ([Calcoli.AC201]-[.G22]>1) AND ([Calcoli.AC201]-[.G22]<10);[Calcoli.AC201];IF(MONTH([Calcoli.AC217])=10 AND ([Calcoli.AC217]-[.G22]>1) AND ([Calcoli.AC217]-[.G22]<10);[Calcoli.AC217];IF(MONTH([Calcoli.AF61])=10 AND ([Calcoli.AF61]-[.G22]>1) AND ([Calcoli.AF61]-[.G22]<10);[Calcoli.AF61];IF(MONTH([Calcoli.AF77])=10 AND ([Calcoli.AF77]-[.G22]>1) AND ([Calcoli.AF77]-[.G22]<10);[Calcoli.AF77];IF(MONTH([Calcoli.AF93])=10 AND ([Calcoli.AF93]-[.G22]>1) AND ([Calcoli.AF93]-[.G22]<10);[Calcoli.AF93];IF(MONTH([Calcoli.AF109])=10 AND ([Calcoli.AF109]-[.G22]>1) AND ([Calcoli.AF109]-[.G22]<10);[Calcoli.AF109];IF(MONTH([Calcoli.AF169])=10 AND ([Calcoli.AF169]-[.G22]>1) AND ([Calcoli.AF169]-[.G22]<10);[Calcoli.AF169];""))))))) -> 2017-10-19 | H23: =of:=IF([.G23]="";"";"alle ore ") -> alle ore | I23: =of:=IF([.G23]=[Calcoli.AC201];TIME([Calcoli.AC202];[Calcoli.AC203];0);IF([.G23]=[Calcoli.AC217];TIME([Calcoli.AC218];[Calcoli.AC219];0);IF([.G23]=[Calcoli.AF61];TIME([Calcoli.AF62];[Calcoli.AF63];0);IF([.G23]=[Calcoli.AF77];TIME([Calcoli.AF78];[Calcoli.AF79];0);IF([.G23]=[Calcoli.AF93];TIME([Calcoli.AF94];[Calcoli.AF95];0);IF([.G23]=[Calcoli.AF109];TIME([Calcoli.AF110];[Calcoli.AF111];0);IF([.G23]=[Calcoli.AF169];TIME([Calcoli.AF170];[Calcoli.AF171];0);""))))+TIME(1;0;0)))) -> PT21H13M00S | K23: =of:=IF([.L23]="";"";IF([.K22]="L.N. ";"P.Q. ";IF([.K22]="P.Q. ";"L.P. ";IF([.K22]="L.P. ";"U.Q. ";IF([.K22]="U.Q. ";"L.N. ";""))))) -> L.N. | L23: =of:=IF(MONTH([Calcoli.AF201])=11 AND ([Calcoli.AF201]-[.L22]>1) AND ([Calcoli.AF201]-[.L22]<10);[Calcoli.AF201];IF(MONTH([Calcoli.AF217])=11 AND ([Calcoli.AF217]-[.L22]>1) AND ([Calcoli.AF217]-[.L22]<10);[Calcoli.AF217];IF(MONTH([Calcoli.AI61])=11 AND ([Calcoli.AI61]-[.L22]>1) AND ([Calcoli.AI61]-[.L22]<10);[Calcoli.AI61];IF(MONTH([Calcoli.AI77])=11 AND ([Calcoli.AI77]-[.L22]>1) AND ([Calcoli.AI77]-[.L22]<10);[Calcoli.AI77];IF(MONTH([Calcoli.AI93])=11 AND ([Calcoli.AI93]-[.L22]>1) AND ([Calcoli.AI93]-[.L22]<10);[Calcoli.AI93];IF(MONTH([Calcoli.AI109])=11 AND ([Calcoli.AI109]-[.L22]>1) AND ([Calcoli.AI109]-[.L22]<10);[Calcoli.AI109];IF(MONTH([Calcoli.AI169])=11 AND ([Calcoli.AI169]-[.L22]>1) AND ([Calcoli.AI169]-[.L22]<10);[Calcoli.AI169];""))))))) -> 2017-11-18 | M23: =of:=IF([.L23]="";"";"alle ore ") -> alle ore | N23: =of:=IF([.L23]=[Calcoli.AF201];TIME([Calcoli.AF202];[Calcoli.AF203];0);IF([.L23]=[Calcoli.AF217];TIME([Calcoli.AF218];[Calcoli.AF219];0);IF([.L23]=[Calcoli.AI61];TIME([Calcoli.AI62];[Calcoli.AI63];0);IF([.L23]=[Calcoli.AI77];TIME([Calcoli.AI78];[Calcoli.AI79];0);IF([.L23]=[Calcoli.AI93];TIME([Calcoli.AI94];[Calcoli.AI95];0);IF([.L23]=[Calcoli.AI109];TIME([Calcoli.AI110];[Calcoli.AI111];0);IF([.L23]=[Calcoli.AI169];TIME([Calcoli.AI170];[Calcoli.AI171];0);""))))))) -> PT12H43M00S | P23: =of:=IF([.Q23]="";"";IF([.P22]="L.N. ";"P.Q. ";IF([.P22]="P.Q. ";"L.P. ";IF([.P22]="L.P. ";"U.Q. ";IF([.P22]="U.Q. ";"L.N. ";""))))) -> L.N. | Q23: =of:=IF(MONTH([Calcoli.AI201])=12 AND ([Calcoli.AI201]-[.Q22]>1) AND ([Calcoli.AI201]-[.Q22]<10);[Calcoli.AI201];IF(MONTH([Calcoli.AI217])=12 AND ([Calcoli.AI217]-[.Q22]>1) AND ([Calcoli.AI217]-[.Q22]<10);[Calcoli.AI217];IF(MONTH([Calcoli.AL61])=12 AND ([Calcoli.AL61]-[.Q22]>1) AND ([Calcoli.AL61]-[.Q22]<10);[Calcoli.AL61];IF(MONTH([Calcoli.AL77])=12 AND ([Calcoli.AL77]-[.Q22]>1) AND ([Calcoli.AL77]-[.Q22]<10);[Calcoli.AL77];IF(MONTH([Calcoli.AL93])=12 AND ([Calcoli.AL93]-[.Q22]>1) AND ([Calcoli.AL93]-[.Q22]<10);[Calcoli.AL93];IF(MONTH([Calcoli.AL109])=12 AND ([Calcoli.AL109]-[.Q22]>1) AND ([Calcoli.AL109]-[.Q22]<10);[Calcoli.AL109];IF(MONTH([Calcoli.AL169])=12 AND ([Calcoli.AL169]-[.Q22]>1) AND ([Calcoli.AL169]-[.Q22]<10);[Calcoli.AL169];""))))))) -> 2017-12-18 | R23: =of:=IF([.Q23]="";"";"alle ore ") -> alle ore | S23: =of:=IF([.Q23]=[Calcoli.AI201];TIME([Calcoli.AI202];[Calcoli.AI203];0);IF([.Q23]=[Calcoli.AI217];TIME([Calcoli.AI218];[Calcoli.AI219];0);IF([.Q23]=[Calcoli.AL61];TIME([Calcoli.AL62];[Calcoli.AL63];0);IF([.Q23]=[Calcoli.AL77];TIME([Calcoli.AL78];[Calcoli.AL79];0);IF([.Q23]=[Calcoli.AL93];TIME([Calcoli.AL94];[Calcoli.AL95];0);IF([.Q23]=[Calcoli.AL109];TIME([Calcoli.AL110];[Calcoli.AL111];0);IF([.Q23]=[Calcoli.AL169];TIME([Calcoli.AL170];[Calcoli.AL171];0);""))))))) -> PT07H32M00S
A24: =of:=IF([.B24]="";"";IF([.A23]="L.N. ";"P.Q. ";IF([.A23]="P.Q. ";"L.P. ";IF([.A23]="L.P. ";"U.Q. ";IF([.A23]="U.Q. ";"L.N. ";""))))) -> P.Q. | B24: =of:=IF(MONTH([Calcoli.Z217])=9 AND ([Calcoli.Z217]-[.B23]>1) AND ([Calcoli.Z217]-[.B23]<10);[Calcoli.Z217];IF(MONTH([Calcoli.AC61])=9 AND ([Calcoli.AC61]-[.B23]>1) AND ([Calcoli.AC61]-[.B23]<10);[Calcoli.AC61];IF(MONTH([Calcoli.AC77])=9 AND ([Calcoli.AC77]-[.B23]>1) AND ([Calcoli.AC77]-[.B23]<10);[Calcoli.AC77];IF(MONTH([Calcoli.AC93])=9 AND ([Calcoli.AC93]-[.B23]>1) AND ([Calcoli.AC93]-[.B23]<10);[Calcoli.AC93];IF(MONTH([Calcoli.AC109])=9 AND ([Calcoli.AC109]-[.B23]>1) AND ([Calcoli.AC109]-[.B23]<10);[Calcoli.AC109];IF(MONTH([Calcoli.AC169])=9 AND ([Calcoli.AC169]-[.B23]>1) AND ([Calcoli.AC169]-[.B23]<10);[Calcoli.AC169];IF(MONTH([Calcoli.AC185])=9 AND ([Calcoli.AC185]-[.B23]>1) AND ([Calcoli.AC185]-[.B23]<10);[Calcoli.AC185];""))))))) -> 2017-09-28 | C24: =of:=IF([.B24]="";"";"alle ore ") -> alle ore | D24: =of:=IF([.B24]=[Calcoli.Z217];TIME([Calcoli.Z218];[Calcoli.Z219];0);IF([.B24]=[Calcoli.AC61];TIME([Calcoli.AC62];[Calcoli.AC63];0);IF([.B24]=[Calcoli.AC77];TIME([Calcoli.AC78];[Calcoli.AC79];0);IF([.B24]=[Calcoli.AC93];TIME([Calcoli.AC94];[Calcoli.AC95];0);IF([.B24]=[Calcoli.AC109];TIME([Calcoli.AC110];[Calcoli.AC111];0);IF([.B24]=[Calcoli.AC169];TIME([Calcoli.AC170];[Calcoli.AC171];0);IF([.B24]=[Calcoli.AC185];TIME([Calcoli.AC186];[Calcoli.AC187];0);"")))))))+TIME(1;0;0) -> PT04H51M00S | F24: =of:=IF([.G24]="";"";IF([.F23]="L.N. ";"P.Q. ";IF([.F23]="P.Q. ";"L.P. ";IF([.F23]="L.P. ";"U.Q. ";IF([.F23]="U.Q. ";"L.N. ";""))))) -> P.Q. | G24: =of:=IF(MONTH([Calcoli.AC217])=10 AND ([Calcoli.AC217]-[.G23]>1) AND ([Calcoli.AC217]-[.G23]<10);[Calcoli.AC217];IF(MONTH([Calcoli.AF61])=10 AND ([Calcoli.AF61]-[.G23]>1) AND ([Calcoli.AF61]-[.G23]<10);[Calcoli.AF61];IF(MONTH([Calcoli.AF77])=10 AND ([Calcoli.AF77]-[.G23]>1) AND ([Calcoli.AF77]-[.G23]<10);[Calcoli.AF77];IF(MONTH([Calcoli.AF93])=10 AND ([Calcoli.AF93]-[.G23]>1) AND ([Calcoli.AF93]-[.G23]<10);[Calcoli.AF93];IF(MONTH([Calcoli.AF109])=10 AND ([Calcoli.AF109]-[.G23]>1) AND ([Calcoli.AF109]-[.G23]<10);[Calcoli.AF109];IF(MONTH([Calcoli.AF169])=10 AND ([Calcoli.AF169]-[.G23]>1) AND ([Calcoli.AF169]-[.G23]<10);[Calcoli.AF169];IF(MONTH([Calcoli.AF185])=10 AND ([Calcoli.AF185]-[.G23]>1) AND ([Calcoli.AF185]-[.G23]<10);[Calcoli.AF185];""))))))) -> 2017-10-27 | H24: =of:=IF([.G24]="";"";"alle ore ") -> alle ore | I24: =of:=IF([.G24]=[Calcoli.AC217];TIME([Calcoli.AC218];[Calcoli.AC219];0);IF([.G24]=[Calcoli.AF61];TIME([Calcoli.AF62];[Calcoli.AF63];0);IF([.G24]=[Calcoli.AF77];TIME([Calcoli.AF78];[Calcoli.AF79];0);IF([.G24]=[Calcoli.AF93];TIME([Calcoli.AF94];[Calcoli.AF95];0);IF([.G24]=[Calcoli.AF109];TIME([Calcoli.AF110];[Calcoli.AF111];0);IF([.G24]=[Calcoli.AF169];TIME([Calcoli.AF170];[Calcoli.AF171];0);IF([.G24]>=[Calcoli.AF185];TIME([Calcoli.AF186];[Calcoli.AF187];0);"")))))))+IF([.G24]>=[Calcoli.B241];+TIME(0;0;0);+TIME(1;0;0)) -> PT24H20M00S | K24: =of:=IF([.L24]="";"";IF([.K23]="L.N. ";"P.Q. ";IF([.K23]="P.Q. ";"L.P. ";IF([.K23]="L.P. ";"U.Q. ";IF([.K23]="U.Q. ";"L.N. ";""))))) -> P.Q. | L24: =of:=IF(MONTH([Calcoli.AF217])=11 AND ([Calcoli.AF217]-[.L23]>1) AND ([Calcoli.AF217]-[.L23]<10);[Calcoli.AF217];IF(MONTH([Calcoli.AI61])=11 AND ([Calcoli.AI61]-[.L23]>1) AND ([Calcoli.AI61]-[.L23]<10);[Calcoli.AI61];IF(MONTH([Calcoli.AI77])=11 AND ([Calcoli.AI77]-[.L23]>1) AND ([Calcoli.AI77]-[.L23]<10);[Calcoli.AI77];IF(MONTH([Calcoli.AI93])=11 AND ([Calcoli.AI93]-[.L23]>1) AND ([Calcoli.AI93]-[.L23]<10);[Calcoli.AI93];IF(MONTH([Calcoli.AI109])=11 AND ([Calcoli.AI109]-[.L23]>1) AND ([Calcoli.AI109]-[.L23]<10);[Calcoli.AI109];IF(MONTH([Calcoli.AI169])=11 AND ([Calcoli.AI169]-[.L23]>1) AND ([Calcoli.AI169]-[.L23]<10);[Calcoli.AI169];IF(MONTH([Calcoli.AI185])=11 AND ([Calcoli.AI185]-[.L23]>1) AND ([Calcoli.AI185]-[.L23]<10);[Calcoli.AI185];""))))))) -> 2017-11-26 | M24: =of:=IF([.L24]="";"";"alle ore ") -> alle ore | N24: =of:=IF([.L24]=[Calcoli.AF217];TIME([Calcoli.AF218];[Calcoli.AF219];0);IF([.L24]=[Calcoli.AI61];TIME([Calcoli.AI62];[Calcoli.AI63];0);IF([.L24]=[Calcoli.AI77];TIME([Calcoli.AI78];[Calcoli.AI79];0);IF([.L24]=[Calcoli.AI93];TIME([Calcoli.AI94];[Calcoli.AI95];0);IF([.L24]=[Calcoli.AI109];TIME([Calcoli.AI110];[Calcoli.AI111];0);IF([.L24]=[Calcoli.AI169];TIME([Calcoli.AI170];[Calcoli.AI171];0);IF([.L24]=[Calcoli.AI185];TIME([Calcoli.AI186];[Calcoli.AI187];0);""))))))) -> PT18H00M00S | P24: =of:=IF([.Q24]="";"";IF([.P23]="L.N. ";"P.Q. ";IF([.P23]="P.Q. ";"L.P. ";IF([.P23]="L.P. ";"U.Q. ";IF([.P23]="U.Q. ";"L.N. ";""))))) -> P.Q. | Q24: =of:=IF(MONTH([Calcoli.AI217])=12 AND ([Calcoli.AI217]-[.Q23]>1) AND ([Calcoli.AI217]-[.Q23]<10);[Calcoli.AI217];IF(MONTH([Calcoli.AL61])=11 AND ([Calcoli.AL61]-[.Q23]>1) AND ([Calcoli.AL61]-[.Q23]<10);[Calcoli.AL61];IF(MONTH([Calcoli.AL77])=12 AND ([Calcoli.AL77]-[.Q23]>1) AND ([Calcoli.AL77]-[.Q23]<10);[Calcoli.AL77];IF(MONTH([Calcoli.AL93])=12 AND ([Calcoli.AL93]-[.Q23]>1) AND ([Calcoli.AL93]-[.Q23]<10);[Calcoli.AL93];IF(MONTH([Calcoli.AL109])=12 AND ([Calcoli.AL109]-[.Q23]>1) AND ([Calcoli.AL109]-[.Q23]<10);[Calcoli.AL109];IF(MONTH([Calcoli.AL169])=12 AND ([Calcoli.AL169]-[.Q23]>1) AND ([Calcoli.AL169]-[.Q23]<10);[Calcoli.AL169];IF(MONTH([Calcoli.AL185])=12 AND ([Calcoli.AL185]-[.Q23]>1) AND ([Calcoli.AL185]-[.Q23]<10);[Calcoli.AL185];""))))))) -> 2017-12-26 | R24: =of:=IF([.Q24]="";"";"alle ore ") -> alle ore | S24: =of:=IF([.Q24]=[Calcoli.AI217];TIME([Calcoli.AI218];[Calcoli.AI219];0);IF([.Q24]=[Calcoli.AL61];TIME([Calcoli.AL62];[Calcoli.AL63];0);IF([.Q24]=[Calcoli.AL77];TIME([Calcoli.AL78];[Calcoli.AL79];0);IF([.Q24]=[Calcoli.AL93];TIME([Calcoli.AL94];[Calcoli.AL95];0);IF([.Q24]=[Calcoli.AL109];TIME([Calcoli.AL110];[Calcoli.AL111];0);IF([.Q24]=[Calcoli.AL169];TIME([Calcoli.AL170];[Calcoli.AL171];0);IF([.Q24]=[Calcoli.AL185];TIME([Calcoli.AL186];[Calcoli.AL187];0);""))))))) -> PT10H17M00S
A25: =of:=IF([.B25]="";"";IF([.A24]="L.N. ";"P.Q. ";IF([.A24]="P.Q. ";"L.P. ";IF([.A24]="L.P. ";"U.Q. ";IF([.A24]="U.Q. ";"L.N. ";""))))) ->  | B25: =of:=IF(MONTH([Calcoli.Z217])=9 AND ([Calcoli.Z217]-[.B24]>1) AND ([Calcoli.Z217]-[.B24]<10);[Calcoli.Z217];IF(MONTH([Calcoli.AC61])=9 AND ([Calcoli.AC61]-[.B24]>1) AND ([Calcoli.AC61]-[.B24]<10);[Calcoli.AC61];IF(MONTH([Calcoli.AC77])=9 AND ([Calcoli.AC77]-[.B24]>1) AND ([Calcoli.AC77]-[.B24]<10);[Calcoli.AC77];IF(MONTH([Calcoli.AC93])=9 AND ([Calcoli.AC93]-[.B24]>1) AND ([Calcoli.AC93]-[.B24]<10);[Calcoli.AC93];IF(MONTH([Calcoli.AC109])=9 AND ([Calcoli.AC109]-[.B24]>1) AND ([Calcoli.AC109]-[.B24]<10);[Calcoli.AC109];IF(MONTH([Calcoli.AC169])=9 AND ([Calcoli.AC169]-[.B24]>1) AND ([Calcoli.AC169]-[.B24]<10);[Calcoli.AC169];IF(MONTH([Calcoli.AC185])=9 AND ([Calcoli.AC185]-[.B24]>1) AND ([Calcoli.AC185]-[.B24]<10);[Calcoli.AC185];""))))))) ->  | C25: =of:=IF([CALENDARY_MoonPhaase.B25]="";"";"alle ore ") ->  | D25: =of:=IF([.B25]=[Calcoli.Z217];TIME([Calcoli.Z218];[Calcoli.Z219];0)+TIME(1;0;0);IF([.B25]=[Calcoli.AC61];TIME([Calcoli.AC62];[Calcoli.AC63];0)+TIME(1;0;0);IF([.B25]=[Calcoli.AC77];TIME([Calcoli.AC78];[Calcoli.AC79];0)+TIME(1;0;0);IF([.B25]=[Calcoli.AC93];TIME([Calcoli.AC94];[Calcoli.AC95];0)+TIME(1;0;0);IF([.B25]=[Calcoli.AC109];TIME([Calcoli.AC110];[Calcoli.AC111];0)+TIME(1;0;0);IF([.B25]=[Calcoli.AC169];TIME([Calcoli.AC170];[Calcoli.AC171];0)+TIME(1;0;0);IF([.B25]=[Calcoli.AC185];TIME([Calcoli.AC186];[Calcoli.AC187];0)+TIME(1;0;0);""))))))) ->  | F25: =of:=IF([.G25]="";"";IF([.F24]="L.N. ";"P.Q. ";IF([.F24]="P.Q. ";"L.P. ";IF([.F24]="L.P. ";"U.Q. ";IF([.F24]="U.Q. ";"L.N. ";""))))) ->  | G25: =of:=IF(MONTH([Calcoli.AC217])=10 AND ([Calcoli.AC217]-[.G24]>1) AND ([Calcoli.AC217]-[.G24]<10);[Calcoli.AC217];IF(MONTH([Calcoli.AF61])=10 AND ([Calcoli.AF61]-[.G24]>1) AND ([Calcoli.AF61]-[.G24]<10);[Calcoli.AF61];IF(MONTH([Calcoli.AF77])=10 AND ([Calcoli.AF77]-[.G24]>1) AND ([Calcoli.AF77]-[.G24]<10);[Calcoli.AF77];IF(MONTH([Calcoli.AF93])=10 AND ([Calcoli.AF93]-[.G24]>1) AND ([Calcoli.AF93]-[.G24]<10);[Calcoli.AF93];IF(MONTH([Calcoli.AF109])=10 AND ([Calcoli.AF109]-[.G24]>1) AND ([Calcoli.AF109]-[.G24]<10);[Calcoli.AF109];IF(MONTH([Calcoli.AF169])=10 AND ([Calcoli.AF169]-[.G24]>1) AND ([Calcoli.AF169]-[.G24]<10);[Calcoli.AF169];IF(MONTH([Calcoli.AF185])=10 AND ([Calcoli.AF185]-[.G24]>1) AND ([Calcoli.AF185]-[.G24]<10);[Calcoli.AF185];""))))))) ->  | H25: =of:=IF([.G25]="";"";"alle ore ") ->  | I25: =of:=IF([.G25]=[Calcoli.AC217];TIME([Calcoli.AC218];[Calcoli.AC219];0);IF([.G25]=[Calcoli.AF61];TIME([Calcoli.AF62];[Calcoli.AF63];0);IF([.G25]=[Calcoli.AF77];TIME([Calcoli.AF78];[Calcoli.AF79];0);IF([.G25]=[Calcoli.AF93];TIME([Calcoli.AF94];[Calcoli.AF95];0);IF([.G25]=[Calcoli.AF109];TIME([Calcoli.AF110];[Calcoli.AF111];0);IF([.G25]=[Calcoli.AF169];TIME([Calcoli.AF170];[Calcoli.AF171];0);IF([.G25]=[Calcoli.AF185];TIME([Calcoli.AF186];[Calcoli.AF187];0);""))))))) ->  | K25: =of:=IF([.L25]="";"";IF([.K24]="L.N. ";"P.Q. ";IF([.K24]="P.Q. ";"L.P. ";IF([.K24]="L.P. ";"U.Q. ";IF([.K24]="U.Q. ";"L.N. ";""))))) ->  | L25: =of:=IF(MONTH([Calcoli.AF217])=11 AND ([Calcoli.AF217]-[.L24]>1) AND ([Calcoli.AF217]-[.L24]<10);[Calcoli.AF217];IF(MONTH([Calcoli.AI61])=11 AND ([Calcoli.AI61]-[.L24]>1) AND ([Calcoli.AI61]-[.L24]<10);[Calcoli.AI61];IF(MONTH([Calcoli.AI77])=11 AND ([Calcoli.AI77]-[.L24]>1) AND ([Calcoli.AI77]-[.L24]<10);[Calcoli.AI77];IF(MONTH([Calcoli.AI93])=11 AND ([Calcoli.AI93]-[.L24]>1) AND ([Calcoli.AI93]-[.L24]<10);[Calcoli.AI93];IF(MONTH([Calcoli.AI109])=11 AND ([Calcoli.AI109]-[.L24]>1) AND ([Calcoli.AI109]-[.L24]<10);[Calcoli.AI109];IF(MONTH([Calcoli.AI169])=11 AND ([Calcoli.AI169]-[.L24]>1) AND ([Calcoli.AI169]-[.L24]<10);[Calcoli.AI169];IF(MONTH([Calcoli.AI185])=11 AND ([Calcoli.AI185]-[.L24]>1) AND ([Calcoli.AI185]-[.L24]<10);[Calcoli.AI185];""))))))) ->  | M25: =of:=IF([.L25]="";"";"alle ore ") ->  | N25: =of:=IF([.L25]=[Calcoli.AF217];TIME([Calcoli.AF218];[Calcoli.AF219];0);IF([.L25]=[Calcoli.AI61];TIME([Calcoli.AI62];[Calcoli.AI63];0);IF([.L25]=[Calcoli.AI77];TIME([Calcoli.AI78];[Calcoli.AI79];0);IF([.L25]=[Calcoli.AI93];TIME([Calcoli.AI94];[Calcoli.AI95];0);IF([.L25]=[Calcoli.AI109];TIME([Calcoli.AI110];[Calcoli.AI111];0);IF([.L25]=[Calcoli.AI169];TIME([Calcoli.AI170];[Calcoli.AI171];0);IF([.L25]=[Calcoli.AI185];TIME([Calcoli.AI186];[Calcoli.AI187];0);""))))))) ->  | P25: =of:=IF([.Q25]="";"";IF([.P24]="L.N. ";"P.Q. ";IF([.P24]="P.Q. ";"L.P. ";IF([.P24]="L.P. ";"U.Q. ";IF([.P24]="U.Q. ";"L.N. ";""))))) ->  | Q25: =of:=IF(MONTH([Calcoli.AI217])=12 AND ([Calcoli.AI217]-[.Q24]>1) AND ([Calcoli.AI217]-[.Q24]<10);[Calcoli.AI217];IF(MONTH([Calcoli.AL61])=11 AND ([Calcoli.AL61]-[.Q24]>1) AND ([Calcoli.AL61]-[.Q24]<10);[Calcoli.AL61];IF(MONTH([Calcoli.AL77])=12 AND ([Calcoli.AL77]-[.Q24]>1) AND ([Calcoli.AL77]-[.Q24]<10);[Calcoli.AL77];IF(MONTH([Calcoli.AL93])=12 AND ([Calcoli.AL93]-[.Q24]>1) AND ([Calcoli.AL93]-[.Q24]<10);[Calcoli.AL93];IF(MONTH([Calcoli.AL109])=12 AND ([Calcoli.AL109]-[.Q24]>1) AND ([Calcoli.AL109]-[.Q24]<10);[Calcoli.AL109];IF(MONTH([Calcoli.AL169])=12 AND ([Calcoli.AL169]-[.Q24]>1) AND ([Calcoli.AL169]-[.Q24]<10);[Calcoli.AL169];IF(MONTH([Calcoli.AL185])=12 AND ([Calcoli.AL185]-[.Q24]>1) AND ([Calcoli.AL185]-[.Q24]<10);[Calcoli.AL185];""))))))) ->  | R25: =of:=IF([.Q25]="";"";"alle ore ") ->  | S25: =of:=IF([.Q25]=[Calcoli.AI217];TIME([Calcoli.AI218];[Calcoli.AI219];0);IF([.Q25]=[Calcoli.AL61];TIME([Calcoli.AL62];[Calcoli.AL63];0);IF([.Q25]=[Calcoli.AL77];TIME([Calcoli.AL78];[Calcoli.AL79];0);IF([.Q25]=[Calcoli.AL93];TIME([Calcoli.AL94];[Calcoli.AL95];0);IF([.Q25]=[Calcoli.AL109];TIME([Calcoli.AL110];[Calcoli.AL111];0);IF([.Q25]=[Calcoli.AL169];TIME([Calcoli.AL170];[Calcoli.AL171];0);IF([.Q25]=[Calcoli.AL185];TIME([Calcoli.AL186];[Calcoli.AL187];0);""))))))) ->  | U25: =of:=IF([.A24]="L.N. " AND ([.B25]>"");"P.Q. ";IF([.A24]="P.Q. " AND ([.B25]>"");"L.P. ";IF([.A24]="L.P. " AND ([.B25]>"");"U.Q. ";IF([.A24]="U.Q. " AND ([.B25]>"");"L.N. ";"")))) -> 
H27: =of:=IF([CALENDARY_MoonPhaase.G27]="";"";"alle ore ") ->  | M27: =of:=IF([CALENDARY_MoonPhaase.L27]="";"";"alle ore ") ->  | P27: =of:=IF([CALENDARY_MoonPhaase.Q27]="";"";"L.P. ") ->  | Q27: =of:=IF(MONTH([Calcoli.AO93])=12;[Calcoli.AO93];"") ->  | R27: =of:=IF([CALENDARY_MoonPhaase.Q27]="";"";"alle ore ") -> 
B29: Annotazioni: | D29: L.N. = Luna nuova – P.Q. = Primo quarto, etc… – N.B. - L'entrata in vigore dell'ora legale è già calcolata in automatico
A30: L'ora legale inizia alle ore 02:00 del: | E30: =of:=[Calcoli.$B$240] -> 2017-03-26 | G30: Equinozio di Primavera il: | J30: =of:=[Calcoli.B235] -> 2017-03-20 | L30: alle ore: | M30: =of:=TIME([Calcoli.B236];[Calcoli.B237];0) -> PT11H26M00S | N30: Solstizio d'Estate il: | Q30: =of:=[Calcoli.E235] -> 2017-06-21 | R30: alle ore: | S30: =of:=TIME([Calcoli.E236]+1;[Calcoli.E237];0) -> PT06H19M00S
A31: L'ora legale termina alle ore 03:00 del: | E31: =of:=[Calcoli.$B$241] -> 2017-10-29 | G31: Equinozio d'Autunno il: | J31: =of:=[Calcoli.H235] -> 2017-09-22 | L31: alle ore: | M31: =of:=TIME([Calcoli.H236]+1;[Calcoli.H237];0) -> PT22H05M00S | N31: Solstizio d'Inverno il: | Q31: =of:=[Calcoli.K235] -> 2017-12-21 | R31: alle ore: | S31: =of:=TIME([Calcoli.K236];[Calcoli.K237];0) -> PT17H32M00S

Sheet Calcoli
G2: =of:=[CALENDARY_MoonPhaase.V2] -> 2017 | O2: MoonPhase ® | S2: by “ab Solutions”
A4: =of:=DATE([Calcoli.$G$2]-1;12;1) -> 2016-12-01 | D4: =of:=DATE([Calcoli.$G$2];1;1) -> 2017-01-01 | G4: =of:=DATE([Calcoli.$G$2];2;1) -> 2017-02-01 | J4: =of:=DATE([Calcoli.$G$2];3;1) -> 2017-03-01 | M4: =of:=DATE([Calcoli.$G$2];4;1) -> 2017-04-01 | P4: =of:=DATE([Calcoli.$G$2];5;1) -> 2017-05-01 | S4: =of:=DATE([Calcoli.$G$2];6;1) -> 2017-06-01 | V4: =of:=DATE([Calcoli.$G$2];7;1) -> 2017-07-01 | Y4: =of:=DATE([Calcoli.$G$2];8;1) -> 2017-08-01 | AB4: =of:=DATE([Calcoli.$G$2];9;1) -> 2017-09-01 | AE4: =of:=DATE([Calcoli.$G$2];10;1) -> 2017-10-01 | AH4: =of:=DATE([Calcoli.$G$2];11;1) -> 2017-11-01 | AK4: =of:=DATE([Calcoli.$G$2];12;1) -> 2017-12-01 | AN4: =of:=DATE([Calcoli.$G$2]+1;1;1) -> 2018-01-01
A6: _DATA | B6: =of:=YEAR([Calcoli.A4])+ROUND(DAYS([Calcoli.A4];DATE(YEAR([Calcoli.A4]);1;1)-1)/365;4) -> 2016.9205 | D6: _DATA | E6: =of:=YEAR([Calcoli.D4])+ROUND(DAYS([Calcoli.D4];DATE(YEAR([Calcoli.D4]);1;1)-1)/365;4) -> 2017.0027 | G6: _DATA | H6: =of:=YEAR([Calcoli.G4])+ROUND(DAYS([Calcoli.G4];DATE(YEAR([Calcoli.G4]);1;1)-1)/365;4) -> 2017.0877 | J6: _DATA | K6: =of:=YEAR([Calcoli.J4])+ROUND(DAYS([Calcoli.J4];DATE(YEAR([Calcoli.J4]);1;1)-1)/365;4) -> 2017.1644 | M6: _DATA | N6: =of:=YEAR([Calcoli.M4])+ROUND(DAYS([Calcoli.M4];DATE(YEAR([Calcoli.M4]);1;1)-1)/365;4) -> 2017.2493 | P6: _DATA | Q6: =of:=YEAR([Calcoli.P4])+ROUND(DAYS([Calcoli.P4];DATE(YEAR([Calcoli.P4]);1;1)-1)/365;4) -> 2017.3315 | S6: _DATA | T6: =of:=YEAR([Calcoli.S4])+ROUND(DAYS([Calcoli.S4];DATE(YEAR([Calcoli.S4]);1;1)-1)/365;4) -> 2017.4164 | V6: _DATA | W6: =of:=YEAR([Calcoli.V4])+ROUND(DAYS([Calcoli.V4];DATE(YEAR([Calcoli.V4]);1;1)-1)/365;4) -> 2017.4986 | Y6: _DATA | Z6: =of:=YEAR([Calcoli.Y4])+ROUND(DAYS([Calcoli.Y4];DATE(YEAR([Calcoli.Y4]);1;1)-1)/365;4) -> 2017.5836 | AB6: _DATA | AC6: =of:=YEAR([Calcoli.AB4])+ROUND(DAYS([Calcoli.AB4];DATE(YEAR([Calcoli.AB4]);1;1)-1)/365;4) -> 2017.6685 | AE6: _DATA | AF6: =of:=YEAR([Calcoli.AE4])+ROUND(DAYS([Calcoli.AE4];DATE(YEAR([Calcoli.AE4]);1;1)-1)/365;4) -> 2017.7507 | AH6: _DATA | AI6: =of:=YEAR([Calcoli.AH4])+ROUND(DAYS([Calcoli.AH4];DATE(YEAR([Calcoli.AH4]);1;1)-1)/365;4) -> 2017.8356 | AK6: _DATA | AL6: =of:=YEAR([Calcoli.AK4])+ROUND(DAYS([Calcoli.AK4];DATE(YEAR([Calcoli.AK4]);1;1)-1)/365;4) -> 2017.9178 | AN6: _DATA | AO6: =of:=YEAR([Calcoli.AN4])+ROUND(DAYS([Calcoli.AN4];DATE(YEAR([Calcoli.AN4]);1;1)-1)/365;4) -> 2018.0027
A7: K_LN | B7: =of:=ROUND((N([Calcoli.B6])-1900)*12.3685;0) -> 1446 | D7: K_LN | E7: =of:=ROUND((N([Calcoli.E6])-1900)*12.3685;0) -> 1447 | G7: K_LN | H7: =of:=ROUND((N([Calcoli.H6])-1900)*12.3685;0) -> 1448 | J7: K_LN | K7: =of:=ROUND((N([Calcoli.K6])-1900)*12.3685;0) -> 1449 | M7: K_LN | N7: =of:=ROUND((N([Calcoli.N6])-1900)*12.3685;0) -> 1450 | P7: K_LN | Q7: =of:=ROUND((N([Calcoli.Q6])-1900)*12.3685;0) -> 1451 | S7: K_LN | T7: =of:=ROUND((N([Calcoli.T6])-1900)*12.3685;0) -> 1452 | V7: K_LN | W7: =of:=ROUND((N([Calcoli.W6])-1900)*12.3685;0) -> 1453 | Y7: K_LN | Z7: =of:=ROUND((N([Calcoli.Z6])-1900)*12.3685;0) -> 1454 | AB7: K_LN | AC7: =of:=ROUND((N([Calcoli.AC6])-1900)*12.3685;0) -> 1455 | AE7: K_LN | AF7: =of:=ROUND((N([Calcoli.AF6])-1900)*12.3685;0) -> 1456 | AH7: K_LN | AI7: =of:=ROUND((N([Calcoli.AI6])-1900)*12.3685;0) -> 1457 | AK7: K_LN | AL7: =of:=ROUND((N([Calcoli.AL6])-1900)*12.3685;0) -> 1458 | AN7: K_LN | AO7: =of:=ROUND((N([Calcoli.AO6])-1900)*12.3685;0) -> 1460
A8: K_PQ | B8: =of:=[Calcoli.B7]+0.25 -> 1446.25 | D8: K_PQ | E8: =of:=[Calcoli.E7]+0.25 -> 1447.25 | G8: K_PQ | H8: =of:=[Calcoli.H7]+0.25 -> 1448.25 | J8: K_PQ | K8: =of:=[Calcoli.K7]+0.25 -> 1449.25 | M8: K_PQ | N8: =of:=[Calcoli.N7]+0.25 -> 1450.25 | P8: K_PQ | Q8: =of:=[Calcoli.Q7]+0.25 -> 1451.25 | S8: K_PQ | T8: =of:=[Calcoli.T7]+0.25 -> 1452.25 | V8: K_PQ | W8: =of:=[Calcoli.W7]+0.25 -> 1453.25 | Y8: K_PQ | Z8: =of:=[Calcoli.Z7]+0.25 -> 1454.25 | AB8: K_PQ | AC8: =of:=[Calcoli.AC7]+0.25 -> 1455.25 | AE8: K_PQ | AF8: =of:=[Calcoli.AF7]+0.25 -> 1456.25 | AH8: K_PQ | AI8: =of:=[Calcoli.AI7]+0.25 -> 1457.25 | AK8: K_PQ | AL8: =of:=[Calcoli.AL7]+0.25 -> 1458.25 | AN8: K_PQ | AO8: =of:=[Calcoli.AO7]+0.25 -> 1460.25
A9: K_LP | B9: =of:=[Calcoli.B7]+0.5 -> 1446.5 | D9: K_LP | E9: =of:=[Calcoli.E7]+0.5 -> 1447.5 | G9: K_LP | H9: =of:=[Calcoli.H7]+0.5 -> 1448.5 | J9: K_LP | K9: =of:=[Calcoli.K7]+0.5 -> 1449.5 | M9: K_LP | N9: =of:=[Calcoli.N7]+0.5 -> 1450.5 | P9: K_LP | Q9: =of:=[Calcoli.Q7]+0.5 -> 1451.5 | S9: K_LP | T9: =of:=[Calcoli.T7]+0.5 -> 1452.5 | V9: K_LP | W9: =of:=[Calcoli.W7]+0.5 -> 1453.5 | Y9: K_LP | Z9: =of:=[Calcoli.Z7]+0.5 -> 1454.5 | AB9: K_LP | AC9: =of:=[Calcoli.AC7]+0.5 -> 1455.5 | AE9: K_LP | AF9: =of:=[Calcoli.AF7]+0.5 -> 1456.5 | AH9: K_LP | AI9: =of:=[Calcoli.AI7]+0.5 -> 1457.5 | AK9: K_LP | AL9: =of:=[Calcoli.AL7]+0.5 -> 1458.5 | AN9: K_LP | AO9: =of:=[Calcoli.AO7]+0.5 -> 1460.5
A10: K_UQ | B10: =of:=[Calcoli.B7]+0.75 -> 1446.75 | D10: K_UQ | E10: =of:=[Calcoli.E7]+0.75 -> 1447.75 | G10: K_UQ | H10: =of:=[Calcoli.H7]+0.75 -> 1448.75 | J10: K_UQ | K10: =of:=[Calcoli.K7]+0.75 -> 1449.75 | M10: K_UQ | N10: =of:=[Calcoli.N7]+0.75 -> 1450.75 | P10: K_UQ | Q10: =of:=[Calcoli.Q7]+0.75 -> 1451.75 | S10: K_UQ | T10: =of:=[Calcoli.T7]+0.75 -> 1452.75 | V10: K_UQ | W10: =of:=[Calcoli.W7]+0.75 -> 1453.75 | Y10: K_UQ | Z10: =of:=[Calcoli.Z7]+0.75 -> 1454.75 | AB10: K_UQ | AC10: =of:=[Calcoli.AC7]+0.75 -> 1455.75 | AE10: K_UQ | AF10: =of:=[Calcoli.AF7]+0.75 -> 1456.75 | AH10: K_UQ | AI10: =of:=[Calcoli.AI7]+0.75 -> 1457.75 | AK10: K_UQ | AL10: =of:=[Calcoli.AL7]+0.75 -> 1458.75 | AN10: K_UQ | AO10: =of:=[Calcoli.AO7]+0.75 -> 1460.75
A11: T_LN | B11: =of:=ROUND([Calcoli.B7]/1236.85;5) -> 1.1691 | D11: T_LN | E11: =of:=ROUND([Calcoli.E7]/1236.85;5) -> 1.16991 | G11: T_LN | H11: =of:=ROUND([Calcoli.H7]/1236.85;5) -> 1.17072 | J11: T_LN | K11: =of:=ROUND([Calcoli.K7]/1236.85;5) -> 1.17152 | M11: T_LN | N11: =of:=ROUND([Calcoli.N7]/1236.85;5) -> 1.17233 | P11: T_LN | Q11: =of:=ROUND([Calcoli.Q7]/1236.85;5) -> 1.17314 | S11: T_LN | T11: =of:=ROUND([Calcoli.T7]/1236.85;5) -> 1.17395 | V11: T_LN | W11: =of:=ROUND([Calcoli.W7]/1236.85;5) -> 1.17476 | Y11: T_LN | Z11: =of:=ROUND([Calcoli.Z7]/1236.85;5) -> 1.17557 | AB11: T_LN | AC11: =of:=ROUND([Calcoli.AC7]/1236.85;5) -> 1.17638 | AE11: T_LN | AF11: =of:=ROUND([Calcoli.AF7]/1236.85;5) -> 1.17718 | AH11: T_LN | AI11: =of:=ROUND([Calcoli.AI7]/1236.85;5) -> 1.17799 | AK11: T_LN | AL11: =of:=ROUND([Calcoli.AL7]/1236.85;5) -> 1.1788 | AN11: T_LN | AO11: =of:=ROUND([Calcoli.AO7]/1236.85;5) -> 1.18042
A12: T_PQ | B12: =of:=ROUND([Calcoli.B8]/1236.85;5) -> 1.1693 | D12: T_PQ | E12: =of:=ROUND([Calcoli.E8]/1236.85;5) -> 1.17011 | G12: T_PQ | H12: =of:=ROUND([Calcoli.H8]/1236.85;5) -> 1.17092 | J12: T_PQ | K12: =of:=ROUND([Calcoli.K8]/1236.85;5) -> 1.17173 | M12: T_PQ | N12: =of:=ROUND([Calcoli.N8]/1236.85;5) -> 1.17254 | P12: T_PQ | Q12: =of:=ROUND([Calcoli.Q8]/1236.85;5) -> 1.17334 | S12: T_PQ | T12: =of:=ROUND([Calcoli.T8]/1236.85;5) -> 1.17415 | V12: T_PQ | W12: =of:=ROUND([Calcoli.W8]/1236.85;5) -> 1.17496 | Y12: T_PQ | Z12: =of:=ROUND([Calcoli.Z8]/1236.85;5) -> 1.17577 | AB12: T_PQ | AC12: =of:=ROUND([Calcoli.AC8]/1236.85;5) -> 1.17658 | AE12: T_PQ | AF12: =of:=ROUND([Calcoli.AF8]/1236.85;5) -> 1.17739 | AH12: T_PQ | AI12: =of:=ROUND([Calcoli.AI8]/1236.85;5) -> 1.17819 | AK12: T_PQ | AL12: =of:=ROUND([Calcoli.AL8]/1236.85;5) -> 1.179 | AN12: T_PQ | AO12: =of:=ROUND([Calcoli.AO8]/1236.85;5) -> 1.18062
A13: T_LP | B13: =of:=ROUND([Calcoli.B9]/1236.85;5) -> 1.1695 | D13: T_LP | E13: =of:=ROUND([Calcoli.E9]/1236.85;5) -> 1.17031 | G13: T_LP | H13: =of:=ROUND([Calcoli.H9]/1236.85;5) -> 1.17112 | J13: T_LP | K13: =of:=ROUND([Calcoli.K9]/1236.85;5) -> 1.17193 | M13: T_LP | N13: =of:=ROUND([Calcoli.N9]/1236.85;5) -> 1.17274 | P13: T_LP | Q13: =of:=ROUND([Calcoli.Q9]/1236.85;5) -> 1.17355 | S13: T_LP | T13: =of:=ROUND([Calcoli.T9]/1236.85;5) -> 1.17435 | V13: T_LP | W13: =of:=ROUND([Calcoli.W9]/1236.85;5) -> 1.17516 | Y13: T_LP | Z13: =of:=ROUND([Calcoli.Z9]/1236.85;5) -> 1.17597 | AB13: T_LP | AC13: =of:=ROUND([Calcoli.AC9]/1236.85;5) -> 1.17678 | AE13: T_LP | AF13: =of:=ROUND([Calcoli.AF9]/1236.85;5) -> 1.17759 | AH13: T_LP | AI13: =of:=ROUND([Calcoli.AI9]/1236.85;5) -> 1.1784 | AK13: T_LP | AL13: =of:=ROUND([Calcoli.AL9]/1236.85;5) -> 1.17921 | AN13: T_LP | AO13: =of:=ROUND([Calcoli.AO9]/1236.85;5) -> 1.18082
A14: T_UQ | B14: =of:=ROUND([Calcoli.B10]/1236.85;5) -> 1.16971 | D14: T_UQ | E14: =of:=ROUND([Calcoli.E10]/1236.85;5) -> 1.17051 | G14: T_UQ | H14: =of:=ROUND([Calcoli.H10]/1236.85;5) -> 1.17132 | J14: T_UQ | K14: =of:=ROUND([Calcoli.K10]/1236.85;5) -> 1.17213 | M14: T_UQ | N14: =of:=ROUND([Calcoli.N10]/1236.85;5) -> 1.17294 | P14: T_UQ | Q14: =of:=ROUND([Calcoli.Q10]/1236.85;5) -> 1.17375 | S14: T_UQ | T14: =of:=ROUND([Calcoli.T10]/1236.85;5) -> 1.17456 | V14: T_UQ | W14: =of:=ROUND([Calcoli.W10]/1236.85;5) -> 1.17536 | Y14: T_UQ | Z14: =of:=ROUND([Calcoli.Z10]/1236.85;5) -> 1.17617 | AB14: T_UQ | AC14: =of:=ROUND([Calcoli.AC10]/1236.85;5) -> 1.17698 | AE14: T_UQ | AF14: =of:=ROUND([Calcoli.AF10]/1236.85;5) -> 1.17779 | AH14: T_UQ | AI14: =of:=ROUND([Calcoli.AI10]/1236.85;5) -> 1.1786 | AK14: T_UQ | AL14: =of:=ROUND([Calcoli.AL10]/1236.85;5) -> 1.17941 | AN14: T_UQ | AO14: =of:=ROUND([Calcoli.AO10]/1236.85;5) -> 1.18102
A15: JD_LN | B15: =of:=ROUND(2415020.75933+29.53058868*[Calcoli.B7]+0.0001178*[Calcoli.B11]^2-0.000000155*[Calcoli.B11]^3+0.00033*SIN(166.56+132.87*[Calcoli.B11]-0.009*173*[Calcoli.B11]^2);4) -> 2457721.99 | D15: JD_LN | E15: =of:=ROUND(2415020.75933+29.53058868*[Calcoli.E7]+0.0001178*[Calcoli.E11]^2-0.000000155*[Calcoli.E11]^3+0.00033*SIN(166.56+132.87*[Calcoli.E11]-0.009*173*[Calcoli.E11]^2);4) -> 2457751.521 | G15: JD_LN | H15: =of:=ROUND(2415020.75933+29.53058868*[Calcoli.H7]+0.0001178*[Calcoli.H11]^2-0.000000155*[Calcoli.H11]^3+0.00033*SIN(166.56+132.87*[Calcoli.H11]-0.009*173*[Calcoli.H11]^2);4) -> 2457781.052 | J15: JD_LN | K15: =of:=ROUND(2415020.75933+29.53058868*[Calcoli.K7]+0.0001178*[Calcoli.K11]^2-0.000000155*[Calcoli.K11]^3+0.00033*SIN(166.56+132.87*[Calcoli.K11]-0.009*173*[Calcoli.K11]^2);4) -> 2457810.582 | M15: JD_LN | N15: =of:=ROUND(2415020.75933+29.53058868*[Calcoli.N7]+0.0001178*[Calcoli.N11]^2-0.000000155*[Calcoli.N11]^3+0.00033*SIN(166.56+132.87*[Calcoli.N11]-0.009*173*[Calcoli.N11]^2);4) -> 2457840.113 | P15: JD_LN | Q15: =of:=ROUND(2415020.75933+29.53058868*[Calcoli.Q7]+0.0001178*[Calcoli.Q11]^2-0.000000155*[Calcoli.Q11]^3+0.00033*SIN(166.56+132.87*[Calcoli.Q11]-0.009*173*[Calcoli.Q11]^2);4) -> 2457869.644 | S15: JD_LN | T15: =of:=ROUND(2415020.75933+29.53058868*[Calcoli.T7]+0.0001178*[Calcoli.T11]^2-0.000000155*[Calcoli.T11]^3+0.00033*SIN(166.56+132.87*[Calcoli.T11]-0.009*173*[Calcoli.T11]^2);4) -> 2457899.174 | V15: JD_LN | W15: =of:=ROUND(2415020.75933+29.53058868*[Calcoli.W7]+0.0001178*[Calcoli.W11]^2-0.000000155*[Calcoli.W11]^3+0.00033*SIN(166.56+132.87*[Calcoli.W11]-0.009*173*[Calcoli.W11]^2);4) -> 2457928.705 | Y15: JD_LN | Z15: =of:=ROUND(2415020.75933+29.53058868*[Calcoli.Z7]+0.0001178*[Calcoli.Z11]^2-0.000000155*[Calcoli.Z11]^3+0.00033*SIN(166.56+132.87*[Calcoli.Z11]-0.009*173*[Calcoli.Z11]^2);4) -> 2457958.235 | AB15: JD_LN | AC15: =of:=ROUND(2415020.75933+29.53058868*[Calcoli.AC7]+0.0001178*[Calcoli.AC11]^2-0.000000155*[Calcoli.AC11]^3+0.00033*SIN(166.56+132.87*[Calcoli.AC11]-0.009*173*[Calcoli.AC11]^2);4) -> 2457987.766 | AE15: JD_LN | AF15: =of:=ROUND(2415020.75933+29.53058868*[Calcoli.AF7]+0.0001178*[Calcoli.AF11]^2-0.000000155*[Calcoli.AF11]^3+0.00033*SIN(166.56+132.87*[Calcoli.AF11]-0.009*173*[Calcoli.AF11]^2);4) -> 2458017.297 | AH15: JD_LN | AI15: =of:=ROUND(2415020.75933+29.53058868*[Calcoli.AI7]+0.0001178*[Calcoli.AI11]^2-0.000000155*[Calcoli.AI11]^3+0.00033*SIN(166.56+132.87*[Calcoli.AI11]-0.009*173*[Calcoli.AI11]^2);4) -> 2458046.827 | AK15: JD_LN | AL15: =of:=ROUND(2415020.75933+29.53058868*[Calcoli.AL7]+0.0001178*[Calcoli.AL11]^2-0.000000155*[Calcoli.AL11]^3+0.00033*SIN(166.56+132.87*[Calcoli.AL11]-0.009*173*[Calcoli.AL11]^2);4) -> 2458076.358 | AN15: JD_LN | AO15: =of:=ROUND(2415020.75933+29.53058868*[Calcoli.AO7]+0.0001178*[Calcoli.AO11]^2-0.000000155*[Calcoli.AO11]^3+0.00033*SIN(166.56+132.87*[Calcoli.AO11]-0.009*173*[Calcoli.AO11]^2);4) -> 2458135.419
A16: JD_PQ | B16: =of:=ROUND(2415020.75933+29.53058868*[Calcoli.B8]+0.0001178*[Calcoli.B12]^2-0.000000155*[Calcoli.B12]^3+0.00033*SIN(166.56+132.87*[Calcoli.B12]-0.009*173*[Calcoli.B12]^2);4) -> 2457729.373 | D16: JD_PQ | E16: =of:=ROUND(2415020.75933+29.53058868*[Calcoli.E8]+0.0001178*[Calcoli.E12]^2-0.000000155*[Calcoli.E12]^3+0.00033*SIN(166.56+132.87*[Calcoli.E12]-0.009*173*[Calcoli.E12]^2);4) -> 2457758.904 | G16: JD_PQ | H16: =of:=ROUND(2415020.75933+29.53058868*[Calcoli.H8]+0.0001178*[Calcoli.H12]^2-0.000000155*[Calcoli.H12]^3+0.00033*SIN(166.56+132.87*[Calcoli.H12]-0.009*173*[Calcoli.H12]^2);4) -> 2457788.434 | J16: JD_PQ | K16: =of:=ROUND(2415020.75933+29.53058868*[Calcoli.K8]+0.0001178*[Calcoli.K12]^2-0.000000155*[Calcoli.K12]^3+0.00033*SIN(166.56+132.87*[Calcoli.K12]-0.009*173*[Calcoli.K12]^2);4) -> 2457817.965 | M16: JD_PQ | N16: =of:=ROUND(2415020.75933+29.53058868*[Calcoli.N8]+0.0001178*[Calcoli.N12]^2-0.000000155*[Calcoli.N12]^3+0.00033*SIN(166.56+132.87*[Calcoli.N12]-0.009*173*[Calcoli.N12]^2);4) -> 2457847.496 | P16: JD_PQ | Q16: =of:=ROUND(2415020.75933+29.53058868*[Calcoli.Q8]+0.0001178*[Calcoli.Q12]^2-0.000000155*[Calcoli.Q12]^3+0.00033*SIN(166.56+132.87*[Calcoli.Q12]-0.009*173*[Calcoli.Q12]^2);4) -> 2457877.026 | S16: JD_PQ | T16: =of:=ROUND(2415020.75933+29.53058868*[Calcoli.T8]+0.0001178*[Calcoli.T12]^2-0.000000155*[Calcoli.T12]^3+0.00033*SIN(166.56+132.87*[Calcoli.T12]-0.009*173*[Calcoli.T12]^2);4) -> 2457906.557 | V16: JD_PQ | W16: =of:=ROUND(2415020.75933+29.53058868*[Calcoli.W8]+0.0001178*[Calcoli.W12]^2-0.000000155*[Calcoli.W12]^3+0.00033*SIN(166.56+132.87*[Calcoli.W12]-0.009*173*[Calcoli.W12]^2);4) -> 2457936.087 | Y16: JD_PQ | Z16: =of:=ROUND(2415020.75933+29.53058868*[Calcoli.Z8]+0.0001178*[Calcoli.Z12]^2-0.000000155*[Calcoli.Z12]^3+0.00033*SIN(166.56+132.87*[Calcoli.Z12]-0.009*173*[Calcoli.Z12]^2);4) -> 2457965.618 | AB16: JD_PQ | AC16: =of:=ROUND(2415020.75933+29.53058868*[Calcoli.AC8]+0.0001178*[Calcoli.AC12]^2-0.000000155*[Calcoli.AC12]^3+0.00033*SIN(166.56+132.87*[Calcoli.AC12]-0.009*173*[Calcoli.AC12]^2);4) -> 2457995.149 | AE16: JD_PQ | AF16: =of:=ROUND(2415020.75933+29.53058868*[Calcoli.AF8]+0.0001178*[Calcoli.AF12]^2-0.000000155*[Calcoli.AF12]^3+0.00033*SIN(166.56+132.87*[Calcoli.AF12]-0.009*173*[Calcoli.AF12]^2);4) -> 2458024.679 | AH16: JD_PQ | AI16: =of:=ROUND(2415020.75933+29.53058868*[Calcoli.AI8]+0.0001178*[Calcoli.AI12]^2-0.000000155*[Calcoli.AI12]^3+0.00033*SIN(166.56+132.87*[Calcoli.AI12]-0.009*173*[Calcoli.AI12]^2);4) -> 2458054.21 | AK16: JD_PQ | AL16: =of:=ROUND(2415020.75933+29.53058868*[Calcoli.AL8]+0.0001178*[Calcoli.AL12]^2-0.000000155*[Calcoli.AL12]^3+0.00033*SIN(166.56+132.87*[Calcoli.AL12]-0.009*173*[Calcoli.AL12]^2);4) -> 2458083.741 | AN16: JD_PQ | AO16: =of:=ROUND(2415020.75933+29.53058868*[Calcoli.AO8]+0.0001178*[Calcoli.AO12]^2-0.000000155*[Calcoli.AO12]^3+0.00033*SIN(166.56+132.87*[Calcoli.AO12]-0.009*173*[Calcoli.AO12]^2);4) -> 2458142.802
A17: JD_LP | B17: =of:=ROUND(2415020.75933+29.53058868*[Calcoli.B9]+0.0001178*[Calcoli.B13]^2-0.000000155*[Calcoli.B13]^3+0.00033*SIN(166.56+132.87*[Calcoli.B13]-0.009*173*[Calcoli.B13]^2);4) -> 2457736.756 | D17: JD_LP | E17: =of:=ROUND(2415020.75933+29.53058868*[Calcoli.E9]+0.0001178*[Calcoli.E13]^2-0.000000155*[Calcoli.E13]^3+0.00033*SIN(166.56+132.87*[Calcoli.E13]-0.009*173*[Calcoli.E13]^2);4) -> 2457766.286 | G17: JD_LP | H17: =of:=ROUND(2415020.75933+29.53058868*[Calcoli.H9]+0.0001178*[Calcoli.H13]^2-0.000000155*[Calcoli.H13]^3+0.00033*SIN(166.56+132.87*[Calcoli.H13]-0.009*173*[Calcoli.H13]^2);4) -> 2457795.817 | J17: JD_LP | K17: =of:=ROUND(2415020.75933+29.53058868*[Calcoli.K9]+0.0001178*[Calcoli.K13]^2-0.000000155*[Calcoli.K13]^3+0.00033*SIN(166.56+132.87*[Calcoli.K13]-0.009*173*[Calcoli.K13]^2);4) -> 2457825.348 | M17: JD_LP | N17: =of:=ROUND(2415020.75933+29.53058868*[Calcoli.N9]+0.0001178*[Calcoli.N13]^2-0.000000155*[Calcoli.N13]^3+0.00033*SIN(166.56+132.87*[Calcoli.N13]-0.009*173*[Calcoli.N13]^2);4) -> 2457854.878 | P17: JD_LP | Q17: =of:=ROUND(2415020.75933+29.53058868*[Calcoli.Q9]+0.0001178*[Calcoli.Q13]^2-0.000000155*[Calcoli.Q13]^3+0.00033*SIN(166.56+132.87*[Calcoli.Q13]-0.009*173*[Calcoli.Q13]^2);4) -> 2457884.409 | S17: JD_LP | T17: =of:=ROUND(2415020.75933+29.53058868*[Calcoli.T9]+0.0001178*[Calcoli.T13]^2-0.000000155*[Calcoli.T13]^3+0.00033*SIN(166.56+132.87*[Calcoli.T13]-0.009*173*[Calcoli.T13]^2);4) -> 2457913.94 | V17: JD_LP | W17: =of:=ROUND(2415020.75933+29.53058868*[Calcoli.W9]+0.0001178*[Calcoli.W13]^2-0.000000155*[Calcoli.W13]^3+0.00033*SIN(166.56+132.87*[Calcoli.W13]-0.009*173*[Calcoli.W13]^2);4) -> 2457943.47 | Y17: JD_LP | Z17: =of:=ROUND(2415020.75933+29.53058868*[Calcoli.Z9]+0.0001178*[Calcoli.Z13]^2-0.000000155*[Calcoli.Z13]^3+0.00033*SIN(166.56+132.87*[Calcoli.Z13]-0.009*173*[Calcoli.Z13]^2);4) -> 2457973.001 | AB17: JD_LP | AC17: =of:=ROUND(2415020.75933+29.53058868*[Calcoli.AC9]+0.0001178*[Calcoli.AC13]^2-0.000000155*[Calcoli.AC13]^3+0.00033*SIN(166.56+132.87*[Calcoli.AC13]-0.009*173*[Calcoli.AC13]^2);4) -> 2458002.531 | AE17: JD_LP | AF17: =of:=ROUND(2415020.75933+29.53058868*[Calcoli.AF9]+0.0001178*[Calcoli.AF13]^2-0.000000155*[Calcoli.AF13]^3+0.00033*SIN(166.56+132.87*[Calcoli.AF13]-0.009*173*[Calcoli.AF13]^2);4) -> 2458032.062 | AH17: JD_LP | AI17: =of:=ROUND(2415020.75933+29.53058868*[Calcoli.AI9]+0.0001178*[Calcoli.AI13]^2-0.000000155*[Calcoli.AI13]^3+0.00033*SIN(166.56+132.87*[Calcoli.AI13]-0.009*173*[Calcoli.AI13]^2);4) -> 2458061.593 | AK17: JD_LP | AL17: =of:=ROUND(2415020.75933+29.53058868*[Calcoli.AL9]+0.0001178*[Calcoli.AL13]^2-0.000000155*[Calcoli.AL13]^3+0.00033*SIN(166.56+132.87*[Calcoli.AL13]-0.009*173*[Calcoli.AL13]^2);4) -> 2458091.123 | AN17: JD_LP | AO17: =of:=ROUND(2415020.75933+29.53058868*[Calcoli.AO9]+0.0001178*[Calcoli.AO13]^2-0.000000155*[Calcoli.AO13]^3+0.00033*SIN(166.56+132.87*[Calcoli.AO13]-0.009*173*[Calcoli.AO13]^2);4) -> 2458150.184
A18: JD_UQ | B18: =of:=ROUND(2415020.75933+29.53058868*[Calcoli.B10]+0.0001178*[Calcoli.B14]^2-0.000000155*[Calcoli.B14]^3+0.00033*SIN(166.56+132.87*[Calcoli.B14]-0.009*173*[Calcoli.B14]^2);4) -> 2457744.138 | D18: JD_UQ | E18: =of:=ROUND(2415020.75933+29.53058868*[Calcoli.E10]+0.0001178*[Calcoli.E14]^2-0.000000155*[Calcoli.E14]^3+0.00033*SIN(166.56+132.87*[Calcoli.E14]-0.009*173*[Calcoli.E14]^2);4) -> 2457773.669 | G18: JD_UQ | H18: =of:=ROUND(2415020.75933+29.53058868*[Calcoli.H10]+0.0001178*[Calcoli.H14]^2-0.000000155*[Calcoli.H14]^3+0.00033*SIN(166.56+132.87*[Calcoli.H14]-0.009*173*[Calcoli.H14]^2);4) -> 2457803.2 | J18: JD_UQ | K18: =of:=ROUND(2415020.75933+29.53058868*[Calcoli.K10]+0.0001178*[Calcoli.K14]^2-0.000000155*[Calcoli.K14]^3+0.00033*SIN(166.56+132.87*[Calcoli.K14]-0.009*173*[Calcoli.K14]^2);4) -> 2457832.73 | M18: JD_UQ | N18: =of:=ROUND(2415020.75933+29.53058868*[Calcoli.N10]+0.0001178*[Calcoli.N14]^2-0.000000155*[Calcoli.N14]^3+0.00033*SIN(166.56+132.87*[Calcoli.N14]-0.009*173*[Calcoli.N14]^2);4) -> 2457862.261 | P18: JD_UQ | Q18: =of:=ROUND(2415020.75933+29.53058868*[Calcoli.Q10]+0.0001178*[Calcoli.Q14]^2-0.000000155*[Calcoli.Q14]^3+0.00033*SIN(166.56+132.87*[Calcoli.Q14]-0.009*173*[Calcoli.Q14]^2);4) -> 2457891.792 | S18: JD_UQ | T18: =of:=ROUND(2415020.75933+29.53058868*[Calcoli.T10]+0.0001178*[Calcoli.T14]^2-0.000000155*[Calcoli.T14]^3+0.00033*SIN(166.56+132.87*[Calcoli.T14]-0.009*173*[Calcoli.T14]^2);4) -> 2457921.322 | V18: JD_UQ | W18: =of:=ROUND(2415020.75933+29.53058868*[Calcoli.W10]+0.0001178*[Calcoli.W14]^2-0.000000155*[Calcoli.W14]^3+0.00033*SIN(166.56+132.87*[Calcoli.W14]-0.009*173*[Calcoli.W14]^2);4) -> 2457950.853 | Y18: JD_UQ | Z18: =of:=ROUND(2415020.75933+29.53058868*[Calcoli.Z10]+0.0001178*[Calcoli.Z14]^2-0.000000155*[Calcoli.Z14]^3+0.00033*SIN(166.56+132.87*[Calcoli.Z14]-0.009*173*[Calcoli.Z14]^2);4) -> 2457980.383 | AB18: JD_UQ | AC18: =of:=ROUND(2415020.75933+29.53058868*[Calcoli.AC10]+0.0001178*[Calcoli.AC14]^2-0.000000155*[Calcoli.AC14]^3+0.00033*SIN(166.56+132.87*[Calcoli.AC14]-0.009*173*[Calcoli.AC14]^2);4) -> 2458009.914 | AE18: JD_UQ | AF18: =of:=ROUND(2415020.75933+29.53058868*[Calcoli.AF10]+0.0001178*[Calcoli.AF14]^2-0.000000155*[Calcoli.AF14]^3+0.00033*SIN(166.56+132.87*[Calcoli.AF14]-0.009*173*[Calcoli.AF14]^2);4) -> 2458039.445 | AH18: JD_UQ | AI18: =of:=ROUND(2415020.75933+29.53058868*[Calcoli.AI10]+0.0001178*[Calcoli.AI14]^2-0.000000155*[Calcoli.AI14]^3+0.00033*SIN(166.56+132.87*[Calcoli.AI14]-0.009*173*[Calcoli.AI14]^2);4) -> 2458068.975 | AK18: JD_UQ | AL18: =of:=ROUND(2415020.75933+29.53058868*[Calcoli.AL10]+0.0001178*[Calcoli.AL14]^2-0.000000155*[Calcoli.AL14]^3+0.00033*SIN(166.56+132.87*[Calcoli.AL14]-0.009*173*[Calcoli.AL14]^2);4) -> 2458098.506 | AN18: JD_UQ | AO18: =of:=ROUND(2415020.75933+29.53058868*[Calcoli.AO10]+0.0001178*[Calcoli.AO14]^2-0.000000155*[Calcoli.AO14]^3+0.00033*SIN(166.56+132.87*[Calcoli.AO14]-0.009*173*[Calcoli.AO14]^2);4) -> 2458157.567
A19: M_LN | B19: =of:=ROUND(359.2242+29.10535608*[Calcoli.B7]-0.0000333*[Calcoli.B11]^2-0.00000347*[Calcoli.B11]^3;4) -> 42445.569 | D19: M_LN | E19: =of:=ROUND(359.2242+29.10535608*[Calcoli.E7]-0.0000333*[Calcoli.E11]^2-0.00000347*[Calcoli.E11]^3;4) -> 42474.6744 | G19: M_LN | H19: =of:=ROUND(359.2242+29.10535608*[Calcoli.H7]-0.0000333*[Calcoli.H11]^2-0.00000347*[Calcoli.H11]^3;4) -> 42503.7798 | J19: M_LN | K19: =of:=ROUND(359.2242+29.10535608*[Calcoli.K7]-0.0000333*[Calcoli.K11]^2-0.00000347*[Calcoli.K11]^3;4) -> 42532.8851 | M19: M_LN | N19: =of:=ROUND(359.2242+29.10535608*[Calcoli.N7]-0.0000333*[Calcoli.N11]^2-0.00000347*[Calcoli.N11]^3;4) -> 42561.9905 | P19: M_LN | Q19: =of:=ROUND(359.2242+29.10535608*[Calcoli.Q7]-0.0000333*[Calcoli.Q11]^2-0.00000347*[Calcoli.Q11]^3;4) -> 42591.0958 | S19: M_LN | T19: =of:=ROUND(359.2242+29.10535608*[Calcoli.T7]-0.0000333*[Calcoli.T11]^2-0.00000347*[Calcoli.T11]^3;4) -> 42620.2012 | V19: M_LN | W19: =of:=ROUND(359.2242+29.10535608*[Calcoli.W7]-0.0000333*[Calcoli.W11]^2-0.00000347*[Calcoli.W11]^3;4) -> 42649.3065 | Y19: M_LN | Z19: =of:=ROUND(359.2242+29.10535608*[Calcoli.Z7]-0.0000333*[Calcoli.Z11]^2-0.00000347*[Calcoli.Z11]^3;4) -> 42678.4119 | AB19: M_LN | AC19: =of:=ROUND(359.2242+29.10535608*[Calcoli.AC7]-0.0000333*[Calcoli.AC11]^2-0.00000347*[Calcoli.AC11]^3;4) -> 42707.5172 | AE19: M_LN | AF19: =of:=ROUND(359.2242+29.10535608*[Calcoli.AF7]-0.0000333*[Calcoli.AF11]^2-0.00000347*[Calcoli.AF11]^3;4) -> 42736.6226 | AH19: M_LN | AI19: =of:=ROUND(359.2242+29.10535608*[Calcoli.AI7]-0.0000333*[Calcoli.AI11]^2-0.00000347*[Calcoli.AI11]^3;4) -> 42765.728 | AK19: M_LN | AL19: =of:=ROUND(359.2242+29.10535608*[Calcoli.AL7]-0.0000333*[Calcoli.AL11]^2-0.00000347*[Calcoli.AL11]^3;4) -> 42794.8333 | AN19: M_LN | AO19: =of:=ROUND(359.2242+29.10535608*[Calcoli.AO7]-0.0000333*[Calcoli.AO11]^2-0.00000347*[Calcoli.AO11]^3;4) -> 42853.044
A20: M_a | B20: =of:=ROUND(INT([Calcoli.B19])-(INT(INT([Calcoli.B19])/360))*360+[Calcoli.B19]-INT([Calcoli.B19]);4) -> 325.569 | D20: M_a | E20: =of:=ROUND(INT([Calcoli.E19])-(INT(INT([Calcoli.E19])/360))*360+[Calcoli.E19]-INT([Calcoli.E19]);4) -> 354.6744 | G20: M_a | H20: =of:=ROUND(INT([Calcoli.H19])-(INT(INT([Calcoli.H19])/360))*360+[Calcoli.H19]-INT([Calcoli.H19]);4) -> 23.7798 | J20: M_a | K20: =of:=ROUND(INT([Calcoli.K19])-(INT(INT([Calcoli.K19])/360))*360+[Calcoli.K19]-INT([Calcoli.K19]);4) -> 52.8851 | M20: M_a | N20: =of:=ROUND(INT([Calcoli.N19])-(INT(INT([Calcoli.N19])/360))*360+[Calcoli.N19]-INT([Calcoli.N19]);4) -> 81.9905 | P20: M_a | Q20: =of:=ROUND(INT([Calcoli.Q19])-(INT(INT([Calcoli.Q19])/360))*360+[Calcoli.Q19]-INT([Calcoli.Q19]);4) -> 111.0958 | S20: M_a | T20: =of:=ROUND(INT([Calcoli.T19])-(INT(INT([Calcoli.T19])/360))*360+[Calcoli.T19]-INT([Calcoli.T19]);4) -> 140.2012 | V20: M_a | W20: =of:=ROUND(INT([Calcoli.W19])-(INT(INT([Calcoli.W19])/360))*360+[Calcoli.W19]-INT([Calcoli.W19]);4) -> 169.3065 | Y20: M_a | Z20: =of:=ROUND(INT([Calcoli.Z19])-(INT(INT([Calcoli.Z19])/360))*360+[Calcoli.Z19]-INT([Calcoli.Z19]);4) -> 198.4119 | AB20: M_a | AC20: =of:=ROUND(INT([Calcoli.AC19])-(INT(INT([Calcoli.AC19])/360))*360+[Calcoli.AC19]-INT([Calcoli.AC19]);4) -> 227.5172 | AE20: M_a | AF20: =of:=ROUND(INT([Calcoli.AF19])-(INT(INT([Calcoli.AF19])/360))*360+[Calcoli.AF19]-INT([Calcoli.AF19]);4) -> 256.6226 | AH20: M_a | AI20: =of:=ROUND(INT([Calcoli.AI19])-(INT(INT([Calcoli.AI19])/360))*360+[Calcoli.AI19]-INT([Calcoli.AI19]);4) -> 285.728 | AK20: M_a | AL20: =of:=ROUND(INT([Calcoli.AL19])-(INT(INT([Calcoli.AL19])/360))*360+[Calcoli.AL19]-INT([Calcoli.AL19]);4) -> 314.8333 | AN20: M_a | AO20: =of:=ROUND(INT([Calcoli.AO19])-(INT(INT([Calcoli.AO19])/360))*360+[Calcoli.AO19]-INT([Calcoli.AO19]);4) -> 13.044
A21: M_PQ | B21: =of:=ROUND(359.2242+29.10535608*[Calcoli.B8]-0.0000333*[Calcoli.B12]^2-0.00000347*[Calcoli.B12]^3;4) -> 42452.8454 | D21: M_PQ | E21: =of:=ROUND(359.2242+29.10535608*[Calcoli.E8]-0.0000333*[Calcoli.E12]^2-0.00000347*[Calcoli.E12]^3;4) -> 42481.9507 | G21: M_PQ | H21: =of:=ROUND(359.2242+29.10535608*[Calcoli.H8]-0.0000333*[Calcoli.H12]^2-0.00000347*[Calcoli.H12]^3;4) -> 42511.0561 | J21: M_PQ | K21: =of:=ROUND(359.2242+29.10535608*[Calcoli.K8]-0.0000333*[Calcoli.K12]^2-0.00000347*[Calcoli.K12]^3;4) -> 42540.1614 | M21: M_PQ | N21: =of:=ROUND(359.2242+29.10535608*[Calcoli.N8]-0.0000333*[Calcoli.N12]^2-0.00000347*[Calcoli.N12]^3;4) -> 42569.2668 | P21: M_PQ | Q21: =of:=ROUND(359.2242+29.10535608*[Calcoli.Q8]-0.0000333*[Calcoli.Q12]^2-0.00000347*[Calcoli.Q12]^3;4) -> 42598.3722 | S21: M_PQ | T21: =of:=ROUND(359.2242+29.10535608*[Calcoli.T8]-0.0000333*[Calcoli.T12]^2-0.00000347*[Calcoli.T12]^3;4) -> 42627.4775 | V21: M_PQ | W21: =of:=ROUND(359.2242+29.10535608*[Calcoli.W8]-0.0000333*[Calcoli.W12]^2-0.00000347*[Calcoli.W12]^3;4) -> 42656.5829 | Y21: M_PQ | Z21: =of:=ROUND(359.2242+29.10535608*[Calcoli.Z8]-0.0000333*[Calcoli.Z12]^2-0.00000347*[Calcoli.Z12]^3;4) -> 42685.6882 | AB21: M_PQ | AC21: =of:=ROUND(359.2242+29.10535608*[Calcoli.AC8]-0.0000333*[Calcoli.AC12]^2-0.00000347*[Calcoli.AC12]^3;4) -> 42714.7936 | AE21: M_PQ | AF21: =of:=ROUND(359.2242+29.10535608*[Calcoli.AF8]-0.0000333*[Calcoli.AF12]^2-0.00000347*[Calcoli.AF12]^3;4) -> 42743.8989 | AH21: M_PQ | AI21: =of:=ROUND(359.2242+29.10535608*[Calcoli.AI8]-0.0000333*[Calcoli.AI12]^2-0.00000347*[Calcoli.AI12]^3;4) -> 42773.0043 | AK21: M_PQ | AL21: =of:=ROUND(359.2242+29.10535608*[Calcoli.AL8]-0.0000333*[Calcoli.AL12]^2-0.00000347*[Calcoli.AL12]^3;4) -> 42802.1097 | AN21: M_PQ | AO21: =of:=ROUND(359.2242+29.10535608*[Calcoli.AO8]-0.0000333*[Calcoli.AO12]^2-0.00000347*[Calcoli.AO12]^3;4) -> 42860.3204
A22: M_LP | B22: =of:=ROUND(359.2242+29.10535608*[Calcoli.B9]-0.0000333*[Calcoli.B13]^2-0.00000347*[Calcoli.B13]^3;4) -> 42460.1217 | D22: M_LP | E22: =of:=ROUND(359.2242+29.10535608*[Calcoli.E9]-0.0000333*[Calcoli.E13]^2-0.00000347*[Calcoli.E13]^3;4) -> 42489.2271 | G22: M_LP | H22: =of:=ROUND(359.2242+29.10535608*[Calcoli.H9]-0.0000333*[Calcoli.H13]^2-0.00000347*[Calcoli.H13]^3;4) -> 42518.3324 | J22: M_LP | K22: =of:=ROUND(359.2242+29.10535608*[Calcoli.K9]-0.0000333*[Calcoli.K13]^2-0.00000347*[Calcoli.K13]^3;4) -> 42547.4378 | M22: M_LP | N22: =of:=ROUND(359.2242+29.10535608*[Calcoli.N9]-0.0000333*[Calcoli.N13]^2-0.00000347*[Calcoli.N13]^3;4) -> 42576.5431 | P22: M_LP | Q22: =of:=ROUND(359.2242+29.10535608*[Calcoli.Q9]-0.0000333*[Calcoli.Q13]^2-0.00000347*[Calcoli.Q13]^3;4) -> 42605.6485 | S22: M_LP | T22: =of:=ROUND(359.2242+29.10535608*[Calcoli.T9]-0.0000333*[Calcoli.T13]^2-0.00000347*[Calcoli.T13]^3;4) -> 42634.7539 | V22: M_LP | W22: =of:=ROUND(359.2242+29.10535608*[Calcoli.W9]-0.0000333*[Calcoli.W13]^2-0.00000347*[Calcoli.W13]^3;4) -> 42663.8592 | Y22: M_LP | Z22: =of:=ROUND(359.2242+29.10535608*[Calcoli.Z9]-0.0000333*[Calcoli.Z13]^2-0.00000347*[Calcoli.Z13]^3;4) -> 42692.9646 | AB22: M_LP | AC22: =of:=ROUND(359.2242+29.10535608*[Calcoli.AC9]-0.0000333*[Calcoli.AC13]^2-0.00000347*[Calcoli.AC13]^3;4) -> 42722.0699 | AE22: M_LP | AF22: =of:=ROUND(359.2242+29.10535608*[Calcoli.AF9]-0.0000333*[Calcoli.AF13]^2-0.00000347*[Calcoli.AF13]^3;4) -> 42751.1753 | AH22: M_LP | AI22: =of:=ROUND(359.2242+29.10535608*[Calcoli.AI9]-0.0000333*[Calcoli.AI13]^2-0.00000347*[Calcoli.AI13]^3;4) -> 42780.2806 | AK22: M_LP | AL22: =of:=ROUND(359.2242+29.10535608*[Calcoli.AL9]-0.0000333*[Calcoli.AL13]^2-0.00000347*[Calcoli.AL13]^3;4) -> 42809.386 | AN22: M_LP | AO22: =of:=ROUND(359.2242+29.10535608*[Calcoli.AO9]-0.0000333*[Calcoli.AO13]^2-0.00000347*[Calcoli.AO13]^3;4) -> 42867.5967
A23: M_UQ | B23: =of:=ROUND(359.2242+29.10535608*[Calcoli.B10]-0.0000333*[Calcoli.B14]^2-0.00000347*[Calcoli.B14]^3;4) -> 42467.3981 | D23: M_UQ | E23: =of:=ROUND(359.2242+29.10535608*[Calcoli.E10]-0.0000333*[Calcoli.E14]^2-0.00000347*[Calcoli.E14]^3;4) -> 42496.5034 | G23: M_UQ | H23: =of:=ROUND(359.2242+29.10535608*[Calcoli.H10]-0.0000333*[Calcoli.H14]^2-0.00000347*[Calcoli.H14]^3;4) -> 42525.6088 | J23: M_UQ | K23: =of:=ROUND(359.2242+29.10535608*[Calcoli.K10]-0.0000333*[Calcoli.K14]^2-0.00000347*[Calcoli.K14]^3;4) -> 42554.7141 | M23: M_UQ | N23: =of:=ROUND(359.2242+29.10535608*[Calcoli.N10]-0.0000333*[Calcoli.N14]^2-0.00000347*[Calcoli.N14]^3;4) -> 42583.8195 | P23: M_UQ | Q23: =of:=ROUND(359.2242+29.10535608*[Calcoli.Q10]-0.0000333*[Calcoli.Q14]^2-0.00000347*[Calcoli.Q14]^3;4) -> 42612.9248 | S23: M_UQ | T23: =of:=ROUND(359.2242+29.10535608*[Calcoli.T10]-0.0000333*[Calcoli.T14]^2-0.00000347*[Calcoli.T14]^3;4) -> 42642.0302 | V23: M_UQ | W23: =of:=ROUND(359.2242+29.10535608*[Calcoli.W10]-0.0000333*[Calcoli.W14]^2-0.00000347*[Calcoli.W14]^3;4) -> 42671.1355 | Y23: M_UQ | Z23: =of:=ROUND(359.2242+29.10535608*[Calcoli.Z10]-0.0000333*[Calcoli.Z14]^2-0.00000347*[Calcoli.Z14]^3;4) -> 42700.2409 | AB23: M_UQ | AC23: =of:=ROUND(359.2242+29.10535608*[Calcoli.AC10]-0.0000333*[Calcoli.AC14]^2-0.00000347*[Calcoli.AC14]^3;4) -> 42729.3463 | AE23: M_UQ | AF23: =of:=ROUND(359.2242+29.10535608*[Calcoli.AF10]-0.0000333*[Calcoli.AF14]^2-0.00000347*[Calcoli.AF14]^3;4) -> 42758.4516 | AH23: M_UQ | AI23: =of:=ROUND(359.2242+29.10535608*[Calcoli.AI10]-0.0000333*[Calcoli.AI14]^2-0.00000347*[Calcoli.AI14]^3;4) -> 42787.557 | AK23: M_UQ | AL23: =of:=ROUND(359.2242+29.10535608*[Calcoli.AL10]-0.0000333*[Calcoli.AL14]^2-0.00000347*[Calcoli.AL14]^3;4) -> 42816.6623 | AN23: M_UQ | AO23: =of:=ROUND(359.2242+29.10535608*[Calcoli.AO10]-0.0000333*[Calcoli.AO14]^2-0.00000347*[Calcoli.AO14]^3;4) -> 42874.873
A24: M1_LN | B24: =of:=ROUND(306.0253+385.81691806*[Calcoli.B7]+0.0107306*[Calcoli.B11]^2+0.00001236*[Calcoli.B11]^3;4) -> 558197.3035 | D24: M1_LN | E24: =of:=ROUND(306.0253+385.81691806*[Calcoli.E7]+0.0107306*[Calcoli.E11]^2+0.00001236*[Calcoli.E11]^3;4) -> 558583.1204 | G24: M1_LN | H24: =of:=ROUND(306.0253+385.81691806*[Calcoli.H7]+0.0107306*[Calcoli.H11]^2+0.00001236*[Calcoli.H11]^3;4) -> 558968.9374 | J24: M1_LN | K24: =of:=ROUND(306.0253+385.81691806*[Calcoli.K7]+0.0107306*[Calcoli.K11]^2+0.00001236*[Calcoli.K11]^3;4) -> 559354.7543 | M24: M1_LN | N24: =of:=ROUND(306.0253+385.81691806*[Calcoli.N7]+0.0107306*[Calcoli.N11]^2+0.00001236*[Calcoli.N11]^3;4) -> 559740.5713 | P24: M1_LN | Q24: =of:=ROUND(306.0253+385.81691806*[Calcoli.Q7]+0.0107306*[Calcoli.Q11]^2+0.00001236*[Calcoli.Q11]^3;4) -> 560126.3882 | S24: M1_LN | T24: =of:=ROUND(306.0253+385.81691806*[Calcoli.T7]+0.0107306*[Calcoli.T11]^2+0.00001236*[Calcoli.T11]^3;4) -> 560512.2051 | V24: M1_LN | W24: =of:=ROUND(306.0253+385.81691806*[Calcoli.W7]+0.0107306*[Calcoli.W11]^2+0.00001236*[Calcoli.W11]^3;4) -> 560898.0221 | Y24: M1_LN | Z24: =of:=ROUND(306.0253+385.81691806*[Calcoli.Z7]+0.0107306*[Calcoli.Z11]^2+0.00001236*[Calcoli.Z11]^3;4) -> 561283.839 | AB24: M1_LN | AC24: =of:=ROUND(306.0253+385.81691806*[Calcoli.AC7]+0.0107306*[Calcoli.AC11]^2+0.00001236*[Calcoli.AC11]^3;4) -> 561669.6559 | AE24: M1_LN | AF24: =of:=ROUND(306.0253+385.81691806*[Calcoli.AF7]+0.0107306*[Calcoli.AF11]^2+0.00001236*[Calcoli.AF11]^3;4) -> 562055.4729 | AH24: M1_LN | AI24: =of:=ROUND(306.0253+385.81691806*[Calcoli.AI7]+0.0107306*[Calcoli.AI11]^2+0.00001236*[Calcoli.AI11]^3;4) -> 562441.2898 | AK24: M1_LN | AL24: =of:=ROUND(306.0253+385.81691806*[Calcoli.AL7]+0.0107306*[Calcoli.AL11]^2+0.00001236*[Calcoli.AL11]^3;4) -> 562827.1068 | AN24: M1_LN | AO24: =of:=ROUND(306.0253+385.81691806*[Calcoli.AO7]+0.0107306*[Calcoli.AO11]^2+0.00001236*[Calcoli.AO11]^3;4) -> 563598.7406
A25: M1_a | B25: =of:=ROUND(INT([Calcoli.B24])-INT((INT([Calcoli.B24])/360))*360+[Calcoli.B24]-INT([Calcoli.B24]);4) -> 197.3035 | D25: M1_a | E25: =of:=ROUND(INT([Calcoli.E24])-INT((INT([Calcoli.E24])/360))*360+[Calcoli.E24]-INT([Calcoli.E24]);4) -> 223.1204 | G25: M1_a | H25: =of:=ROUND(INT([Calcoli.H24])-INT((INT([Calcoli.H24])/360))*360+[Calcoli.H24]-INT([Calcoli.H24]);4) -> 248.9374 | J25: M1_a | K25: =of:=ROUND(INT([Calcoli.K24])-INT((INT([Calcoli.K24])/360))*360+[Calcoli.K24]-INT([Calcoli.K24]);4) -> 274.7543 | M25: M1_a | N25: =of:=ROUND(INT([Calcoli.N24])-INT((INT([Calcoli.N24])/360))*360+[Calcoli.N24]-INT([Calcoli.N24]);4) -> 300.5713 | P25: M1_a | Q25: =of:=ROUND(INT([Calcoli.Q24])-INT((INT([Calcoli.Q24])/360))*360+[Calcoli.Q24]-INT([Calcoli.Q24]);4) -> 326.3882 | S25: M1_a | T25: =of:=ROUND(INT([Calcoli.T24])-INT((INT([Calcoli.T24])/360))*360+[Calcoli.T24]-INT([Calcoli.T24]);4) -> 352.2051 | V25: M1_a | W25: =of:=ROUND(INT([Calcoli.W24])-INT((INT([Calcoli.W24])/360))*360+[Calcoli.W24]-INT([Calcoli.W24]);4) -> 18.0221 | Y25: M1_a | Z25: =of:=ROUND(INT([Calcoli.Z24])-INT((INT([Calcoli.Z24])/360))*360+[Calcoli.Z24]-INT([Calcoli.Z24]);4) -> 43.839 | AB25: M1_a | AC25: =of:=ROUND(INT([Calcoli.AC24])-INT((INT([Calcoli.AC24])/360))*360+[Calcoli.AC24]-INT([Calcoli.AC24]);4) -> 69.6559 | AE25: M1_a | AF25: =of:=ROUND(INT([Calcoli.AF24])-INT((INT([Calcoli.AF24])/360))*360+[Calcoli.AF24]-INT([Calcoli.AF24]);4) -> 95.4729 | AH25: M1_a | AI25: =of:=ROUND(INT([Calcoli.AI24])-INT((INT([Calcoli.AI24])/360))*360+[Calcoli.AI24]-INT([Calcoli.AI24]);4) -> 121.2898 | AK25: M1_a | AL25: =of:=ROUND(INT([Calcoli.AL24])-INT((INT([Calcoli.AL24])/360))*360+[Calcoli.AL24]-INT([Calcoli.AL24]);4) -> 147.1068 | AN25: M1_a | AO25: =of:=ROUND(INT([Calcoli.AO24])-INT((INT([Calcoli.AO24])/360))*360+[Calcoli.AO24]-INT([Calcoli.AO24]);4) -> 198.7406
A26: M1_PQ | B26: =of:=ROUND(306.0253+385.81691806*[Calcoli.B8]+0.0107306*[Calcoli.B12]^2+0.00001236*[Calcoli.B12]^3;4) -> 558293.7577 | D26: M1_PQ | E26: =of:=ROUND(306.0253+385.81691806*[Calcoli.E8]+0.0107306*[Calcoli.E12]^2+0.00001236*[Calcoli.E12]^3;4) -> 558679.5747 | G26: M1_PQ | H26: =of:=ROUND(306.0253+385.81691806*[Calcoli.H8]+0.0107306*[Calcoli.H12]^2+0.00001236*[Calcoli.H12]^3;4) -> 559065.3916 | J26: M1_PQ | K26: =of:=ROUND(306.0253+385.81691806*[Calcoli.K8]+0.0107306*[Calcoli.K12]^2+0.00001236*[Calcoli.K12]^3;4) -> 559451.2086 | M26: M1_PQ | N26: =of:=ROUND(306.0253+385.81691806*[Calcoli.N8]+0.0107306*[Calcoli.N12]^2+0.00001236*[Calcoli.N12]^3;4) -> 559837.0255 | P26: M1_PQ | Q26: =of:=ROUND(306.0253+385.81691806*[Calcoli.Q8]+0.0107306*[Calcoli.Q12]^2+0.00001236*[Calcoli.Q12]^3;4) -> 560222.8424 | S26: M1_PQ | T26: =of:=ROUND(306.0253+385.81691806*[Calcoli.T8]+0.0107306*[Calcoli.T12]^2+0.00001236*[Calcoli.T12]^3;4) -> 560608.6594 | V26: M1_PQ | W26: =of:=ROUND(306.0253+385.81691806*[Calcoli.W8]+0.0107306*[Calcoli.W12]^2+0.00001236*[Calcoli.W12]^3;4) -> 560994.4763 | Y26: M1_PQ | Z26: =of:=ROUND(306.0253+385.81691806*[Calcoli.Z8]+0.0107306*[Calcoli.Z12]^2+0.00001236*[Calcoli.Z12]^3;4) -> 561380.2932 | AB26: M1_PQ | AC26: =of:=ROUND(306.0253+385.81691806*[Calcoli.AC8]+0.0107306*[Calcoli.AC12]^2+0.00001236*[Calcoli.AC12]^3;4) -> 561766.1102 | AE26: M1_PQ | AF26: =of:=ROUND(306.0253+385.81691806*[Calcoli.AF8]+0.0107306*[Calcoli.AF12]^2+0.00001236*[Calcoli.AF12]^3;4) -> 562151.9271 | AH26: M1_PQ | AI26: =of:=ROUND(306.0253+385.81691806*[Calcoli.AI8]+0.0107306*[Calcoli.AI12]^2+0.00001236*[Calcoli.AI12]^3;4) -> 562537.7441 | AK26: M1_PQ | AL26: =of:=ROUND(306.0253+385.81691806*[Calcoli.AL8]+0.0107306*[Calcoli.AL12]^2+0.00001236*[Calcoli.AL12]^3;4) -> 562923.561 | AN26: M1_PQ | AO26: =of:=ROUND(306.0253+385.81691806*[Calcoli.AO8]+0.0107306*[Calcoli.AO12]^2+0.00001236*[Calcoli.AO12]^3;4) -> 563695.1949
A27: M1_LP | B27: =of:=ROUND(306.0253+385.81691806*[Calcoli.B9]+0.0107306*[Calcoli.B13]^2+0.00001236*[Calcoli.B13]^3;4) -> 558390.212 | D27: M1_LP | E27: =of:=ROUND(306.0253+385.81691806*[Calcoli.E9]+0.0107306*[Calcoli.E13]^2+0.00001236*[Calcoli.E13]^3;4) -> 558776.0289 | G27: M1_LP | H27: =of:=ROUND(306.0253+385.81691806*[Calcoli.H9]+0.0107306*[Calcoli.H13]^2+0.00001236*[Calcoli.H13]^3;4) -> 559161.8458 | J27: M1_LP | K27: =of:=ROUND(306.0253+385.81691806*[Calcoli.K9]+0.0107306*[Calcoli.K13]^2+0.00001236*[Calcoli.K13]^3;4) -> 559547.6628 | M27: M1_LP | N27: =of:=ROUND(306.0253+385.81691806*[Calcoli.N9]+0.0107306*[Calcoli.N13]^2+0.00001236*[Calcoli.N13]^3;4) -> 559933.4797 | P27: M1_LP | Q27: =of:=ROUND(306.0253+385.81691806*[Calcoli.Q9]+0.0107306*[Calcoli.Q13]^2+0.00001236*[Calcoli.Q13]^3;4) -> 560319.2967 | S27: M1_LP | T27: =of:=ROUND(306.0253+385.81691806*[Calcoli.T9]+0.0107306*[Calcoli.T13]^2+0.00001236*[Calcoli.T13]^3;4) -> 560705.1136 | V27: M1_LP | W27: =of:=ROUND(306.0253+385.81691806*[Calcoli.W9]+0.0107306*[Calcoli.W13]^2+0.00001236*[Calcoli.W13]^3;4) -> 561090.9305 | Y27: M1_LP | Z27: =of:=ROUND(306.0253+385.81691806*[Calcoli.Z9]+0.0107306*[Calcoli.Z13]^2+0.00001236*[Calcoli.Z13]^3;4) -> 561476.7475 | AB27: M1_LP | AC27: =of:=ROUND(306.0253+385.81691806*[Calcoli.AC9]+0.0107306*[Calcoli.AC13]^2+0.00001236*[Calcoli.AC13]^3;4) -> 561862.5644 | AE27: M1_LP | AF27: =of:=ROUND(306.0253+385.81691806*[Calcoli.AF9]+0.0107306*[Calcoli.AF13]^2+0.00001236*[Calcoli.AF13]^3;4) -> 562248.3814 | AH27: M1_LP | AI27: =of:=ROUND(306.0253+385.81691806*[Calcoli.AI9]+0.0107306*[Calcoli.AI13]^2+0.00001236*[Calcoli.AI13]^3;4) -> 562634.1983 | AK27: M1_LP | AL27: =of:=ROUND(306.0253+385.81691806*[Calcoli.AL9]+0.0107306*[Calcoli.AL13]^2+0.00001236*[Calcoli.AL13]^3;4) -> 563020.0152 | AN27: M1_LP | AO27: =of:=ROUND(306.0253+385.81691806*[Calcoli.AO9]+0.0107306*[Calcoli.AO13]^2+0.00001236*[Calcoli.AO13]^3;4) -> 563791.6491
A28: M1_UQ | B28: =of:=ROUND(306.0253+385.81691806*[Calcoli.B10]+0.0107306*[Calcoli.B14]^2+0.00001236*[Calcoli.B14]^3;4) -> 558486.6662 | D28: M1_UQ | E28: =of:=ROUND(306.0253+385.81691806*[Calcoli.E10]+0.0107306*[Calcoli.E14]^2+0.00001236*[Calcoli.E14]^3;4) -> 558872.4831 | G28: M1_UQ | H28: =of:=ROUND(306.0253+385.81691806*[Calcoli.H10]+0.0107306*[Calcoli.H14]^2+0.00001236*[Calcoli.H14]^3;4) -> 559258.3001 | J28: M1_UQ | K28: =of:=ROUND(306.0253+385.81691806*[Calcoli.K10]+0.0107306*[Calcoli.K14]^2+0.00001236*[Calcoli.K14]^3;4) -> 559644.117 | M28: M1_UQ | N28: =of:=ROUND(306.0253+385.81691806*[Calcoli.N10]+0.0107306*[Calcoli.N14]^2+0.00001236*[Calcoli.N14]^3;4) -> 560029.934 | P28: M1_UQ | Q28: =of:=ROUND(306.0253+385.81691806*[Calcoli.Q10]+0.0107306*[Calcoli.Q14]^2+0.00001236*[Calcoli.Q14]^3;4) -> 560415.7509 | S28: M1_UQ | T28: =of:=ROUND(306.0253+385.81691806*[Calcoli.T10]+0.0107306*[Calcoli.T14]^2+0.00001236*[Calcoli.T14]^3;4) -> 560801.5678 | V28: M1_UQ | W28: =of:=ROUND(306.0253+385.81691806*[Calcoli.W10]+0.0107306*[Calcoli.W14]^2+0.00001236*[Calcoli.W14]^3;4) -> 561187.3848 | Y28: M1_UQ | Z28: =of:=ROUND(306.0253+385.81691806*[Calcoli.Z10]+0.0107306*[Calcoli.Z14]^2+0.00001236*[Calcoli.Z14]^3;4) -> 561573.2017 | AB28: M1_UQ | AC28: =of:=ROUND(306.0253+385.81691806*[Calcoli.AC10]+0.0107306*[Calcoli.AC14]^2+0.00001236*[Calcoli.AC14]^3;4) -> 561959.0187 | AE28: M1_UQ | AF28: =of:=ROUND(306.0253+385.81691806*[Calcoli.AF10]+0.0107306*[Calcoli.AF14]^2+0.00001236*[Calcoli.AF14]^3;4) -> 562344.8356 | AH28: M1_UQ | AI28: =of:=ROUND(306.0253+385.81691806*[Calcoli.AI10]+0.0107306*[Calcoli.AI14]^2+0.00001236*[Calcoli.AI14]^3;4) -> 562730.6525 | AK28: M1_UQ | AL28: =of:=ROUND(306.0253+385.81691806*[Calcoli.AL10]+0.0107306*[Calcoli.AL14]^2+0.00001236*[Calcoli.AL14]^3;4) -> 563116.4695 | AN28: M1_UQ | AO28: =of:=ROUND(306.0253+385.81691806*[Calcoli.AO10]+0.0107306*[Calcoli.AO14]^2+0.00001236*[Calcoli.AO14]^3;4) -> 563888.1033
A29: F_LN | B29: =of:=ROUND(21.2964+390.67050646*[Calcoli.B7]-0.0016528*[Calcoli.B11]^2-0.00000239*[Calcoli.B11]^3;4) -> 564930.8465 | D29: F_LN | E29: =of:=ROUND(21.2964+390.67050646*[Calcoli.E7]-0.0016528*[Calcoli.E11]^2-0.00000239*[Calcoli.E11]^3;4) -> 565321.517 | G29: F_LN | H29: =of:=ROUND(21.2964+390.67050646*[Calcoli.H7]-0.0016528*[Calcoli.H11]^2-0.00000239*[Calcoli.H11]^3;4) -> 565712.1875 | J29: F_LN | K29: =of:=ROUND(21.2964+390.67050646*[Calcoli.K7]-0.0016528*[Calcoli.K11]^2-0.00000239*[Calcoli.K11]^3;4) -> 566102.858 | M29: F_LN | N29: =of:=ROUND(21.2964+390.67050646*[Calcoli.N7]-0.0016528*[Calcoli.N11]^2-0.00000239*[Calcoli.N11]^3;4) -> 566493.5285 | P29: F_LN | Q29: =of:=ROUND(21.2964+390.67050646*[Calcoli.Q7]-0.0016528*[Calcoli.Q11]^2-0.00000239*[Calcoli.Q11]^3;4) -> 566884.199 | S29: F_LN | T29: =of:=ROUND(21.2964+390.67050646*[Calcoli.T7]-0.0016528*[Calcoli.T11]^2-0.00000239*[Calcoli.T11]^3;4) -> 567274.8695 | V29: F_LN | W29: =of:=ROUND(21.2964+390.67050646*[Calcoli.W7]-0.0016528*[Calcoli.W11]^2-0.00000239*[Calcoli.W11]^3;4) -> 567665.54 | Y29: F_LN | Z29: =of:=ROUND(21.2964+390.67050646*[Calcoli.Z7]-0.0016528*[Calcoli.Z11]^2-0.00000239*[Calcoli.Z11]^3;4) -> 568056.2105 | AB29: F_LN | AC29: =of:=ROUND(21.2964+390.67050646*[Calcoli.AC7]-0.0016528*[Calcoli.AC11]^2-0.00000239*[Calcoli.AC11]^3;4) -> 568446.881 | AE29: F_LN | AF29: =of:=ROUND(21.2964+390.67050646*[Calcoli.AF7]-0.0016528*[Calcoli.AF11]^2-0.00000239*[Calcoli.AF11]^3;4) -> 568837.5515 | AH29: F_LN | AI29: =of:=ROUND(21.2964+390.67050646*[Calcoli.AI7]-0.0016528*[Calcoli.AI11]^2-0.00000239*[Calcoli.AI11]^3;4) -> 569228.222 | AK29: F_LN | AL29: =of:=ROUND(21.2964+390.67050646*[Calcoli.AL7]-0.0016528*[Calcoli.AL11]^2-0.00000239*[Calcoli.AL11]^3;4) -> 569618.8925 | AN29: F_LN | AO29: =of:=ROUND(21.2964+390.67050646*[Calcoli.AO7]-0.0016528*[Calcoli.AO11]^2-0.00000239*[Calcoli.AO11]^3;4) -> 570400.2335
A30: F_a | B30: =of:=ROUND(INT([Calcoli.B29])-(INT(INT([Calcoli.B29])/360))*360+[Calcoli.B29]-INT([Calcoli.B29]);4) -> 90.8465 | D30: F_a | E30: =of:=ROUND(INT([Calcoli.E29])-(INT(INT([Calcoli.E29])/360))*360+[Calcoli.E29]-INT([Calcoli.E29]);4) -> 121.517 | G30: F_a | H30: =of:=ROUND(INT([Calcoli.H29])-(INT(INT([Calcoli.H29])/360))*360+[Calcoli.H29]-INT([Calcoli.H29]);4) -> 152.1875 | J30: F_a | K30: =of:=ROUND(INT([Calcoli.K29])-(INT(INT([Calcoli.K29])/360))*360+[Calcoli.K29]-INT([Calcoli.K29]);4) -> 182.858 | M30: F_a | N30: =of:=ROUND(INT([Calcoli.N29])-(INT(INT([Calcoli.N29])/360))*360+[Calcoli.N29]-INT([Calcoli.N29]);4) -> 213.5285 | P30: F_a | Q30: =of:=ROUND(INT([Calcoli.Q29])-(INT(INT([Calcoli.Q29])/360))*360+[Calcoli.Q29]-INT([Calcoli.Q29]);4) -> 244.199 | S30: F_a | T30: =of:=ROUND(INT([Calcoli.T29])-(INT(INT([Calcoli.T29])/360))*360+[Calcoli.T29]-INT([Calcoli.T29]);4) -> 274.8695 | V30: F_a | W30: =of:=ROUND(INT([Calcoli.W29])-(INT(INT([Calcoli.W29])/360))*360+[Calcoli.W29]-INT([Calcoli.W29]);4) -> 305.54 | Y30: F_a | Z30: =of:=ROUND(INT([Calcoli.Z29])-(INT(INT([Calcoli.Z29])/360))*360+[Calcoli.Z29]-INT([Calcoli.Z29]);4) -> 336.2105 | AB30: F_a | AC30: =of:=ROUND(INT([Calcoli.AC29])-(INT(INT([Calcoli.AC29])/360))*360+[Calcoli.AC29]-INT([Calcoli.AC29]);4) -> 6.881 | AE30: F_a | AF30: =of:=ROUND(INT([Calcoli.AF29])-(INT(INT([Calcoli.AF29])/360))*360+[Calcoli.AF29]-INT([Calcoli.AF29]);4) -> 37.5515 | AH30: F_a | AI30: =of:=ROUND(INT([Calcoli.AI29])-(INT(INT([Calcoli.AI29])/360))*360+[Calcoli.AI29]-INT([Calcoli.AI29]);4) -> 68.222 | AK30: F_a | AL30: =of:=ROUND(INT([Calcoli.AL29])-(INT(INT([Calcoli.AL29])/360))*360+[Calcoli.AL29]-INT([Calcoli.AL29]);4) -> 98.8925 | AN30: F_a | AO30: =of:=ROUND(INT([Calcoli.AO29])-(INT(INT([Calcoli.AO29])/360))*360+[Calcoli.AO29]-INT([Calcoli.AO29]);4) -> 160.2335
A31: F_PQ | B31: =of:=ROUND(21.2964+390.67050646*[Calcoli.B8]-0.0016528*[Calcoli.B12]^2-0.00000239*[Calcoli.B12]^3;4) -> 565028.5141 | D31: F_PQ | E31: =of:=ROUND(21.2964+390.67050646*[Calcoli.E8]-0.0016528*[Calcoli.E12]^2-0.00000239*[Calcoli.E12]^3;4) -> 565419.1846 | G31: F_PQ | H31: =of:=ROUND(21.2964+390.67050646*[Calcoli.H8]-0.0016528*[Calcoli.H12]^2-0.00000239*[Calcoli.H12]^3;4) -> 565809.8551 | J31: F_PQ | K31: =of:=ROUND(21.2964+390.67050646*[Calcoli.K8]-0.0016528*[Calcoli.K12]^2-0.00000239*[Calcoli.K12]^3;4) -> 566200.5256 | M31: F_PQ | N31: =of:=ROUND(21.2964+390.67050646*[Calcoli.N8]-0.0016528*[Calcoli.N12]^2-0.00000239*[Calcoli.N12]^3;4) -> 566591.1961 | P31: F_PQ | Q31: =of:=ROUND(21.2964+390.67050646*[Calcoli.Q8]-0.0016528*[Calcoli.Q12]^2-0.00000239*[Calcoli.Q12]^3;4) -> 566981.8666 | S31: F_PQ | T31: =of:=ROUND(21.2964+390.67050646*[Calcoli.T8]-0.0016528*[Calcoli.T12]^2-0.00000239*[Calcoli.T12]^3;4) -> 567372.5371 | V31: F_PQ | W31: =of:=ROUND(21.2964+390.67050646*[Calcoli.W8]-0.0016528*[Calcoli.W12]^2-0.00000239*[Calcoli.W12]^3;4) -> 567763.2076 | Y31: F_PQ | Z31: =of:=ROUND(21.2964+390.67050646*[Calcoli.Z8]-0.0016528*[Calcoli.Z12]^2-0.00000239*[Calcoli.Z12]^3;4) -> 568153.8781 | AB31: F_PQ | AC31: =of:=ROUND(21.2964+390.67050646*[Calcoli.AC8]-0.0016528*[Calcoli.AC12]^2-0.00000239*[Calcoli.AC12]^3;4) -> 568544.5486 | AE31: F_PQ | AF31: =of:=ROUND(21.2964+390.67050646*[Calcoli.AF8]-0.0016528*[Calcoli.AF12]^2-0.00000239*[Calcoli.AF12]^3;4) -> 568935.2191 | AH31: F_PQ | AI31: =of:=ROUND(21.2964+390.67050646*[Calcoli.AI8]-0.0016528*[Calcoli.AI12]^2-0.00000239*[Calcoli.AI12]^3;4) -> 569325.8896 | AK31: F_PQ | AL31: =of:=ROUND(21.2964+390.67050646*[Calcoli.AL8]-0.0016528*[Calcoli.AL12]^2-0.00000239*[Calcoli.AL12]^3;4) -> 569716.5601 | AN31: F_PQ | AO31: =of:=ROUND(21.2964+390.67050646*[Calcoli.AO8]-0.0016528*[Calcoli.AO12]^2-0.00000239*[Calcoli.AO12]^3;4) -> 570497.9012
A32: F_LP | B32: =of:=ROUND(21.2964+390.67050646*[Calcoli.B9]-0.0016528*[Calcoli.B13]^2-0.00000239*[Calcoli.B13]^3;4) -> 565126.1817 | D32: F_LP | E32: =of:=ROUND(21.2964+390.67050646*[Calcoli.E9]-0.0016528*[Calcoli.E13]^2-0.00000239*[Calcoli.E13]^3;4) -> 565516.8522 | G32: F_LP | H32: =of:=ROUND(21.2964+390.67050646*[Calcoli.H9]-0.0016528*[Calcoli.H13]^2-0.00000239*[Calcoli.H13]^3;4) -> 565907.5227 | J32: F_LP | K32: =of:=ROUND(21.2964+390.67050646*[Calcoli.K9]-0.0016528*[Calcoli.K13]^2-0.00000239*[Calcoli.K13]^3;4) -> 566298.1932 | M32: F_LP | N32: =of:=ROUND(21.2964+390.67050646*[Calcoli.N9]-0.0016528*[Calcoli.N13]^2-0.00000239*[Calcoli.N13]^3;4) -> 566688.8637 | P32: F_LP | Q32: =of:=ROUND(21.2964+390.67050646*[Calcoli.Q9]-0.0016528*[Calcoli.Q13]^2-0.00000239*[Calcoli.Q13]^3;4) -> 567079.5342 | S32: F_LP | T32: =of:=ROUND(21.2964+390.67050646*[Calcoli.T9]-0.0016528*[Calcoli.T13]^2-0.00000239*[Calcoli.T13]^3;4) -> 567470.2047 | V32: F_LP | W32: =of:=ROUND(21.2964+390.67050646*[Calcoli.W9]-0.0016528*[Calcoli.W13]^2-0.00000239*[Calcoli.W13]^3;4) -> 567860.8753 | Y32: F_LP | Z32: =of:=ROUND(21.2964+390.67050646*[Calcoli.Z9]-0.0016528*[Calcoli.Z13]^2-0.00000239*[Calcoli.Z13]^3;4) -> 568251.5458 | AB32: F_LP | AC32: =of:=ROUND(21.2964+390.67050646*[Calcoli.AC9]-0.0016528*[Calcoli.AC13]^2-0.00000239*[Calcoli.AC13]^3;4) -> 568642.2163 | AE32: F_LP | AF32: =of:=ROUND(21.2964+390.67050646*[Calcoli.AF9]-0.0016528*[Calcoli.AF13]^2-0.00000239*[Calcoli.AF13]^3;4) -> 569032.8868 | AH32: F_LP | AI32: =of:=ROUND(21.2964+390.67050646*[Calcoli.AI9]-0.0016528*[Calcoli.AI13]^2-0.00000239*[Calcoli.AI13]^3;4) -> 569423.5573 | AK32: F_LP | AL32: =of:=ROUND(21.2964+390.67050646*[Calcoli.AL9]-0.0016528*[Calcoli.AL13]^2-0.00000239*[Calcoli.AL13]^3;4) -> 569814.2278 | AN32: F_LP | AO32: =of:=ROUND(21.2964+390.67050646*[Calcoli.AO9]-0.0016528*[Calcoli.AO13]^2-0.00000239*[Calcoli.AO13]^3;4) -> 570595.5688
A33: F_UQ | B33: =of:=ROUND(21.2964+390.67050646*[Calcoli.B10]-0.0016528*[Calcoli.B14]^2-0.00000239*[Calcoli.B14]^3;4) -> 565223.8494 | D33: F_UQ | E33: =of:=ROUND(21.2964+390.67050646*[Calcoli.E10]-0.0016528*[Calcoli.E14]^2-0.00000239*[Calcoli.E14]^3;4) -> 565614.5199 | G33: F_UQ | H33: =of:=ROUND(21.2964+390.67050646*[Calcoli.H10]-0.0016528*[Calcoli.H14]^2-0.00000239*[Calcoli.H14]^3;4) -> 566005.1904 | J33: F_UQ | K33: =of:=ROUND(21.2964+390.67050646*[Calcoli.K10]-0.0016528*[Calcoli.K14]^2-0.00000239*[Calcoli.K14]^3;4) -> 566395.8609 | M33: F_UQ | N33: =of:=ROUND(21.2964+390.67050646*[Calcoli.N10]-0.0016528*[Calcoli.N14]^2-0.00000239*[Calcoli.N14]^3;4) -> 566786.5314 | P33: F_UQ | Q33: =of:=ROUND(21.2964+390.67050646*[Calcoli.Q10]-0.0016528*[Calcoli.Q14]^2-0.00000239*[Calcoli.Q14]^3;4) -> 567177.2019 | S33: F_UQ | T33: =of:=ROUND(21.2964+390.67050646*[Calcoli.T10]-0.0016528*[Calcoli.T14]^2-0.00000239*[Calcoli.T14]^3;4) -> 567567.8724 | V33: F_UQ | W33: =of:=ROUND(21.2964+390.67050646*[Calcoli.W10]-0.0016528*[Calcoli.W14]^2-0.00000239*[Calcoli.W14]^3;4) -> 567958.5429 | Y33: F_UQ | Z33: =of:=ROUND(21.2964+390.67050646*[Calcoli.Z10]-0.0016528*[Calcoli.Z14]^2-0.00000239*[Calcoli.Z14]^3;4) -> 568349.2134 | AB33: F_UQ | AC33: =of:=ROUND(21.2964+390.67050646*[Calcoli.AC10]-0.0016528*[Calcoli.AC14]^2-0.00000239*[Calcoli.AC14]^3;4) -> 568739.8839 | AE33: F_UQ | AF33: =of:=ROUND(21.2964+390.67050646*[Calcoli.AF10]-0.0016528*[Calcoli.AF14]^2-0.00000239*[Calcoli.AF14]^3;4) -> 569130.5544 | AH33: F_UQ | AI33: =of:=ROUND(21.2964+390.67050646*[Calcoli.AI10]-0.0016528*[Calcoli.AI14]^2-0.00000239*[Calcoli.AI14]^3;4) -> 569521.2249 | AK33: F_UQ | AL33: =of:=ROUND(21.2964+390.67050646*[Calcoli.AL10]-0.0016528*[Calcoli.AL14]^2-0.00000239*[Calcoli.AL14]^3;4) -> 569911.8954 | AN33: F_UQ | AO33: =of:=ROUND(21.2964+390.67050646*[Calcoli.AO10]-0.0016528*[Calcoli.AO14]^2-0.00000239*[Calcoli.AO14]^3;4) -> 570693.2364
A34: Corr_LN | B34: =of:=ROUND((0.1734-0.000393*[Calcoli.B11])*SIN(RADIANS([Calcoli.B19]))+0.0021*SIN(RADIANS(2*[Calcoli.B19]))-0.4068*SIN(RADIANS([Calcoli.B24]))+0.0161*SIN(RADIANS(2*[Calcoli.B24]))-0.0004*SIN(RADIANS(3*[Calcoli.B24]))+0.0104*SIN(RADIANS(2*[Calcoli.B29]))-0.0051*SIN(RADIANS([Calcoli.B19]+[Calcoli.B24]))-0.0074*SIN(RADIANS([Calcoli.B19]-[Calcoli.B24]))+0.0004*SIN(RADIANS(2*[Calcoli.B29]+[Calcoli.B19]))-0.0004*SIN(RADIANS(2*[Calcoli.B29]-[Calcoli.B19]))-0.0006*SIN(RADIANS(2*[Calcoli.B29]+[Calcoli.B24]))+0.001*SIN(RADIANS(2*[Calcoli.B29]-[Calcoli.B24]))+0.0005*SIN(RADIANS([Calcoli.B19]+2*[Calcoli.B24]));4) -> 0.0231 | D34: Corr_LN | E34: =of:=ROUND((0.1734-0.000393*[Calcoli.E11])*SIN(RADIANS([Calcoli.E19]))+0.0021*SIN(RADIANS(2*[Calcoli.E19]))-0.4068*SIN(RADIANS([Calcoli.E24]))+0.0161*SIN(RADIANS(2*[Calcoli.E24]))-0.0004*SIN(RADIANS(3*[Calcoli.E24]))+0.0104*SIN(RADIANS(2*[Calcoli.E29]))-0.0051*SIN(RADIANS([Calcoli.E19]+[Calcoli.E24]))-0.0074*SIN(RADIANS([Calcoli.E19]-[Calcoli.E24]))+0.0004*SIN(RADIANS(2*[Calcoli.E29]+[Calcoli.E19]))-0.0004*SIN(RADIANS(2*[Calcoli.E29]-[Calcoli.E19]))-0.0006*SIN(RADIANS(2*[Calcoli.E29]+[Calcoli.E24]))+0.001*SIN(RADIANS(2*[Calcoli.E29]-[Calcoli.E24]))+0.0005*SIN(RADIANS([Calcoli.E19]+2*[Calcoli.E24]));4) -> 0.2666 | G34: Corr_LN | H34: =of:=ROUND((0.1734-0.000393*[Calcoli.H11])*SIN(RADIANS([Calcoli.H19]))+0.0021*SIN(RADIANS(2*[Calcoli.H19]))-0.4068*SIN(RADIANS([Calcoli.H24]))+0.0161*SIN(RADIANS(2*[Calcoli.H24]))-0.0004*SIN(RADIANS(3*[Calcoli.H24]))+0.0104*SIN(RADIANS(2*[Calcoli.H29]))-0.0051*SIN(RADIANS([Calcoli.H19]+[Calcoli.H24]))-0.0074*SIN(RADIANS([Calcoli.H19]-[Calcoli.H24]))+0.0004*SIN(RADIANS(2*[Calcoli.H29]+[Calcoli.H19]))-0.0004*SIN(RADIANS(2*[Calcoli.H29]-[Calcoli.H19]))-0.0006*SIN(RADIANS(2*[Calcoli.H29]+[Calcoli.H24]))+0.001*SIN(RADIANS(2*[Calcoli.H29]-[Calcoli.H24]))+0.0005*SIN(RADIANS([Calcoli.H19]+2*[Calcoli.H24]));4) -> 0.4541 | J34: Corr_LN | K34: =of:=ROUND((0.1734-0.000393*[Calcoli.K11])*SIN(RADIANS([Calcoli.K19]))+0.0021*SIN(RADIANS(2*[Calcoli.K19]))-0.4068*SIN(RADIANS([Calcoli.K24]))+0.0161*SIN(RADIANS(2*[Calcoli.K24]))-0.0004*SIN(RADIANS(3*[Calcoli.K24]))+0.0104*SIN(RADIANS(2*[Calcoli.K29]))-0.0051*SIN(RADIANS([Calcoli.K19]+[Calcoli.K24]))-0.0074*SIN(RADIANS([Calcoli.K19]-[Calcoli.K24]))+0.0004*SIN(RADIANS(2*[Calcoli.K29]+[Calcoli.K19]))-0.0004*SIN(RADIANS(2*[Calcoli.K29]-[Calcoli.K19]))-0.0006*SIN(RADIANS(2*[Calcoli.K29]+[Calcoli.K24]))+0.001*SIN(RADIANS(2*[Calcoli.K29]-[Calcoli.K24]))+0.0005*SIN(RADIANS([Calcoli.K19]+2*[Calcoli.K24]));4) -> 0.5429 | M34: Corr_LN | N34: =of:=ROUND((0.1734-0.000393*[Calcoli.N11])*SIN(RADIANS([Calcoli.N19]))+0.0021*SIN(RADIANS(2*[Calcoli.N19]))-0.4068*SIN(RADIANS([Calcoli.N24]))+0.0161*SIN(RADIANS(2*[Calcoli.N24]))-0.0004*SIN(RADIANS(3*[Calcoli.N24]))+0.0104*SIN(RADIANS(2*[Calcoli.N29]))-0.0051*SIN(RADIANS([Calcoli.N19]+[Calcoli.N24]))-0.0074*SIN(RADIANS([Calcoli.N19]-[Calcoli.N24]))+0.0004*SIN(RADIANS(2*[Calcoli.N29]+[Calcoli.N19]))-0.0004*SIN(RADIANS(2*[Calcoli.N29]-[Calcoli.N19]))-0.0006*SIN(RADIANS(2*[Calcoli.N29]+[Calcoli.N24]))+0.001*SIN(RADIANS(2*[Calcoli.N29]-[Calcoli.N24]))+0.0005*SIN(RADIANS([Calcoli.N19]+2*[Calcoli.N24]));4) -> 0.5117 | P34: Corr_LN | Q34: =of:=ROUND((0.1734-0.000393*[Calcoli.Q11])*SIN(RADIANS([Calcoli.Q19]))+0.0021*SIN(RADIANS(2*[Calcoli.Q19]))-0.4068*SIN(RADIANS([Calcoli.Q24]))+0.0161*SIN(RADIANS(2*[Calcoli.Q24]))-0.0004*SIN(RADIANS(3*[Calcoli.Q24]))+0.0104*SIN(RADIANS(2*[Calcoli.Q29]))-0.0051*SIN(RADIANS([Calcoli.Q19]+[Calcoli.Q24]))-0.0074*SIN(RADIANS([Calcoli.Q19]-[Calcoli.Q24]))+0.0004*SIN(RADIANS(2*[Calcoli.Q29]+[Calcoli.Q19]))-0.0004*SIN(RADIANS(2*[Calcoli.Q29]-[Calcoli.Q19]))-0.0006*SIN(RADIANS(2*[Calcoli.Q29]+[Calcoli.Q24]))+0.001*SIN(RADIANS(2*[Calcoli.Q29]-[Calcoli.Q24]))+0.0005*SIN(RADIANS([Calcoli.Q19]+2*[Calcoli.Q24]));4) -> 0.3692 | S34: Corr_LN | T34: =of:=ROUND((0.1734-0.000393*[Calcoli.T11])*SIN(RADIANS([Calcoli.T19]))+0.0021*SIN(RADIANS(2*[Calcoli.T19]))-0.4068*SIN(RADIANS([Calcoli.T24]))+0.0161*SIN(RADIANS(2*[Calcoli.T24]))-0.0004*SIN(RADIANS(3*[Calcoli.T24]))+0.0104*SIN(RADIANS(2*[Calcoli.T29]))-0.0051*SIN(RADIANS([Calcoli.T19]+[Calcoli.T24]))-0.0074*SIN(RADIANS([Calcoli.T19]-[Calcoli.T24]))+0.0004*SIN(RADIANS(2*[Calcoli.T29]+[Calcoli.T19]))-0.0004*SIN(RADIANS(2*[Calcoli.T29]-[Calcoli.T19]))-0.0006*SIN(RADIANS(2*[Calcoli.T29]+[Calcoli.T24]))+0.001*SIN(RADIANS(2*[Calcoli.T29]-[Calcoli.T24]))+0.0005*SIN(RADIANS([Calcoli.T19]+2*[Calcoli.T24]));4) -> 0.1498 | V34: Corr_LN | W34: =of:=ROUND((0.1734-0.000393*[Calcoli.W11])*SIN(RADIANS([Calcoli.W19]))+0.0021*SIN(RADIANS(2*[Calcoli.W19]))-0.4068*SIN(RADIANS([Calcoli.W24]))+0.0161*SIN(RADIANS(2*[Calcoli.W24]))-0.0004*SIN(RADIANS(3*[Calcoli.W24]))+0.0104*SIN(RADIANS(2*[Calcoli.W29]))-0.0051*SIN(RADIANS([Calcoli.W19]+[Calcoli.W24]))-0.0074*SIN(RADIANS([Calcoli.W19]-[Calcoli.W24]))+0.0004*SIN(RADIANS(2*[Calcoli.W29]+[Calcoli.W19]))-0.0004*SIN(RADIANS(2*[Calcoli.W29]-[Calcoli.W19]))-0.0006*SIN(RADIANS(2*[Calcoli.W29]+[Calcoli.W24]))+0.001*SIN(RADIANS(2*[Calcoli.W29]-[Calcoli.W24]))+0.0005*SIN(RADIANS([Calcoli.W19]+2*[Calcoli.W24]));4) -> -0.0986 | Y34: Corr_LN | Z34: =of:=ROUND((0.1734-0.000393*[Calcoli.Z11])*SIN(RADIANS([Calcoli.Z19]))+0.0021*SIN(RADIANS(2*[Calcoli.Z19]))-0.4068*SIN(RADIANS([Calcoli.Z24]))+0.0161*SIN(RADIANS(2*[Calcoli.Z24]))-0.0004*SIN(RADIANS(3*[Calcoli.Z24]))+0.0104*SIN(RADIANS(2*[Calcoli.Z29]))-0.0051*SIN(RADIANS([Calcoli.Z19]+[Calcoli.Z24]))-0.0074*SIN(RADIANS([Calcoli.Z19]-[Calcoli.Z24]))+0.0004*SIN(RADIANS(2*[Calcoli.Z29]+[Calcoli.Z19]))-0.0004*SIN(RADIANS(2*[Calcoli.Z29]-[Calcoli.Z19]))-0.0006*SIN(RADIANS(2*[Calcoli.Z29]+[Calcoli.Z24]))+0.001*SIN(RADIANS(2*[Calcoli.Z29]-[Calcoli.Z24]))+0.0005*SIN(RADIANS([Calcoli.Z19]+2*[Calcoli.Z24]));4) -> -0.3273 | AB34: Corr_LN | AC34: =of:=ROUND((0.1734-0.000393*[Calcoli.AC11])*SIN(RADIANS([Calcoli.AC19]))+0.0021*SIN(RADIANS(2*[Calcoli.AC19]))-0.4068*SIN(RADIANS([Calcoli.AC24]))+0.0161*SIN(RADIANS(2*[Calcoli.AC24]))-0.0004*SIN(RADIANS(3*[Calcoli.AC24]))+0.0104*SIN(RADIANS(2*[Calcoli.AC29]))-0.0051*SIN(RADIANS([Calcoli.AC19]+[Calcoli.AC24]))-0.0074*SIN(RADIANS([Calcoli.AC19]-[Calcoli.AC24]))+0.0004*SIN(RADIANS(2*[Calcoli.AC29]+[Calcoli.AC19]))-0.0004*SIN(RADIANS(2*[Calcoli.AC29]-[Calcoli.AC19]))-0.0006*SIN(RADIANS(2*[Calcoli.AC29]+[Calcoli.AC24]))+0.001*SIN(RADIANS(2*[Calcoli.AC29]-[Calcoli.AC24]))+0.0005*SIN(RADIANS([Calcoli.AC19]+2*[Calcoli.AC24]));4) -> -0.4939 | AE34: Corr_LN | AF34: =of:=ROUND((0.1734-0.000393*[Calcoli.AF11])*SIN(RADIANS([Calcoli.AF19]))+0.0021*SIN(RADIANS(2*[Calcoli.AF19]))-0.4068*SIN(RADIANS([Calcoli.AF24]))+0.0161*SIN(RADIANS(2*[Calcoli.AF24]))-0.0004*SIN(RADIANS(3*[Calcoli.AF24]))+0.0104*SIN(RADIANS(2*[Calcoli.AF29]))-0.0051*SIN(RADIANS([Calcoli.AF19]+[Calcoli.AF24]))-0.0074*SIN(RADIANS([Calcoli.AF19]-[Calcoli.AF24]))+0.0004*SIN(RADIANS(2*[Calcoli.AF29]+[Calcoli.AF19]))-0.0004*SIN(RADIANS(2*[Calcoli.AF29]-[Calcoli.AF19]))-0.0006*SIN(RADIANS(2*[Calcoli.AF29]+[Calcoli.AF24]))+0.001*SIN(RADIANS(2*[Calcoli.AF29]-[Calcoli.AF24]))+0.0005*SIN(RADIANS([Calcoli.AF19]+2*[Calcoli.AF24]));4) -> -0.5667 | AH34: Corr_LN | AI34: =of:=ROUND((0.1734-0.000393*[Calcoli.AI11])*SIN(RADIANS([Calcoli.AI19]))+0.0021*SIN(RADIANS(2*[Calcoli.AI19]))-0.4068*SIN(RADIANS([Calcoli.AI24]))+0.0161*SIN(RADIANS(2*[Calcoli.AI24]))-0.0004*SIN(RADIANS(3*[Calcoli.AI24]))+0.0104*SIN(RADIANS(2*[Calcoli.AI29]))-0.0051*SIN(RADIANS([Calcoli.AI19]+[Calcoli.AI24]))-0.0074*SIN(RADIANS([Calcoli.AI19]-[Calcoli.AI24]))+0.0004*SIN(RADIANS(2*[Calcoli.AI29]+[Calcoli.AI19]))-0.0004*SIN(RADIANS(2*[Calcoli.AI29]-[Calcoli.AI19]))-0.0006*SIN(RADIANS(2*[Calcoli.AI29]+[Calcoli.AI24]))+0.001*SIN(RADIANS(2*[Calcoli.AI29]-[Calcoli.AI24]))+0.0005*SIN(RADIANS([Calcoli.AI19]+2*[Calcoli.AI24]));4) -> -0.5266 | AK34: Corr_LN | AL34: =of:=ROUND((0.1734-0.000393*[Calcoli.AL11])*SIN(RADIANS([Calcoli.AL19]))+0.0021*SIN(RADIANS(2*[Calcoli.AL19]))-0.4068*SIN(RADIANS([Calcoli.AL24]))+0.0161*SIN(RADIANS(2*[Calcoli.AL24]))-0.0004*SIN(RADIANS(3*[Calcoli.AL24]))+0.0104*SIN(RADIANS(2*[Calcoli.AL29]))-0.0051*SIN(RADIANS([Calcoli.AL19]+[Calcoli.AL24]))-0.0074*SIN(RADIANS([Calcoli.AL19]-[Calcoli.AL24]))+0.0004*SIN(RADIANS(2*[Calcoli.AL29]+[Calcoli.AL19]))-0.0004*SIN(RADIANS(2*[Calcoli.AL29]-[Calcoli.AL19]))-0.0006*SIN(RADIANS(2*[Calcoli.AL29]+[Calcoli.AL24]))+0.001*SIN(RADIANS(2*[Calcoli.AL29]-[Calcoli.AL24]))+0.0005*SIN(RADIANS([Calcoli.AL19]+2*[Calcoli.AL24]));4) -> -0.3695 | AN34: Corr_LN | AO34: =of:=ROUND((0.1734-0.000393*[Calcoli.AO11])*SIN(RADIANS([Calcoli.AO19]))+0.0021*SIN(RADIANS(2*[Calcoli.AO19]))-0.4068*SIN(RADIANS([Calcoli.AO24]))+0.0161*SIN(RADIANS(2*[Calcoli.AO24]))-0.0004*SIN(RADIANS(3*[Calcoli.AO24]))+0.0104*SIN(RADIANS(2*[Calcoli.AO29]))-0.0051*SIN(RADIANS([Calcoli.AO19]+[Calcoli.AO24]))-0.0074*SIN(RADIANS([Calcoli.AO19]-[Calcoli.AO24]))+0.0004*SIN(RADIANS(2*[Calcoli.AO29]+[Calcoli.AO19]))-0.0004*SIN(RADIANS(2*[Calcoli.AO29]-[Calcoli.AO19]))-0.0006*SIN(RADIANS(2*[Calcoli.AO29]+[Calcoli.AO24]))+0.001*SIN(RADIANS(2*[Calcoli.AO29]-[Calcoli.AO24]))+0.0005*SIN(RADIANS([Calcoli.AO19]+2*[Calcoli.AO24]));4) -> 0.1773
A35: Corr_PQ | B35: =of:=ROUND((0.1721-0.0004*[Calcoli.B12])*SIN(RADIANS([Calcoli.B21]))+0.0021*SIN(RADIANS(2*[Calcoli.B21]))-0.628*SIN(RADIANS([Calcoli.B26]))+0.0089*SIN(RADIANS(2*[Calcoli.B26]))-0.0004*SIN(RADIANS(3*[Calcoli.B26]))+0.0079*SIN(RADIANS(2*[Calcoli.B31]))-0.0119*SIN(RADIANS([Calcoli.B21]+[Calcoli.B26]))-0.0047*SIN(RADIANS([Calcoli.B21]-[Calcoli.B26]))+0.0003*SIN(RADIANS(2*[Calcoli.B31]+[Calcoli.B21]))-0.0004*SIN(RADIANS(2*[Calcoli.B31]-[Calcoli.B21]))-0.0006*SIN(RADIANS(2*[Calcoli.B31]+[Calcoli.B26]))+0.0021*SIN(RADIANS(2*[Calcoli.B31]-[Calcoli.B26]))+0.0003*SIN(RADIANS([Calcoli.B21]+2*[Calcoli.B26]))+0.0004*SIN(RADIANS([Calcoli.B21]-2*[Calcoli.B26]))-0.0003*SIN(RADIANS(2*[Calcoli.B21]+[Calcoli.B26]));4) -> 0.502 | D35: Corr_PQ | E35: =of:=ROUND((0.1721-0.0004*[Calcoli.E12])*SIN(RADIANS([Calcoli.E21]))+0.0021*SIN(RADIANS(2*[Calcoli.E21]))-0.628*SIN(RADIANS([Calcoli.E26]))+0.0089*SIN(RADIANS(2*[Calcoli.E26]))-0.0004*SIN(RADIANS(3*[Calcoli.E26]))+0.0079*SIN(RADIANS(2*[Calcoli.E31]))-0.0119*SIN(RADIANS([Calcoli.E21]+[Calcoli.E26]))-0.0047*SIN(RADIANS([Calcoli.E21]-[Calcoli.E26]))+0.0003*SIN(RADIANS(2*[Calcoli.E31]+[Calcoli.E21]))-0.0004*SIN(RADIANS(2*[Calcoli.E31]-[Calcoli.E21]))-0.0006*SIN(RADIANS(2*[Calcoli.E31]+[Calcoli.E26]))+0.0021*SIN(RADIANS(2*[Calcoli.E31]-[Calcoli.E26]))+0.0003*SIN(RADIANS([Calcoli.E21]+2*[Calcoli.E26]))+0.0004*SIN(RADIANS([Calcoli.E21]-2*[Calcoli.E26]))-0.0003*SIN(RADIANS(2*[Calcoli.E21]+[Calcoli.E26]));4) -> 0.4184 | G35: Corr_PQ | H35: =of:=ROUND((0.1721-0.0004*[Calcoli.H12])*SIN(RADIANS([Calcoli.H21]))+0.0021*SIN(RADIANS(2*[Calcoli.H21]))-0.628*SIN(RADIANS([Calcoli.H26]))+0.0089*SIN(RADIANS(2*[Calcoli.H26]))-0.0004*SIN(RADIANS(3*[Calcoli.H26]))+0.0079*SIN(RADIANS(2*[Calcoli.H31]))-0.0119*SIN(RADIANS([Calcoli.H21]+[Calcoli.H26]))-0.0047*SIN(RADIANS([Calcoli.H21]-[Calcoli.H26]))+0.0003*SIN(RADIANS(2*[Calcoli.H31]+[Calcoli.H21]))-0.0004*SIN(RADIANS(2*[Calcoli.H31]-[Calcoli.H21]))-0.0006*SIN(RADIANS(2*[Calcoli.H31]+[Calcoli.H26]))+0.0021*SIN(RADIANS(2*[Calcoli.H31]-[Calcoli.H26]))+0.0003*SIN(RADIANS([Calcoli.H21]+2*[Calcoli.H26]))+0.0004*SIN(RADIANS([Calcoli.H21]-2*[Calcoli.H26]))-0.0003*SIN(RADIANS(2*[Calcoli.H21]+[Calcoli.H26]));4) -> 0.2433 | J35: Corr_PQ | K35: =of:=ROUND((0.1721-0.0004*[Calcoli.K12])*SIN(RADIANS([Calcoli.K21]))+0.0021*SIN(RADIANS(2*[Calcoli.K21]))-0.628*SIN(RADIANS([Calcoli.K26]))+0.0089*SIN(RADIANS(2*[Calcoli.K26]))-0.0004*SIN(RADIANS(3*[Calcoli.K26]))+0.0079*SIN(RADIANS(2*[Calcoli.K31]))-0.0119*SIN(RADIANS([Calcoli.K21]+[Calcoli.K26]))-0.0047*SIN(RADIANS([Calcoli.K21]-[Calcoli.K26]))+0.0003*SIN(RADIANS(2*[Calcoli.K31]+[Calcoli.K21]))-0.0004*SIN(RADIANS(2*[Calcoli.K31]-[Calcoli.K21]))-0.0006*SIN(RADIANS(2*[Calcoli.K31]+[Calcoli.K26]))+0.0021*SIN(RADIANS(2*[Calcoli.K31]-[Calcoli.K26]))+0.0003*SIN(RADIANS([Calcoli.K21]+2*[Calcoli.K26]))+0.0004*SIN(RADIANS([Calcoli.K21]-2*[Calcoli.K26]))-0.0003*SIN(RADIANS(2*[Calcoli.K21]+[Calcoli.K26]));4) -> 0.0139 | M35: Corr_PQ | N35: =of:=ROUND((0.1721-0.0004*[Calcoli.N12])*SIN(RADIANS([Calcoli.N21]))+0.0021*SIN(RADIANS(2*[Calcoli.N21]))-0.628*SIN(RADIANS([Calcoli.N26]))+0.0089*SIN(RADIANS(2*[Calcoli.N26]))-0.0004*SIN(RADIANS(3*[Calcoli.N26]))+0.0079*SIN(RADIANS(2*[Calcoli.N31]))-0.0119*SIN(RADIANS([Calcoli.N21]+[Calcoli.N26]))-0.0047*SIN(RADIANS([Calcoli.N21]-[Calcoli.N26]))+0.0003*SIN(RADIANS(2*[Calcoli.N31]+[Calcoli.N21]))-0.0004*SIN(RADIANS(2*[Calcoli.N31]-[Calcoli.N21]))-0.0006*SIN(RADIANS(2*[Calcoli.N31]+[Calcoli.N26]))+0.0021*SIN(RADIANS(2*[Calcoli.N31]-[Calcoli.N26]))+0.0003*SIN(RADIANS([Calcoli.N21]+2*[Calcoli.N26]))+0.0004*SIN(RADIANS([Calcoli.N21]-2*[Calcoli.N26]))-0.0003*SIN(RADIANS(2*[Calcoli.N21]+[Calcoli.N26]));4) -> -0.2201 | P35: Corr_PQ | Q35: =of:=ROUND((0.1721-0.0004*[Calcoli.Q12])*SIN(RADIANS([Calcoli.Q21]))+0.0021*SIN(RADIANS(2*[Calcoli.Q21]))-0.628*SIN(RADIANS([Calcoli.Q26]))+0.0089*SIN(RADIANS(2*[Calcoli.Q26]))-0.0004*SIN(RADIANS(3*[Calcoli.Q26]))+0.0079*SIN(RADIANS(2*[Calcoli.Q31]))-0.0119*SIN(RADIANS([Calcoli.Q21]+[Calcoli.Q26]))-0.0047*SIN(RADIANS([Calcoli.Q21]-[Calcoli.Q26]))+0.0003*SIN(RADIANS(2*[Calcoli.Q31]+[Calcoli.Q21]))-0.0004*SIN(RADIANS(2*[Calcoli.Q31]-[Calcoli.Q21]))-0.0006*SIN(RADIANS(2*[Calcoli.Q31]+[Calcoli.Q26]))+0.0021*SIN(RADIANS(2*[Calcoli.Q31]-[Calcoli.Q26]))+0.0003*SIN(RADIANS([Calcoli.Q21]+2*[Calcoli.Q26]))+0.0004*SIN(RADIANS([Calcoli.Q21]-2*[Calcoli.Q26]))-0.0003*SIN(RADIANS(2*[Calcoli.Q21]+[Calcoli.Q26]));4) -> -0.4124 | S35: Corr_PQ | T35: =of:=ROUND((0.1721-0.0004*[Calcoli.T12])*SIN(RADIANS([Calcoli.T21]))+0.0021*SIN(RADIANS(2*[Calcoli.T21]))-0.628*SIN(RADIANS([Calcoli.T26]))+0.0089*SIN(RADIANS(2*[Calcoli.T26]))-0.0004*SIN(RADIANS(3*[Calcoli.T26]))+0.0079*SIN(RADIANS(2*[Calcoli.T31]))-0.0119*SIN(RADIANS([Calcoli.T21]+[Calcoli.T26]))-0.0047*SIN(RADIANS([Calcoli.T21]-[Calcoli.T26]))+0.0003*SIN(RADIANS(2*[Calcoli.T31]+[Calcoli.T21]))-0.0004*SIN(RADIANS(2*[Calcoli.T31]-[Calcoli.T21]))-0.0006*SIN(RADIANS(2*[Calcoli.T31]+[Calcoli.T26]))+0.0021*SIN(RADIANS(2*[Calcoli.T31]-[Calcoli.T26]))+0.0003*SIN(RADIANS([Calcoli.T21]+2*[Calcoli.T26]))+0.0004*SIN(RADIANS([Calcoli.T21]-2*[Calcoli.T26]))-0.0003*SIN(RADIANS(2*[Calcoli.T21]+[Calcoli.T26]));4) -> -0.53 | V35: Corr_PQ | W35: =of:=ROUND((0.1721-0.0004*[Calcoli.W12])*SIN(RADIANS([Calcoli.W21]))+0.0021*SIN(RADIANS(2*[Calcoli.W21]))-0.628*SIN(RADIANS([Calcoli.W26]))+0.0089*SIN(RADIANS(2*[Calcoli.W26]))-0.0004*SIN(RADIANS(3*[Calcoli.W26]))+0.0079*SIN(RADIANS(2*[Calcoli.W31]))-0.0119*SIN(RADIANS([Calcoli.W21]+[Calcoli.W26]))-0.0047*SIN(RADIANS([Calcoli.W21]-[Calcoli.W26]))+0.0003*SIN(RADIANS(2*[Calcoli.W31]+[Calcoli.W21]))-0.0004*SIN(RADIANS(2*[Calcoli.W31]-[Calcoli.W21]))-0.0006*SIN(RADIANS(2*[Calcoli.W31]+[Calcoli.W26]))+0.0021*SIN(RADIANS(2*[Calcoli.W31]-[Calcoli.W26]))+0.0003*SIN(RADIANS([Calcoli.W21]+2*[Calcoli.W26]))+0.0004*SIN(RADIANS([Calcoli.W21]-2*[Calcoli.W26]))-0.0003*SIN(RADIANS(2*[Calcoli.W21]+[Calcoli.W26]));4) -> -0.5544 | Y35: Corr_PQ | Z35: =of:=ROUND((0.1721-0.0004*[Calcoli.Z12])*SIN(RADIANS([Calcoli.Z21]))+0.0021*SIN(RADIANS(2*[Calcoli.Z21]))-0.628*SIN(RADIANS([Calcoli.Z26]))+0.0089*SIN(RADIANS(2*[Calcoli.Z26]))-0.0004*SIN(RADIANS(3*[Calcoli.Z26]))+0.0079*SIN(RADIANS(2*[Calcoli.Z31]))-0.0119*SIN(RADIANS([Calcoli.Z21]+[Calcoli.Z26]))-0.0047*SIN(RADIANS([Calcoli.Z21]-[Calcoli.Z26]))+0.0003*SIN(RADIANS(2*[Calcoli.Z31]+[Calcoli.Z21]))-0.0004*SIN(RADIANS(2*[Calcoli.Z31]-[Calcoli.Z21]))-0.0006*SIN(RADIANS(2*[Calcoli.Z31]+[Calcoli.Z26]))+0.0021*SIN(RADIANS(2*[Calcoli.Z31]-[Calcoli.Z26]))+0.0003*SIN(RADIANS([Calcoli.Z21]+2*[Calcoli.Z26]))+0.0004*SIN(RADIANS([Calcoli.Z21]-2*[Calcoli.Z26]))-0.0003*SIN(RADIANS(2*[Calcoli.Z21]+[Calcoli.Z26]));4) -> -0.4792 | AB35: Corr_PQ | AC35: =of:=ROUND((0.1721-0.0004*[Calcoli.AC12])*SIN(RADIANS([Calcoli.AC21]))+0.0021*SIN(RADIANS(2*[Calcoli.AC21]))-0.628*SIN(RADIANS([Calcoli.AC26]))+0.0089*SIN(RADIANS(2*[Calcoli.AC26]))-0.0004*SIN(RADIANS(3*[Calcoli.AC26]))+0.0079*SIN(RADIANS(2*[Calcoli.AC31]))-0.0119*SIN(RADIANS([Calcoli.AC21]+[Calcoli.AC26]))-0.0047*SIN(RADIANS([Calcoli.AC21]-[Calcoli.AC26]))+0.0003*SIN(RADIANS(2*[Calcoli.AC31]+[Calcoli.AC21]))-0.0004*SIN(RADIANS(2*[Calcoli.AC31]-[Calcoli.AC21]))-0.0006*SIN(RADIANS(2*[Calcoli.AC31]+[Calcoli.AC26]))+0.0021*SIN(RADIANS(2*[Calcoli.AC31]-[Calcoli.AC26]))+0.0003*SIN(RADIANS([Calcoli.AC21]+2*[Calcoli.AC26]))+0.0004*SIN(RADIANS([Calcoli.AC21]-2*[Calcoli.AC26]))-0.0003*SIN(RADIANS(2*[Calcoli.AC21]+[Calcoli.AC26]));4) -> -0.3079 | AE35: Corr_PQ | AF35: =of:=ROUND((0.1721-0.0004*[Calcoli.AF12])*SIN(RADIANS([Calcoli.AF21]))+0.0021*SIN(RADIANS(2*[Calcoli.AF21]))-0.628*SIN(RADIANS([Calcoli.AF26]))+0.0089*SIN(RADIANS(2*[Calcoli.AF26]))-0.0004*SIN(RADIANS(3*[Calcoli.AF26]))+0.0079*SIN(RADIANS(2*[Calcoli.AF31]))-0.0119*SIN(RADIANS([Calcoli.AF21]+[Calcoli.AF26]))-0.0047*SIN(RADIANS([Calcoli.AF21]-[Calcoli.AF26]))+0.0003*SIN(RADIANS(2*[Calcoli.AF31]+[Calcoli.AF21]))-0.0004*SIN(RADIANS(2*[Calcoli.AF31]-[Calcoli.AF21]))-0.0006*SIN(RADIANS(2*[Calcoli.AF31]+[Calcoli.AF26]))+0.0021*SIN(RADIANS(2*[Calcoli.AF31]-[Calcoli.AF26]))+0.0003*SIN(RADIANS([Calcoli.AF21]+2*[Calcoli.AF26]))+0.0004*SIN(RADIANS([Calcoli.AF21]-2*[Calcoli.AF26]))-0.0003*SIN(RADIANS(2*[Calcoli.AF21]+[Calcoli.AF26]));4) -> -0.06 | AH35: Corr_PQ | AI35: =of:=ROUND((0.1721-0.0004*[Calcoli.AI12])*SIN(RADIANS([Calcoli.AI21]))+0.0021*SIN(RADIANS(2*[Calcoli.AI21]))-0.628*SIN(RADIANS([Calcoli.AI26]))+0.0089*SIN(RADIANS(2*[Calcoli.AI26]))-0.0004*SIN(RADIANS(3*[Calcoli.AI26]))+0.0079*SIN(RADIANS(2*[Calcoli.AI31]))-0.0119*SIN(RADIANS([Calcoli.AI21]+[Calcoli.AI26]))-0.0047*SIN(RADIANS([Calcoli.AI21]-[Calcoli.AI26]))+0.0003*SIN(RADIANS(2*[Calcoli.AI31]+[Calcoli.AI21]))-0.0004*SIN(RADIANS(2*[Calcoli.AI31]-[Calcoli.AI21]))-0.0006*SIN(RADIANS(2*[Calcoli.AI31]+[Calcoli.AI26]))+0.0021*SIN(RADIANS(2*[Calcoli.AI31]-[Calcoli.AI26]))+0.0003*SIN(RADIANS([Calcoli.AI21]+2*[Calcoli.AI26]))+0.0004*SIN(RADIANS([Calcoli.AI21]-2*[Calcoli.AI26]))-0.0003*SIN(RADIANS(2*[Calcoli.AI21]+[Calcoli.AI26]));4) -> 0.2208 | AK35: Corr_PQ | AL35: =of:=ROUND((0.1721-0.0004*[Calcoli.AL12])*SIN(RADIANS([Calcoli.AL21]))+0.0021*SIN(RADIANS(2*[Calcoli.AL21]))-0.628*SIN(RADIANS([Calcoli.AL26]))+0.0089*SIN(RADIANS(2*[Calcoli.AL26]))-0.0004*SIN(RADIANS(3*[Calcoli.AL26]))+0.0079*SIN(RADIANS(2*[Calcoli.AL31]))-0.0119*SIN(RADIANS([Calcoli.AL21]+[Calcoli.AL26]))-0.0047*SIN(RADIANS([Calcoli.AL21]-[Calcoli.AL26]))+0.0003*SIN(RADIANS(2*[Calcoli.AL31]+[Calcoli.AL21]))-0.0004*SIN(RADIANS(2*[Calcoli.AL31]-[Calcoli.AL21]))-0.0006*SIN(RADIANS(2*[Calcoli.AL31]+[Calcoli.AL26]))+0.0021*SIN(RADIANS(2*[Calcoli.AL31]-[Calcoli.AL26]))+0.0003*SIN(RADIANS([Calcoli.AL21]+2*[Calcoli.AL26]))+0.0004*SIN(RADIANS([Calcoli.AL21]-2*[Calcoli.AL26]))-0.0003*SIN(RADIANS(2*[Calcoli.AL21]+[Calcoli.AL26]));4) -> 0.4682 | AN35: Corr_PQ | AO35: =of:=ROUND((0.1721-0.0004*[Calcoli.AO12])*SIN(RADIANS([Calcoli.AO21]))+0.0021*SIN(RADIANS(2*[Calcoli.AO21]))-0.628*SIN(RADIANS([Calcoli.AO26]))+0.0089*SIN(RADIANS(2*[Calcoli.AO26]))-0.0004*SIN(RADIANS(3*[Calcoli.AO26]))+0.0079*SIN(RADIANS(2*[Calcoli.AO31]))-0.0119*SIN(RADIANS([Calcoli.AO21]+[Calcoli.AO26]))-0.0047*SIN(RADIANS([Calcoli.AO21]-[Calcoli.AO26]))+0.0003*SIN(RADIANS(2*[Calcoli.AO31]+[Calcoli.AO21]))-0.0004*SIN(RADIANS(2*[Calcoli.AO31]-[Calcoli.AO21]))-0.0006*SIN(RADIANS(2*[Calcoli.AO31]+[Calcoli.AO26]))+0.0021*SIN(RADIANS(2*[Calcoli.AO31]-[Calcoli.AO26]))+0.0003*SIN(RADIANS([Calcoli.AO21]+2*[Calcoli.AO26]))+0.0004*SIN(RADIANS([Calcoli.AO21]-2*[Calcoli.AO26]))-0.0003*SIN(RADIANS(2*[Calcoli.AO21]+[Calcoli.AO26]));4) -> 0.627
A36: Corr_LP | B36: =of:=ROUND((0.1734-0.000393*[Calcoli.B13])*SIN(RADIANS([Calcoli.B22]))+0.0021*SIN(RADIANS(2*[Calcoli.B22]))-0.4068*SIN(RADIANS([Calcoli.B27]))+0.0161*SIN(RADIANS(2*[Calcoli.B27]))-0.0004*SIN(RADIANS(3*[Calcoli.B27]))+0.0104*SIN(RADIANS(2*[Calcoli.B32]))-0.0051*SIN(RADIANS([Calcoli.B22]+[Calcoli.B27]))-0.0074*SIN(RADIANS([Calcoli.B22]-[Calcoli.B27]))+0.0004*SIN(RADIANS(2*[Calcoli.B32]+[Calcoli.B22]))-0.0004*SIN(RADIANS(2*[Calcoli.B32]-[Calcoli.B22]))-0.0006*SIN(RADIANS(2*[Calcoli.B32]+[Calcoli.B27]))+0.001*SIN(RADIANS(2*[Calcoli.B32]-[Calcoli.B27]))+0.0005*SIN(RADIANS([Calcoli.B22]+2*[Calcoli.B27]));4) -> -0.251 | D36: Corr_LP | E36: =of:=ROUND((0.1734-0.000393*[Calcoli.E13])*SIN(RADIANS([Calcoli.E22]))+0.0021*SIN(RADIANS(2*[Calcoli.E22]))-0.4068*SIN(RADIANS([Calcoli.E27]))+0.0161*SIN(RADIANS(2*[Calcoli.E27]))-0.0004*SIN(RADIANS(3*[Calcoli.E27]))+0.0104*SIN(RADIANS(2*[Calcoli.E32]))-0.0051*SIN(RADIANS([Calcoli.E22]+[Calcoli.E27]))-0.0074*SIN(RADIANS([Calcoli.E22]-[Calcoli.E27]))+0.0004*SIN(RADIANS(2*[Calcoli.E32]+[Calcoli.E22]))-0.0004*SIN(RADIANS(2*[Calcoli.E32]-[Calcoli.E22]))-0.0006*SIN(RADIANS(2*[Calcoli.E32]+[Calcoli.E27]))+0.001*SIN(RADIANS(2*[Calcoli.E32]-[Calcoli.E27]))+0.0005*SIN(RADIANS([Calcoli.E22]+2*[Calcoli.E27]));4) -> -0.3036 | G36: Corr_LP | H36: =of:=ROUND((0.1734-0.000393*[Calcoli.H13])*SIN(RADIANS([Calcoli.H22]))+0.0021*SIN(RADIANS(2*[Calcoli.H22]))-0.4068*SIN(RADIANS([Calcoli.H27]))+0.0161*SIN(RADIANS(2*[Calcoli.H27]))-0.0004*SIN(RADIANS(3*[Calcoli.H27]))+0.0104*SIN(RADIANS(2*[Calcoli.H32]))-0.0051*SIN(RADIANS([Calcoli.H22]+[Calcoli.H27]))-0.0074*SIN(RADIANS([Calcoli.H22]-[Calcoli.H27]))+0.0004*SIN(RADIANS(2*[Calcoli.H32]+[Calcoli.H22]))-0.0004*SIN(RADIANS(2*[Calcoli.H32]-[Calcoli.H22]))-0.0006*SIN(RADIANS(2*[Calcoli.H32]+[Calcoli.H27]))+0.001*SIN(RADIANS(2*[Calcoli.H32]-[Calcoli.H27]))+0.0005*SIN(RADIANS([Calcoli.H22]+2*[Calcoli.H27]));4) -> -0.2934 | J36: Corr_LP | K36: =of:=ROUND((0.1734-0.000393*[Calcoli.K13])*SIN(RADIANS([Calcoli.K22]))+0.0021*SIN(RADIANS(2*[Calcoli.K22]))-0.4068*SIN(RADIANS([Calcoli.K27]))+0.0161*SIN(RADIANS(2*[Calcoli.K27]))-0.0004*SIN(RADIANS(3*[Calcoli.K27]))+0.0104*SIN(RADIANS(2*[Calcoli.K32]))-0.0051*SIN(RADIANS([Calcoli.K22]+[Calcoli.K27]))-0.0074*SIN(RADIANS([Calcoli.K22]-[Calcoli.K27]))+0.0004*SIN(RADIANS(2*[Calcoli.K32]+[Calcoli.K22]))-0.0004*SIN(RADIANS(2*[Calcoli.K32]-[Calcoli.K22]))-0.0006*SIN(RADIANS(2*[Calcoli.K32]+[Calcoli.K27]))+0.001*SIN(RADIANS(2*[Calcoli.K32]-[Calcoli.K27]))+0.0005*SIN(RADIANS([Calcoli.K22]+2*[Calcoli.K27]));4) -> -0.2262 | M36: Corr_LP | N36: =of:=ROUND((0.1734-0.000393*[Calcoli.N13])*SIN(RADIANS([Calcoli.N22]))+0.0021*SIN(RADIANS(2*[Calcoli.N22]))-0.4068*SIN(RADIANS([Calcoli.N27]))+0.0161*SIN(RADIANS(2*[Calcoli.N27]))-0.0004*SIN(RADIANS(3*[Calcoli.N27]))+0.0104*SIN(RADIANS(2*[Calcoli.N32]))-0.0051*SIN(RADIANS([Calcoli.N22]+[Calcoli.N27]))-0.0074*SIN(RADIANS([Calcoli.N22]-[Calcoli.N27]))+0.0004*SIN(RADIANS(2*[Calcoli.N32]+[Calcoli.N22]))-0.0004*SIN(RADIANS(2*[Calcoli.N32]-[Calcoli.N22]))-0.0006*SIN(RADIANS(2*[Calcoli.N32]+[Calcoli.N27]))+0.001*SIN(RADIANS(2*[Calcoli.N32]-[Calcoli.N27]))+0.0005*SIN(RADIANS([Calcoli.N22]+2*[Calcoli.N27]));4) -> -0.1217 | P36: Corr_LP | Q36: =of:=ROUND((0.1734-0.000393*[Calcoli.Q13])*SIN(RADIANS([Calcoli.Q22]))+0.0021*SIN(RADIANS(2*[Calcoli.Q22]))-0.4068*SIN(RADIANS([Calcoli.Q27]))+0.0161*SIN(RADIANS(2*[Calcoli.Q27]))-0.0004*SIN(RADIANS(3*[Calcoli.Q27]))+0.0104*SIN(RADIANS(2*[Calcoli.Q32]))-0.0051*SIN(RADIANS([Calcoli.Q22]+[Calcoli.Q27]))-0.0074*SIN(RADIANS([Calcoli.Q22]-[Calcoli.Q27]))+0.0004*SIN(RADIANS(2*[Calcoli.Q32]+[Calcoli.Q22]))-0.0004*SIN(RADIANS(2*[Calcoli.Q32]-[Calcoli.Q22]))-0.0006*SIN(RADIANS(2*[Calcoli.Q32]+[Calcoli.Q27]))+0.001*SIN(RADIANS(2*[Calcoli.Q32]-[Calcoli.Q27]))+0.0005*SIN(RADIANS([Calcoli.Q22]+2*[Calcoli.Q27]));4) -> -0.0032 | S36: Corr_LP | T36: =of:=ROUND((0.1734-0.000393*[Calcoli.T13])*SIN(RADIANS([Calcoli.T22]))+0.0021*SIN(RADIANS(2*[Calcoli.T22]))-0.4068*SIN(RADIANS([Calcoli.T27]))+0.0161*SIN(RADIANS(2*[Calcoli.T27]))-0.0004*SIN(RADIANS(3*[Calcoli.T27]))+0.0104*SIN(RADIANS(2*[Calcoli.T32]))-0.0051*SIN(RADIANS([Calcoli.T22]+[Calcoli.T27]))-0.0074*SIN(RADIANS([Calcoli.T22]-[Calcoli.T27]))+0.0004*SIN(RADIANS(2*[Calcoli.T32]+[Calcoli.T22]))-0.0004*SIN(RADIANS(2*[Calcoli.T32]-[Calcoli.T22]))-0.0006*SIN(RADIANS(2*[Calcoli.T32]+[Calcoli.T27]))+0.001*SIN(RADIANS(2*[Calcoli.T32]-[Calcoli.T27]))+0.0005*SIN(RADIANS([Calcoli.T22]+2*[Calcoli.T27]));4) -> 0.1101 | V36: Corr_LP | W36: =of:=ROUND((0.1734-0.000393*[Calcoli.W13])*SIN(RADIANS([Calcoli.W22]))+0.0021*SIN(RADIANS(2*[Calcoli.W22]))-0.4068*SIN(RADIANS([Calcoli.W27]))+0.0161*SIN(RADIANS(2*[Calcoli.W27]))-0.0004*SIN(RADIANS(3*[Calcoli.W27]))+0.0104*SIN(RADIANS(2*[Calcoli.W32]))-0.0051*SIN(RADIANS([Calcoli.W22]+[Calcoli.W27]))-0.0074*SIN(RADIANS([Calcoli.W22]-[Calcoli.W27]))+0.0004*SIN(RADIANS(2*[Calcoli.W32]+[Calcoli.W22]))-0.0004*SIN(RADIANS(2*[Calcoli.W32]-[Calcoli.W22]))-0.0006*SIN(RADIANS(2*[Calcoli.W32]+[Calcoli.W27]))+0.001*SIN(RADIANS(2*[Calcoli.W32]-[Calcoli.W27]))+0.0005*SIN(RADIANS([Calcoli.W22]+2*[Calcoli.W27]));4) -> 0.2026 | Y36: Corr_LP | Z36: =of:=ROUND((0.1734-0.000393*[Calcoli.Z13])*SIN(RADIANS([Calcoli.Z22]))+0.0021*SIN(RADIANS(2*[Calcoli.Z22]))-0.4068*SIN(RADIANS([Calcoli.Z27]))+0.0161*SIN(RADIANS(2*[Calcoli.Z27]))-0.0004*SIN(RADIANS(3*[Calcoli.Z27]))+0.0104*SIN(RADIANS(2*[Calcoli.Z32]))-0.0051*SIN(RADIANS([Calcoli.Z22]+[Calcoli.Z27]))-0.0074*SIN(RADIANS([Calcoli.Z22]-[Calcoli.Z27]))+0.0004*SIN(RADIANS(2*[Calcoli.Z32]+[Calcoli.Z22]))-0.0004*SIN(RADIANS(2*[Calcoli.Z32]-[Calcoli.Z22]))-0.0006*SIN(RADIANS(2*[Calcoli.Z32]+[Calcoli.Z27]))+0.001*SIN(RADIANS(2*[Calcoli.Z32]-[Calcoli.Z27]))+0.0005*SIN(RADIANS([Calcoli.Z22]+2*[Calcoli.Z27]));4) -> 0.2584 | AB36: Corr_LP | AC36: =of:=ROUND((0.1734-0.000393*[Calcoli.AC13])*SIN(RADIANS([Calcoli.AC22]))+0.0021*SIN(RADIANS(2*[Calcoli.AC22]))-0.4068*SIN(RADIANS([Calcoli.AC27]))+0.0161*SIN(RADIANS(2*[Calcoli.AC27]))-0.0004*SIN(RADIANS(3*[Calcoli.AC27]))+0.0104*SIN(RADIANS(2*[Calcoli.AC32]))-0.0051*SIN(RADIANS([Calcoli.AC22]+[Calcoli.AC27]))-0.0074*SIN(RADIANS([Calcoli.AC22]-[Calcoli.AC27]))+0.0004*SIN(RADIANS(2*[Calcoli.AC32]+[Calcoli.AC22]))-0.0004*SIN(RADIANS(2*[Calcoli.AC32]-[Calcoli.AC22]))-0.0006*SIN(RADIANS(2*[Calcoli.AC32]+[Calcoli.AC27]))+0.001*SIN(RADIANS(2*[Calcoli.AC32]-[Calcoli.AC27]))+0.0005*SIN(RADIANS([Calcoli.AC22]+2*[Calcoli.AC27]));4) -> 0.264 | AE36: Corr_LP | AF36: =of:=ROUND((0.1734-0.000393*[Calcoli.AF13])*SIN(RADIANS([Calcoli.AF22]))+0.0021*SIN(RADIANS(2*[Calcoli.AF22]))-0.4068*SIN(RADIANS([Calcoli.AF27]))+0.0161*SIN(RADIANS(2*[Calcoli.AF27]))-0.0004*SIN(RADIANS(3*[Calcoli.AF27]))+0.0104*SIN(RADIANS(2*[Calcoli.AF32]))-0.0051*SIN(RADIANS([Calcoli.AF22]+[Calcoli.AF27]))-0.0074*SIN(RADIANS([Calcoli.AF22]-[Calcoli.AF27]))+0.0004*SIN(RADIANS(2*[Calcoli.AF32]+[Calcoli.AF22]))-0.0004*SIN(RADIANS(2*[Calcoli.AF32]-[Calcoli.AF22]))-0.0006*SIN(RADIANS(2*[Calcoli.AF32]+[Calcoli.AF27]))+0.001*SIN(RADIANS(2*[Calcoli.AF32]-[Calcoli.AF27]))+0.0005*SIN(RADIANS([Calcoli.AF22]+2*[Calcoli.AF27]));4) -> 0.2174 | AH36: Corr_LP | AI36: =of:=ROUND((0.1734-0.000393*[Calcoli.AI13])*SIN(RADIANS([Calcoli.AI22]))+0.0021*SIN(RADIANS(2*[Calcoli.AI22]))-0.4068*SIN(RADIANS([Calcoli.AI27]))+0.0161*SIN(RADIANS(2*[Calcoli.AI27]))-0.0004*SIN(RADIANS(3*[Calcoli.AI27]))+0.0104*SIN(RADIANS(2*[Calcoli.AI32]))-0.0051*SIN(RADIANS([Calcoli.AI22]+[Calcoli.AI27]))-0.0074*SIN(RADIANS([Calcoli.AI22]-[Calcoli.AI27]))+0.0004*SIN(RADIANS(2*[Calcoli.AI32]+[Calcoli.AI22]))-0.0004*SIN(RADIANS(2*[Calcoli.AI32]-[Calcoli.AI22]))-0.0006*SIN(RADIANS(2*[Calcoli.AI32]+[Calcoli.AI27]))+0.001*SIN(RADIANS(2*[Calcoli.AI32]-[Calcoli.AI27]))+0.0005*SIN(RADIANS([Calcoli.AI22]+2*[Calcoli.AI27]));4) -> 0.133 | AK36: Corr_LP | AL36: =of:=ROUND((0.1734-0.000393*[Calcoli.AL13])*SIN(RADIANS([Calcoli.AL22]))+0.0021*SIN(RADIANS(2*[Calcoli.AL22]))-0.4068*SIN(RADIANS([Calcoli.AL27]))+0.0161*SIN(RADIANS(2*[Calcoli.AL27]))-0.0004*SIN(RADIANS(3*[Calcoli.AL27]))+0.0104*SIN(RADIANS(2*[Calcoli.AL32]))-0.0051*SIN(RADIANS([Calcoli.AL22]+[Calcoli.AL27]))-0.0074*SIN(RADIANS([Calcoli.AL22]-[Calcoli.AL27]))+0.0004*SIN(RADIANS(2*[Calcoli.AL32]+[Calcoli.AL22]))-0.0004*SIN(RADIANS(2*[Calcoli.AL32]-[Calcoli.AL22]))-0.0006*SIN(RADIANS(2*[Calcoli.AL32]+[Calcoli.AL27]))+0.001*SIN(RADIANS(2*[Calcoli.AL32]-[Calcoli.AL27]))+0.0005*SIN(RADIANS([Calcoli.AL22]+2*[Calcoli.AL27]));4) -> 0.0358 | AN36: Corr_LP | AO36: =of:=ROUND((0.1734-0.000393*[Calcoli.AO13])*SIN(RADIANS([Calcoli.AO22]))+0.0021*SIN(RADIANS(2*[Calcoli.AO22]))-0.4068*SIN(RADIANS([Calcoli.AO27]))+0.0161*SIN(RADIANS(2*[Calcoli.AO27]))-0.0004*SIN(RADIANS(3*[Calcoli.AO27]))+0.0104*SIN(RADIANS(2*[Calcoli.AO32]))-0.0051*SIN(RADIANS([Calcoli.AO22]+[Calcoli.AO27]))-0.0074*SIN(RADIANS([Calcoli.AO22]-[Calcoli.AO27]))+0.0004*SIN(RADIANS(2*[Calcoli.AO32]+[Calcoli.AO22]))-0.0004*SIN(RADIANS(2*[Calcoli.AO32]-[Calcoli.AO22]))-0.0006*SIN(RADIANS(2*[Calcoli.AO32]+[Calcoli.AO27]))+0.001*SIN(RADIANS(2*[Calcoli.AO32]-[Calcoli.AO27]))+0.0005*SIN(RADIANS([Calcoli.AO22]+2*[Calcoli.AO27]));4) -> -0.1231
A37: Corr_UQ | B37: =of:=ROUND((0.1721-0.0004*[Calcoli.B14])*SIN(RADIANS([Calcoli.B23]))+0.0021*SIN(RADIANS(2*[Calcoli.B23]))-0.628*SIN(RADIANS([Calcoli.B28]))+0.0089*SIN(RADIANS(2*[Calcoli.B28]))-0.0004*SIN(RADIANS(3*[Calcoli.B28]))+0.0079*SIN(RADIANS(2*[Calcoli.B33]))-0.0119*SIN(RADIANS([Calcoli.B23]+[Calcoli.B28]))-0.0047*SIN(RADIANS([Calcoli.B23]-[Calcoli.B28]))+0.0003*SIN(RADIANS(2*[Calcoli.B33]+[Calcoli.B23]))-0.0004*SIN(RADIANS(2*[Calcoli.B33]-[Calcoli.B23]))-0.0006*SIN(RADIANS(2*[Calcoli.B33]+[Calcoli.B28]))+0.0021*SIN(RADIANS(2*[Calcoli.B33]-[Calcoli.B28]))+0.0003*SIN(RADIANS([Calcoli.B23]+2*[Calcoli.B28]))+0.0004*SIN(RADIANS([Calcoli.B23]-2*[Calcoli.B28]))-0.0003*SIN(RADIANS(2*[Calcoli.B23]+[Calcoli.B28]));4) -> -0.5551 | D37: Corr_UQ | E37: =of:=ROUND((0.1721-0.0004*[Calcoli.E14])*SIN(RADIANS([Calcoli.E23]))+0.0021*SIN(RADIANS(2*[Calcoli.E23]))-0.628*SIN(RADIANS([Calcoli.E28]))+0.0089*SIN(RADIANS(2*[Calcoli.E28]))-0.0004*SIN(RADIANS(3*[Calcoli.E28]))+0.0079*SIN(RADIANS(2*[Calcoli.E33]))-0.0119*SIN(RADIANS([Calcoli.E23]+[Calcoli.E28]))-0.0047*SIN(RADIANS([Calcoli.E23]-[Calcoli.E28]))+0.0003*SIN(RADIANS(2*[Calcoli.E33]+[Calcoli.E23]))-0.0004*SIN(RADIANS(2*[Calcoli.E33]-[Calcoli.E23]))-0.0006*SIN(RADIANS(2*[Calcoli.E33]+[Calcoli.E28]))+0.0021*SIN(RADIANS(2*[Calcoli.E33]-[Calcoli.E28]))+0.0003*SIN(RADIANS([Calcoli.E23]+2*[Calcoli.E28]))+0.0004*SIN(RADIANS([Calcoli.E23]-2*[Calcoli.E28]))-0.0003*SIN(RADIANS(2*[Calcoli.E23]+[Calcoli.E28]));4) -> -0.2403 | G37: Corr_UQ | H37: =of:=ROUND((0.1721-0.0004*[Calcoli.H14])*SIN(RADIANS([Calcoli.H23]))+0.0021*SIN(RADIANS(2*[Calcoli.H23]))-0.628*SIN(RADIANS([Calcoli.H28]))+0.0089*SIN(RADIANS(2*[Calcoli.H28]))-0.0004*SIN(RADIANS(3*[Calcoli.H28]))+0.0079*SIN(RADIANS(2*[Calcoli.H33]))-0.0119*SIN(RADIANS([Calcoli.H23]+[Calcoli.H28]))-0.0047*SIN(RADIANS([Calcoli.H23]-[Calcoli.H28]))+0.0003*SIN(RADIANS(2*[Calcoli.H33]+[Calcoli.H23]))-0.0004*SIN(RADIANS(2*[Calcoli.H33]-[Calcoli.H23]))-0.0006*SIN(RADIANS(2*[Calcoli.H33]+[Calcoli.H28]))+0.0021*SIN(RADIANS(2*[Calcoli.H33]-[Calcoli.H28]))+0.0003*SIN(RADIANS([Calcoli.H23]+2*[Calcoli.H28]))+0.0004*SIN(RADIANS([Calcoli.H23]-2*[Calcoli.H28]))-0.0003*SIN(RADIANS(2*[Calcoli.H23]+[Calcoli.H28]));4) -> 0.1187 | J37: Corr_UQ | K37: =of:=ROUND((0.1721-0.0004*[Calcoli.K14])*SIN(RADIANS([Calcoli.K23]))+0.0021*SIN(RADIANS(2*[Calcoli.K23]))-0.628*SIN(RADIANS([Calcoli.K28]))+0.0089*SIN(RADIANS(2*[Calcoli.K28]))-0.0004*SIN(RADIANS(3*[Calcoli.K28]))+0.0079*SIN(RADIANS(2*[Calcoli.K33]))-0.0119*SIN(RADIANS([Calcoli.K23]+[Calcoli.K28]))-0.0047*SIN(RADIANS([Calcoli.K23]-[Calcoli.K28]))+0.0003*SIN(RADIANS(2*[Calcoli.K33]+[Calcoli.K23]))-0.0004*SIN(RADIANS(2*[Calcoli.K33]-[Calcoli.K23]))-0.0006*SIN(RADIANS(2*[Calcoli.K33]+[Calcoli.K28]))+0.0021*SIN(RADIANS(2*[Calcoli.K33]-[Calcoli.K28]))+0.0003*SIN(RADIANS([Calcoli.K23]+2*[Calcoli.K28]))+0.0004*SIN(RADIANS([Calcoli.K23]-2*[Calcoli.K28]))-0.0003*SIN(RADIANS(2*[Calcoli.K23]+[Calcoli.K28]));4) -> 0.4399 | M37: Corr_UQ | N37: =of:=ROUND((0.1721-0.0004*[Calcoli.N14])*SIN(RADIANS([Calcoli.N23]))+0.0021*SIN(RADIANS(2*[Calcoli.N23]))-0.628*SIN(RADIANS([Calcoli.N28]))+0.0089*SIN(RADIANS(2*[Calcoli.N28]))-0.0004*SIN(RADIANS(3*[Calcoli.N28]))+0.0079*SIN(RADIANS(2*[Calcoli.N33]))-0.0119*SIN(RADIANS([Calcoli.N23]+[Calcoli.N28]))-0.0047*SIN(RADIANS([Calcoli.N23]-[Calcoli.N28]))+0.0003*SIN(RADIANS(2*[Calcoli.N33]+[Calcoli.N23]))-0.0004*SIN(RADIANS(2*[Calcoli.N33]-[Calcoli.N23]))-0.0006*SIN(RADIANS(2*[Calcoli.N33]+[Calcoli.N28]))+0.0021*SIN(RADIANS(2*[Calcoli.N33]-[Calcoli.N28]))+0.0003*SIN(RADIANS([Calcoli.N23]+2*[Calcoli.N28]))+0.0004*SIN(RADIANS([Calcoli.N23]-2*[Calcoli.N28]))-0.0003*SIN(RADIANS(2*[Calcoli.N23]+[Calcoli.N28]));4) -> 0.6586 | P37: Corr_UQ | Q37: =of:=ROUND((0.1721-0.0004*[Calcoli.Q14])*SIN(RADIANS([Calcoli.Q23]))+0.0021*SIN(RADIANS(2*[Calcoli.Q23]))-0.628*SIN(RADIANS([Calcoli.Q28]))+0.0089*SIN(RADIANS(2*[Calcoli.Q28]))-0.0004*SIN(RADIANS(3*[Calcoli.Q28]))+0.0079*SIN(RADIANS(2*[Calcoli.Q33]))-0.0119*SIN(RADIANS([Calcoli.Q23]+[Calcoli.Q28]))-0.0047*SIN(RADIANS([Calcoli.Q23]-[Calcoli.Q28]))+0.0003*SIN(RADIANS(2*[Calcoli.Q33]+[Calcoli.Q23]))-0.0004*SIN(RADIANS(2*[Calcoli.Q33]-[Calcoli.Q23]))-0.0006*SIN(RADIANS(2*[Calcoli.Q33]+[Calcoli.Q28]))+0.0021*SIN(RADIANS(2*[Calcoli.Q33]-[Calcoli.Q28]))+0.0003*SIN(RADIANS([Calcoli.Q23]+2*[Calcoli.Q28]))+0.0004*SIN(RADIANS([Calcoli.Q23]-2*[Calcoli.Q28]))-0.0003*SIN(RADIANS(2*[Calcoli.Q23]+[Calcoli.Q28]));4) -> 0.7363 | S37: Corr_UQ | T37: =of:=ROUND((0.1721-0.0004*[Calcoli.T14])*SIN(RADIANS([Calcoli.T23]))+0.0021*SIN(RADIANS(2*[Calcoli.T23]))-0.628*SIN(RADIANS([Calcoli.T28]))+0.0089*SIN(RADIANS(2*[Calcoli.T28]))-0.0004*SIN(RADIANS(3*[Calcoli.T28]))+0.0079*SIN(RADIANS(2*[Calcoli.T33]))-0.0119*SIN(RADIANS([Calcoli.T23]+[Calcoli.T28]))-0.0047*SIN(RADIANS([Calcoli.T23]-[Calcoli.T28]))+0.0003*SIN(RADIANS(2*[Calcoli.T33]+[Calcoli.T23]))-0.0004*SIN(RADIANS(2*[Calcoli.T33]-[Calcoli.T23]))-0.0006*SIN(RADIANS(2*[Calcoli.T33]+[Calcoli.T28]))+0.0021*SIN(RADIANS(2*[Calcoli.T33]-[Calcoli.T28]))+0.0003*SIN(RADIANS([Calcoli.T23]+2*[Calcoli.T28]))+0.0004*SIN(RADIANS([Calcoli.T23]-2*[Calcoli.T28]))-0.0003*SIN(RADIANS(2*[Calcoli.T23]+[Calcoli.T28]));4) -> 0.6639 | V37: Corr_UQ | W37: =of:=ROUND((0.1721-0.0004*[Calcoli.W14])*SIN(RADIANS([Calcoli.W23]))+0.0021*SIN(RADIANS(2*[Calcoli.W23]))-0.628*SIN(RADIANS([Calcoli.W28]))+0.0089*SIN(RADIANS(2*[Calcoli.W28]))-0.0004*SIN(RADIANS(3*[Calcoli.W28]))+0.0079*SIN(RADIANS(2*[Calcoli.W33]))-0.0119*SIN(RADIANS([Calcoli.W23]+[Calcoli.W28]))-0.0047*SIN(RADIANS([Calcoli.W23]-[Calcoli.W28]))+0.0003*SIN(RADIANS(2*[Calcoli.W33]+[Calcoli.W23]))-0.0004*SIN(RADIANS(2*[Calcoli.W33]-[Calcoli.W23]))-0.0006*SIN(RADIANS(2*[Calcoli.W33]+[Calcoli.W28]))+0.0021*SIN(RADIANS(2*[Calcoli.W33]-[Calcoli.W28]))+0.0003*SIN(RADIANS([Calcoli.W23]+2*[Calcoli.W28]))+0.0004*SIN(RADIANS([Calcoli.W23]-2*[Calcoli.W28]))-0.0003*SIN(RADIANS(2*[Calcoli.W23]+[Calcoli.W28]));4) -> 0.4616 | Y37: Corr_UQ | Z37: =of:=ROUND((0.1721-0.0004*[Calcoli.Z14])*SIN(RADIANS([Calcoli.Z23]))+0.0021*SIN(RADIANS(2*[Calcoli.Z23]))-0.628*SIN(RADIANS([Calcoli.Z28]))+0.0089*SIN(RADIANS(2*[Calcoli.Z28]))-0.0004*SIN(RADIANS(3*[Calcoli.Z28]))+0.0079*SIN(RADIANS(2*[Calcoli.Z33]))-0.0119*SIN(RADIANS([Calcoli.Z23]+[Calcoli.Z28]))-0.0047*SIN(RADIANS([Calcoli.Z23]-[Calcoli.Z28]))+0.0003*SIN(RADIANS(2*[Calcoli.Z33]+[Calcoli.Z23]))-0.0004*SIN(RADIANS(2*[Calcoli.Z33]-[Calcoli.Z23]))-0.0006*SIN(RADIANS(2*[Calcoli.Z33]+[Calcoli.Z28]))+0.0021*SIN(RADIANS(2*[Calcoli.Z33]-[Calcoli.Z28]))+0.0003*SIN(RADIANS([Calcoli.Z23]+2*[Calcoli.Z28]))+0.0004*SIN(RADIANS([Calcoli.Z23]-2*[Calcoli.Z28]))-0.0003*SIN(RADIANS(2*[Calcoli.Z23]+[Calcoli.Z28]));4) -> 0.1736 | AB37: Corr_UQ | AC37: =of:=ROUND((0.1721-0.0004*[Calcoli.AC14])*SIN(RADIANS([Calcoli.AC23]))+0.0021*SIN(RADIANS(2*[Calcoli.AC23]))-0.628*SIN(RADIANS([Calcoli.AC28]))+0.0089*SIN(RADIANS(2*[Calcoli.AC28]))-0.0004*SIN(RADIANS(3*[Calcoli.AC28]))+0.0079*SIN(RADIANS(2*[Calcoli.AC33]))-0.0119*SIN(RADIANS([Calcoli.AC23]+[Calcoli.AC28]))-0.0047*SIN(RADIANS([Calcoli.AC23]-[Calcoli.AC28]))+0.0003*SIN(RADIANS(2*[Calcoli.AC33]+[Calcoli.AC23]))-0.0004*SIN(RADIANS(2*[Calcoli.AC33]-[Calcoli.AC23]))-0.0006*SIN(RADIANS(2*[Calcoli.AC33]+[Calcoli.AC28]))+0.0021*SIN(RADIANS(2*[Calcoli.AC33]-[Calcoli.AC28]))+0.0003*SIN(RADIANS([Calcoli.AC23]+2*[Calcoli.AC28]))+0.0004*SIN(RADIANS([Calcoli.AC23]-2*[Calcoli.AC28]))-0.0003*SIN(RADIANS(2*[Calcoli.AC23]+[Calcoli.AC28]));4) -> -0.142 | AE37: Corr_UQ | AF37: =of:=ROUND((0.1721-0.0004*[Calcoli.AF14])*SIN(RADIANS([Calcoli.AF23]))+0.0021*SIN(RADIANS(2*[Calcoli.AF23]))-0.628*SIN(RADIANS([Calcoli.AF28]))+0.0089*SIN(RADIANS(2*[Calcoli.AF28]))-0.0004*SIN(RADIANS(3*[Calcoli.AF28]))+0.0079*SIN(RADIANS(2*[Calcoli.AF33]))-0.0119*SIN(RADIANS([Calcoli.AF23]+[Calcoli.AF28]))-0.0047*SIN(RADIANS([Calcoli.AF23]-[Calcoli.AF28]))+0.0003*SIN(RADIANS(2*[Calcoli.AF33]+[Calcoli.AF23]))-0.0004*SIN(RADIANS(2*[Calcoli.AF33]-[Calcoli.AF23]))-0.0006*SIN(RADIANS(2*[Calcoli.AF33]+[Calcoli.AF28]))+0.0021*SIN(RADIANS(2*[Calcoli.AF33]-[Calcoli.AF28]))+0.0003*SIN(RADIANS([Calcoli.AF23]+2*[Calcoli.AF28]))+0.0004*SIN(RADIANS([Calcoli.AF23]-2*[Calcoli.AF28]))-0.0003*SIN(RADIANS(2*[Calcoli.AF23]+[Calcoli.AF28]));4) -> -0.4224 | AH37: Corr_UQ | AI37: =of:=ROUND((0.1721-0.0004*[Calcoli.AI14])*SIN(RADIANS([Calcoli.AI23]))+0.0021*SIN(RADIANS(2*[Calcoli.AI23]))-0.628*SIN(RADIANS([Calcoli.AI28]))+0.0089*SIN(RADIANS(2*[Calcoli.AI28]))-0.0004*SIN(RADIANS(3*[Calcoli.AI28]))+0.0079*SIN(RADIANS(2*[Calcoli.AI33]))-0.0119*SIN(RADIANS([Calcoli.AI23]+[Calcoli.AI28]))-0.0047*SIN(RADIANS([Calcoli.AI23]-[Calcoli.AI28]))+0.0003*SIN(RADIANS(2*[Calcoli.AI33]+[Calcoli.AI23]))-0.0004*SIN(RADIANS(2*[Calcoli.AI33]-[Calcoli.AI23]))-0.0006*SIN(RADIANS(2*[Calcoli.AI33]+[Calcoli.AI28]))+0.0021*SIN(RADIANS(2*[Calcoli.AI33]-[Calcoli.AI28]))+0.0003*SIN(RADIANS([Calcoli.AI23]+2*[Calcoli.AI28]))+0.0004*SIN(RADIANS([Calcoli.AI23]-2*[Calcoli.AI28]))-0.0003*SIN(RADIANS(2*[Calcoli.AI23]+[Calcoli.AI28]));4) -> -0.6122 | AK37: Corr_UQ | AL37: =of:=ROUND((0.1721-0.0004*[Calcoli.AL14])*SIN(RADIANS([Calcoli.AL23]))+0.0021*SIN(RADIANS(2*[Calcoli.AL23]))-0.628*SIN(RADIANS([Calcoli.AL28]))+0.0089*SIN(RADIANS(2*[Calcoli.AL28]))-0.0004*SIN(RADIANS(3*[Calcoli.AL28]))+0.0079*SIN(RADIANS(2*[Calcoli.AL33]))-0.0119*SIN(RADIANS([Calcoli.AL23]+[Calcoli.AL28]))-0.0047*SIN(RADIANS([Calcoli.AL23]-[Calcoli.AL28]))+0.0003*SIN(RADIANS(2*[Calcoli.AL33]+[Calcoli.AL23]))-0.0004*SIN(RADIANS(2*[Calcoli.AL33]-[Calcoli.AL23]))-0.0006*SIN(RADIANS(2*[Calcoli.AL33]+[Calcoli.AL28]))+0.0021*SIN(RADIANS(2*[Calcoli.AL33]-[Calcoli.AL28]))+0.0003*SIN(RADIANS([Calcoli.AL23]+2*[Calcoli.AL28]))+0.0004*SIN(RADIANS([Calcoli.AL23]-2*[Calcoli.AL28]))-0.0003*SIN(RADIANS(2*[Calcoli.AL23]+[Calcoli.AL28]));4) -> -0.6745 | AN37: Corr_UQ | AO37: =of:=ROUND((0.1721-0.0004*[Calcoli.AO14])*SIN(RADIANS([Calcoli.AO23]))+0.0021*SIN(RADIANS(2*[Calcoli.AO23]))-0.628*SIN(RADIANS([Calcoli.AO28]))+0.0089*SIN(RADIANS(2*[Calcoli.AO28]))-0.0004*SIN(RADIANS(3*[Calcoli.AO28]))+0.0079*SIN(RADIANS(2*[Calcoli.AO33]))-0.0119*SIN(RADIANS([Calcoli.AO23]+[Calcoli.AO28]))-0.0047*SIN(RADIANS([Calcoli.AO23]-[Calcoli.AO28]))+0.0003*SIN(RADIANS(2*[Calcoli.AO33]+[Calcoli.AO23]))-0.0004*SIN(RADIANS(2*[Calcoli.AO33]-[Calcoli.AO23]))-0.0006*SIN(RADIANS(2*[Calcoli.AO33]+[Calcoli.AO28]))+0.0021*SIN(RADIANS(2*[Calcoli.AO33]-[Calcoli.AO28]))+0.0003*SIN(RADIANS([Calcoli.AO23]+2*[Calcoli.AO28]))+0.0004*SIN(RADIANS([Calcoli.AO23]-2*[Calcoli.AO28]))-0.0003*SIN(RADIANS(2*[Calcoli.AO23]+[Calcoli.AO28]));4) -> -0.4007
A38: LN | B38: =of:=ROUND([Calcoli.B15]+[Calcoli.B34];4) -> 2457722.014 | D38: LN | E38: =of:=ROUND([Calcoli.E15]+[Calcoli.E34];4) -> 2457751.788 | G38: LN | H38: =of:=ROUND([Calcoli.H15]+[Calcoli.H34];4) -> 2457781.506 | J38: LN | K38: =of:=ROUND([Calcoli.K15]+[Calcoli.K34];4) -> 2457811.125 | M38: LN | N38: =of:=ROUND([Calcoli.N15]+[Calcoli.N34];4) -> 2457840.625 | P38: LN | Q38: =of:=ROUND([Calcoli.Q15]+[Calcoli.Q34];4) -> 2457870.013 | S38: LN | T38: =of:=ROUND([Calcoli.T15]+[Calcoli.T34];4) -> 2457899.324 | V38: LN | W38: =of:=ROUND([Calcoli.W15]+[Calcoli.W34];4) -> 2457928.606 | Y38: LN | Z38: =of:=ROUND([Calcoli.Z15]+[Calcoli.Z34];4) -> 2457957.908 | AB38: LN | AC38: =of:=ROUND([Calcoli.AC15]+[Calcoli.AC34];4) -> 2457987.272 | AE38: LN | AF38: =of:=ROUND([Calcoli.AF15]+[Calcoli.AF34];4) -> 2458016.73 | AH38: LN | AI38: =of:=ROUND([Calcoli.AI15]+[Calcoli.AI34];4) -> 2458046.301 | AK38: LN | AL38: =of:=ROUND([Calcoli.AL15]+[Calcoli.AL34];4) -> 2458075.988 | AN38: LN | AO38: =of:=ROUND([Calcoli.AO15]+[Calcoli.AO34];4) -> 2458135.596
A39: PQ | B39: =of:=ROUND([Calcoli.B16]+[Calcoli.B35];4) -> 2457729.875 | D39: PQ | E39: =of:=ROUND([Calcoli.E16]+[Calcoli.E35];4) -> 2457759.322 | G39: PQ | H39: =of:=ROUND([Calcoli.H16]+[Calcoli.H35];4) -> 2457788.678 | J39: PQ | K39: =of:=ROUND([Calcoli.K16]+[Calcoli.K35];4) -> 2457817.979 | M39: PQ | N39: =of:=ROUND([Calcoli.N16]+[Calcoli.N35];4) -> 2457847.276 | P39: PQ | Q39: =of:=ROUND([Calcoli.Q16]+[Calcoli.Q35];4) -> 2457876.614 | S39: PQ | T39: =of:=ROUND([Calcoli.T16]+[Calcoli.T35];4) -> 2457906.027 | V39: PQ | W39: =of:=ROUND([Calcoli.W16]+[Calcoli.W35];4) -> 2457935.533 | Y39: PQ | Z39: =of:=ROUND([Calcoli.Z16]+[Calcoli.Z35];4) -> 2457965.139 | AB39: PQ | AC39: =of:=ROUND([Calcoli.AC16]+[Calcoli.AC35];4) -> 2457994.841 | AE39: PQ | AF39: =of:=ROUND([Calcoli.AF16]+[Calcoli.AF35];4) -> 2458024.619 | AH39: PQ | AI39: =of:=ROUND([Calcoli.AI16]+[Calcoli.AI35];4) -> 2458054.431 | AK39: PQ | AL39: =of:=ROUND([Calcoli.AL16]+[Calcoli.AL35];4) -> 2458084.209 | AN39: PQ | AO39: =of:=ROUND([Calcoli.AO16]+[Calcoli.AO35];4) -> 2458143.429
A40: LP | B40: =of:=ROUND([Calcoli.B17]+[Calcoli.B36];4) -> 2457736.505 | D40: LP | E40: =of:=ROUND([Calcoli.E17]+[Calcoli.E36];4) -> 2457765.983 | G40: LP | H40: =of:=ROUND([Calcoli.H17]+[Calcoli.H36];4) -> 2457795.524 | J40: LP | K40: =of:=ROUND([Calcoli.K17]+[Calcoli.K36];4) -> 2457825.121 | M40: LP | N40: =of:=ROUND([Calcoli.N17]+[Calcoli.N36];4) -> 2457854.757 | P40: LP | Q40: =of:=ROUND([Calcoli.Q17]+[Calcoli.Q36];4) -> 2457884.406 | S40: LP | T40: =of:=ROUND([Calcoli.T17]+[Calcoli.T36];4) -> 2457914.05 | V40: LP | W40: =of:=ROUND([Calcoli.W17]+[Calcoli.W36];4) -> 2457943.673 | Y40: LP | Z40: =of:=ROUND([Calcoli.Z17]+[Calcoli.Z36];4) -> 2457973.259 | AB40: LP | AC40: =of:=ROUND([Calcoli.AC17]+[Calcoli.AC36];4) -> 2458002.795 | AE40: LP | AF40: =of:=ROUND([Calcoli.AF17]+[Calcoli.AF36];4) -> 2458032.279 | AH40: LP | AI40: =of:=ROUND([Calcoli.AI17]+[Calcoli.AI36];4) -> 2458061.726 | AK40: LP | AL40: =of:=ROUND([Calcoli.AL17]+[Calcoli.AL36];4) -> 2458091.159 | AN40: LP | AO40: =of:=ROUND([Calcoli.AO17]+[Calcoli.AO36];4) -> 2458150.061
A41: UQ | B41: =of:=ROUND([Calcoli.B18]+[Calcoli.B37];4) -> 2457743.583 | D41: UQ | E41: =of:=ROUND([Calcoli.E18]+[Calcoli.E37];4) -> 2457773.429 | G41: UQ | H41: =of:=ROUND([Calcoli.H18]+[Calcoli.H37];4) -> 2457803.318 | J41: UQ | K41: =of:=ROUND([Calcoli.K18]+[Calcoli.K37];4) -> 2457833.17 | M41: UQ | N41: =of:=ROUND([Calcoli.N18]+[Calcoli.N37];4) -> 2457862.92 | P41: UQ | Q41: =of:=ROUND([Calcoli.Q18]+[Calcoli.Q37];4) -> 2457892.528 | S41: UQ | T41: =of:=ROUND([Calcoli.T18]+[Calcoli.T37];4) -> 2457921.986 | V41: UQ | W41: =of:=ROUND([Calcoli.W18]+[Calcoli.W37];4) -> 2457951.314 | Y41: UQ | Z41: =of:=ROUND([Calcoli.Z18]+[Calcoli.Z37];4) -> 2457980.557 | AB41: UQ | AC41: =of:=ROUND([Calcoli.AC18]+[Calcoli.AC37];4) -> 2458009.772 | AE41: UQ | AF41: =of:=ROUND([Calcoli.AF18]+[Calcoli.AF37];4) -> 2458039.022 | AH41: UQ | AI41: =of:=ROUND([Calcoli.AI18]+[Calcoli.AI37];4) -> 2458068.363 | AK41: UQ | AL41: =of:=ROUND([Calcoli.AL18]+[Calcoli.AL37];4) -> 2458097.831 | AN41: UQ | AO41: =of:=ROUND([Calcoli.AO18]+[Calcoli.AO37];4) -> 2458157.166
A42: GD_DATA | B42: =of:="2003,110100" -> 2003,110100 | D42: GD_DATA | E42: =of:="2003,110100" -> 2003,110100 | G42: GD_DATA | H42: =of:="2003,110100" -> 2003,110100 | J42: GD_DATA | K42: =of:="2003,110100" -> 2003,110100 | M42: GD_DATA | N42: =of:="2003,110100" -> 2003,110100 | P42: GD_DATA | Q42: =of:="2003,110100" -> 2003,110100 | S42: GD_DATA | T42: =of:="2003,110100" -> 2003,110100 | V42: GD_DATA | W42: =of:="2003,110100" -> 2003,110100 | Y42: GD_DATA | Z42: =of:="2003,110100" -> 2003,110100 | AB42: GD_DATA | AC42: =of:="2003,110100" -> 2003,110100 | AE42: GD_DATA | AF42: =of:="2003,110100" -> 2003,110100 | AH42: GD_DATA | AI42: =of:="2003,110100" -> 2003,110100 | AK42: GD_DATA | AL42: =of:="2003,110100" -> 2003,110100 | AN42: GD_DATA | AO42: =of:="2003,110100" -> 2003,110100
A43: YYYY | B43: =of:=IF(LEFT(RIGHT([Calcoli.B42];6);2)>2;INT([Calcoli.B42]);INT([Calcoli.B42])-1) -> 2003 | D43: YYYY | E43: =of:=IF(LEFT(RIGHT([Calcoli.E42];6);2)>2;INT([Calcoli.E42]);INT([Calcoli.E42])-1) -> 2003 | G43: YYYY | H43: =of:=IF(LEFT(RIGHT([Calcoli.H42];6);2)>2;INT([Calcoli.H42]);INT([Calcoli.H42])-1) -> 2003 | J43: YYYY | K43: =of:=IF(LEFT(RIGHT([Calcoli.K42];6);2)>2;INT([Calcoli.K42]);INT([Calcoli.K42])-1) -> 2003 | M43: YYYY | N43: =of:=IF(LEFT(RIGHT([Calcoli.N42];6);2)>2;INT([Calcoli.N42]);INT([Calcoli.N42])-1) -> 2003 | P43: YYYY | Q43: =of:=IF(LEFT(RIGHT([Calcoli.Q42];6);2)>2;INT([Calcoli.Q42]);INT([Calcoli.Q42])-1) -> 2003 | S43: YYYY | T43: =of:=IF(LEFT(RIGHT([Calcoli.T42];6);2)>2;INT([Calcoli.T42]);INT([Calcoli.T42])-1) -> 2003 | V43: YYYY | W43: =of:=IF(LEFT(RIGHT([Calcoli.W42];6);2)>2;INT([Calcoli.W42]);INT([Calcoli.W42])-1) -> 2003 | Y43: YYYY | Z43: =of:=IF(LEFT(RIGHT([Calcoli.Z42];6);2)>2;INT([Calcoli.Z42]);INT([Calcoli.Z42])-1) -> 2003 | AB43: YYYY | AC43: =of:=IF(LEFT(RIGHT([Calcoli.AC42];6);2)>2;INT([Calcoli.AC42]);INT([Calcoli.AC42])-1) -> 2003 | AE43: YYYY | AF43: =of:=IF(LEFT(RIGHT([Calcoli.AF42];6);2)>2;INT([Calcoli.AF42]);INT([Calcoli.AF42])-1) -> 2003 | AH43: YYYY | AI43: =of:=IF(LEFT(RIGHT([Calcoli.AI42];6);2)>2;INT([Calcoli.AI42]);INT([Calcoli.AI42])-1) -> 2003 | AK43: YYYY | AL43: =of:=IF(LEFT(RIGHT([Calcoli.AL42];6);2)>2;INT([Calcoli.AL42]);INT([Calcoli.AL42])-1) -> 2003 | AN43: YYYY | AO43: =of:=IF(LEFT(RIGHT([Calcoli.AO42];6);2)>2;INT([Calcoli.AO42]);INT([Calcoli.AO42])-1) -> 2003
A44: MM | B44: =of:=IF(LEFT(RIGHT([Calcoli.B42];6);2)>2;LEFT(RIGHT([Calcoli.B42];6);2);LEFT(RIGHT([Calcoli.B42];6);2)+12) -> 11 | D44: MM | E44: =of:=IF(LEFT(RIGHT([Calcoli.E42];6);2)>2;LEFT(RIGHT([Calcoli.E42];6);2);LEFT(RIGHT([Calcoli.E42];6);2)+12) -> 11 | G44: MM | H44: =of:=IF(LEFT(RIGHT([Calcoli.H42];6);2)>2;LEFT(RIGHT([Calcoli.H42];6);2);LEFT(RIGHT([Calcoli.H42];6);2)+12) -> 11 | J44: MM | K44: =of:=IF(LEFT(RIGHT([Calcoli.K42];6);2)>2;LEFT(RIGHT([Calcoli.K42];6);2);LEFT(RIGHT([Calcoli.K42];6);2)+12) -> 11 | M44: MM | N44: =of:=IF(LEFT(RIGHT([Calcoli.N42];6);2)>2;LEFT(RIGHT([Calcoli.N42];6);2);LEFT(RIGHT([Calcoli.N42];6);2)+12) -> 11 | P44: MM | Q44: =of:=IF(LEFT(RIGHT([Calcoli.Q42];6);2)>2;LEFT(RIGHT([Calcoli.Q42];6);2);LEFT(RIGHT([Calcoli.Q42];6);2)+12) -> 11 | S44: MM | T44: =of:=IF(LEFT(RIGHT([Calcoli.T42];6);2)>2;LEFT(RIGHT([Calcoli.T42];6);2);LEFT(RIGHT([Calcoli.T42];6);2)+12) -> 11 | V44: MM | W44: =of:=IF(LEFT(RIGHT([Calcoli.W42];6);2)>2;LEFT(RIGHT([Calcoli.W42];6);2);LEFT(RIGHT([Calcoli.W42];6);2)+12) -> 11 | Y44: MM | Z44: =of:=IF(LEFT(RIGHT([Calcoli.Z42];6);2)>2;LEFT(RIGHT([Calcoli.Z42];6);2);LEFT(RIGHT([Calcoli.Z42];6);2)+12) -> 11 | AB44: MM | AC44: =of:=IF(LEFT(RIGHT([Calcoli.AC42];6);2)>2;LEFT(RIGHT([Calcoli.AC42];6);2);LEFT(RIGHT([Calcoli.AC42];6);2)+12) -> 11 | AE44: MM | AF44: =of:=IF(LEFT(RIGHT([Calcoli.AF42];6);2)>2;LEFT(RIGHT([Calcoli.AF42];6);2);LEFT(RIGHT([Calcoli.AF42];6);2)+12) -> 11 | AH44: MM | AI44: =of:=IF(LEFT(RIGHT([Calcoli.AI42];6);2)>2;LEFT(RIGHT([Calcoli.AI42];6);2);LEFT(RIGHT([Calcoli.AI42];6);2)+12) -> 11 | AK44: MM | AL44: =of:=IF(LEFT(RIGHT([Calcoli.AL42];6);2)>2;LEFT(RIGHT([Calcoli.AL42];6);2);LEFT(RIGHT([Calcoli.AL42];6);2)+12) -> 11 | AN44: MM | AO44: =of:=IF(LEFT(RIGHT([Calcoli.AO42];6);2)>2;LEFT(RIGHT([Calcoli.AO42];6);2);LEFT(RIGHT([Calcoli.AO42];6);2)+12) -> 11
A45: DD_dd | B45: =of:=LEFT(RIGHT([Calcoli.B42];4);2)+(RIGHT([Calcoli.B42];2)/100) -> 1 | D45: DD_dd | E45: =of:=LEFT(RIGHT([Calcoli.E42];4);2)+(RIGHT([Calcoli.E42];2)/100) -> 1 | G45: DD_dd | H45: =of:=LEFT(RIGHT([Calcoli.H42];4);2)+(RIGHT([Calcoli.H42];2)/100) -> 1 | J45: DD_dd | K45: =of:=LEFT(RIGHT([Calcoli.K42];4);2)+(RIGHT([Calcoli.K42];2)/100) -> 1 | M45: DD_dd | N45: =of:=LEFT(RIGHT([Calcoli.N42];4);2)+(RIGHT([Calcoli.N42];2)/100) -> 1 | P45: DD_dd | Q45: =of:=LEFT(RIGHT([Calcoli.Q42];4);2)+(RIGHT([Calcoli.Q42];2)/100) -> 1 | S45: DD_dd | T45: =of:=LEFT(RIGHT([Calcoli.T42];4);2)+(RIGHT([Calcoli.T42];2)/100) -> 1 | V45: DD_dd | W45: =of:=LEFT(RIGHT([Calcoli.W42];4);2)+(RIGHT([Calcoli.W42];2)/100) -> 1 | Y45: DD_dd | Z45: =of:=LEFT(RIGHT([Calcoli.Z42];4);2)+(RIGHT([Calcoli.Z42];2)/100) -> 1 | AB45: DD_dd | AC45: =of:=LEFT(RIGHT([Calcoli.AC42];4);2)+(RIGHT([Calcoli.AC42];2)/100) -> 1 | AE45: DD_dd | AF45: =of:=LEFT(RIGHT([Calcoli.AF42];4);2)+(RIGHT([Calcoli.AF42];2)/100) -> 1 | AH45: DD_dd | AI45: =of:=LEFT(RIGHT([Calcoli.AI42];4);2)+(RIGHT([Calcoli.AI42];2)/100) -> 1 | AK45: DD_dd | AL45: =of:=LEFT(RIGHT([Calcoli.AL42];4);2)+(RIGHT([Calcoli.AL42];2)/100) -> 1 | AN45: DD_dd | AO45: =of:=LEFT(RIGHT([Calcoli.AO42];4);2)+(RIGHT([Calcoli.AO42];2)/100) -> 1
A46: A | B46: =of:=IF([Calcoli.B42]<1582.1015;0;INT([Calcoli.B43]/100)) -> 20 | D46: A | E46: =of:=IF([Calcoli.E42]<1582.1015;0;INT([Calcoli.E43]/100)) -> 20 | G46: A | H46: =of:=IF([Calcoli.H42]<1582.1015;0;INT([Calcoli.H43]/100)) -> 20 | J46: A | K46: =of:=IF([Calcoli.K42]<1582.1015;0;INT([Calcoli.K43]/100)) -> 20 | M46: A | N46: =of:=IF([Calcoli.N42]<1582.1015;0;INT([Calcoli.N43]/100)) -> 20 | P46: A | Q46: =of:=IF([Calcoli.Q42]<1582.1015;0;INT([Calcoli.Q43]/100)) -> 20 | S46: A | T46: =of:=IF([Calcoli.T42]<1582.1015;0;INT([Calcoli.T43]/100)) -> 20 | V46: A | W46: =of:=IF([Calcoli.W42]<1582.1015;0;INT([Calcoli.W43]/100)) -> 20 | Y46: A | Z46: =of:=IF([Calcoli.Z42]<1582.1015;0;INT([Calcoli.Z43]/100)) -> 20 | AB46: A | AC46: =of:=IF([Calcoli.AC42]<1582.1015;0;INT([Calcoli.AC43]/100)) -> 20 | AE46: A | AF46: =of:=IF([Calcoli.AF42]<1582.1015;0;INT([Calcoli.AF43]/100)) -> 20 | AH46: A | AI46: =of:=IF([Calcoli.AI42]<1582.1015;0;INT([Calcoli.AI43]/100)) -> 20 | AK46: A | AL46: =of:=IF([Calcoli.AL42]<1582.1015;0;INT([Calcoli.AL43]/100)) -> 20 | AN46: A | AO46: =of:=IF([Calcoli.AO42]<1582.1015;0;INT([Calcoli.AO43]/100)) -> 20
A47: B | B47: =of:=IF([Calcoli.B42]<1582.1015;0;2-[Calcoli.B46]+INT([Calcoli.B46]/4)) -> -13 | D47: B | E47: =of:=IF([Calcoli.E42]<1582.1015;0;2-[Calcoli.E46]+INT([Calcoli.E46]/4)) -> -13 | G47: B | H47: =of:=IF([Calcoli.H42]<1582.1015;0;2-[Calcoli.H46]+INT([Calcoli.H46]/4)) -> -13 | J47: B | K47: =of:=IF([Calcoli.K42]<1582.1015;0;2-[Calcoli.K46]+INT([Calcoli.K46]/4)) -> -13 | M47: B | N47: =of:=IF([Calcoli.N42]<1582.1015;0;2-[Calcoli.N46]+INT([Calcoli.N46]/4)) -> -13 | P47: B | Q47: =of:=IF([Calcoli.Q42]<1582.1015;0;2-[Calcoli.Q46]+INT([Calcoli.Q46]/4)) -> -13 | S47: B | T47: =of:=IF([Calcoli.T42]<1582.1015;0;2-[Calcoli.T46]+INT([Calcoli.T46]/4)) -> -13 | V47: B | W47: =of:=IF([Calcoli.W42]<1582.1015;0;2-[Calcoli.W46]+INT([Calcoli.W46]/4)) -> -13 | Y47: B | Z47: =of:=IF([Calcoli.Z42]<1582.1015;0;2-[Calcoli.Z46]+INT([Calcoli.Z46]/4)) -> -13 | AB47: B | AC47: =of:=IF([Calcoli.AC42]<1582.1015;0;2-[Calcoli.AC46]+INT([Calcoli.AC46]/4)) -> -13 | AE47: B | AF47: =of:=IF([Calcoli.AF42]<1582.1015;0;2-[Calcoli.AF46]+INT([Calcoli.AF46]/4)) -> -13 | AH47: B | AI47: =of:=IF([Calcoli.AI42]<1582.1015;0;2-[Calcoli.AI46]+INT([Calcoli.AI46]/4)) -> -13 | AK47: B | AL47: =of:=IF([Calcoli.AL42]<1582.1015;0;2-[Calcoli.AL46]+INT([Calcoli.AL46]/4)) -> -13 | AN47: B | AO47: =of:=IF([Calcoli.AO42]<1582.1015;0;2-[Calcoli.AO46]+INT([Calcoli.AO46]/4)) -> -13
A48: Data_JD | B48: =of:=INT(365.25*([Calcoli.B43]+4716))+INT(30.6*([Calcoli.B44]+1))+[Calcoli.B45]+[Calcoli.B47]-1524.5 -> 2452944.5 | D48: Data_JD | E48: =of:=INT(365.25*([Calcoli.E43]+4716))+INT(30.6*([Calcoli.E44]+1))+[Calcoli.E45]+[Calcoli.E47]-1524.5 -> 2452944.5 | G48: Data_JD | H48: =of:=INT(365.25*([Calcoli.H43]+4716))+INT(30.6*([Calcoli.H44]+1))+[Calcoli.H45]+[Calcoli.H47]-1524.5 -> 2452944.5 | J48: Data_JD | K48: =of:=INT(365.25*([Calcoli.K43]+4716))+INT(30.6*([Calcoli.K44]+1))+[Calcoli.K45]+[Calcoli.K47]-1524.5 -> 2452944.5 | M48: Data_JD | N48: =of:=INT(365.25*([Calcoli.N43]+4716))+INT(30.6*([Calcoli.N44]+1))+[Calcoli.N45]+[Calcoli.N47]-1524.5 -> 2452944.5 | P48: Data_JD | Q48: =of:=INT(365.25*([Calcoli.Q43]+4716))+INT(30.6*([Calcoli.Q44]+1))+[Calcoli.Q45]+[Calcoli.Q47]-1524.5 -> 2452944.5 | S48: Data_JD | T48: =of:=INT(365.25*([Calcoli.T43]+4716))+INT(30.6*([Calcoli.T44]+1))+[Calcoli.T45]+[Calcoli.T47]-1524.5 -> 2452944.5 | V48: Data_JD | W48: =of:=INT(365.25*([Calcoli.W43]+4716))+INT(30.6*([Calcoli.W44]+1))+[Calcoli.W45]+[Calcoli.W47]-1524.5 -> 2452944.5 | Y48: Data_JD | Z48: =of:=INT(365.25*([Calcoli.Z43]+4716))+INT(30.6*([Calcoli.Z44]+1))+[Calcoli.Z45]+[Calcoli.Z47]-1524.5 -> 2452944.5 | AB48: Data_JD | AC48: =of:=INT(365.25*([Calcoli.AC43]+4716))+INT(30.6*([Calcoli.AC44]+1))+[Calcoli.AC45]+[Calcoli.AC47]-1524.5 -> 2452944.5 | AE48: Data_JD | AF48: =of:=INT(365.25*([Calcoli.AF43]+4716))+INT(30.6*([Calcoli.AF44]+1))+[Calcoli.AF45]+[Calcoli.AF47]-1524.5 -> 2452944.5 | AH48: Data_JD | AI48: =of:=INT(365.25*([Calcoli.AI43]+4716))+INT(30.6*([Calcoli.AI44]+1))+[Calcoli.AI45]+[Calcoli.AI47]-1524.5 -> 2452944.5 | AK48: Data_JD | AL48: =of:=INT(365.25*([Calcoli.AL43]+4716))+INT(30.6*([Calcoli.AL44]+1))+[Calcoli.AL45]+[Calcoli.AL47]-1524.5 -> 2452944.5 | AN48: Data_JD | AO48: =of:=INT(365.25*([Calcoli.AO43]+4716))+INT(30.6*([Calcoli.AO44]+1))+[Calcoli.AO45]+[Calcoli.AO47]-1524.5 -> 2452944.5
A49: JD_Data LN | B49: =of:=[Calcoli.B38] -> 2457722.014 | D49: JD_Data LN | E49: =of:=[Calcoli.E38] -> 2457751.788 | G49: JD_Data LN | H49: =of:=[Calcoli.H38] -> 2457781.506 | J49: JD_Data LN | K49: =of:=[Calcoli.K38] -> 2457811.125 | M49: JD_Data LN | N49: =of:=[Calcoli.N38] -> 2457840.625 | P49: JD_Data LN | Q49: =of:=[Calcoli.Q38] -> 2457870.013 | S49: JD_Data LN | T49: =of:=[Calcoli.T38] -> 2457899.324 | V49: JD_Data LN | W49: =of:=[Calcoli.W38] -> 2457928.606 | Y49: JD_Data LN | Z49: =of:=[Calcoli.Z38] -> 2457957.908 | AB49: JD_Data LN | AC49: =of:=[Calcoli.AC38] -> 2457987.272 | AE49: JD_Data LN | AF49: =of:=[Calcoli.AF38] -> 2458016.73 | AH49: JD_Data LN | AI49: =of:=[Calcoli.AI38] -> 2458046.301 | AK49: JD_Data LN | AL49: =of:=[Calcoli.AL38] -> 2458075.988 | AN49: JD_Data LN | AO49: =of:=[Calcoli.AO38] -> 2458135.596
A50: Z1 | B50: =of:=INT([Calcoli.B49]+0.5) -> 2457722 | D50: Z1 | E50: =of:=INT([Calcoli.E49]+0.5) -> 2457752 | G50: Z1 | H50: =of:=INT([Calcoli.H49]+0.5) -> 2457782 | J50: Z1 | K50: =of:=INT([Calcoli.K49]+0.5) -> 2457811 | M50: Z1 | N50: =of:=INT([Calcoli.N49]+0.5) -> 2457841 | P50: Z1 | Q50: =of:=INT([Calcoli.Q49]+0.5) -> 2457870 | S50: Z1 | T50: =of:=INT([Calcoli.T49]+0.5) -> 2457899 | V50: Z1 | W50: =of:=INT([Calcoli.W49]+0.5) -> 2457929 | Y50: Z1 | Z50: =of:=INT([Calcoli.Z49]+0.5) -> 2457958 | AB50: Z1 | AC50: =of:=INT([Calcoli.AC49]+0.5) -> 2457987 | AE50: Z1 | AF50: =of:=INT([Calcoli.AF49]+0.5) -> 2458017 | AH50: Z1 | AI50: =of:=INT([Calcoli.AI49]+0.5) -> 2458046 | AK50: Z1 | AL50: =of:=INT([Calcoli.AL49]+0.5) -> 2458076 | AN50: Z1 | AO50: =of:=INT([Calcoli.AO49]+0.5) -> 2458136
A51: F1 | B51: =of:=[Calcoli.B49]+0.5-INT([Calcoli.B49]+0.5) -> 0.5136000002 | D51: F1 | E51: =of:=[Calcoli.E49]+0.5-INT([Calcoli.E49]+0.5) -> 0.2877000002 | G51: F1 | H51: =of:=[Calcoli.H49]+0.5-INT([Calcoli.H49]+0.5) -> 0.005900000222 | J51: F1 | K51: =of:=[Calcoli.K49]+0.5-INT([Calcoli.K49]+0.5) -> 0.6253 | M51: F1 | N51: =of:=[Calcoli.N49]+0.5-INT([Calcoli.N49]+0.5) -> 0.1247 | P51: F1 | Q51: =of:=[Calcoli.Q49]+0.5-INT([Calcoli.Q49]+0.5) -> 0.5128000001 | S51: F1 | T51: =of:=[Calcoli.T49]+0.5-INT([Calcoli.T49]+0.5) -> 0.824 | V51: F1 | W51: =of:=[Calcoli.W49]+0.5-INT([Calcoli.W49]+0.5) -> 0.1063000001 | Y51: F1 | Z51: =of:=[Calcoli.Z49]+0.5-INT([Calcoli.Z49]+0.5) -> 0.4081999999 | AB51: F1 | AC51: =of:=[Calcoli.AC49]+0.5-INT([Calcoli.AC49]+0.5) -> 0.7722 | AE51: F1 | AF51: =of:=[Calcoli.AF49]+0.5-INT([Calcoli.AF49]+0.5) -> 0.23 | AH51: F1 | AI51: =of:=[Calcoli.AI49]+0.5-INT([Calcoli.AI49]+0.5) -> 0.8007999999 | AK51: F1 | AL51: =of:=[Calcoli.AL49]+0.5-INT([Calcoli.AL49]+0.5) -> 0.4885 | AN51: F1 | AO51: =of:=[Calcoli.AO49]+0.5-INT([Calcoli.AO49]+0.5) -> 0.09649999999
A52: Ω1 | B52: =of:=INT(([Calcoli.B50]-1867216.25)/36524.25) -> 16 | D52: Ω1 | E52: =of:=INT(([Calcoli.E50]-1867216.25)/36524.25) -> 16 | G52: Ω1 | H52: =of:=INT(([Calcoli.H50]-1867216.25)/36524.25) -> 16 | J52: Ω1 | K52: =of:=INT(([Calcoli.K50]-1867216.25)/36524.25) -> 16 | M52: Ω1 | N52: =of:=INT(([Calcoli.N50]-1867216.25)/36524.25) -> 16 | P52: Ω1 | Q52: =of:=INT(([Calcoli.Q50]-1867216.25)/36524.25) -> 16 | S52: Ω1 | T52: =of:=INT(([Calcoli.T50]-1867216.25)/36524.25) -> 16 | V52: Ω1 | W52: =of:=INT(([Calcoli.W50]-1867216.25)/36524.25) -> 16 | Y52: Ω1 | Z52: =of:=INT(([Calcoli.Z50]-1867216.25)/36524.25) -> 16 | AB52: Ω1 | AC52: =of:=INT(([Calcoli.AC50]-1867216.25)/36524.25) -> 16 | AE52: Ω1 | AF52: =of:=INT(([Calcoli.AF50]-1867216.25)/36524.25) -> 16 | AH52: Ω1 | AI52: =of:=INT(([Calcoli.AI50]-1867216.25)/36524.25) -> 16 | AK52: Ω1 | AL52: =of:=INT(([Calcoli.AL50]-1867216.25)/36524.25) -> 16 | AN52: Ω1 | AO52: =of:=INT(([Calcoli.AO50]-1867216.25)/36524.25) -> 16
A53: A1 | B53: =of:=IF([Calcoli.B50]<2299161;[Calcoli.B50];[Calcoli.B50]+1+[Calcoli.B52]-INT([Calcoli.B52]/4)) -> 2457735 | D53: A1 | E53: =of:=IF([Calcoli.E50]<2299161;[Calcoli.E50];[Calcoli.E50]+1+[Calcoli.E52]-INT([Calcoli.E52]/4)) -> 2457765 | G53: A1 | H53: =of:=IF([Calcoli.H50]<2299161;[Calcoli.H50];[Calcoli.H50]+1+[Calcoli.H52]-INT([Calcoli.H52]/4)) -> 2457795 | J53: A1 | K53: =of:=IF([Calcoli.K50]<2299161;[Calcoli.K50];[Calcoli.K50]+1+[Calcoli.K52]-INT([Calcoli.K52]/4)) -> 2457824 | M53: A1 | N53: =of:=IF([Calcoli.N50]<2299161;[Calcoli.N50];[Calcoli.N50]+1+[Calcoli.N52]-INT([Calcoli.N52]/4)) -> 2457854 | P53: A1 | Q53: =of:=IF([Calcoli.Q50]<2299161;[Calcoli.Q50];[Calcoli.Q50]+1+[Calcoli.Q52]-INT([Calcoli.Q52]/4)) -> 2457883 | S53: A1 | T53: =of:=IF([Calcoli.T50]<2299161;[Calcoli.T50];[Calcoli.T50]+1+[Calcoli.T52]-INT([Calcoli.T52]/4)) -> 2457912 | V53: A1 | W53: =of:=IF([Calcoli.W50]<2299161;[Calcoli.W50];[Calcoli.W50]+1+[Calcoli.W52]-INT([Calcoli.W52]/4)) -> 2457942 | Y53: A1 | Z53: =of:=IF([Calcoli.Z50]<2299161;[Calcoli.Z50];[Calcoli.Z50]+1+[Calcoli.Z52]-INT([Calcoli.Z52]/4)) -> 2457971 | AB53: A1 | AC53: =of:=IF([Calcoli.AC50]<2299161;[Calcoli.AC50];[Calcoli.AC50]+1+[Calcoli.AC52]-INT([Calcoli.AC52]/4)) -> 2458000 | AE53: A1 | AF53: =of:=IF([Calcoli.AF50]<2299161;[Calcoli.AF50];[Calcoli.AF50]+1+[Calcoli.AF52]-INT([Calcoli.AF52]/4)) -> 2458030 | AH53: A1 | AI53: =of:=IF([Calcoli.AI50]<2299161;[Calcoli.AI50];[Calcoli.AI50]+1+[Calcoli.AI52]-INT([Calcoli.AI52]/4)) -> 2458059 | AK53: A1 | AL53: =of:=IF([Calcoli.AL50]<2299161;[Calcoli.AL50];[Calcoli.AL50]+1+[Calcoli.AL52]-INT([Calcoli.AL52]/4)) -> 2458089 | AN53: A1 | AO53: =of:=IF([Calcoli.AO50]<2299161;[Calcoli.AO50];[Calcoli.AO50]+1+[Calcoli.AO52]-INT([Calcoli.AO52]/4)) -> 2458149
A54: B1 | B54: =of:=[Calcoli.B53]+1524 -> 2459259 | D54: B1 | E54: =of:=[Calcoli.E53]+1524 -> 2459289 | G54: B1 | H54: =of:=[Calcoli.H53]+1524 -> 2459319 | J54: B1 | K54: =of:=[Calcoli.K53]+1524 -> 2459348 | M54: B1 | N54: =of:=[Calcoli.N53]+1524 -> 2459378 | P54: B1 | Q54: =of:=[Calcoli.Q53]+1524 -> 2459407 | S54: B1 | T54: =of:=[Calcoli.T53]+1524 -> 2459436 | V54: B1 | W54: =of:=[Calcoli.W53]+1524 -> 2459466 | Y54: B1 | Z54: =of:=[Calcoli.Z53]+1524 -> 2459495 | AB54: B1 | AC54: =of:=[Calcoli.AC53]+1524 -> 2459524 | AE54: B1 | AF54: =of:=[Calcoli.AF53]+1524 -> 2459554 | AH54: B1 | AI54: =of:=[Calcoli.AI53]+1524 -> 2459583 | AK54: B1 | AL54: =of:=[Calcoli.AL53]+1524 -> 2459613 | AN54: B1 | AO54: =of:=[Calcoli.AO53]+1524 -> 2459673
A55: C1 | B55: =of:=INT(([Calcoli.B54]-122.1)/365.25) -> 6732 | D55: C1 | E55: =of:=INT(([Calcoli.E54]-122.1)/365.25) -> 6732 | G55: C1 | H55: =of:=INT(([Calcoli.H54]-122.1)/365.25) -> 6732 | J55: C1 | K55: =of:=INT(([Calcoli.K54]-122.1)/365.25) -> 6732 | M55: C1 | N55: =of:=INT(([Calcoli.N54]-122.1)/365.25) -> 6733 | P55: C1 | Q55: =of:=INT(([Calcoli.Q54]-122.1)/365.25) -> 6733 | S55: C1 | T55: =of:=INT(([Calcoli.T54]-122.1)/365.25) -> 6733 | V55: C1 | W55: =of:=INT(([Calcoli.W54]-122.1)/365.25) -> 6733 | Y55: C1 | Z55: =of:=INT(([Calcoli.Z54]-122.1)/365.25) -> 6733 | AB55: C1 | AC55: =of:=INT(([Calcoli.AC54]-122.1)/365.25) -> 6733 | AE55: C1 | AF55: =of:=INT(([Calcoli.AF54]-122.1)/365.25) -> 6733 | AH55: C1 | AI55: =of:=INT(([Calcoli.AI54]-122.1)/365.25) -> 6733 | AK55: C1 | AL55: =of:=INT(([Calcoli.AL54]-122.1)/365.25) -> 6733 | AN55: C1 | AO55: =of:=INT(([Calcoli.AO54]-122.1)/365.25) -> 6733
A56: D1 | B56: =of:=INT(365.25*[Calcoli.B55]) -> 2458863 | D56: D1 | E56: =of:=INT(365.25*[Calcoli.E55]) -> 2458863 | G56: D1 | H56: =of:=INT(365.25*[Calcoli.H55]) -> 2458863 | J56: D1 | K56: =of:=INT(365.25*[Calcoli.K55]) -> 2458863 | M56: D1 | N56: =of:=INT(365.25*[Calcoli.N55]) -> 2459228 | P56: D1 | Q56: =of:=INT(365.25*[Calcoli.Q55]) -> 2459228 | S56: D1 | T56: =of:=INT(365.25*[Calcoli.T55]) -> 2459228 | V56: D1 | W56: =of:=INT(365.25*[Calcoli.W55]) -> 2459228 | Y56: D1 | Z56: =of:=INT(365.25*[Calcoli.Z55]) -> 2459228 | AB56: D1 | AC56: =of:=INT(365.25*[Calcoli.AC55]) -> 2459228 | AE56: D1 | AF56: =of:=INT(365.25*[Calcoli.AF55]) -> 2459228 | AH56: D1 | AI56: =of:=INT(365.25*[Calcoli.AI55]) -> 2459228 | AK56: D1 | AL56: =of:=INT(365.25*[Calcoli.AL55]) -> 2459228 | AN56: D1 | AO56: =of:=INT(365.25*[Calcoli.AO55]) -> 2459228
A57: E1 | B57: =of:=INT(([Calcoli.B54]-[Calcoli.B56])/30.6001) -> 12 | D57: E1 | E57: =of:=INT(([Calcoli.E54]-[Calcoli.E56])/30.6001) -> 13 | G57: E1 | H57: =of:=INT(([Calcoli.H54]-[Calcoli.H56])/30.6001) -> 14 | J57: E1 | K57: =of:=INT(([Calcoli.K54]-[Calcoli.K56])/30.6001) -> 15 | M57: E1 | N57: =of:=INT(([Calcoli.N54]-[Calcoli.N56])/30.6001) -> 4 | P57: E1 | Q57: =of:=INT(([Calcoli.Q54]-[Calcoli.Q56])/30.6001) -> 5 | S57: E1 | T57: =of:=INT(([Calcoli.T54]-[Calcoli.T56])/30.6001) -> 6 | V57: E1 | W57: =of:=INT(([Calcoli.W54]-[Calcoli.W56])/30.6001) -> 7 | Y57: E1 | Z57: =of:=INT(([Calcoli.Z54]-[Calcoli.Z56])/30.6001) -> 8 | AB57: E1 | AC57: =of:=INT(([Calcoli.AC54]-[Calcoli.AC56])/30.6001) -> 9 | AE57: E1 | AF57: =of:=INT(([Calcoli.AF54]-[Calcoli.AF56])/30.6001) -> 10 | AH57: E1 | AI57: =of:=INT(([Calcoli.AI54]-[Calcoli.AI56])/30.6001) -> 11 | AK57: E1 | AL57: =of:=INT(([Calcoli.AL54]-[Calcoli.AL56])/30.6001) -> 12 | AN57: E1 | AO57: =of:=INT(([Calcoli.AO54]-[Calcoli.AO56])/30.6001) -> 14
A58: Giorno_LN | B58: =of:=ROUND([Calcoli.B54]-[Calcoli.B56]-INT(30.6001*[Calcoli.B57])+[Calcoli.B51];4) -> 29.5136 | D58: Giorno_LN | E58: =of:=ROUND([Calcoli.E54]-[Calcoli.E56]-INT(30.6001*[Calcoli.E57])+[Calcoli.E51];4) -> 29.2877 | G58: Giorno_LN | H58: =of:=ROUND([Calcoli.H54]-[Calcoli.H56]-INT(30.6001*[Calcoli.H57])+[Calcoli.H51];4) -> 28.0059 | J58: Giorno_LN | K58: =of:=ROUND([Calcoli.K54]-[Calcoli.K56]-INT(30.6001*[Calcoli.K57])+[Calcoli.K51];4) -> 26.6253 | M58: Giorno_LN | N58: =of:=ROUND([Calcoli.N54]-[Calcoli.N56]-INT(30.6001*[Calcoli.N57])+[Calcoli.N51];4) -> 28.1247 | P58: Giorno_LN | Q58: =of:=ROUND([Calcoli.Q54]-[Calcoli.Q56]-INT(30.6001*[Calcoli.Q57])+[Calcoli.Q51];4) -> 26.5128 | S58: Giorno_LN | T58: =of:=ROUND([Calcoli.T54]-[Calcoli.T56]-INT(30.6001*[Calcoli.T57])+[Calcoli.T51];4) -> 25.824 | V58: Giorno_LN | W58: =of:=ROUND([Calcoli.W54]-[Calcoli.W56]-INT(30.6001*[Calcoli.W57])+[Calcoli.W51];4) -> 24.1063 | Y58: Giorno_LN | Z58: =of:=ROUND([Calcoli.Z54]-[Calcoli.Z56]-INT(30.6001*[Calcoli.Z57])+[Calcoli.Z51];4) -> 23.4082 | AB58: Giorno_LN | AC58: =of:=ROUND([Calcoli.AC54]-[Calcoli.AC56]-INT(30.6001*[Calcoli.AC57])+[Calcoli.AC51];4) -> 21.7722 | AE58: Giorno_LN | AF58: =of:=ROUND([Calcoli.AF54]-[Calcoli.AF56]-INT(30.6001*[Calcoli.AF57])+[Calcoli.AF51];4) -> 20.23 | AH58: Giorno_LN | AI58: =of:=ROUND([Calcoli.AI54]-[Calcoli.AI56]-INT(30.6001*[Calcoli.AI57])+[Calcoli.AI51];4) -> 19.8008 | AK58: Giorno_LN | AL58: =of:=ROUND([Calcoli.AL54]-[Calcoli.AL56]-INT(30.6001*[Calcoli.AL57])+[Calcoli.AL51];4) -> 18.4885 | AN58: Giorno_LN | AO58: =of:=ROUND([Calcoli.AO54]-[Calcoli.AO56]-INT(30.6001*[Calcoli.AO57])+[Calcoli.AO51];4) -> 17.0965
A59: Mese_LN | B59: =of:=IF([Calcoli.B57]<13.5;[Calcoli.B57]-1;[Calcoli.B57]-13) -> 11 | D59: Mese_LN | E59: =of:=IF([Calcoli.E57]<13.5;[Calcoli.E57]-1;[Calcoli.E57]-13) -> 12 | G59: Mese_LN | H59: =of:=IF([Calcoli.H57]<13.5;[Calcoli.H57]-1;[Calcoli.H57]-13) -> 1 | J59: Mese_LN | K59: =of:=IF([Calcoli.K57]<13.5;[Calcoli.K57]-1;[Calcoli.K57]-13) -> 2 | M59: Mese_LN | N59: =of:=IF([Calcoli.N57]<13.5;[Calcoli.N57]-1;[Calcoli.N57]-13) -> 3 | P59: Mese_LN | Q59: =of:=IF([Calcoli.Q57]<13.5;[Calcoli.Q57]-1;[Calcoli.Q57]-13) -> 4 | S59: Mese_LN | T59: =of:=IF([Calcoli.T57]<13.5;[Calcoli.T57]-1;[Calcoli.T57]-13) -> 5 | V59: Mese_LN | W59: =of:=IF([Calcoli.W57]<13.5;[Calcoli.W57]-1;[Calcoli.W57]-13) -> 6 | Y59: Mese_LN | Z59: =of:=IF([Calcoli.Z57]<13.5;[Calcoli.Z57]-1;[Calcoli.Z57]-13) -> 7 | AB59: Mese_LN | AC59: =of:=IF([Calcoli.AC57]<13.5;[Calcoli.AC57]-1;[Calcoli.AC57]-13) -> 8 | AE59: Mese_LN | AF59: =of:=IF([Calcoli.AF57]<13.5;[Calcoli.AF57]-1;[Calcoli.AF57]-13) -> 9 | AH59: Mese_LN | AI59: =of:=IF([Calcoli.AI57]<13.5;[Calcoli.AI57]-1;[Calcoli.AI57]-13) -> 10 | AK59: Mese_LN | AL59: =of:=IF([Calcoli.AL57]<13.5;[Calcoli.AL57]-1;[Calcoli.AL57]-13) -> 11 | AN59: Mese_LN | AO59: =of:=IF([Calcoli.AO57]<13.5;[Calcoli.AO57]-1;[Calcoli.AO57]-13) -> 1
A60: ANNO_LN | B60: =of:=IF([Calcoli.B59]>2.5 AND([Calcoli.B59]<12.5);[Calcoli.B55]-4716;[Calcoli.B55]-4715) -> 2016 | D60: ANNO_LN | E60: =of:=IF([Calcoli.E59]>2.5 AND([Calcoli.E59]<12.5);[Calcoli.E55]-4716;[Calcoli.E55]-4715) -> 2016 | G60: ANNO_LN | H60: =of:=IF([Calcoli.H59]>2.5 AND([Calcoli.H59]<12.5);[Calcoli.H55]-4716;[Calcoli.H55]-4715) -> 2017 | J60: ANNO_LN | K60: =of:=IF([Calcoli.K59]>2.5 AND([Calcoli.K59]<12.5);[Calcoli.K55]-4716;[Calcoli.K55]-4715) -> 2017 | M60: ANNO_LN | N60: =of:=IF([Calcoli.N59]>2.5 AND([Calcoli.N59]<12.5);[Calcoli.N55]-4716;[Calcoli.N55]-4715) -> 2017 | P60: ANNO_LN | Q60: =of:=IF([Calcoli.Q59]>2.5 AND([Calcoli.Q59]<12.5);[Calcoli.Q55]-4716;[Calcoli.Q55]-4715) -> 2017 | S60: ANNO_LN | T60: =of:=IF([Calcoli.T59]>2.5 AND([Calcoli.T59]<12.5);[Calcoli.T55]-4716;[Calcoli.T55]-4715) -> 2017 | V60: ANNO_LN | W60: =of:=IF([Calcoli.W59]>2.5 AND([Calcoli.W59]<12.5);[Calcoli.W55]-4716;[Calcoli.W55]-4715) -> 2017 | Y60: ANNO_LN | Z60: =of:=IF([Calcoli.Z59]>2.5 AND([Calcoli.Z59]<12.5);[Calcoli.Z55]-4716;[Calcoli.Z55]-4715) -> 2017 | AB60: ANNO_LN | AC60: =of:=IF([Calcoli.AC59]>2.5 AND([Calcoli.AC59]<12.5);[Calcoli.AC55]-4716;[Calcoli.AC55]-4715) -> 2017 | AE60: ANNO_LN | AF60: =of:=IF([Calcoli.AF59]>2.5 AND([Calcoli.AF59]<12.5);[Calcoli.AF55]-4716;[Calcoli.AF55]-4715) -> 2017 | AH60: ANNO_LN | AI60: =of:=IF([Calcoli.AI59]>2.5 AND([Calcoli.AI59]<12.5);[Calcoli.AI55]-4716;[Calcoli.AI55]-4715) -> 2017 | AK60: ANNO_LN | AL60: =of:=IF([Calcoli.AL59]>2.5 AND([Calcoli.AL59]<12.5);[Calcoli.AL55]-4716;[Calcoli.AL55]-4715) -> 2017 | AN60: ANNO_LN | AO60: =of:=IF([Calcoli.AO59]>2.5 AND([Calcoli.AO59]<12.5);[Calcoli.AO55]-4716;[Calcoli.AO55]-4715) -> 2018
A61: Data_GD LN | B61: =of:=DATE([Calcoli.B60];[Calcoli.B59];[Calcoli.B58]) -> 2016-11-29 | D61: Data_GD LN | E61: =of:=DATE([Calcoli.E60];[Calcoli.E59];[Calcoli.E58]) -> 2016-12-29 | G61: Data_GD LN | H61: =of:=DATE([Calcoli.H60];[Calcoli.H59];[Calcoli.H58]) -> 2017-01-28 | J61: Data_GD LN | K61: =of:=DATE([Calcoli.K60];[Calcoli.K59];[Calcoli.K58]) -> 2017-02-26 | M61: Data_GD LN | N61: =of:=DATE([Calcoli.N60];[Calcoli.N59];[Calcoli.N58]) -> 2017-03-28 | P61: Data_GD LN | Q61: =of:=DATE([Calcoli.Q60];[Calcoli.Q59];[Calcoli.Q58]) -> 2017-04-26 | S61: Data_GD LN | T61: =of:=DATE([Calcoli.T60];[Calcoli.T59];[Calcoli.T58]) -> 2017-05-25 | V61: Data_GD LN | W61: =of:=DATE([Calcoli.W60];[Calcoli.W59];[Calcoli.W58]) -> 2017-06-24 | Y61: Data_GD LN | Z61: =of:=DATE([Calcoli.Z60];[Calcoli.Z59];[Calcoli.Z58]) -> 2017-07-23 | AB61: Data_GD LN | AC61: =of:=DATE([Calcoli.AC60];[Calcoli.AC59];[Calcoli.AC58]) -> 2017-08-21 | AE61: Data_GD LN | AF61: =of:=DATE([Calcoli.AF60];[Calcoli.AF59];[Calcoli.AF58]) -> 2017-09-20 | AH61: Data_GD LN | AI61: =of:=DATE([Calcoli.AI60];[Calcoli.AI59];[Calcoli.AI58]) -> 2017-10-19 | AK61: Data_GD LN | AL61: =of:=DATE([Calcoli.AL60];[Calcoli.AL59];[Calcoli.AL58]) -> 2017-11-18 | AN61: Data_GD LN | AO61: =of:=DATE([Calcoli.AO60];[Calcoli.AO59];[Calcoli.AO58]) -> 2018-01-17
A62: Ore_GD LN | B62: =of:=INT(([Calcoli.B58]-INT([Calcoli.B58]))*24)+1 -> 13 | D62: Ore_GD LN | E62: =of:=INT(([Calcoli.E58]-INT([Calcoli.E58]))*24)+1 -> 7 | G62: Ore_GD LN | H62: =of:=INT(([Calcoli.H58]-INT([Calcoli.H58]))*24)+1 -> 1 | J62: Ore_GD LN | K62: =of:=INT(([Calcoli.K58]-INT([Calcoli.K58]))*24)+1 -> 16 | M62: Ore_GD LN | N62: =of:=INT(([Calcoli.N58]-INT([Calcoli.N58]))*24)+1 -> 3 | P62: Ore_GD LN | Q62: =of:=INT(([Calcoli.Q58]-INT([Calcoli.Q58]))*24)+1 -> 13 | S62: Ore_GD LN | T62: =of:=INT(([Calcoli.T58]-INT([Calcoli.T58]))*24)+1 -> 20 | V62: Ore_GD LN | W62: =of:=INT(([Calcoli.W58]-INT([Calcoli.W58]))*24)+1 -> 3 | Y62: Ore_GD LN | Z62: =of:=INT(([Calcoli.Z58]-INT([Calcoli.Z58]))*24)+1 -> 10 | AB62: Ore_GD LN | AC62: =of:=INT(([Calcoli.AC58]-INT([Calcoli.AC58]))*24)+1 -> 19 | AE62: Ore_GD LN | AF62: =of:=INT(([Calcoli.AF58]-INT([Calcoli.AF58]))*24)+1 -> 6 | AH62: Ore_GD LN | AI62: =of:=INT(([Calcoli.AI58]-INT([Calcoli.AI58]))*24)+1 -> 20 | AK62: Ore_GD LN | AL62: =of:=INT(([Calcoli.AL58]-INT([Calcoli.AL58]))*24)+1 -> 12 | AN62: Ore_GD LN | AO62: =of:=INT(([Calcoli.AO58]-INT([Calcoli.AO58]))*24)+1 -> 3
A63: Minuti_GD LN | B63: =of:=INT((([Calcoli.B58]-INT([Calcoli.B58]))*24-([Calcoli.B62]-1))*60) -> 19 | D63: Minuti_GD LN | E63: =of:=INT((([Calcoli.E58]-INT([Calcoli.E58]))*24-([Calcoli.E62]-1))*60) -> 54 | G63: Minuti_GD LN | H63: =of:=INT((([Calcoli.H58]-INT([Calcoli.H58]))*24-([Calcoli.H62]-1))*60) -> 8 | J63: Minuti_GD LN | K63: =of:=INT((([Calcoli.K58]-INT([Calcoli.K58]))*24-([Calcoli.K62]-1))*60) -> 0 | M63: Minuti_GD LN | N63: =of:=INT((([Calcoli.N58]-INT([Calcoli.N58]))*24-([Calcoli.N62]-1))*60) -> 59 | P63: Minuti_GD LN | Q63: =of:=INT((([Calcoli.Q58]-INT([Calcoli.Q58]))*24-([Calcoli.Q62]-1))*60) -> 18 | S63: Minuti_GD LN | T63: =of:=INT((([Calcoli.T58]-INT([Calcoli.T58]))*24-([Calcoli.T62]-1))*60) -> 46 | V63: Minuti_GD LN | W63: =of:=INT((([Calcoli.W58]-INT([Calcoli.W58]))*24-([Calcoli.W62]-1))*60) -> 33 | Y63: Minuti_GD LN | Z63: =of:=INT((([Calcoli.Z58]-INT([Calcoli.Z58]))*24-([Calcoli.Z62]-1))*60) -> 47 | AB63: Minuti_GD LN | AC63: =of:=INT((([Calcoli.AC58]-INT([Calcoli.AC58]))*24-([Calcoli.AC62]-1))*60) -> 31 | AE63: Minuti_GD LN | AF63: =of:=INT((([Calcoli.AF58]-INT([Calcoli.AF58]))*24-([Calcoli.AF62]-1))*60) -> 31 | AH63: Minuti_GD LN | AI63: =of:=INT((([Calcoli.AI58]-INT([Calcoli.AI58]))*24-([Calcoli.AI62]-1))*60) -> 13 | AK63: Minuti_GD LN | AL63: =of:=INT((([Calcoli.AL58]-INT([Calcoli.AL58]))*24-([Calcoli.AL62]-1))*60) -> 43 | AN63: Minuti_GD LN | AO63: =of:=INT((([Calcoli.AO58]-INT([Calcoli.AO58]))*24-([Calcoli.AO62]-1))*60) -> 18
A64: Secondi_GD LN | B64: =of:=INT((((([Calcoli.B58]-INT([Calcoli.B58]))*24-([Calcoli.B62]-1))*60)-[Calcoli.B63])*60) -> 35 | D64: Secondi_GD LN | E64: =of:=INT((((([Calcoli.E58]-INT([Calcoli.E58]))*24-([Calcoli.E62]-1))*60)-[Calcoli.E63])*60) -> 17 | G64: Secondi_GD LN | H64: =of:=INT((((([Calcoli.H58]-INT([Calcoli.H58]))*24-([Calcoli.H62]-1))*60)-[Calcoli.H63])*60)-120 -> -91 | J64: Secondi_GD LN | K64: =of:=INT((((([Calcoli.K58]-INT([Calcoli.K58]))*24-([Calcoli.K62]-1))*60)-[Calcoli.K63])*60)-60 -> -35 | M64: Secondi_GD LN | N64: =of:=INT((((([Calcoli.N58]-INT([Calcoli.N58]))*24-([Calcoli.N62]-1))*60)-[Calcoli.N63])*60) -> 34 | P64: Secondi_GD LN | Q64: =of:=INT((((([Calcoli.Q58]-INT([Calcoli.Q58]))*24-([Calcoli.Q62]-1))*60)-[Calcoli.Q63])*60) -> 25 | S64: Secondi_GD LN | T64: =of:=INT((((([Calcoli.T58]-INT([Calcoli.T58]))*24-([Calcoli.T62]-1))*60)-[Calcoli.T63])*60) -> 33 | V64: Secondi_GD LN | W64: =of:=INT((((([Calcoli.W58]-INT([Calcoli.W58]))*24-([Calcoli.W62]-1))*60)-[Calcoli.W63])*60) -> 4 | Y64: Secondi_GD LN | Z64: =of:=INT((((([Calcoli.Z58]-INT([Calcoli.Z58]))*24-([Calcoli.Z62]-1))*60)-[Calcoli.Z63])*60) -> 48 | AB64: Secondi_GD LN | AC64: =of:=INT((((([Calcoli.AC58]-INT([Calcoli.AC58]))*24-([Calcoli.AC62]-1))*60)-[Calcoli.AC63])*60) -> 58 | AE64: Secondi_GD LN | AF64: =of:=INT((((([Calcoli.AF58]-INT([Calcoli.AF58]))*24-([Calcoli.AF62]-1))*60)-[Calcoli.AF63])*60) -> 12 | AH64: Secondi_GD LN | AI64: =of:=INT((((([Calcoli.AI58]-INT([Calcoli.AI58]))*24-([Calcoli.AI62]-1))*60)-[Calcoli.AI63])*60) -> 9 | AK64: Secondi_GD LN | AL64: =of:=INT((((([Calcoli.AL58]-INT([Calcoli.AL58]))*24-([Calcoli.AL62]-1))*60)-[Calcoli.AL63])*60) -> 26 | AN64: Secondi_GD LN | AO64: =of:=INT((((([Calcoli.AO58]-INT([Calcoli.AO58]))*24-([Calcoli.AO62]-1))*60)-[Calcoli.AO63])*60) -> 57
A65: JD_Data PQ | B65: =of:=[Calcoli.B39] -> 2457729.875 | D65: JD_Data PQ | E65: =of:=[Calcoli.E39] -> 2457759.322 | G65: JD_Data PQ | H65: =of:=[Calcoli.H39] -> 2457788.678 | J65: JD_Data PQ | K65: =of:=[Calcoli.K39] -> 2457817.979 | M65: JD_Data PQ | N65: =of:=[Calcoli.N39] -> 2457847.276 | P65: JD_Data PQ | Q65: =of:=[Calcoli.Q39] -> 2457876.614 | S65: JD_Data PQ | T65: =of:=[Calcoli.T39] -> 2457906.027 | V65: JD_Data PQ | W65: =of:=[Calcoli.W39] -> 2457935.533 | Y65: JD_Data PQ | Z65: =of:=[Calcoli.Z39] -> 2457965.139 | AB65: JD_Data PQ | AC65: =of:=[Calcoli.AC39] -> 2457994.841 | AE65: JD_Data PQ | AF65: =of:=[Calcoli.AF39] -> 2458024.619 | AH65: JD_Data PQ | AI65: =of:=[Calcoli.AI39] -> 2458054.431 | AK65: JD_Data PQ | AL65: =of:=[Calcoli.AL39] -> 2458084.209 | AN65: JD_Data PQ | AO65: =of:=[Calcoli.AO39] -> 2458143.429
A66: Z2 | B66: =of:=INT([Calcoli.B65]+0.5) -> 2457730 | D66: Z2 | E66: =of:=INT([Calcoli.E65]+0.5) -> 2457759 | G66: Z2 | H66: =of:=INT([Calcoli.H65]+0.5) -> 2457789 | J66: Z2 | K66: =of:=INT([Calcoli.K65]+0.5) -> 2457818 | M66: Z2 | N66: =of:=INT([Calcoli.N65]+0.5) -> 2457847 | P66: Z2 | Q66: =of:=INT([Calcoli.Q65]+0.5) -> 2457877 | S66: Z2 | T66: =of:=INT([Calcoli.T65]+0.5) -> 2457906 | V66: Z2 | W66: =of:=INT([Calcoli.W65]+0.5) -> 2457936 | Y66: Z2 | Z66: =of:=INT([Calcoli.Z65]+0.5) -> 2457965 | AB66: Z2 | AC66: =of:=INT([Calcoli.AC65]+0.5) -> 2457995 | AE66: Z2 | AF66: =of:=INT([Calcoli.AF65]+0.5) -> 2458025 | AH66: Z2 | AI66: =of:=INT([Calcoli.AI65]+0.5) -> 2458054 | AK66: Z2 | AL66: =of:=INT([Calcoli.AL65]+0.5) -> 2458084 | AN66: Z2 | AO66: =of:=INT([Calcoli.AO65]+0.5) -> 2458143
A67: F2 | B67: =of:=[Calcoli.B65]+0.5-INT([Calcoli.B65]+0.5) -> 0.3752000001 | D67: F2 | E67: =of:=[Calcoli.E65]+0.5-INT([Calcoli.E65]+0.5) -> 0.8221999998 | G67: F2 | H67: =of:=[Calcoli.H65]+0.5-INT([Calcoli.H65]+0.5) -> 0.1776999999 | J67: F2 | K67: =of:=[Calcoli.K65]+0.5-INT([Calcoli.K65]+0.5) -> 0.4789 | M67: F2 | N67: =of:=[Calcoli.N65]+0.5-INT([Calcoli.N65]+0.5) -> 0.7755999998 | P67: F2 | Q67: =of:=[Calcoli.Q65]+0.5-INT([Calcoli.Q65]+0.5) -> 0.1139000002 | S67: F2 | T67: =of:=[Calcoli.T65]+0.5-INT([Calcoli.T65]+0.5) -> 0.5268999999 | V67: F2 | W67: =of:=[Calcoli.W65]+0.5-INT([Calcoli.W65]+0.5) -> 0.03310000012 | Y67: F2 | Z67: =of:=[Calcoli.Z65]+0.5-INT([Calcoli.Z65]+0.5) -> 0.6389000001 | AB67: F2 | AC67: =of:=[Calcoli.AC65]+0.5-INT([Calcoli.AC65]+0.5) -> 0.3409000002 | AE67: F2 | AF67: =of:=[Calcoli.AF65]+0.5-INT([Calcoli.AF65]+0.5) -> 0.1194000002 | AH67: F2 | AI67: =of:=[Calcoli.AI65]+0.5-INT([Calcoli.AI65]+0.5) -> 0.9308000002 | AK67: F2 | AL67: =of:=[Calcoli.AL65]+0.5-INT([Calcoli.AL65]+0.5) -> 0.7088000001 | AN67: F2 | AO67: =of:=[Calcoli.AO65]+0.5-INT([Calcoli.AO65]+0.5) -> 0.9289000002
A68: Ω2 | B68: =of:=INT(([Calcoli.B66]-1867216.25)/36524.25) -> 16 | D68: Ω2 | E68: =of:=INT(([Calcoli.E66]-1867216.25)/36524.25) -> 16 | G68: Ω2 | H68: =of:=INT(([Calcoli.H66]-1867216.25)/36524.25) -> 16 | J68: Ω2 | K68: =of:=INT(([Calcoli.K66]-1867216.25)/36524.25) -> 16 | M68: Ω2 | N68: =of:=INT(([Calcoli.N66]-1867216.25)/36524.25) -> 16 | P68: Ω2 | Q68: =of:=INT(([Calcoli.Q66]-1867216.25)/36524.25) -> 16 | S68: Ω2 | T68: =of:=INT(([Calcoli.T66]-1867216.25)/36524.25) -> 16 | V68: Ω2 | W68: =of:=INT(([Calcoli.W66]-1867216.25)/36524.25) -> 16 | Y68: Ω2 | Z68: =of:=INT(([Calcoli.Z66]-1867216.25)/36524.25) -> 16 | AB68: Ω2 | AC68: =of:=INT(([Calcoli.AC66]-1867216.25)/36524.25) -> 16 | AE68: Ω2 | AF68: =of:=INT(([Calcoli.AF66]-1867216.25)/36524.25) -> 16 | AH68: Ω2 | AI68: =of:=INT(([Calcoli.AI66]-1867216.25)/36524.25) -> 16 | AK68: Ω2 | AL68: =of:=INT(([Calcoli.AL66]-1867216.25)/36524.25) -> 16 | AN68: Ω2 | AO68: =of:=INT(([Calcoli.AO66]-1867216.25)/36524.25) -> 16
A69: A2 | B69: =of:=IF([Calcoli.B66]<2299161;[Calcoli.B66];[Calcoli.B66]+1+[Calcoli.B68]-INT([Calcoli.B68]/4)) -> 2457743 | D69: A2 | E69: =of:=IF([Calcoli.E66]<2299161;[Calcoli.E66];[Calcoli.E66]+1+[Calcoli.E68]-INT([Calcoli.E68]/4)) -> 2457772 | G69: A2 | H69: =of:=IF([Calcoli.H66]<2299161;[Calcoli.H66];[Calcoli.H66]+1+[Calcoli.H68]-INT([Calcoli.H68]/4)) -> 2457802 | J69: A2 | K69: =of:=IF([Calcoli.K66]<2299161;[Calcoli.K66];[Calcoli.K66]+1+[Calcoli.K68]-INT([Calcoli.K68]/4)) -> 2457831 | M69: A2 | N69: =of:=IF([Calcoli.N66]<2299161;[Calcoli.N66];[Calcoli.N66]+1+[Calcoli.N68]-INT([Calcoli.N68]/4)) -> 2457860 | P69: A2 | Q69: =of:=IF([Calcoli.Q66]<2299161;[Calcoli.Q66];[Calcoli.Q66]+1+[Calcoli.Q68]-INT([Calcoli.Q68]/4)) -> 2457890 | S69: A2 | T69: =of:=IF([Calcoli.T66]<2299161;[Calcoli.T66];[Calcoli.T66]+1+[Calcoli.T68]-INT([Calcoli.T68]/4)) -> 2457919 | V69: A2 | W69: =of:=IF([Calcoli.W66]<2299161;[Calcoli.W66];[Calcoli.W66]+1+[Calcoli.W68]-INT([Calcoli.W68]/4)) -> 2457949 | Y69: A2 | Z69: =of:=IF([Calcoli.Z66]<2299161;[Calcoli.Z66];[Calcoli.Z66]+1+[Calcoli.Z68]-INT([Calcoli.Z68]/4)) -> 2457978 | AB69: A2 | AC69: =of:=IF([Calcoli.AC66]<2299161;[Calcoli.AC66];[Calcoli.AC66]+1+[Calcoli.AC68]-INT([Calcoli.AC68]/4)) -> 2458008 | AE69: A2 | AF69: =of:=IF([Calcoli.AF66]<2299161;[Calcoli.AF66];[Calcoli.AF66]+1+[Calcoli.AF68]-INT([Calcoli.AF68]/4)) -> 2458038 | AH69: A2 | AI69: =of:=IF([Calcoli.AI66]<2299161;[Calcoli.AI66];[Calcoli.AI66]+1+[Calcoli.AI68]-INT([Calcoli.AI68]/4)) -> 2458067 | AK69: A2 | AL69: =of:=IF([Calcoli.AL66]<2299161;[Calcoli.AL66];[Calcoli.AL66]+1+[Calcoli.AL68]-INT([Calcoli.AL68]/4)) -> 2458097 | AN69: A2 | AO69: =of:=IF([Calcoli.AO66]<2299161;[Calcoli.AO66];[Calcoli.AO66]+1+[Calcoli.AO68]-INT([Calcoli.AO68]/4)) -> 2458156
A70: B2 | B70: =of:=[Calcoli.B69]+1524 -> 2459267 | D70: B2 | E70: =of:=[Calcoli.E69]+1524 -> 2459296 | G70: B2 | H70: =of:=[Calcoli.H69]+1524 -> 2459326 | J70: B2 | K70: =of:=[Calcoli.K69]+1524 -> 2459355 | M70: B2 | N70: =of:=[Calcoli.N69]+1524 -> 2459384 | P70: B2 | Q70: =of:=[Calcoli.Q69]+1524 -> 2459414 | S70: B2 | T70: =of:=[Calcoli.T69]+1524 -> 2459443 | V70: B2 | W70: =of:=[Calcoli.W69]+1524 -> 2459473 | Y70: B2 | Z70: =of:=[Calcoli.Z69]+1524 -> 2459502 | AB70: B2 | AC70: =of:=[Calcoli.AC69]+1524 -> 2459532 | AE70: B2 | AF70: =of:=[Calcoli.AF69]+1524 -> 2459562 | AH70: B2 | AI70: =of:=[Calcoli.AI69]+1524 -> 2459591 | AK70: B2 | AL70: =of:=[Calcoli.AL69]+1524 -> 2459621 | AN70: B2 | AO70: =of:=[Calcoli.AO69]+1524 -> 2459680
A71: C2 | B71: =of:=INT(([Calcoli.B70]-122.1)/365.25) -> 6732 | D71: C2 | E71: =of:=INT(([Calcoli.E70]-122.1)/365.25) -> 6732 | G71: C2 | H71: =of:=INT(([Calcoli.H70]-122.1)/365.25) -> 6732 | J71: C2 | K71: =of:=INT(([Calcoli.K70]-122.1)/365.25) -> 6733 | M71: C2 | N71: =of:=INT(([Calcoli.N70]-122.1)/365.25) -> 6733 | P71: C2 | Q71: =of:=INT(([Calcoli.Q70]-122.1)/365.25) -> 6733 | S71: C2 | T71: =of:=INT(([Calcoli.T70]-122.1)/365.25) -> 6733 | V71: C2 | W71: =of:=INT(([Calcoli.W70]-122.1)/365.25) -> 6733 | Y71: C2 | Z71: =of:=INT(([Calcoli.Z70]-122.1)/365.25) -> 6733 | AB71: C2 | AC71: =of:=INT(([Calcoli.AC70]-122.1)/365.25) -> 6733 | AE71: C2 | AF71: =of:=INT(([Calcoli.AF70]-122.1)/365.25) -> 6733 | AH71: C2 | AI71: =of:=INT(([Calcoli.AI70]-122.1)/365.25) -> 6733 | AK71: C2 | AL71: =of:=INT(([Calcoli.AL70]-122.1)/365.25) -> 6733 | AN71: C2 | AO71: =of:=INT(([Calcoli.AO70]-122.1)/365.25) -> 6733
A72: D2 | B72: =of:=INT(365.25*[Calcoli.B71]) -> 2458863 | D72: D2 | E72: =of:=INT(365.25*[Calcoli.E71]) -> 2458863 | G72: D2 | H72: =of:=INT(365.25*[Calcoli.H71]) -> 2458863 | J72: D2 | K72: =of:=INT(365.25*[Calcoli.K71]) -> 2459228 | M72: D2 | N72: =of:=INT(365.25*[Calcoli.N71]) -> 2459228 | P72: D2 | Q72: =of:=INT(365.25*[Calcoli.Q71]) -> 2459228 | S72: D2 | T72: =of:=INT(365.25*[Calcoli.T71]) -> 2459228 | V72: D2 | W72: =of:=INT(365.25*[Calcoli.W71]) -> 2459228 | Y72: D2 | Z72: =of:=INT(365.25*[Calcoli.Z71]) -> 2459228 | AB72: D2 | AC72: =of:=INT(365.25*[Calcoli.AC71]) -> 2459228 | AE72: D2 | AF72: =of:=INT(365.25*[Calcoli.AF71]) -> 2459228 | AH72: D2 | AI72: =of:=INT(365.25*[Calcoli.AI71]) -> 2459228 | AK72: D2 | AL72: =of:=INT(365.25*[Calcoli.AL71]) -> 2459228 | AN72: D2 | AO72: =of:=INT(365.25*[Calcoli.AO71]) -> 2459228
A73: E2 | B73: =of:=INT(([Calcoli.B70]-[Calcoli.B72])/30.6001) -> 13 | D73: E2 | E73: =of:=INT(([Calcoli.E70]-[Calcoli.E72])/30.6001) -> 14 | G73: E2 | H73: =of:=INT(([Calcoli.H70]-[Calcoli.H72])/30.6001) -> 15 | J73: E2 | K73: =of:=INT(([Calcoli.K70]-[Calcoli.K72])/30.6001) -> 4 | M73: E2 | N73: =of:=INT(([Calcoli.N70]-[Calcoli.N72])/30.6001) -> 5 | P73: E2 | Q73: =of:=INT(([Calcoli.Q70]-[Calcoli.Q72])/30.6001) -> 6 | S73: E2 | T73: =of:=INT(([Calcoli.T70]-[Calcoli.T72])/30.6001) -> 7 | V73: E2 | W73: =of:=INT(([Calcoli.W70]-[Calcoli.W72])/30.6001) -> 8 | Y73: E2 | Z73: =of:=INT(([Calcoli.Z70]-[Calcoli.Z72])/30.6001) -> 8 | AB73: E2 | AC73: =of:=INT(([Calcoli.AC70]-[Calcoli.AC72])/30.6001) -> 9 | AE73: E2 | AF73: =of:=INT(([Calcoli.AF70]-[Calcoli.AF72])/30.6001) -> 10 | AH73: E2 | AI73: =of:=INT(([Calcoli.AI70]-[Calcoli.AI72])/30.6001) -> 11 | AK73: E2 | AL73: =of:=INT(([Calcoli.AL70]-[Calcoli.AL72])/30.6001) -> 12 | AN73: E2 | AO73: =of:=INT(([Calcoli.AO70]-[Calcoli.AO72])/30.6001) -> 14
A74: Giorno_PQ | B74: =of:=ROUND([Calcoli.B70]-[Calcoli.B72]-INT(30.6001*[Calcoli.B73])+[Calcoli.B67];4) -> 7.3752 | D74: Giorno_PQ | E74: =of:=ROUND([Calcoli.E70]-[Calcoli.E72]-INT(30.6001*[Calcoli.E73])+[Calcoli.E67];4) -> 5.8222 | G74: Giorno_PQ | H74: =of:=ROUND([Calcoli.H70]-[Calcoli.H72]-INT(30.6001*[Calcoli.H73])+[Calcoli.H67];4) -> 4.1777 | J74: Giorno_PQ | K74: =of:=ROUND([Calcoli.K70]-[Calcoli.K72]-INT(30.6001*[Calcoli.K73])+[Calcoli.K67];4) -> 5.4789 | M74: Giorno_PQ | N74: =of:=ROUND([Calcoli.N70]-[Calcoli.N72]-INT(30.6001*[Calcoli.N73])+[Calcoli.N67];4) -> 3.7756 | P74: Giorno_PQ | Q74: =of:=ROUND([Calcoli.Q70]-[Calcoli.Q72]-INT(30.6001*[Calcoli.Q73])+[Calcoli.Q67];4) -> 3.1139 | S74: Giorno_PQ | T74: =of:=ROUND([Calcoli.T70]-[Calcoli.T72]-INT(30.6001*[Calcoli.T73])+[Calcoli.T67];4) -> 1.5269 | V74: Giorno_PQ | W74: =of:=ROUND([Calcoli.W70]-[Calcoli.W72]-INT(30.6001*[Calcoli.W73])+[Calcoli.W67];4) -> 1.0331 | Y74: Giorno_PQ | Z74: =of:=ROUND([Calcoli.Z70]-[Calcoli.Z72]-INT(30.6001*[Calcoli.Z73])+[Calcoli.Z67];4) -> 30.6389 | AB74: Giorno_PQ | AC74: =of:=ROUND([Calcoli.AC70]-[Calcoli.AC72]-INT(30.6001*[Calcoli.AC73])+[Calcoli.AC67];4) -> 29.3409 | AE74: Giorno_PQ | AF74: =of:=ROUND([Calcoli.AF70]-[Calcoli.AF72]-INT(30.6001*[Calcoli.AF73])+[Calcoli.AF67];4) -> 28.1194 | AH74: Giorno_PQ | AI74: =of:=ROUND([Calcoli.AI70]-[Calcoli.AI72]-INT(30.6001*[Calcoli.AI73])+[Calcoli.AI67];4) -> 27.9308 | AK74: Giorno_PQ | AL74: =of:=ROUND([Calcoli.AL70]-[Calcoli.AL72]-INT(30.6001*[Calcoli.AL73])+[Calcoli.AL67];4) -> 26.7088 | AN74: Giorno_PQ | AO74: =of:=ROUND([Calcoli.AO70]-[Calcoli.AO72]-INT(30.6001*[Calcoli.AO73])+[Calcoli.AO67];4) -> 24.9289
A75: Mese_PQ | B75: =of:=IF([Calcoli.B73]<13.5;[Calcoli.B73]-1;[Calcoli.B73]-13) -> 12 | D75: Mese_PQ | E75: =of:=IF([Calcoli.E73]<13.5;[Calcoli.E73]-1;[Calcoli.E73]-13) -> 1 | G75: Mese_PQ | H75: =of:=IF([Calcoli.H73]<13.5;[Calcoli.H73]-1;[Calcoli.H73]-13) -> 2 | J75: Mese_PQ | K75: =of:=IF([Calcoli.K73]<13.5;[Calcoli.K73]-1;[Calcoli.K73]-13) -> 3 | M75: Mese_PQ | N75: =of:=IF([Calcoli.N73]<13.5;[Calcoli.N73]-1;[Calcoli.N73]-13) -> 4 | P75: Mese_PQ | Q75: =of:=IF([Calcoli.Q73]<13.5;[Calcoli.Q73]-1;[Calcoli.Q73]-13) -> 5 | S75: Mese_PQ | T75: =of:=IF([Calcoli.T73]<13.5;[Calcoli.T73]-1;[Calcoli.T73]-13) -> 6 | V75: Mese_PQ | W75: =of:=IF([Calcoli.W73]<13.5;[Calcoli.W73]-1;[Calcoli.W73]-13) -> 7 | Y75: Mese_PQ | Z75: =of:=IF([Calcoli.Z73]<13.5;[Calcoli.Z73]-1;[Calcoli.Z73]-13) -> 7 | AB75: Mese_PQ | AC75: =of:=IF([Calcoli.AC73]<13.5;[Calcoli.AC73]-1;[Calcoli.AC73]-13) -> 8 | AE75: Mese_PQ | AF75: =of:=IF([Calcoli.AF73]<13.5;[Calcoli.AF73]-1;[Calcoli.AF73]-13) -> 9 | AH75: Mese_PQ | AI75: =of:=IF([Calcoli.AI73]<13.5;[Calcoli.AI73]-1;[Calcoli.AI73]-13) -> 10 | AK75: Mese_PQ | AL75: =of:=IF([Calcoli.AL73]<13.5;[Calcoli.AL73]-1;[Calcoli.AL73]-13) -> 11 | AN75: Mese_PQ | AO75: =of:=IF([Calcoli.AO73]<13.5;[Calcoli.AO73]-1;[Calcoli.AO73]-13) -> 1
A76: ANNO_PQ | B76: =of:=IF([Calcoli.B75]>2.5 AND([Calcoli.B75]<12.5);[Calcoli.B71]-4716;[Calcoli.B71]-4715) -> 2016 | D76: ANNO_PQ | E76: =of:=IF([Calcoli.E75]>2.5 AND([Calcoli.E75]<12.5);[Calcoli.E71]-4716;[Calcoli.E71]-4715) -> 2017 | G76: ANNO_PQ | H76: =of:=IF([Calcoli.H75]>2.5 AND([Calcoli.H75]<12.5);[Calcoli.H71]-4716;[Calcoli.H71]-4715) -> 2017 | J76: ANNO_PQ | K76: =of:=IF([Calcoli.K75]>2.5 AND([Calcoli.K75]<12.5);[Calcoli.K71]-4716;[Calcoli.K71]-4715) -> 2017 | M76: ANNO_PQ | N76: =of:=IF([Calcoli.N75]>2.5 AND([Calcoli.N75]<12.5);[Calcoli.N71]-4716;[Calcoli.N71]-4715) -> 2017 | P76: ANNO_PQ | Q76: =of:=IF([Calcoli.Q75]>2.5 AND([Calcoli.Q75]<12.5);[Calcoli.Q71]-4716;[Calcoli.Q71]-4715) -> 2017 | S76: ANNO_PQ | T76: =of:=IF([Calcoli.T75]>2.5 AND([Calcoli.T75]<12.5);[Calcoli.T71]-4716;[Calcoli.T71]-4715) -> 2017 | V76: ANNO_PQ | W76: =of:=IF([Calcoli.W75]>2.5 AND([Calcoli.W75]<12.5);[Calcoli.W71]-4716;[Calcoli.W71]-4715) -> 2017 | Y76: ANNO_PQ | Z76: =of:=IF([Calcoli.Z75]>2.5 AND([Calcoli.Z75]<12.5);[Calcoli.Z71]-4716;[Calcoli.Z71]-4715) -> 2017 | AB76: ANNO_PQ | AC76: =of:=IF([Calcoli.AC75]>2.5 AND([Calcoli.AC75]<12.5);[Calcoli.AC71]-4716;[Calcoli.AC71]-4715) -> 2017 | AE76: ANNO_PQ | AF76: =of:=IF([Calcoli.AF75]>2.5 AND([Calcoli.AF75]<12.5);[Calcoli.AF71]-4716;[Calcoli.AF71]-4715) -> 2017 | AH76: ANNO_PQ | AI76: =of:=IF([Calcoli.AI75]>2.5 AND([Calcoli.AI75]<12.5);[Calcoli.AI71]-4716;[Calcoli.AI71]-4715) -> 2017 | AK76: ANNO_PQ | AL76: =of:=IF([Calcoli.AL75]>2.5 AND([Calcoli.AL75]<12.5);[Calcoli.AL71]-4716;[Calcoli.AL71]-4715) -> 2017 | AN76: ANNO_PQ | AO76: =of:=IF([Calcoli.AO75]>2.5 AND([Calcoli.AO75]<12.5);[Calcoli.AO71]-4716;[Calcoli.AO71]-4715) -> 2018
A77: Data_GD PQ | B77: =of:=DATE([Calcoli.B76];[Calcoli.B75];[Calcoli.B74]) -> 2016-12-07 | D77: Data_GD PQ | E77: =of:=DATE([Calcoli.E76];[Calcoli.E75];[Calcoli.E74]) -> 2017-01-05 | G77: Data_GD PQ | H77: =of:=DATE([Calcoli.H76];[Calcoli.H75];[Calcoli.H74]) -> 2017-02-04 | J77: Data_GD PQ | K77: =of:=DATE([Calcoli.K76];[Calcoli.K75];[Calcoli.K74]) -> 2017-03-05 | M77: Data_GD PQ | N77: =of:=DATE([Calcoli.N76];[Calcoli.N75];[Calcoli.N74]) -> 2017-04-03 | P77: Data_GD PQ | Q77: =of:=DATE([Calcoli.Q76];[Calcoli.Q75];[Calcoli.Q74]) -> 2017-05-03 | S77: Data_GD PQ | T77: =of:=DATE([Calcoli.T76];[Calcoli.T75];[Calcoli.T74]) -> 2017-06-01 | V77: Data_GD PQ | W77: =of:=DATE([Calcoli.W76];[Calcoli.W75];[Calcoli.W74]) -> 2017-07-01 | Y77: Data_GD PQ | Z77: =of:=DATE([Calcoli.Z76];[Calcoli.Z75];[Calcoli.Z74]) -> 2017-07-30 | AB77: Data_GD PQ | AC77: =of:=DATE([Calcoli.AC76];[Calcoli.AC75];[Calcoli.AC74]) -> 2017-08-29 | AE77: Data_GD PQ | AF77: =of:=DATE([Calcoli.AF76];[Calcoli.AF75];[Calcoli.AF74]) -> 2017-09-28 | AH77: Data_GD PQ | AI77: =of:=DATE([Calcoli.AI76];[Calcoli.AI75];[Calcoli.AI74]) -> 2017-10-27 | AK77: Data_GD PQ | AL77: =of:=DATE([Calcoli.AL76];[Calcoli.AL75];[Calcoli.AL74]) -> 2017-11-26 | AN77: Data_GD PQ | AO77: =of:=DATE([Calcoli.AO76];[Calcoli.AO75];[Calcoli.AO74]) -> 2018-01-24
A78: Ore_GD PQ | B78: =of:=INT(([Calcoli.B74]-INT([Calcoli.B74]))*24)+1 -> 10 | D78: Ore_GD PQ | E78: =of:=INT(([Calcoli.E74]-INT([Calcoli.E74]))*24)+1 -> 20 | G78: Ore_GD PQ | H78: =of:=INT(([Calcoli.H74]-INT([Calcoli.H74]))*24)+1 -> 5 | J78: Ore_GD PQ | K78: =of:=INT(([Calcoli.K74]-INT([Calcoli.K74]))*24)+1 -> 12 | M78: Ore_GD PQ | N78: =of:=INT(([Calcoli.N74]-INT([Calcoli.N74]))*24)+1 -> 19 | P78: Ore_GD PQ | Q78: =of:=INT(([Calcoli.Q74]-INT([Calcoli.Q74]))*24)+1 -> 3 | S78: Ore_GD PQ | T78: =of:=INT(([Calcoli.T74]-INT([Calcoli.T74]))*24)+1 -> 13 | V78: Ore_GD PQ | W78: =of:=INT(([Calcoli.W74]-INT([Calcoli.W74]))*24)+1 -> 1 | Y78: Ore_GD PQ | Z78: =of:=INT(([Calcoli.Z74]-INT([Calcoli.Z74]))*24)+1 -> 16 | AB78: Ore_GD PQ | AC78: =of:=INT(([Calcoli.AC74]-INT([Calcoli.AC74]))*24)+1 -> 9 | AE78: Ore_GD PQ | AF78: =of:=INT(([Calcoli.AF74]-INT([Calcoli.AF74]))*24)+1 -> 3 | AH78: Ore_GD PQ | AI78: =of:=INT(([Calcoli.AI74]-INT([Calcoli.AI74]))*24)+1 -> 23 | AK78: Ore_GD PQ | AL78: =of:=INT(([Calcoli.AL74]-INT([Calcoli.AL74]))*24)+1 -> 18 | AN78: Ore_GD PQ | AO78: =of:=INT(([Calcoli.AO74]-INT([Calcoli.AO74]))*24)+1 -> 23
A79: Minuti_GD PQ | B79: =of:=INT((([Calcoli.B74]-INT([Calcoli.B74]))*24-([Calcoli.B78]-1))*60) -> 0 | D79: Minuti_GD PQ | E79: =of:=INT((([Calcoli.E74]-INT([Calcoli.E74]))*24-([Calcoli.E78]-1))*60) -> 43 | G79: Minuti_GD PQ | H79: =of:=INT((([Calcoli.H74]-INT([Calcoli.H74]))*24-([Calcoli.H78]-1))*60) -> 15 | J79: Minuti_GD PQ | K79: =of:=INT((([Calcoli.K74]-INT([Calcoli.K74]))*24-([Calcoli.K78]-1))*60) -> 29 | M79: Minuti_GD PQ | N79: =of:=INT((([Calcoli.N74]-INT([Calcoli.N74]))*24-([Calcoli.N78]-1))*60) -> 36 | P79: Minuti_GD PQ | Q79: =of:=INT((([Calcoli.Q74]-INT([Calcoli.Q74]))*24-([Calcoli.Q78]-1))*60) -> 44 | S79: Minuti_GD PQ | T79: =of:=INT((([Calcoli.T74]-INT([Calcoli.T74]))*24-([Calcoli.T78]-1))*60) -> 38 | V79: Minuti_GD PQ | W79: =of:=INT((([Calcoli.W74]-INT([Calcoli.W74]))*24-([Calcoli.W78]-1))*60) -> 47 | Y79: Minuti_GD PQ | Z79: =of:=INT((([Calcoli.Z74]-INT([Calcoli.Z74]))*24-([Calcoli.Z78]-1))*60) -> 20 | AB79: Minuti_GD PQ | AC79: =of:=INT((([Calcoli.AC74]-INT([Calcoli.AC74]))*24-([Calcoli.AC78]-1))*60) -> 10 | AE79: Minuti_GD PQ | AF79: =of:=INT((([Calcoli.AF74]-INT([Calcoli.AF74]))*24-([Calcoli.AF78]-1))*60) -> 51 | AH79: Minuti_GD PQ | AI79: =of:=INT((([Calcoli.AI74]-INT([Calcoli.AI74]))*24-([Calcoli.AI78]-1))*60) -> 20 | AK79: Minuti_GD PQ | AL79: =of:=INT((([Calcoli.AL74]-INT([Calcoli.AL74]))*24-([Calcoli.AL78]-1))*60) -> 0 | AN79: Minuti_GD PQ | AO79: =of:=INT((([Calcoli.AO74]-INT([Calcoli.AO74]))*24-([Calcoli.AO78]-1))*60) -> 17
A80: Secondi_GD PQ | B80: =of:=INT((((([Calcoli.B74]-INT([Calcoli.B74]))*24-([Calcoli.B78]-1))*60)-[Calcoli.B79])*60) -> 17 | D80: Secondi_GD PQ | E80: =of:=INT((((([Calcoli.E74]-INT([Calcoli.E74]))*24-([Calcoli.E78]-1))*60)-[Calcoli.E79])*60)+60 -> 118 | G80: Secondi_GD PQ | H80: =of:=INT((((([Calcoli.H74]-INT([Calcoli.H74]))*24-([Calcoli.H78]-1))*60)-[Calcoli.H79])*60)+60 -> 113 | J80: Secondi_GD PQ | K80: =of:=INT((((([Calcoli.K74]-INT([Calcoli.K74]))*24-([Calcoli.K78]-1))*60)-[Calcoli.K79])*60) -> 36 | M80: Secondi_GD PQ | N80: =of:=INT((((([Calcoli.N74]-INT([Calcoli.N74]))*24-([Calcoli.N78]-1))*60)-[Calcoli.N79])*60) -> 51 | P80: Secondi_GD PQ | Q80: =of:=INT((((([Calcoli.Q74]-INT([Calcoli.Q74]))*24-([Calcoli.Q78]-1))*60)-[Calcoli.Q79])*60) -> 0 | S80: Secondi_GD PQ | T80: =of:=INT((((([Calcoli.T74]-INT([Calcoli.T74]))*24-([Calcoli.T78]-1))*60)-[Calcoli.T79])*60) -> 44 | V80: Secondi_GD PQ | W80: =of:=INT((((([Calcoli.W74]-INT([Calcoli.W74]))*24-([Calcoli.W78]-1))*60)-[Calcoli.W79])*60) -> 39 | Y80: Secondi_GD PQ | Z80: =of:=INT((((([Calcoli.Z74]-INT([Calcoli.Z74]))*24-([Calcoli.Z78]-1))*60)-[Calcoli.Z79])*60) -> 0 | AB80: Secondi_GD PQ | AC80: =of:=INT((((([Calcoli.AC74]-INT([Calcoli.AC74]))*24-([Calcoli.AC78]-1))*60)-[Calcoli.AC79])*60) -> 53 | AE80: Secondi_GD PQ | AF80: =of:=INT((((([Calcoli.AF74]-INT([Calcoli.AF74]))*24-([Calcoli.AF78]-1))*60)-[Calcoli.AF79])*60) -> 56 | AH80: Secondi_GD PQ | AI80: =of:=INT((((([Calcoli.AI74]-INT([Calcoli.AI74]))*24-([Calcoli.AI78]-1))*60)-[Calcoli.AI79])*60) -> 21 | AK80: Secondi_GD PQ | AL80: =of:=INT((((([Calcoli.AL74]-INT([Calcoli.AL74]))*24-([Calcoli.AL78]-1))*60)-[Calcoli.AL79])*60) -> 40 | AN80: Secondi_GD PQ | AO80: =of:=INT((((([Calcoli.AO74]-INT([Calcoli.AO74]))*24-([Calcoli.AO78]-1))*60)-[Calcoli.AO79])*60) -> 36
A81: JD_Data LP | B81: =of:=[Calcoli.B40] -> 2457736.505 | D81: JD_Data LP | E81: =of:=[Calcoli.E40] -> 2457765.983 | G81: JD_Data LP | H81: =of:=[Calcoli.H40] -> 2457795.524 | J81: JD_Data LP | K81: =of:=[Calcoli.K40] -> 2457825.121 | M81: JD_Data LP | N81: =of:=[Calcoli.N40] -> 2457854.757 | P81: JD_Data LP | Q81: =of:=[Calcoli.Q40] -> 2457884.406 | S81: JD_Data LP | T81: =of:=[Calcoli.T40] -> 2457914.05 | V81: JD_Data LP | W81: =of:=[Calcoli.W40] -> 2457943.673 | Y81: JD_Data LP | Z81: =of:=[Calcoli.Z40] -> 2457973.259 | AB81: JD_Data LP | AC81: =of:=[Calcoli.AC40] -> 2458002.795 | AE81: JD_Data LP | AF81: =of:=[Calcoli.AF40] -> 2458032.279 | AH81: JD_Data LP | AI81: =of:=[Calcoli.AI40] -> 2458061.726 | AK81: JD_Data LP | AL81: =of:=[Calcoli.AL40] -> 2458091.159 | AN81: JD_Data LP | AO81: =of:=[Calcoli.AO40] -> 2458150.061
A82: Z3 | B82: =of:=INT([Calcoli.B81]+0.5) -> 2457737 | D82: Z3 | E82: =of:=INT([Calcoli.E81]+0.5) -> 2457766 | G82: Z3 | H82: =of:=INT([Calcoli.H81]+0.5) -> 2457796 | J82: Z3 | K82: =of:=INT([Calcoli.K81]+0.5) -> 2457825 | M82: Z3 | N82: =of:=INT([Calcoli.N81]+0.5) -> 2457855 | P82: Z3 | Q82: =of:=INT([Calcoli.Q81]+0.5) -> 2457884 | S82: Z3 | T82: =of:=INT([Calcoli.T81]+0.5) -> 2457914 | V82: Z3 | W82: =of:=INT([Calcoli.W81]+0.5) -> 2457944 | Y82: Z3 | Z82: =of:=INT([Calcoli.Z81]+0.5) -> 2457973 | AB82: Z3 | AC82: =of:=INT([Calcoli.AC81]+0.5) -> 2458003 | AE82: Z3 | AF82: =of:=INT([Calcoli.AF81]+0.5) -> 2458032 | AH82: Z3 | AI82: =of:=INT([Calcoli.AI81]+0.5) -> 2458062 | AK82: Z3 | AL82: =of:=INT([Calcoli.AL81]+0.5) -> 2458091 | AN82: Z3 | AO82: =of:=INT([Calcoli.AO81]+0.5) -> 2458150
A83: F3 | B83: =of:=[Calcoli.B81]+0.5-INT([Calcoli.B81]+0.5) -> 0.004800000228 | D83: F3 | E83: =of:=[Calcoli.E81]+0.5-INT([Calcoli.E81]+0.5) -> 0.4827999999 | G83: F3 | H83: =of:=[Calcoli.H81]+0.5-INT([Calcoli.H81]+0.5) -> 0.02369999979 | J83: F3 | K83: =of:=[Calcoli.K81]+0.5-INT([Calcoli.K81]+0.5) -> 0.6214999999 | M83: F3 | N83: =of:=[Calcoli.N81]+0.5-INT([Calcoli.N81]+0.5) -> 0.2566 | P83: F3 | Q83: =of:=[Calcoli.Q81]+0.5-INT([Calcoli.Q81]+0.5) -> 0.9057 | S83: F3 | T83: =of:=[Calcoli.T81]+0.5-INT([Calcoli.T81]+0.5) -> 0.5496999999 | V83: F3 | W83: =of:=[Calcoli.W81]+0.5-INT([Calcoli.W81]+0.5) -> 0.1727999998 | Y83: F3 | Z83: =of:=[Calcoli.Z81]+0.5-INT([Calcoli.Z81]+0.5) -> 0.7592000002 | AB83: F3 | AC83: =of:=[Calcoli.AC81]+0.5-INT([Calcoli.AC81]+0.5) -> 0.2954000002 | AE83: F3 | AF83: =of:=[Calcoli.AF81]+0.5-INT([Calcoli.AF81]+0.5) -> 0.7793999999 | AH83: F3 | AI83: =of:=[Calcoli.AI81]+0.5-INT([Calcoli.AI81]+0.5) -> 0.2256999998 | AK83: F3 | AL83: =of:=[Calcoli.AL81]+0.5-INT([Calcoli.AL81]+0.5) -> 0.6590999998 | AN83: F3 | AO83: =of:=[Calcoli.AO81]+0.5-INT([Calcoli.AO81]+0.5) -> 0.5614
A84: Ω3 | B84: =of:=INT(([Calcoli.B82]-1867216.25)/36524.25) -> 16 | D84: Ω3 | E84: =of:=INT(([Calcoli.E82]-1867216.25)/36524.25) -> 16 | G84: Ω3 | H84: =of:=INT(([Calcoli.H82]-1867216.25)/36524.25) -> 16 | J84: Ω3 | K84: =of:=INT(([Calcoli.K82]-1867216.25)/36524.25) -> 16 | M84: Ω3 | N84: =of:=INT(([Calcoli.N82]-1867216.25)/36524.25) -> 16 | P84: Ω3 | Q84: =of:=INT(([Calcoli.Q82]-1867216.25)/36524.25) -> 16 | S84: Ω3 | T84: =of:=INT(([Calcoli.T82]-1867216.25)/36524.25) -> 16 | V84: Ω3 | W84: =of:=INT(([Calcoli.W82]-1867216.25)/36524.25) -> 16 | Y84: Ω3 | Z84: =of:=INT(([Calcoli.Z82]-1867216.25)/36524.25) -> 16 | AB84: Ω3 | AC84: =of:=INT(([Calcoli.AC82]-1867216.25)/36524.25) -> 16 | AE84: Ω3 | AF84: =of:=INT(([Calcoli.AF82]-1867216.25)/36524.25) -> 16 | AH84: Ω3 | AI84: =of:=INT(([Calcoli.AI82]-1867216.25)/36524.25) -> 16 | AK84: Ω3 | AL84: =of:=INT(([Calcoli.AL82]-1867216.25)/36524.25) -> 16 | AN84: Ω3 | AO84: =of:=INT(([Calcoli.AO82]-1867216.25)/36524.25) -> 16
A85: A3 | B85: =of:=IF([Calcoli.B82]<2299161;[Calcoli.B82];[Calcoli.B82]+1+[Calcoli.B84]-INT([Calcoli.B84]/4)) -> 2457750 | D85: A3 | E85: =of:=IF([Calcoli.E82]<2299161;[Calcoli.E82];[Calcoli.E82]+1+[Calcoli.E84]-INT([Calcoli.E84]/4)) -> 2457779 | G85: A3 | H85: =of:=IF([Calcoli.H82]<2299161;[Calcoli.H82];[Calcoli.H82]+1+[Calcoli.H84]-INT([Calcoli.H84]/4)) -> 2457809 | J85: A3 | K85: =of:=IF([Calcoli.K82]<2299161;[Calcoli.K82];[Calcoli.K82]+1+[Calcoli.K84]-INT([Calcoli.K84]/4)) -> 2457838 | M85: A3 | N85: =of:=IF([Calcoli.N82]<2299161;[Calcoli.N82];[Calcoli.N82]+1+[Calcoli.N84]-INT([Calcoli.N84]/4)) -> 2457868 | P85: A3 | Q85: =of:=IF([Calcoli.Q82]<2299161;[Calcoli.Q82];[Calcoli.Q82]+1+[Calcoli.Q84]-INT([Calcoli.Q84]/4)) -> 2457897 | S85: A3 | T85: =of:=IF([Calcoli.T82]<2299161;[Calcoli.T82];[Calcoli.T82]+1+[Calcoli.T84]-INT([Calcoli.T84]/4)) -> 2457927 | V85: A3 | W85: =of:=IF([Calcoli.W82]<2299161;[Calcoli.W82];[Calcoli.W82]+1+[Calcoli.W84]-INT([Calcoli.W84]/4)) -> 2457957 | Y85: A3 | Z85: =of:=IF([Calcoli.Z82]<2299161;[Calcoli.Z82];[Calcoli.Z82]+1+[Calcoli.Z84]-INT([Calcoli.Z84]/4)) -> 2457986 | AB85: A3 | AC85: =of:=IF([Calcoli.AC82]<2299161;[Calcoli.AC82];[Calcoli.AC82]+1+[Calcoli.AC84]-INT([Calcoli.AC84]/4)) -> 2458016 | AE85: A3 | AF85: =of:=IF([Calcoli.AF82]<2299161;[Calcoli.AF82];[Calcoli.AF82]+1+[Calcoli.AF84]-INT([Calcoli.AF84]/4)) -> 2458045 | AH85: A3 | AI85: =of:=IF([Calcoli.AI82]<2299161;[Calcoli.AI82];[Calcoli.AI82]+1+[Calcoli.AI84]-INT([Calcoli.AI84]/4)) -> 2458075 | AK85: A3 | AL85: =of:=IF([Calcoli.AL82]<2299161;[Calcoli.AL82];[Calcoli.AL82]+1+[Calcoli.AL84]-INT([Calcoli.AL84]/4)) -> 2458104 | AN85: A3 | AO85: =of:=IF([Calcoli.AO82]<2299161;[Calcoli.AO82];[Calcoli.AO82]+1+[Calcoli.AO84]-INT([Calcoli.AO84]/4)) -> 2458163
A86: B3 | B86: =of:=[Calcoli.B85]+1524 -> 2459274 | D86: B3 | E86: =of:=[Calcoli.E85]+1524 -> 2459303 | G86: B3 | H86: =of:=[Calcoli.H85]+1524 -> 2459333 | J86: B3 | K86: =of:=[Calcoli.K85]+1524 -> 2459362 | M86: B3 | N86: =of:=[Calcoli.N85]+1524 -> 2459392 | P86: B3 | Q86: =of:=[Calcoli.Q85]+1524 -> 2459421 | S86: B3 | T86: =of:=[Calcoli.T85]+1524 -> 2459451 | V86: B3 | W86: =of:=[Calcoli.W85]+1524 -> 2459481 | Y86: B3 | Z86: =of:=[Calcoli.Z85]+1524 -> 2459510 | AB86: B3 | AC86: =of:=[Calcoli.AC85]+1524 -> 2459540 | AE86: B3 | AF86: =of:=[Calcoli.AF85]+1524 -> 2459569 | AH86: B3 | AI86: =of:=[Calcoli.AI85]+1524 -> 2459599 | AK86: B3 | AL86: =of:=[Calcoli.AL85]+1524 -> 2459628 | AN86: B3 | AO86: =of:=[Calcoli.AO85]+1524 -> 2459687
A87: C3 | B87: =of:=INT(([Calcoli.B86]-122.1)/365.25) -> 6732 | D87: C3 | E87: =of:=INT(([Calcoli.E86]-122.1)/365.25) -> 6732 | G87: C3 | H87: =of:=INT(([Calcoli.H86]-122.1)/365.25) -> 6732 | J87: C3 | K87: =of:=INT(([Calcoli.K86]-122.1)/365.25) -> 6733 | M87: C3 | N87: =of:=INT(([Calcoli.N86]-122.1)/365.25) -> 6733 | P87: C3 | Q87: =of:=INT(([Calcoli.Q86]-122.1)/365.25) -> 6733 | S87: C3 | T87: =of:=INT(([Calcoli.T86]-122.1)/365.25) -> 6733 | V87: C3 | W87: =of:=INT(([Calcoli.W86]-122.1)/365.25) -> 6733 | Y87: C3 | Z87: =of:=INT(([Calcoli.Z86]-122.1)/365.25) -> 6733 | AB87: C3 | AC87: =of:=INT(([Calcoli.AC86]-122.1)/365.25) -> 6733 | AE87: C3 | AF87: =of:=INT(([Calcoli.AF86]-122.1)/365.25) -> 6733 | AH87: C3 | AI87: =of:=INT(([Calcoli.AI86]-122.1)/365.25) -> 6733 | AK87: C3 | AL87: =of:=INT(([Calcoli.AL86]-122.1)/365.25) -> 6733 | AN87: C3 | AO87: =of:=INT(([Calcoli.AO86]-122.1)/365.25) -> 6733
A88: D3 | B88: =of:=INT(365.25*[Calcoli.B87]) -> 2458863 | D88: D3 | E88: =of:=INT(365.25*[Calcoli.E87]) -> 2458863 | G88: D3 | H88: =of:=INT(365.25*[Calcoli.H87]) -> 2458863 | J88: D3 | K88: =of:=INT(365.25*[Calcoli.K87]) -> 2459228 | M88: D3 | N88: =of:=INT(365.25*[Calcoli.N87]) -> 2459228 | P88: D3 | Q88: =of:=INT(365.25*[Calcoli.Q87]) -> 2459228 | S88: D3 | T88: =of:=INT(365.25*[Calcoli.T87]) -> 2459228 | V88: D3 | W88: =of:=INT(365.25*[Calcoli.W87]) -> 2459228 | Y88: D3 | Z88: =of:=INT(365.25*[Calcoli.Z87]) -> 2459228 | AB88: D3 | AC88: =of:=INT(365.25*[Calcoli.AC87]) -> 2459228 | AE88: D3 | AF88: =of:=INT(365.25*[Calcoli.AF87]) -> 2459228 | AH88: D3 | AI88: =of:=INT(365.25*[Calcoli.AI87]) -> 2459228 | AK88: D3 | AL88: =of:=INT(365.25*[Calcoli.AL87]) -> 2459228 | AN88: D3 | AO88: =of:=INT(365.25*[Calcoli.AO87]) -> 2459228
A89: E3 | B89: =of:=INT(([Calcoli.B86]-[Calcoli.B88])/30.6001) -> 13 | D89: E3 | E89: =of:=INT(([Calcoli.E86]-[Calcoli.E88])/30.6001) -> 14 | G89: E3 | H89: =of:=INT(([Calcoli.H86]-[Calcoli.H88])/30.6001) -> 15 | J89: E3 | K89: =of:=INT(([Calcoli.K86]-[Calcoli.K88])/30.6001) -> 4 | M89: E3 | N89: =of:=INT(([Calcoli.N86]-[Calcoli.N88])/30.6001) -> 5 | P89: E3 | Q89: =of:=INT(([Calcoli.Q86]-[Calcoli.Q88])/30.6001) -> 6 | S89: E3 | T89: =of:=INT(([Calcoli.T86]-[Calcoli.T88])/30.6001) -> 7 | V89: E3 | W89: =of:=INT(([Calcoli.W86]-[Calcoli.W88])/30.6001) -> 8 | Y89: E3 | Z89: =of:=INT(([Calcoli.Z86]-[Calcoli.Z88])/30.6001) -> 9 | AB89: E3 | AC89: =of:=INT(([Calcoli.AC86]-[Calcoli.AC88])/30.6001) -> 10 | AE89: E3 | AF89: =of:=INT(([Calcoli.AF86]-[Calcoli.AF88])/30.6001) -> 11 | AH89: E3 | AI89: =of:=INT(([Calcoli.AI86]-[Calcoli.AI88])/30.6001) -> 12 | AK89: E3 | AL89: =of:=INT(([Calcoli.AL86]-[Calcoli.AL88])/30.6001) -> 13 | AN89: E3 | AO89: =of:=INT(([Calcoli.AO86]-[Calcoli.AO88])/30.6001) -> 14
A90: Giorno_LP | B90: =of:=ROUND([Calcoli.B86]-[Calcoli.B88]-INT(30.6001*[Calcoli.B89])+[Calcoli.B83];4) -> 14.0048 | D90: Giorno_LP | E90: =of:=ROUND([Calcoli.E86]-[Calcoli.E88]-INT(30.6001*[Calcoli.E89])+[Calcoli.E83];4) -> 12.4828 | G90: Giorno_LP | H90: =of:=ROUND([Calcoli.H86]-[Calcoli.H88]-INT(30.6001*[Calcoli.H89])+[Calcoli.H83];4) -> 11.0237 | J90: Giorno_LP | K90: =of:=ROUND([Calcoli.K86]-[Calcoli.K88]-INT(30.6001*[Calcoli.K89])+[Calcoli.K83];4) -> 12.6215 | M90: Giorno_LP | N90: =of:=ROUND([Calcoli.N86]-[Calcoli.N88]-INT(30.6001*[Calcoli.N89])+[Calcoli.N83];4) -> 11.2566 | P90: Giorno_LP | Q90: =of:=ROUND([Calcoli.Q86]-[Calcoli.Q88]-INT(30.6001*[Calcoli.Q89])+[Calcoli.Q83];4) -> 10.9057 | S90: Giorno_LP | T90: =of:=ROUND([Calcoli.T86]-[Calcoli.T88]-INT(30.6001*[Calcoli.T89])+[Calcoli.T83];4) -> 9.5497 | V90: Giorno_LP | W90: =of:=ROUND([Calcoli.W86]-[Calcoli.W88]-INT(30.6001*[Calcoli.W89])+[Calcoli.W83];4) -> 9.1728 | Y90: Giorno_LP | Z90: =of:=ROUND([Calcoli.Z86]-[Calcoli.Z88]-INT(30.6001*[Calcoli.Z89])+[Calcoli.Z83];4) -> 7.7592 | AB90: Giorno_LP | AC90: =of:=ROUND([Calcoli.AC86]-[Calcoli.AC88]-INT(30.6001*[Calcoli.AC89])+[Calcoli.AC83];4) -> 6.2954 | AE90: Giorno_LP | AF90: =of:=ROUND([Calcoli.AF86]-[Calcoli.AF88]-INT(30.6001*[Calcoli.AF89])+[Calcoli.AF83];4) -> 5.7794 | AH90: Giorno_LP | AI90: =of:=ROUND([Calcoli.AI86]-[Calcoli.AI88]-INT(30.6001*[Calcoli.AI89])+[Calcoli.AI83];4) -> 4.2257 | AK90: Giorno_LP | AL90: =of:=ROUND([Calcoli.AL86]-[Calcoli.AL88]-INT(30.6001*[Calcoli.AL89])+[Calcoli.AL83];4) -> 3.6591 | AN90: Giorno_LP | AO90: =of:=ROUND([Calcoli.AO86]-[Calcoli.AO88]-INT(30.6001*[Calcoli.AO89])+[Calcoli.AO83];4) -> 31.5614
A91: Mese_LP | B91: =of:=IF([Calcoli.B89]<13.5;[Calcoli.B89]-1;[Calcoli.B89]-13) -> 12 | D91: Mese_LP | E91: =of:=IF([Calcoli.E89]<13.5;[Calcoli.E89]-1;[Calcoli.E89]-13) -> 1 | G91: Mese_LP | H91: =of:=IF([Calcoli.H89]<13.5;[Calcoli.H89]-1;[Calcoli.H89]-13) -> 2 | J91: Mese_LP | K91: =of:=IF([Calcoli.K89]<13.5;[Calcoli.K89]-1;[Calcoli.K89]-13) -> 3 | M91: Mese_LP | N91: =of:=IF([Calcoli.N89]<13.5;[Calcoli.N89]-1;[Calcoli.N89]-13) -> 4 | P91: Mese_LP | Q91: =of:=IF([Calcoli.Q89]<13.5;[Calcoli.Q89]-1;[Calcoli.Q89]-13) -> 5 | S91: Mese_LP | T91: =of:=IF([Calcoli.T89]<13.5;[Calcoli.T89]-1;[Calcoli.T89]-13) -> 6 | V91: Mese_LP | W91: =of:=IF([Calcoli.W89]<13.5;[Calcoli.W89]-1;[Calcoli.W89]-13) -> 7 | Y91: Mese_LP | Z91: =of:=IF([Calcoli.Z89]<13.5;[Calcoli.Z89]-1;[Calcoli.Z89]-13) -> 8 | AB91: Mese_LP | AC91: =of:=IF([Calcoli.AC89]<13.5;[Calcoli.AC89]-1;[Calcoli.AC89]-13) -> 9 | AE91: Mese_LP | AF91: =of:=IF([Calcoli.AF89]<13.5;[Calcoli.AF89]-1;[Calcoli.AF89]-13) -> 10 | AH91: Mese_LP | AI91: =of:=IF([Calcoli.AI89]<13.5;[Calcoli.AI89]-1;[Calcoli.AI89]-13) -> 11 | AK91: Mese_LP | AL91: =of:=IF([Calcoli.AL89]<13.5;[Calcoli.AL89]-1;[Calcoli.AL89]-13) -> 12 | AN91: Mese_LP | AO91: =of:=IF([Calcoli.AO89]<13.5;[Calcoli.AO89]-1;[Calcoli.AO89]-13) -> 1
A92: ANNO_LP | B92: =of:=IF([Calcoli.B91]>2.5 AND([Calcoli.B91]<12.5);[Calcoli.B87]-4716;[Calcoli.B87]-4715) -> 2016 | D92: ANNO_LP | E92: =of:=IF([Calcoli.E91]>2.5 AND([Calcoli.E91]<12.5);[Calcoli.E87]-4716;[Calcoli.E87]-4715) -> 2017 | G92: ANNO_LP | H92: =of:=IF([Calcoli.H91]>2.5 AND([Calcoli.H91]<12.5);[Calcoli.H87]-4716;[Calcoli.H87]-4715) -> 2017 | J92: ANNO_LP | K92: =of:=IF([Calcoli.K91]>2.5 AND([Calcoli.K91]<12.5);[Calcoli.K87]-4716;[Calcoli.K87]-4715) -> 2017 | M92: ANNO_LP | N92: =of:=IF([Calcoli.N91]>2.5 AND([Calcoli.N91]<12.5);[Calcoli.N87]-4716;[Calcoli.N87]-4715) -> 2017 | P92: ANNO_LP | Q92: =of:=IF([Calcoli.Q91]>2.5 AND([Calcoli.Q91]<12.5);[Calcoli.Q87]-4716;[Calcoli.Q87]-4715) -> 2017 | S92: ANNO_LP | T92: =of:=IF([Calcoli.T91]>2.5 AND([Calcoli.T91]<12.5);[Calcoli.T87]-4716;[Calcoli.T87]-4715) -> 2017 | V92: ANNO_LP | W92: =of:=IF([Calcoli.W91]>2.5 AND([Calcoli.W91]<12.5);[Calcoli.W87]-4716;[Calcoli.W87]-4715) -> 2017 | Y92: ANNO_LP | Z92: =of:=IF([Calcoli.Z91]>2.5 AND([Calcoli.Z91]<12.5);[Calcoli.Z87]-4716;[Calcoli.Z87]-4715) -> 2017 | AB92: ANNO_LP | AC92: =of:=IF([Calcoli.AC91]>2.5 AND([Calcoli.AC91]<12.5);[Calcoli.AC87]-4716;[Calcoli.AC87]-4715) -> 2017 | AE92: ANNO_LP | AF92: =of:=IF([Calcoli.AF91]>2.5 AND([Calcoli.AF91]<12.5);[Calcoli.AF87]-4716;[Calcoli.AF87]-4715) -> 2017 | AH92: ANNO_LP | AI92: =of:=IF([Calcoli.AI91]>2.5 AND([Calcoli.AI91]<12.5);[Calcoli.AI87]-4716;[Calcoli.AI87]-4715) -> 2017 | AK92: ANNO_LP | AL92: =of:=IF([Calcoli.AL91]>2.5 AND([Calcoli.AL91]<12.5);[Calcoli.AL87]-4716;[Calcoli.AL87]-4715) -> 2017 | AN92: ANNO_LP | AO92: =of:=IF([Calcoli.AO91]>2.5 AND([Calcoli.AO91]<12.5);[Calcoli.AO87]-4716;[Calcoli.AO87]-4715) -> 2018
A93: Data_GD LP | B93: =of:=DATE([Calcoli.B92];[Calcoli.B91];[Calcoli.B90]) -> 2016-12-14 | D93: Data_GD LP | E93: =of:=DATE([Calcoli.E92];[Calcoli.E91];[Calcoli.E90]) -> 2017-01-12 | G93: Data_GD LP | H93: =of:=DATE([Calcoli.H92];[Calcoli.H91];[Calcoli.H90]) -> 2017-02-11 | J93: Data_GD LP | K93: =of:=DATE([Calcoli.K92];[Calcoli.K91];[Calcoli.K90]) -> 2017-03-12 | M93: Data_GD LP | N93: =of:=DATE([Calcoli.N92];[Calcoli.N91];[Calcoli.N90]) -> 2017-04-11 | P93: Data_GD LP | Q93: =of:=DATE([Calcoli.Q92];[Calcoli.Q91];[Calcoli.Q90]) -> 2017-05-10 | S93: Data_GD LP | T93: =of:=DATE([Calcoli.T92];[Calcoli.T91];[Calcoli.T90]) -> 2017-06-09 | V93: Data_GD LP | W93: =of:=DATE([Calcoli.W92];[Calcoli.W91];[Calcoli.W90]) -> 2017-07-09 | Y93: Data_GD LP | Z93: =of:=DATE([Calcoli.Z92];[Calcoli.Z91];[Calcoli.Z90]) -> 2017-08-07 | AB93: Data_GD LP | AC93: =of:=DATE([Calcoli.AC92];[Calcoli.AC91];[Calcoli.AC90]) -> 2017-09-06 | AE93: Data_GD LP | AF93: =of:=DATE([Calcoli.AF92];[Calcoli.AF91];[Calcoli.AF90]) -> 2017-10-05 | AH93: Data_GD LP | AI93: =of:=DATE([Calcoli.AI92];[Calcoli.AI91];[Calcoli.AI90]) -> 2017-11-04 | AK93: Data_GD LP | AL93: =of:=DATE([Calcoli.AL92];[Calcoli.AL91];[Calcoli.AL90]) -> 2017-12-03 | AN93: Data_GD LP | AO93: =of:=DATE([Calcoli.AO92];[Calcoli.AO91];[Calcoli.AO90]) -> 2018-01-31
A94: Ore_GD LP | B94: =of:=INT(([Calcoli.B90]-INT([Calcoli.B90]))*24)+1 -> 1 | D94: Ore_GD LP | E94: =of:=INT(([Calcoli.E90]-INT([Calcoli.E90]))*24)+1 -> 12 | G94: Ore_GD LP | H94: =of:=INT(([Calcoli.H90]-INT([Calcoli.H90]))*24)+1 -> 1 | J94: Ore_GD LP | K94: =of:=INT(([Calcoli.K90]-INT([Calcoli.K90]))*24)+1 -> 15 | M94: Ore_GD LP | N94: =of:=INT(([Calcoli.N90]-INT([Calcoli.N90]))*24)+1 -> 7 | P94: Ore_GD LP | Q94: =of:=INT(([Calcoli.Q90]-INT([Calcoli.Q90]))*24)+1 -> 22 | S94: Ore_GD LP | T94: =of:=INT(([Calcoli.T90]-INT([Calcoli.T90]))*24)+1 -> 14 | V94: Ore_GD LP | W94: =of:=INT(([Calcoli.W90]-INT([Calcoli.W90]))*24)+1 -> 5 | Y94: Ore_GD LP | Z94: =of:=INT(([Calcoli.Z90]-INT([Calcoli.Z90]))*24)+1 -> 19 | AB94: Ore_GD LP | AC94: =of:=INT(([Calcoli.AC90]-INT([Calcoli.AC90]))*24)+1 -> 8 | AE94: Ore_GD LP | AF94: =of:=INT(([Calcoli.AF90]-INT([Calcoli.AF90]))*24)+1 -> 19 | AH94: Ore_GD LP | AI94: =of:=INT(([Calcoli.AI90]-INT([Calcoli.AI90]))*24)+1 -> 6 | AK94: Ore_GD LP | AL94: =of:=INT(([Calcoli.AL90]-INT([Calcoli.AL90]))*24)+1 -> 16 | AN94: Ore_GD LP | AO94: =of:=INT(([Calcoli.AO90]-INT([Calcoli.AO90]))*24)+1 -> 14
A95: Minuti_GD LP | B95: =of:=INT((([Calcoli.B90]-INT([Calcoli.B90]))*24-([Calcoli.B94]-1))*60) -> 6 | D95: Minuti_GD LP | E95: =of:=INT((([Calcoli.E90]-INT([Calcoli.E90]))*24-([Calcoli.E94]-1))*60) -> 35 | G95: Minuti_GD LP | H95: =of:=INT((([Calcoli.H90]-INT([Calcoli.H90]))*24-([Calcoli.H94]-1))*60) -> 34 | J95: Minuti_GD LP | K95: =of:=INT((([Calcoli.K90]-INT([Calcoli.K90]))*24-([Calcoli.K94]-1))*60) -> 54 | M95: Minuti_GD LP | N95: =of:=INT((([Calcoli.N90]-INT([Calcoli.N90]))*24-([Calcoli.N94]-1))*60) -> 9 | P95: Minuti_GD LP | Q95: =of:=INT((([Calcoli.Q90]-INT([Calcoli.Q90]))*24-([Calcoli.Q94]-1))*60) -> 44 | S95: Minuti_GD LP | T95: =of:=INT((([Calcoli.T90]-INT([Calcoli.T90]))*24-([Calcoli.T94]-1))*60) -> 11 | V95: Minuti_GD LP | W95: =of:=INT((([Calcoli.W90]-INT([Calcoli.W90]))*24-([Calcoli.W94]-1))*60) -> 8 | Y95: Minuti_GD LP | Z95: =of:=INT((([Calcoli.Z90]-INT([Calcoli.Z90]))*24-([Calcoli.Z94]-1))*60) -> 13 | AB95: Minuti_GD LP | AC95: =of:=INT((([Calcoli.AC90]-INT([Calcoli.AC90]))*24-([Calcoli.AC94]-1))*60) -> 5 | AE95: Minuti_GD LP | AF95: =of:=INT((([Calcoli.AF90]-INT([Calcoli.AF90]))*24-([Calcoli.AF94]-1))*60) -> 42 | AH95: Minuti_GD LP | AI95: =of:=INT((([Calcoli.AI90]-INT([Calcoli.AI90]))*24-([Calcoli.AI94]-1))*60) -> 25 | AK95: Minuti_GD LP | AL95: =of:=INT((([Calcoli.AL90]-INT([Calcoli.AL90]))*24-([Calcoli.AL94]-1))*60) -> 49 | AN95: Minuti_GD LP | AO95: =of:=INT((([Calcoli.AO90]-INT([Calcoli.AO90]))*24-([Calcoli.AO94]-1))*60) -> 28
A96: Secondi_GD LP | B96: =of:=INT((((([Calcoli.B90]-INT([Calcoli.B90]))*24-([Calcoli.B94]-1))*60)-[Calcoli.B95])*60) -> 54 | D96: Secondi_GD LP | E96: =of:=INT((((([Calcoli.E90]-INT([Calcoli.E90]))*24-([Calcoli.E94]-1))*60)-[Calcoli.E95])*60) -> 13 | G96: Secondi_GD LP | H96: =of:=INT((((([Calcoli.H90]-INT([Calcoli.H90]))*24-([Calcoli.H94]-1))*60)-[Calcoli.H95])*60)-60 -> -53 | J96: Secondi_GD LP | K96: =of:=INT((((([Calcoli.K90]-INT([Calcoli.K90]))*24-([Calcoli.K94]-1))*60)-[Calcoli.K95])*60) -> 57 | M96: Secondi_GD LP | N96: =of:=INT((((([Calcoli.N90]-INT([Calcoli.N90]))*24-([Calcoli.N94]-1))*60)-[Calcoli.N95])*60) -> 30 | P96: Secondi_GD LP | Q96: =of:=INT((((([Calcoli.Q90]-INT([Calcoli.Q90]))*24-([Calcoli.Q94]-1))*60)-[Calcoli.Q95])*60) -> 12 | S96: Secondi_GD LP | T96: =of:=INT((((([Calcoli.T90]-INT([Calcoli.T90]))*24-([Calcoli.T94]-1))*60)-[Calcoli.T95])*60) -> 34 | V96: Secondi_GD LP | W96: =of:=INT((((([Calcoli.W90]-INT([Calcoli.W90]))*24-([Calcoli.W94]-1))*60)-[Calcoli.W95])*60) -> 49 | Y96: Secondi_GD LP | Z96: =of:=INT((((([Calcoli.Z90]-INT([Calcoli.Z90]))*24-([Calcoli.Z94]-1))*60)-[Calcoli.Z95])*60) -> 14 | AB96: Secondi_GD LP | AC96: =of:=INT((((([Calcoli.AC90]-INT([Calcoli.AC90]))*24-([Calcoli.AC94]-1))*60)-[Calcoli.AC95])*60) -> 22 | AE96: Secondi_GD LP | AF96: =of:=INT((((([Calcoli.AF90]-INT([Calcoli.AF90]))*24-([Calcoli.AF94]-1))*60)-[Calcoli.AF95])*60) -> 20 | AH96: Secondi_GD LP | AI96: =of:=INT((((([Calcoli.AI90]-INT([Calcoli.AI90]))*24-([Calcoli.AI94]-1))*60)-[Calcoli.AI95])*60) -> 0 | AK96: Secondi_GD LP | AL96: =of:=INT((((([Calcoli.AL90]-INT([Calcoli.AL90]))*24-([Calcoli.AL94]-1))*60)-[Calcoli.AL95])*60) -> 6 | AN96: Secondi_GD LP | AO96: =of:=INT((((([Calcoli.AO90]-INT([Calcoli.AO90]))*24-([Calcoli.AO94]-1))*60)-[Calcoli.AO95])*60) -> 24
A97: JD_Data UQ | B97: =of:=[Calcoli.B41] -> 2457743.583 | D97: JD_Data UQ | E97: =of:=[Calcoli.E41] -> 2457773.429 | G97: JD_Data UQ | H97: =of:=[Calcoli.H41] -> 2457803.318 | J97: JD_Data UQ | K97: =of:=[Calcoli.K41] -> 2457833.17 | M97: JD_Data UQ | N97: =of:=[Calcoli.N41] -> 2457862.92 | P97: JD_Data UQ | Q97: =of:=[Calcoli.Q41] -> 2457892.528 | S97: JD_Data UQ | T97: =of:=[Calcoli.T41] -> 2457921.986 | V97: JD_Data UQ | W97: =of:=[Calcoli.W41] -> 2457951.314 | Y97: JD_Data UQ | Z97: =of:=[Calcoli.Z41] -> 2457980.557 | AB97: JD_Data UQ | AC97: =of:=[Calcoli.AC41] -> 2458009.772 | AE97: JD_Data UQ | AF97: =of:=[Calcoli.AF41] -> 2458039.022 | AH97: JD_Data UQ | AI97: =of:=[Calcoli.AI41] -> 2458068.363 | AK97: JD_Data UQ | AL97: =of:=[Calcoli.AL41] -> 2458097.831 | AN97: JD_Data UQ | AO97: =of:=[Calcoli.AO41] -> 2458157.166
A98: Z4 | B98: =of:=INT([Calcoli.B97]+0.5) -> 2457744 | D98: Z4 | E98: =of:=INT([Calcoli.E97]+0.5) -> 2457773 | G98: Z4 | H98: =of:=INT([Calcoli.H97]+0.5) -> 2457803 | J98: Z4 | K98: =of:=INT([Calcoli.K97]+0.5) -> 2457833 | M98: Z4 | N98: =of:=INT([Calcoli.N97]+0.5) -> 2457863 | P98: Z4 | Q98: =of:=INT([Calcoli.Q97]+0.5) -> 2457893 | S98: Z4 | T98: =of:=INT([Calcoli.T97]+0.5) -> 2457922 | V98: Z4 | W98: =of:=INT([Calcoli.W97]+0.5) -> 2457951 | Y98: Z4 | Z98: =of:=INT([Calcoli.Z97]+0.5) -> 2457981 | AB98: Z4 | AC98: =of:=INT([Calcoli.AC97]+0.5) -> 2458010 | AE98: Z4 | AF98: =of:=INT([Calcoli.AF97]+0.5) -> 2458039 | AH98: Z4 | AI98: =of:=INT([Calcoli.AI97]+0.5) -> 2458068 | AK98: Z4 | AL98: =of:=INT([Calcoli.AL97]+0.5) -> 2458098 | AN98: Z4 | AO98: =of:=INT([Calcoli.AO97]+0.5) -> 2458157
A99: F4 | B99: =of:=[Calcoli.B97]+0.5-INT([Calcoli.B97]+0.5) -> 0.08339999989 | D99: F4 | E99: =of:=[Calcoli.E97]+0.5-INT([Calcoli.E97]+0.5) -> 0.9287999999 | G99: F4 | H99: =of:=[Calcoli.H97]+0.5-INT([Calcoli.H97]+0.5) -> 0.8184000002 | J99: F4 | K99: =of:=[Calcoli.K97]+0.5-INT([Calcoli.K97]+0.5) -> 0.6702000001 | M99: F4 | N99: =of:=[Calcoli.N97]+0.5-INT([Calcoli.N97]+0.5) -> 0.4196000001 | P99: F4 | Q99: =of:=[Calcoli.Q97]+0.5-INT([Calcoli.Q97]+0.5) -> 0.0279000001 | S99: F4 | T99: =of:=[Calcoli.T97]+0.5-INT([Calcoli.T97]+0.5) -> 0.4860999999 | V99: F4 | W99: =of:=[Calcoli.W97]+0.5-INT([Calcoli.W97]+0.5) -> 0.8144 | Y99: F4 | Z99: =of:=[Calcoli.Z97]+0.5-INT([Calcoli.Z97]+0.5) -> 0.05709999986 | AB99: F4 | AC99: =of:=[Calcoli.AC97]+0.5-INT([Calcoli.AC97]+0.5) -> 0.2721000002 | AE99: F4 | AF99: =of:=[Calcoli.AF97]+0.5-INT([Calcoli.AF97]+0.5) -> 0.5222999998 | AH99: F4 | AI99: =of:=[Calcoli.AI97]+0.5-INT([Calcoli.AI97]+0.5) -> 0.8631000002 | AK99: F4 | AL99: =of:=[Calcoli.AL97]+0.5-INT([Calcoli.AL97]+0.5) -> 0.3314 | AN99: F4 | AO99: =of:=[Calcoli.AO97]+0.5-INT([Calcoli.AO97]+0.5) -> 0.6664999998
A100: Ω4 | B100: =of:=INT(([Calcoli.B98]-1867216.25)/36524.25) -> 16 | D100: Ω4 | E100: =of:=INT(([Calcoli.E98]-1867216.25)/36524.25) -> 16 | G100: Ω4 | H100: =of:=INT(([Calcoli.H98]-1867216.25)/36524.25) -> 16 | J100: Ω4 | K100: =of:=INT(([Calcoli.K98]-1867216.25)/36524.25) -> 16 | M100: Ω4 | N100: =of:=INT(([Calcoli.N98]-1867216.25)/36524.25) -> 16 | P100: Ω4 | Q100: =of:=INT(([Calcoli.Q98]-1867216.25)/36524.25) -> 16 | S100: Ω4 | T100: =of:=INT(([Calcoli.T98]-1867216.25)/36524.25) -> 16 | V100: Ω4 | W100: =of:=INT(([Calcoli.W98]-1867216.25)/36524.25) -> 16 | Y100: Ω4 | Z100: =of:=INT(([Calcoli.Z98]-1867216.25)/36524.25) -> 16 | AB100: Ω4 | AC100: =of:=INT(([Calcoli.AC98]-1867216.25)/36524.25) -> 16 | AE100: Ω4 | AF100: =of:=INT(([Calcoli.AF98]-1867216.25)/36524.25) -> 16 | AH100: Ω4 | AI100: =of:=INT(([Calcoli.AI98]-1867216.25)/36524.25) -> 16 | AK100: Ω4 | AL100: =of:=INT(([Calcoli.AL98]-1867216.25)/36524.25) -> 16 | AN100: Ω4 | AO100: =of:=INT(([Calcoli.AO98]-1867216.25)/36524.25) -> 16
A101: A4 | B101: =of:=IF([Calcoli.B98]<2299161;[Calcoli.B98];[Calcoli.B98]+1+[Calcoli.B100]-INT([Calcoli.B100]/4)) -> 2457757 | D101: A4 | E101: =of:=IF([Calcoli.E98]<2299161;[Calcoli.E98];[Calcoli.E98]+1+[Calcoli.E100]-INT([Calcoli.E100]/4)) -> 2457786 | G101: A4 | H101: =of:=IF([Calcoli.H98]<2299161;[Calcoli.H98];[Calcoli.H98]+1+[Calcoli.H100]-INT([Calcoli.H100]/4)) -> 2457816 | J101: A4 | K101: =of:=IF([Calcoli.K98]<2299161;[Calcoli.K98];[Calcoli.K98]+1+[Calcoli.K100]-INT([Calcoli.K100]/4)) -> 2457846 | M101: A4 | N101: =of:=IF([Calcoli.N98]<2299161;[Calcoli.N98];[Calcoli.N98]+1+[Calcoli.N100]-INT([Calcoli.N100]/4)) -> 2457876 | P101: A4 | Q101: =of:=IF([Calcoli.Q98]<2299161;[Calcoli.Q98];[Calcoli.Q98]+1+[Calcoli.Q100]-INT([Calcoli.Q100]/4)) -> 2457906 | S101: A4 | T101: =of:=IF([Calcoli.T98]<2299161;[Calcoli.T98];[Calcoli.T98]+1+[Calcoli.T100]-INT([Calcoli.T100]/4)) -> 2457935 | V101: A4 | W101: =of:=IF([Calcoli.W98]<2299161;[Calcoli.W98];[Calcoli.W98]+1+[Calcoli.W100]-INT([Calcoli.W100]/4)) -> 2457964 | Y101: A4 | Z101: =of:=IF([Calcoli.Z98]<2299161;[Calcoli.Z98];[Calcoli.Z98]+1+[Calcoli.Z100]-INT([Calcoli.Z100]/4)) -> 2457994 | AB101: A4 | AC101: =of:=IF([Calcoli.AC98]<2299161;[Calcoli.AC98];[Calcoli.AC98]+1+[Calcoli.AC100]-INT([Calcoli.AC100]/4)) -> 2458023 | AE101: A4 | AF101: =of:=IF([Calcoli.AF98]<2299161;[Calcoli.AF98];[Calcoli.AF98]+1+[Calcoli.AF100]-INT([Calcoli.AF100]/4)) -> 2458052 | AH101: A4 | AI101: =of:=IF([Calcoli.AI98]<2299161;[Calcoli.AI98];[Calcoli.AI98]+1+[Calcoli.AI100]-INT([Calcoli.AI100]/4)) -> 2458081 | AK101: A4 | AL101: =of:=IF([Calcoli.AL98]<2299161;[Calcoli.AL98];[Calcoli.AL98]+1+[Calcoli.AL100]-INT([Calcoli.AL100]/4)) -> 2458111 | AN101: A4 | AO101: =of:=IF([Calcoli.AO98]<2299161;[Calcoli.AO98];[Calcoli.AO98]+1+[Calcoli.AO100]-INT([Calcoli.AO100]/4)) -> 2458170
A102: B4 | B102: =of:=[Calcoli.B101]+1524 -> 2459281 | D102: B4 | E102: =of:=[Calcoli.E101]+1524 -> 2459310 | G102: B4 | H102: =of:=[Calcoli.H101]+1524 -> 2459340 | J102: B4 | K102: =of:=[Calcoli.K101]+1524 -> 2459370 | M102: B4 | N102: =of:=[Calcoli.N101]+1524 -> 2459400 | P102: B4 | Q102: =of:=[Calcoli.Q101]+1524 -> 2459430 | S102: B4 | T102: =of:=[Calcoli.T101]+1524 -> 2459459 | V102: B4 | W102: =of:=[Calcoli.W101]+1524 -> 2459488 | Y102: B4 | Z102: =of:=[Calcoli.Z101]+1524 -> 2459518 | AB102: B4 | AC102: =of:=[Calcoli.AC101]+1524 -> 2459547 | AE102: B4 | AF102: =of:=[Calcoli.AF101]+1524 -> 2459576 | AH102: B4 | AI102: =of:=[Calcoli.AI101]+1524 -> 2459605 | AK102: B4 | AL102: =of:=[Calcoli.AL101]+1524 -> 2459635 | AN102: B4 | AO102: =of:=[Calcoli.AO101]+1524 -> 2459694
A103: C4 | B103: =of:=INT(([Calcoli.B102]-122.1)/365.25) -> 6732 | D103: C4 | E103: =of:=INT(([Calcoli.E102]-122.1)/365.25) -> 6732 | G103: C4 | H103: =of:=INT(([Calcoli.H102]-122.1)/365.25) -> 6732 | J103: C4 | K103: =of:=INT(([Calcoli.K102]-122.1)/365.25) -> 6733 | M103: C4 | N103: =of:=INT(([Calcoli.N102]-122.1)/365.25) -> 6733 | P103: C4 | Q103: =of:=INT(([Calcoli.Q102]-122.1)/365.25) -> 6733 | S103: C4 | T103: =of:=INT(([Calcoli.T102]-122.1)/365.25) -> 6733 | V103: C4 | W103: =of:=INT(([Calcoli.W102]-122.1)/365.25) -> 6733 | Y103: C4 | Z103: =of:=INT(([Calcoli.Z102]-122.1)/365.25) -> 6733 | AB103: C4 | AC103: =of:=INT(([Calcoli.AC102]-122.1)/365.25) -> 6733 | AE103: C4 | AF103: =of:=INT(([Calcoli.AF102]-122.1)/365.25) -> 6733 | AH103: C4 | AI103: =of:=INT(([Calcoli.AI102]-122.1)/365.25) -> 6733 | AK103: C4 | AL103: =of:=INT(([Calcoli.AL102]-122.1)/365.25) -> 6733 | AN103: C4 | AO103: =of:=INT(([Calcoli.AO102]-122.1)/365.25) -> 6733
A104: D4 | B104: =of:=INT(365.25*[Calcoli.B103]) -> 2458863 | D104: D4 | E104: =of:=INT(365.25*[Calcoli.E103]) -> 2458863 | G104: D4 | H104: =of:=INT(365.25*[Calcoli.H103]) -> 2458863 | J104: D4 | K104: =of:=INT(365.25*[Calcoli.K103]) -> 2459228 | M104: D4 | N104: =of:=INT(365.25*[Calcoli.N103]) -> 2459228 | P104: D4 | Q104: =of:=INT(365.25*[Calcoli.Q103]) -> 2459228 | S104: D4 | T104: =of:=INT(365.25*[Calcoli.T103]) -> 2459228 | V104: D4 | W104: =of:=INT(365.25*[Calcoli.W103]) -> 2459228 | Y104: D4 | Z104: =of:=INT(365.25*[Calcoli.Z103]) -> 2459228 | AB104: D4 | AC104: =of:=INT(365.25*[Calcoli.AC103]) -> 2459228 | AE104: D4 | AF104: =of:=INT(365.25*[Calcoli.AF103]) -> 2459228 | AH104: D4 | AI104: =of:=INT(365.25*[Calcoli.AI103]) -> 2459228 | AK104: D4 | AL104: =of:=INT(365.25*[Calcoli.AL103]) -> 2459228 | AN104: D4 | AO104: =of:=INT(365.25*[Calcoli.AO103]) -> 2459228
A105: E4 | B105: =of:=INT(([Calcoli.B102]-[Calcoli.B104])/30.6001) -> 13 | D105: E4 | E105: =of:=INT(([Calcoli.E102]-[Calcoli.E104])/30.6001) -> 14 | G105: E4 | H105: =of:=INT(([Calcoli.H102]-[Calcoli.H104])/30.6001) -> 15 | J105: E4 | K105: =of:=INT(([Calcoli.K102]-[Calcoli.K104])/30.6001) -> 4 | M105: E4 | N105: =of:=INT(([Calcoli.N102]-[Calcoli.N104])/30.6001) -> 5 | P105: E4 | Q105: =of:=INT(([Calcoli.Q102]-[Calcoli.Q104])/30.6001) -> 6 | S105: E4 | T105: =of:=INT(([Calcoli.T102]-[Calcoli.T104])/30.6001) -> 7 | V105: E4 | W105: =of:=INT(([Calcoli.W102]-[Calcoli.W104])/30.6001) -> 8 | Y105: E4 | Z105: =of:=INT(([Calcoli.Z102]-[Calcoli.Z104])/30.6001) -> 9 | AB105: E4 | AC105: =of:=INT(([Calcoli.AC102]-[Calcoli.AC104])/30.6001) -> 10 | AE105: E4 | AF105: =of:=INT(([Calcoli.AF102]-[Calcoli.AF104])/30.6001) -> 11 | AH105: E4 | AI105: =of:=INT(([Calcoli.AI102]-[Calcoli.AI104])/30.6001) -> 12 | AK105: E4 | AL105: =of:=INT(([Calcoli.AL102]-[Calcoli.AL104])/30.6001) -> 13 | AN105: E4 | AO105: =of:=INT(([Calcoli.AO102]-[Calcoli.AO104])/30.6001) -> 15
A106: Giorno_UQ | B106: =of:=ROUND([Calcoli.B102]-[Calcoli.B104]-INT(30.6001*[Calcoli.B105])+[Calcoli.B99];4) -> 21.0834 | D106: Giorno_UQ | E106: =of:=ROUND([Calcoli.E102]-[Calcoli.E104]-INT(30.6001*[Calcoli.E105])+[Calcoli.E99];4) -> 19.9288 | G106: Giorno_UQ | H106: =of:=ROUND([Calcoli.H102]-[Calcoli.H104]-INT(30.6001*[Calcoli.H105])+[Calcoli.H99];4) -> 18.8184 | J106: Giorno_UQ | K106: =of:=ROUND([Calcoli.K102]-[Calcoli.K104]-INT(30.6001*[Calcoli.K105])+[Calcoli.K99];4) -> 20.6702 | M106: Giorno_UQ | N106: =of:=ROUND([Calcoli.N102]-[Calcoli.N104]-INT(30.6001*[Calcoli.N105])+[Calcoli.N99];4) -> 19.4196 | P106: Giorno_UQ | Q106: =of:=ROUND([Calcoli.Q102]-[Calcoli.Q104]-INT(30.6001*[Calcoli.Q105])+[Calcoli.Q99];4) -> 19.0279 | S106: Giorno_UQ | T106: =of:=ROUND([Calcoli.T102]-[Calcoli.T104]-INT(30.6001*[Calcoli.T105])+[Calcoli.T99];4) -> 17.4861 | V106: Giorno_UQ | W106: =of:=ROUND([Calcoli.W102]-[Calcoli.W104]-INT(30.6001*[Calcoli.W105])+[Calcoli.W99];4) -> 16.8144 | Y106: Giorno_UQ | Z106: =of:=ROUND([Calcoli.Z102]-[Calcoli.Z104]-INT(30.6001*[Calcoli.Z105])+[Calcoli.Z99];4) -> 15.0571 | AB106: Giorno_UQ | AC106: =of:=ROUND([Calcoli.AC102]-[Calcoli.AC104]-INT(30.6001*[Calcoli.AC105])+[Calcoli.AC99];4) -> 13.2721 | AE106: Giorno_UQ | AF106: =of:=ROUND([Calcoli.AF102]-[Calcoli.AF104]-INT(30.6001*[Calcoli.AF105])+[Calcoli.AF99];4) -> 12.5223 | AH106: Giorno_UQ | AI106: =of:=ROUND([Calcoli.AI102]-[Calcoli.AI104]-INT(30.6001*[Calcoli.AI105])+[Calcoli.AI99];4) -> 10.8631 | AK106: Giorno_UQ | AL106: =of:=ROUND([Calcoli.AL102]-[Calcoli.AL104]-INT(30.6001*[Calcoli.AL105])+[Calcoli.AL99];4) -> 10.3314 | AN106: Giorno_UQ | AO106: =of:=ROUND([Calcoli.AO102]-[Calcoli.AO104]-INT(30.6001*[Calcoli.AO105])+[Calcoli.AO99];4) -> 7.6665
A107: Mese_UQ | B107: =of:=IF([Calcoli.B105]<13.5;[Calcoli.B105]-1;[Calcoli.B105]-13) -> 12 | D107: Mese_UQ | E107: =of:=IF([Calcoli.E105]<13.5;[Calcoli.E105]-1;[Calcoli.E105]-13) -> 1 | G107: Mese_UQ | H107: =of:=IF([Calcoli.H105]<13.5;[Calcoli.H105]-1;[Calcoli.H105]-13) -> 2 | J107: Mese_UQ | K107: =of:=IF([Calcoli.K105]<13.5;[Calcoli.K105]-1;[Calcoli.K105]-13) -> 3 | M107: Mese_UQ | N107: =of:=IF([Calcoli.N105]<13.5;[Calcoli.N105]-1;[Calcoli.N105]-13) -> 4 | P107: Mese_UQ | Q107: =of:=IF([Calcoli.Q105]<13.5;[Calcoli.Q105]-1;[Calcoli.Q105]-13) -> 5 | S107: Mese_UQ | T107: =of:=IF([Calcoli.T105]<13.5;[Calcoli.T105]-1;[Calcoli.T105]-13) -> 6 | V107: Mese_UQ | W107: =of:=IF([Calcoli.W105]<13.5;[Calcoli.W105]-1;[Calcoli.W105]-13) -> 7 | Y107: Mese_UQ | Z107: =of:=IF([Calcoli.Z105]<13.5;[Calcoli.Z105]-1;[Calcoli.Z105]-13) -> 8 | AB107: Mese_UQ | AC107: =of:=IF([Calcoli.AC105]<13.5;[Calcoli.AC105]-1;[Calcoli.AC105]-13) -> 9 | AE107: Mese_UQ | AF107: =of:=IF([Calcoli.AF105]<13.5;[Calcoli.AF105]-1;[Calcoli.AF105]-13) -> 10 | AH107: Mese_UQ | AI107: =of:=IF([Calcoli.AI105]<13.5;[Calcoli.AI105]-1;[Calcoli.AI105]-13) -> 11 | AK107: Mese_UQ | AL107: =of:=IF([Calcoli.AL105]<13.5;[Calcoli.AL105]-1;[Calcoli.AL105]-13) -> 12 | AN107: Mese_UQ | AO107: =of:=IF([Calcoli.AO105]<13.5;[Calcoli.AO105]-1;[Calcoli.AO105]-13) -> 2
A108: ANNO_UQ | B108: =of:=IF([Calcoli.B107]>2.5 AND([Calcoli.B107]<12.5);[Calcoli.B103]-4716;[Calcoli.B103]-4715) -> 2016 | D108: ANNO_UQ | E108: =of:=IF([Calcoli.E107]>2.5 AND([Calcoli.E107]<12.5);[Calcoli.E103]-4716;[Calcoli.E103]-4715) -> 2017 | G108: ANNO_UQ | H108: =of:=IF([Calcoli.H107]>2.5 AND([Calcoli.H107]<12.5);[Calcoli.H103]-4716;[Calcoli.H103]-4715) -> 2017 | J108: ANNO_UQ | K108: =of:=IF([Calcoli.K107]>2.5 AND([Calcoli.K107]<12.5);[Calcoli.K103]-4716;[Calcoli.K103]-4715) -> 2017 | M108: ANNO_UQ | N108: =of:=IF([Calcoli.N107]>2.5 AND([Calcoli.N107]<12.5);[Calcoli.N103]-4716;[Calcoli.N103]-4715) -> 2017 | P108: ANNO_UQ | Q108: =of:=IF([Calcoli.Q107]>2.5 AND([Calcoli.Q107]<12.5);[Calcoli.Q103]-4716;[Calcoli.Q103]-4715) -> 2017 | S108: ANNO_UQ | T108: =of:=IF([Calcoli.T107]>2.5 AND([Calcoli.T107]<12.5);[Calcoli.T103]-4716;[Calcoli.T103]-4715) -> 2017 | V108: ANNO_UQ | W108: =of:=IF([Calcoli.W107]>2.5 AND([Calcoli.W107]<12.5);[Calcoli.W103]-4716;[Calcoli.W103]-4715) -> 2017 | Y108: ANNO_UQ | Z108: =of:=IF([Calcoli.Z107]>2.5 AND([Calcoli.Z107]<12.5);[Calcoli.Z103]-4716;[Calcoli.Z103]-4715) -> 2017 | AB108: ANNO_UQ | AC108: =of:=IF([Calcoli.AC107]>2.5 AND([Calcoli.AC107]<12.5);[Calcoli.AC103]-4716;[Calcoli.AC103]-4715) -> 2017 | AE108: ANNO_UQ | AF108: =of:=IF([Calcoli.AF107]>2.5 AND([Calcoli.AF107]<12.5);[Calcoli.AF103]-4716;[Calcoli.AF103]-4715) -> 2017 | AH108: ANNO_UQ | AI108: =of:=IF([Calcoli.AI107]>2.5 AND([Calcoli.AI107]<12.5);[Calcoli.AI103]-4716;[Calcoli.AI103]-4715) -> 2017 | AK108: ANNO_UQ | AL108: =of:=IF([Calcoli.AL107]>2.5 AND([Calcoli.AL107]<12.5);[Calcoli.AL103]-4716;[Calcoli.AL103]-4715) -> 2017 | AN108: ANNO_UQ | AO108: =of:=IF([Calcoli.AO107]>2.5 AND([Calcoli.AO107]<12.5);[Calcoli.AO103]-4716;[Calcoli.AO103]-4715) -> 2018
A109: Data_GD UQ | B109: =of:=DATE([Calcoli.B108];[Calcoli.B107];[Calcoli.B106]) -> 2016-12-21 | D109: Data_GD UQ | E109: =of:=DATE([Calcoli.E108];[Calcoli.E107];[Calcoli.E106]) -> 2017-01-19 | G109: Data_GD UQ | H109: =of:=DATE([Calcoli.H108];[Calcoli.H107];[Calcoli.H106]) -> 2017-02-18 | J109: Data_GD UQ | K109: =of:=DATE([Calcoli.K108];[Calcoli.K107];[Calcoli.K106]) -> 2017-03-20 | M109: Data_GD UQ | N109: =of:=DATE([Calcoli.N108];[Calcoli.N107];[Calcoli.N106]) -> 2017-04-19 | P109: Data_GD UQ | Q109: =of:=DATE([Calcoli.Q108];[Calcoli.Q107];[Calcoli.Q106]) -> 2017-05-19 | S109: Data_GD UQ | T109: =of:=DATE([Calcoli.T108];[Calcoli.T107];[Calcoli.T106]) -> 2017-06-17 | V109: Data_GD UQ | W109: =of:=DATE([Calcoli.W108];[Calcoli.W107];[Calcoli.W106]) -> 2017-07-16 | Y109: Data_GD UQ | Z109: =of:=DATE([Calcoli.Z108];[Calcoli.Z107];[Calcoli.Z106]) -> 2017-08-15 | AB109: Data_GD UQ | AC109: =of:=DATE([Calcoli.AC108];[Calcoli.AC107];[Calcoli.AC106]) -> 2017-09-13 | AE109: Data_GD UQ | AF109: =of:=DATE([Calcoli.AF108];[Calcoli.AF107];[Calcoli.AF106]) -> 2017-10-12 | AH109: Data_GD UQ | AI109: =of:=DATE([Calcoli.AI108];[Calcoli.AI107];[Calcoli.AI106]) -> 2017-11-10 | AK109: Data_GD UQ | AL109: =of:=DATE([Calcoli.AL108];[Calcoli.AL107];[Calcoli.AL106]) -> 2017-12-10 | AN109: Data_GD UQ | AO109: =of:=DATE([Calcoli.AO108];[Calcoli.AO107];[Calcoli.AO106]) -> 2018-02-07
A110: Ore_GD UQ | B110: =of:=INT(([Calcoli.B106]-INT([Calcoli.B106]))*24)+1 -> 3 | D110: Ore_GD UQ | E110: =of:=INT(([Calcoli.E106]-INT([Calcoli.E106]))*24)+1 -> 23 | G110: Ore_GD UQ | H110: =of:=INT(([Calcoli.H106]-INT([Calcoli.H106]))*24)+1 -> 20 | J110: Ore_GD UQ | K110: =of:=INT(([Calcoli.K106]-INT([Calcoli.K106]))*24)+1 -> 17 | M110: Ore_GD UQ | N110: =of:=INT(([Calcoli.N106]-INT([Calcoli.N106]))*24)+1 -> 11 | P110: Ore_GD UQ | Q110: =of:=INT(([Calcoli.Q106]-INT([Calcoli.Q106]))*24)+1 -> 1 | S110: Ore_GD UQ | T110: =of:=INT(([Calcoli.T106]-INT([Calcoli.T106]))*24)+1 -> 12 | V110: Ore_GD UQ | W110: =of:=INT(([Calcoli.W106]-INT([Calcoli.W106]))*24)+1 -> 20 | Y110: Ore_GD UQ | Z110: =of:=INT(([Calcoli.Z106]-INT([Calcoli.Z106]))*24)+1 -> 2 | AB110: Ore_GD UQ | AC110: =of:=INT(([Calcoli.AC106]-INT([Calcoli.AC106]))*24)+1 -> 7 | AE110: Ore_GD UQ | AF110: =of:=INT(([Calcoli.AF106]-INT([Calcoli.AF106]))*24)+1 -> 13 | AH110: Ore_GD UQ | AI110: =of:=INT(([Calcoli.AI106]-INT([Calcoli.AI106]))*24)+1 -> 21 | AK110: Ore_GD UQ | AL110: =of:=INT(([Calcoli.AL106]-INT([Calcoli.AL106]))*24)+1 -> 8 | AN110: Ore_GD UQ | AO110: =of:=INT(([Calcoli.AO106]-INT([Calcoli.AO106]))*24)+1 -> 16
A111: Minuti_GD UQ | B111: =of:=IF(INT((([Calcoli.B106]-INT([Calcoli.B106]))*24-([Calcoli.B110]-1))*60)-4>=0;INT((([Calcoli.B106]-INT([Calcoli.B106]))*24-([Calcoli.B110]-1))*60)-4;INT((([Calcoli.B106]-INT([Calcoli.B106]))*24-([Calcoli.B110]-1))*60)) -> 0 | D111: Minuti_GD UQ | E111: =of:=INT((([Calcoli.E106]-INT([Calcoli.E106]))*24-([Calcoli.E110]-1))*60) -> 17 | G111: Minuti_GD UQ | H111: =of:=IF(INT((([Calcoli.H106]-INT([Calcoli.H106]))*24-([Calcoli.H110]-1))*60)-4>=0;INT((([Calcoli.H106]-INT([Calcoli.H106]))*24-([Calcoli.H110]-1))*60)-4;INT((([Calcoli.H106]-INT([Calcoli.H106]))*24-([Calcoli.H110]-1))*60))-4 -> 30 | J111: Minuti_GD UQ | K111: =of:=IF(INT((([Calcoli.K106]-INT([Calcoli.K106]))*24-([Calcoli.K110]-1))*60)-4>=0;INT((([Calcoli.K106]-INT([Calcoli.K106]))*24-([Calcoli.K110]-1))*60)-4;INT((([Calcoli.K106]-INT([Calcoli.K106]))*24-([Calcoli.K110]-1))*60)) -> 1 | M111: Minuti_GD UQ | N111: =of:=IF(INT((([Calcoli.N106]-INT([Calcoli.N106]))*24-([Calcoli.N110]-1))*60)-4>=0;INT((([Calcoli.N106]-INT([Calcoli.N106]))*24-([Calcoli.N110]-1))*60)-4;INT((([Calcoli.N106]-INT([Calcoli.N106]))*24-([Calcoli.N110]-1))*60)) -> 0 | P111: Minuti_GD UQ | Q111: =of:=IF(INT((([Calcoli.Q106]-INT([Calcoli.Q106]))*24-([Calcoli.Q110]-1))*60)-4>=0;INT((([Calcoli.Q106]-INT([Calcoli.Q106]))*24-([Calcoli.Q110]-1))*60)-4;INT((([Calcoli.Q106]-INT([Calcoli.Q106]))*24-([Calcoli.Q110]-1))*60)) -> 36 | S111: Minuti_GD UQ | T111: =of:=IF(INT((([Calcoli.T106]-INT([Calcoli.T106]))*24-([Calcoli.T110]-1))*60)-4>=0;INT((([Calcoli.T106]-INT([Calcoli.T106]))*24-([Calcoli.T110]-1))*60)-4;INT((([Calcoli.T106]-INT([Calcoli.T106]))*24-([Calcoli.T110]-1))*60)) -> 35 | V111: Minuti_GD UQ | W111: =of:=IF(INT((([Calcoli.W106]-INT([Calcoli.W106]))*24-([Calcoli.W110]-1))*60)-4>=0;INT((([Calcoli.W106]-INT([Calcoli.W106]))*24-([Calcoli.W110]-1))*60)-4;INT((([Calcoli.W106]-INT([Calcoli.W106]))*24-([Calcoli.W110]-1))*60)) -> 28 | Y111: Minuti_GD UQ | Z111: =of:=IF(INT((([Calcoli.Z106]-INT([Calcoli.Z106]))*24-([Calcoli.Z110]-1))*60)-4>=0;INT((([Calcoli.Z106]-INT([Calcoli.Z106]))*24-([Calcoli.Z110]-1))*60)-4;INT((([Calcoli.Z106]-INT([Calcoli.Z106]))*24-([Calcoli.Z110]-1))*60)) -> 18 | AB111: Minuti_GD UQ | AC111: =of:=IF(INT((([Calcoli.AC106]-INT([Calcoli.AC106]))*24-([Calcoli.AC110]-1))*60)-4>=0;INT((([Calcoli.AC106]-INT([Calcoli.AC106]))*24-([Calcoli.AC110]-1))*60)-4;INT((([Calcoli.AC106]-INT([Calcoli.AC106]))*24-([Calcoli.AC110]-1))*60)) -> 27 | AE111: Minuti_GD UQ | AF111: =of:=IF(INT((([Calcoli.AF106]-INT([Calcoli.AF106]))*24-([Calcoli.AF110]-1))*60)-4>=0;INT((([Calcoli.AF106]-INT([Calcoli.AF106]))*24-([Calcoli.AF110]-1))*60)-4;INT((([Calcoli.AF106]-INT([Calcoli.AF106]))*24-([Calcoli.AF110]-1))*60)) -> 28 | AH111: Minuti_GD UQ | AI111: =of:=IF(INT((([Calcoli.AI106]-INT([Calcoli.AI106]))*24-([Calcoli.AI110]-1))*60)-4>=0;INT((([Calcoli.AI106]-INT([Calcoli.AI106]))*24-([Calcoli.AI110]-1))*60)-4;INT((([Calcoli.AI106]-INT([Calcoli.AI106]))*24-([Calcoli.AI110]-1))*60)) -> 38 | AK111: Minuti_GD UQ | AL111: =of:=IF(INT((([Calcoli.AL106]-INT([Calcoli.AL106]))*24-([Calcoli.AL110]-1))*60)-4>=0;INT((([Calcoli.AL106]-INT([Calcoli.AL106]))*24-([Calcoli.AL110]-1))*60)-4;INT((([Calcoli.AL106]-INT([Calcoli.AL106]))*24-([Calcoli.AL110]-1))*60)) -> 53 | AN111: Minuti_GD UQ | AO111: =of:=IF(INT((([Calcoli.AO106]-INT([Calcoli.AO106]))*24-([Calcoli.AO110]-1))*60)-4>=0;INT((([Calcoli.AO106]-INT([Calcoli.AO106]))*24-([Calcoli.AO110]-1))*60)-4;INT((([Calcoli.AO106]-INT([Calcoli.AO106]))*24-([Calcoli.AO110]-1))*60)) -> 55
A112: Secondi_GD UQ | B112: =of:=INT((((([Calcoli.B106]-INT([Calcoli.B106]))*24-([Calcoli.B110]-1))*60)-[Calcoli.B111]-3)*60) -> -175 | D112: Secondi_GD UQ | E112: =of:=INT((((([Calcoli.E106]-INT([Calcoli.E106]))*24-([Calcoli.E110]-1))*60)-[Calcoli.E111]-3)*60)-180 -> -332 | G112: Secondi_GD UQ | H112: =of:=INT((((([Calcoli.H106]-INT([Calcoli.H106]))*24-([Calcoli.H110]-1))*60)-[Calcoli.H111]-3)*60)/2 -> 164.5 | J112: Secondi_GD UQ | K112: =of:=INT((((([Calcoli.K106]-INT([Calcoli.K106]))*24-([Calcoli.K110]-1))*60)-[Calcoli.K111]-3)*60) -> 65 | M112: Secondi_GD UQ | N112: =of:=INT((((([Calcoli.N106]-INT([Calcoli.N106]))*24-([Calcoli.N110]-1))*60)-[Calcoli.N111]-3)*60) -> 73 | P112: Secondi_GD UQ | Q112: =of:=INT((((([Calcoli.Q106]-INT([Calcoli.Q106]))*24-([Calcoli.Q110]-1))*60)-[Calcoli.Q111]-3)*60) -> 70 | S112: Secondi_GD UQ | T112: =of:=INT((((([Calcoli.T106]-INT([Calcoli.T106]))*24-([Calcoli.T110]-1))*60)-[Calcoli.T111]-3)*60) -> 119 | V112: Secondi_GD UQ | W112: =of:=INT((((([Calcoli.W106]-INT([Calcoli.W106]))*24-([Calcoli.W110]-1))*60)-[Calcoli.W111]-3)*60) -> 104 | Y112: Secondi_GD UQ | Z112: =of:=INT((((([Calcoli.Z106]-INT([Calcoli.Z106]))*24-([Calcoli.Z110]-1))*60)-[Calcoli.Z111]-3)*60) -> 73 | AB112: Secondi_GD UQ | AC112: =of:=INT((((([Calcoli.AC106]-INT([Calcoli.AC106]))*24-([Calcoli.AC110]-1))*60)-[Calcoli.AC111]-3)*60) -> 109 | AE112: Secondi_GD UQ | AF112: =of:=INT((((([Calcoli.AF106]-INT([Calcoli.AF106]))*24-([Calcoli.AF110]-1))*60)-[Calcoli.AF111]-3)*60) -> 66 | AH112: Secondi_GD UQ | AI112: =of:=INT((((([Calcoli.AI106]-INT([Calcoli.AI106]))*24-([Calcoli.AI110]-1))*60)-[Calcoli.AI111]-3)*60) -> 111 | AK112: Secondi_GD UQ | AL112: =of:=INT((((([Calcoli.AL106]-INT([Calcoli.AL106]))*24-([Calcoli.AL110]-1))*60)-[Calcoli.AL111]-3)*60) -> 72 | AN112: Secondi_GD UQ | AO112: =of:=INT((((([Calcoli.AO106]-INT([Calcoli.AO106]))*24-([Calcoli.AO110]-1))*60)-[Calcoli.AO111]-3)*60) -> 105
A114: _DATA | B114: =of:=YEAR([Calcoli.$A$4])+ROUND(DAYS([Calcoli.$A$4]+15;DATE(YEAR([Calcoli.$A$4]);1;1)-1)/365;4) -> 2016.9616 | D114: _DATA | E114: =of:=YEAR([Calcoli.$D$4])+ROUND(DAYS([Calcoli.$D$4]+15;DATE(YEAR([Calcoli.$D$4]);1;1)-1)/365;4) -> 2017.0438 | G114: _DATA | H114: =of:=YEAR([Calcoli.$G$4])+ROUND(DAYS([Calcoli.$G$4]+15;DATE(YEAR([Calcoli.$G$4]);1;1)-1)/365;4) -> 2017.1288 | J114: _DATA | K114: =of:=YEAR([Calcoli.$J$4])+ROUND(DAYS([Calcoli.$J$4]+15;DATE(YEAR([Calcoli.$J$4]);1;1)-1)/365;4) -> 2017.2055 | M114: _DATA | N114: =of:=YEAR([Calcoli.$M$4])+ROUND(DAYS([Calcoli.$M$4]+15;DATE(YEAR([Calcoli.$M$4]);1;1)-1)/365;4) -> 2017.2904 | P114: _DATA | Q114: =of:=YEAR([Calcoli.$P$4])+ROUND(DAYS([Calcoli.$P$4]+15;DATE(YEAR([Calcoli.$P$4]);1;1)-1)/365;4) -> 2017.3726 | S114: _DATA | T114: =of:=YEAR([Calcoli.$S$4])+ROUND(DAYS([Calcoli.$S$4]+15;DATE(YEAR([Calcoli.$S$4]);1;1)-1)/365;4) -> 2017.4575 | V114: _DATA | W114: =of:=YEAR([Calcoli.$V$4])+ROUND(DAYS([Calcoli.$V$4]+15;DATE(YEAR([Calcoli.$V$4]);1;1)-1)/365;4) -> 2017.5397 | Y114: _DATA | Z114: =of:=YEAR([Calcoli.$Y$4])+ROUND(DAYS([Calcoli.$Y$4]+15;DATE(YEAR([Calcoli.$Y$4]);1;1)-1)/365;4) -> 2017.6247 | AB114: _DATA | AC114: =of:=YEAR([Calcoli.$AB$4])+ROUND(DAYS([Calcoli.$AB$4]+15;DATE(YEAR([Calcoli.$AB$4]);1;1)-1)/365;4) -> 2017.7096 | AE114: _DATA | AF114: =of:=YEAR([Calcoli.$AE$4])+ROUND(DAYS([Calcoli.$AE$4]+15;DATE(YEAR([Calcoli.$AE$4]);1;1)-1)/365;4) -> 2017.7918 | AH114: _DATA | AI114: =of:=YEAR([Calcoli.$AH$4])+ROUND(DAYS([Calcoli.$AH$4]+15;DATE(YEAR([Calcoli.$AH$4]);1;1)-1)/365;4) -> 2017.8767 | AK114: _DATA | AL114: =of:=YEAR([Calcoli.$AK$4])+ROUND(DAYS([Calcoli.$AK$4]+15;DATE(YEAR([Calcoli.$AK$4]);1;1)-1)/365;4) -> 2017.9589 | AN114: _DATA | AO114: =of:=YEAR([Calcoli.$AN$4])+ROUND(DAYS([Calcoli.$AN$4]+15;DATE(YEAR([Calcoli.$AN$4]);1;1)-1)/365;4) -> 2018.0438
A115: K_LN | B115: =of:=ROUND((N([Calcoli.B114])-1900)*12.3685;0) -> 1447 | D115: K_LN | E115: =of:=ROUND((N([Calcoli.E114])-1900)*12.3685;0) -> 1448 | G115: K_LN | H115: =of:=ROUND((N([Calcoli.H114])-1900)*12.3685;0) -> 1449 | J115: K_LN | K115: =of:=ROUND((N([Calcoli.K114])-1900)*12.3685;0) -> 1450 | M115: K_LN | N115: =of:=ROUND((N([Calcoli.N114])-1900)*12.3685;0) -> 1451 | P115: K_LN | Q115: =of:=ROUND((N([Calcoli.Q114])-1900)*12.3685;0) -> 1452 | S115: K_LN | T115: =of:=ROUND((N([Calcoli.T114])-1900)*12.3685;0) -> 1453 | V115: K_LN | W115: =of:=ROUND((N([Calcoli.W114])-1900)*12.3685;0) -> 1454 | Y115: K_LN | Z115: =of:=ROUND((N([Calcoli.Z114])-1900)*12.3685;0) -> 1455 | AB115: K_LN | AC115: =of:=ROUND((N([Calcoli.AC114])-1900)*12.3685;0) -> 1456 | AE115: K_LN | AF115: =of:=ROUND((N([Calcoli.AF114])-1900)*12.3685;0) -> 1457 | AH115: K_LN | AI115: =of:=ROUND((N([Calcoli.AI114])-1900)*12.3685;0) -> 1458 | AK115: K_LN | AL115: =of:=ROUND((N([Calcoli.AL114])-1900)*12.3685;0) -> 1459 | AN115: K_LN | AO115: =of:=ROUND((N([Calcoli.AO114])-1900)*12.3685;0) -> 1460
A116: K_PQ | B116: =of:=[Calcoli.B115]+0.25 -> 1447.25 | D116: K_PQ | E116: =of:=[Calcoli.E115]+0.25 -> 1448.25 | G116: K_PQ | H116: =of:=[Calcoli.H115]+0.25 -> 1449.25 | J116: K_PQ | K116: =of:=[Calcoli.K115]+0.25 -> 1450.25 | M116: K_PQ | N116: =of:=[Calcoli.N115]+0.25 -> 1451.25 | P116: K_PQ | Q116: =of:=[Calcoli.Q115]+0.25 -> 1452.25 | S116: K_PQ | T116: =of:=[Calcoli.T115]+0.25 -> 1453.25 | V116: K_PQ | W116: =of:=[Calcoli.W115]+0.25 -> 1454.25 | Y116: K_PQ | Z116: =of:=[Calcoli.Z115]+0.25 -> 1455.25 | AB116: K_PQ | AC116: =of:=[Calcoli.AC115]+0.25 -> 1456.25 | AE116: K_PQ | AF116: =of:=[Calcoli.AF115]+0.25 -> 1457.25 | AH116: K_PQ | AI116: =of:=[Calcoli.AI115]+0.25 -> 1458.25 | AK116: K_PQ | AL116: =of:=[Calcoli.AL115]+0.25 -> 1459.25 | AN116: K_PQ | AO116: =of:=[Calcoli.AO115]+0.25 -> 1460.25
A117: K_LP | B117: =of:=[Calcoli.B115]+0.5 -> 1447.5 | D117: K_LP | E117: =of:=[Calcoli.E115]+0.5 -> 1448.5 | G117: K_LP | H117: =of:=[Calcoli.H115]+0.5 -> 1449.5 | J117: K_LP | K117: =of:=[Calcoli.K115]+0.5 -> 1450.5 | M117: K_LP | N117: =of:=[Calcoli.N115]+0.5 -> 1451.5 | P117: K_LP | Q117: =of:=[Calcoli.Q115]+0.5 -> 1452.5 | S117: K_LP | T117: =of:=[Calcoli.T115]+0.5 -> 1453.5 | V117: K_LP | W117: =of:=[Calcoli.W115]+0.5 -> 1454.5 | Y117: K_LP | Z117: =of:=[Calcoli.Z115]+0.5 -> 1455.5 | AB117: K_LP | AC117: =of:=[Calcoli.AC115]+0.5 -> 1456.5 | AE117: K_LP | AF117: =of:=[Calcoli.AF115]+0.5 -> 1457.5 | AH117: K_LP | AI117: =of:=[Calcoli.AI115]+0.5 -> 1458.5 | AK117: K_LP | AL117: =of:=[Calcoli.AL115]+0.5 -> 1459.5 | AN117: K_LP | AO117: =of:=[Calcoli.AO115]+0.5 -> 1460.5
A118: K_UQ | B118: =of:=[Calcoli.B115]+0.75 -> 1447.75 | D118: K_UQ | E118: =of:=[Calcoli.E115]+0.75 -> 1448.75 | G118: K_UQ | H118: =of:=[Calcoli.H115]+0.75 -> 1449.75 | J118: K_UQ | K118: =of:=[Calcoli.K115]+0.75 -> 1450.75 | M118: K_UQ | N118: =of:=[Calcoli.N115]+0.75 -> 1451.75 | P118: K_UQ | Q118: =of:=[Calcoli.Q115]+0.75 -> 1452.75 | S118: K_UQ | T118: =of:=[Calcoli.T115]+0.75 -> 1453.75 | V118: K_UQ | W118: =of:=[Calcoli.W115]+0.75 -> 1454.75 | Y118: K_UQ | Z118: =of:=[Calcoli.Z115]+0.75 -> 1455.75 | AB118: K_UQ | AC118: =of:=[Calcoli.AC115]+0.75 -> 1456.75 | AE118: K_UQ | AF118: =of:=[Calcoli.AF115]+0.75 -> 1457.75 | AH118: K_UQ | AI118: =of:=[Calcoli.AI115]+0.75 -> 1458.75 | AK118: K_UQ | AL118: =of:=[Calcoli.AL115]+0.75 -> 1459.75 | AN118: K_UQ | AO118: =of:=[Calcoli.AO115]+0.75 -> 1460.75
A119: T_LN | B119: =of:=ROUND([Calcoli.B115]/1236.85;5) -> 1.16991 | D119: T_LN | E119: =of:=ROUND([Calcoli.E115]/1236.85;5) -> 1.17072 | G119: T_LN | H119: =of:=ROUND([Calcoli.H115]/1236.85;5) -> 1.17152 | J119: T_LN | K119: =of:=ROUND([Calcoli.K115]/1236.85;5) -> 1.17233 | M119: T_LN | N119: =of:=ROUND([Calcoli.N115]/1236.85;5) -> 1.17314 | P119: T_LN | Q119: =of:=ROUND([Calcoli.Q115]/1236.85;5) -> 1.17395 | S119: T_LN | T119: =of:=ROUND([Calcoli.T115]/1236.85;5) -> 1.17476 | V119: T_LN | W119: =of:=ROUND([Calcoli.W115]/1236.85;5) -> 1.17557 | Y119: T_LN | Z119: =of:=ROUND([Calcoli.Z115]/1236.85;5) -> 1.17638 | AB119: T_LN | AC119: =of:=ROUND([Calcoli.AC115]/1236.85;5) -> 1.17718 | AE119: T_LN | AF119: =of:=ROUND([Calcoli.AF115]/1236.85;5) -> 1.17799 | AH119: T_LN | AI119: =of:=ROUND([Calcoli.AI115]/1236.85;5) -> 1.1788 | AK119: T_LN | AL119: =of:=ROUND([Calcoli.AL115]/1236.85;5) -> 1.17961 | AN119: T_LN | AO119: =of:=ROUND([Calcoli.AO115]/1236.85;5) -> 1.18042
A120: T_PQ | B120: =of:=ROUND([Calcoli.B116]/1236.85;5) -> 1.17011 | D120: T_PQ | E120: =of:=ROUND([Calcoli.E116]/1236.85;5) -> 1.17092 | G120: T_PQ | H120: =of:=ROUND([Calcoli.H116]/1236.85;5) -> 1.17173 | J120: T_PQ | K120: =of:=ROUND([Calcoli.K116]/1236.85;5) -> 1.17254 | M120: T_PQ | N120: =of:=ROUND([Calcoli.N116]/1236.85;5) -> 1.17334 | P120: T_PQ | Q120: =of:=ROUND([Calcoli.Q116]/1236.85;5) -> 1.17415 | S120: T_PQ | T120: =of:=ROUND([Calcoli.T116]/1236.85;5) -> 1.17496 | V120: T_PQ | W120: =of:=ROUND([Calcoli.W116]/1236.85;5) -> 1.17577 | Y120: T_PQ | Z120: =of:=ROUND([Calcoli.Z116]/1236.85;5) -> 1.17658 | AB120: T_PQ | AC120: =of:=ROUND([Calcoli.AC116]/1236.85;5) -> 1.17739 | AE120: T_PQ | AF120: =of:=ROUND([Calcoli.AF116]/1236.85;5) -> 1.17819 | AH120: T_PQ | AI120: =of:=ROUND([Calcoli.AI116]/1236.85;5) -> 1.179 | AK120: T_PQ | AL120: =of:=ROUND([Calcoli.AL116]/1236.85;5) -> 1.17981 | AN120: T_PQ | AO120: =of:=ROUND([Calcoli.AO116]/1236.85;5) -> 1.18062
A121: T_LP | B121: =of:=ROUND([Calcoli.B117]/1236.85;5) -> 1.17031 | D121: T_LP | E121: =of:=ROUND([Calcoli.E117]/1236.85;5) -> 1.17112 | G121: T_LP | H121: =of:=ROUND([Calcoli.H117]/1236.85;5) -> 1.17193 | J121: T_LP | K121: =of:=ROUND([Calcoli.K117]/1236.85;5) -> 1.17274 | M121: T_LP | N121: =of:=ROUND([Calcoli.N117]/1236.85;5) -> 1.17355 | P121: T_LP | Q121: =of:=ROUND([Calcoli.Q117]/1236.85;5) -> 1.17435 | S121: T_LP | T121: =of:=ROUND([Calcoli.T117]/1236.85;5) -> 1.17516 | V121: T_LP | W121: =of:=ROUND([Calcoli.W117]/1236.85;5) -> 1.17597 | Y121: T_LP | Z121: =of:=ROUND([Calcoli.Z117]/1236.85;5) -> 1.17678 | AB121: T_LP | AC121: =of:=ROUND([Calcoli.AC117]/1236.85;5) -> 1.17759 | AE121: T_LP | AF121: =of:=ROUND([Calcoli.AF117]/1236.85;5) -> 1.1784 | AH121: T_LP | AI121: =of:=ROUND([Calcoli.AI117]/1236.85;5) -> 1.17921 | AK121: T_LP | AL121: =of:=ROUND([Calcoli.AL117]/1236.85;5) -> 1.18001 | AN121: T_LP | AO121: =of:=ROUND([Calcoli.AO117]/1236.85;5) -> 1.18082
A122: T_UQ | B122: =of:=ROUND([Calcoli.B118]/1236.85;5) -> 1.17051 | D122: T_UQ | E122: =of:=ROUND([Calcoli.E118]/1236.85;5) -> 1.17132 | G122: T_UQ | H122: =of:=ROUND([Calcoli.H118]/1236.85;5) -> 1.17213 | J122: T_UQ | K122: =of:=ROUND([Calcoli.K118]/1236.85;5) -> 1.17294 | M122: T_UQ | N122: =of:=ROUND([Calcoli.N118]/1236.85;5) -> 1.17375 | P122: T_UQ | Q122: =of:=ROUND([Calcoli.Q118]/1236.85;5) -> 1.17456 | S122: T_UQ | T122: =of:=ROUND([Calcoli.T118]/1236.85;5) -> 1.17536 | V122: T_UQ | W122: =of:=ROUND([Calcoli.W118]/1236.85;5) -> 1.17617 | Y122: T_UQ | Z122: =of:=ROUND([Calcoli.Z118]/1236.85;5) -> 1.17698 | AB122: T_UQ | AC122: =of:=ROUND([Calcoli.AC118]/1236.85;5) -> 1.17779 | AE122: T_UQ | AF122: =of:=ROUND([Calcoli.AF118]/1236.85;5) -> 1.1786 | AH122: T_UQ | AI122: =of:=ROUND([Calcoli.AI118]/1236.85;5) -> 1.17941 | AK122: T_UQ | AL122: =of:=ROUND([Calcoli.AL118]/1236.85;5) -> 1.18022 | AN122: T_UQ | AO122: =of:=ROUND([Calcoli.AO118]/1236.85;5) -> 1.18102
A123: JD_LN | B123: =of:=ROUND(2415020.75933+29.53058868*[Calcoli.B115]+0.0001178*[Calcoli.B119]^2-0.000000155*[Calcoli.B119]^3+0.00033*SIN(166.56+132.87*[Calcoli.B119]-0.009*173*[Calcoli.B119]^2);4) -> 2457751.521 | D123: JD_LN | E123: =of:=ROUND(2415020.75933+29.53058868*[Calcoli.E115]+0.0001178*[Calcoli.E119]^2-0.000000155*[Calcoli.E119]^3+0.00033*SIN(166.56+132.87*[Calcoli.E119]-0.009*173*[Calcoli.E119]^2);4) -> 2457781.052 | G123: JD_LN | H123: =of:=ROUND(2415020.75933+29.53058868*[Calcoli.H115]+0.0001178*[Calcoli.H119]^2-0.000000155*[Calcoli.H119]^3+0.00033*SIN(166.56+132.87*[Calcoli.H119]-0.009*173*[Calcoli.H119]^2);4) -> 2457810.582 | J123: JD_LN | K123: =of:=ROUND(2415020.75933+29.53058868*[Calcoli.K115]+0.0001178*[Calcoli.K119]^2-0.000000155*[Calcoli.K119]^3+0.00033*SIN(166.56+132.87*[Calcoli.K119]-0.009*173*[Calcoli.K119]^2);4) -> 2457840.113 | M123: JD_LN | N123: =of:=ROUND(2415020.75933+29.53058868*[Calcoli.N115]+0.0001178*[Calcoli.N119]^2-0.000000155*[Calcoli.N119]^3+0.00033*SIN(166.56+132.87*[Calcoli.N119]-0.009*173*[Calcoli.N119]^2);4) -> 2457869.644 | P123: JD_LN | Q123: =of:=ROUND(2415020.75933+29.53058868*[Calcoli.Q115]+0.0001178*[Calcoli.Q119]^2-0.000000155*[Calcoli.Q119]^3+0.00033*SIN(166.56+132.87*[Calcoli.Q119]-0.009*173*[Calcoli.Q119]^2);4) -> 2457899.174 | S123: JD_LN | T123: =of:=ROUND(2415020.75933+29.53058868*[Calcoli.T115]+0.0001178*[Calcoli.T119]^2-0.000000155*[Calcoli.T119]^3+0.00033*SIN(166.56+132.87*[Calcoli.T119]-0.009*173*[Calcoli.T119]^2);4) -> 2457928.705 | V123: JD_LN | W123: =of:=ROUND(2415020.75933+29.53058868*[Calcoli.W115]+0.0001178*[Calcoli.W119]^2-0.000000155*[Calcoli.W119]^3+0.00033*SIN(166.56+132.87*[Calcoli.W119]-0.009*173*[Calcoli.W119]^2);4) -> 2457958.235 | Y123: JD_LN | Z123: =of:=ROUND(2415020.75933+29.53058868*[Calcoli.Z115]+0.0001178*[Calcoli.Z119]^2-0.000000155*[Calcoli.Z119]^3+0.00033*SIN(166.56+132.87*[Calcoli.Z119]-0.009*173*[Calcoli.Z119]^2);4) -> 2457987.766 | AB123: JD_LN | AC123: =of:=ROUND(2415020.75933+29.53058868*[Calcoli.AC115]+0.0001178*[Calcoli.AC119]^2-0.000000155*[Calcoli.AC119]^3+0.00033*SIN(166.56+132.87*[Calcoli.AC119]-0.009*173*[Calcoli.AC119]^2);4) -> 2458017.297 | AE123: JD_LN | AF123: =of:=ROUND(2415020.75933+29.53058868*[Calcoli.AF115]+0.0001178*[Calcoli.AF119]^2-0.000000155*[Calcoli.AF119]^3+0.00033*SIN(166.56+132.87*[Calcoli.AF119]-0.009*173*[Calcoli.AF119]^2);4) -> 2458046.827 | AH123: JD_LN | AI123: =of:=ROUND(2415020.75933+29.53058868*[Calcoli.AI115]+0.0001178*[Calcoli.AI119]^2-0.000000155*[Calcoli.AI119]^3+0.00033*SIN(166.56+132.87*[Calcoli.AI119]-0.009*173*[Calcoli.AI119]^2);4) -> 2458076.358 | AK123: JD_LN | AL123: =of:=ROUND(2415020.75933+29.53058868*[Calcoli.AL115]+0.0001178*[Calcoli.AL119]^2-0.000000155*[Calcoli.AL119]^3+0.00033*SIN(166.56+132.87*[Calcoli.AL119]-0.009*173*[Calcoli.AL119]^2);4) -> 2458105.889 | AN123: JD_LN | AO123: =of:=ROUND(2415020.75933+29.53058868*[Calcoli.AO115]+0.0001178*[Calcoli.AO119]^2-0.000000155*[Calcoli.AO119]^3+0.00033*SIN(166.56+132.87*[Calcoli.AO119]-0.009*173*[Calcoli.AO119]^2);4) -> 2458135.419
A124: JD_PQ | B124: =of:=ROUND(2415020.75933+29.53058868*[Calcoli.B116]+0.0001178*[Calcoli.B120]^2-0.000000155*[Calcoli.B120]^3+0.00033*SIN(166.56+132.87*[Calcoli.B120]-0.009*173*[Calcoli.B120]^2);4) -> 2457758.904 | D124: JD_PQ | E124: =of:=ROUND(2415020.75933+29.53058868*[Calcoli.E116]+0.0001178*[Calcoli.E120]^2-0.000000155*[Calcoli.E120]^3+0.00033*SIN(166.56+132.87*[Calcoli.E120]-0.009*173*[Calcoli.E120]^2);4) -> 2457788.434 | G124: JD_PQ | H124: =of:=ROUND(2415020.75933+29.53058868*[Calcoli.H116]+0.0001178*[Calcoli.H120]^2-0.000000155*[Calcoli.H120]^3+0.00033*SIN(166.56+132.87*[Calcoli.H120]-0.009*173*[Calcoli.H120]^2);4) -> 2457817.965 | J124: JD_PQ | K124: =of:=ROUND(2415020.75933+29.53058868*[Calcoli.K116]+0.0001178*[Calcoli.K120]^2-0.000000155*[Calcoli.K120]^3+0.00033*SIN(166.56+132.87*[Calcoli.K120]-0.009*173*[Calcoli.K120]^2);4) -> 2457847.496 | M124: JD_PQ | N124: =of:=ROUND(2415020.75933+29.53058868*[Calcoli.N116]+0.0001178*[Calcoli.N120]^2-0.000000155*[Calcoli.N120]^3+0.00033*SIN(166.56+132.87*[Calcoli.N120]-0.009*173*[Calcoli.N120]^2);4) -> 2457877.026 | P124: JD_PQ | Q124: =of:=ROUND(2415020.75933+29.53058868*[Calcoli.Q116]+0.0001178*[Calcoli.Q120]^2-0.000000155*[Calcoli.Q120]^3+0.00033*SIN(166.56+132.87*[Calcoli.Q120]-0.009*173*[Calcoli.Q120]^2);4) -> 2457906.557 | S124: JD_PQ | T124: =of:=ROUND(2415020.75933+29.53058868*[Calcoli.T116]+0.0001178*[Calcoli.T120]^2-0.000000155*[Calcoli.T120]^3+0.00033*SIN(166.56+132.87*[Calcoli.T120]-0.009*173*[Calcoli.T120]^2);4) -> 2457936.087 | V124: JD_PQ | W124: =of:=ROUND(2415020.75933+29.53058868*[Calcoli.W116]+0.0001178*[Calcoli.W120]^2-0.000000155*[Calcoli.W120]^3+0.00033*SIN(166.56+132.87*[Calcoli.W120]-0.009*173*[Calcoli.W120]^2);4) -> 2457965.618 | Y124: JD_PQ | Z124: =of:=ROUND(2415020.75933+29.53058868*[Calcoli.Z116]+0.0001178*[Calcoli.Z120]^2-0.000000155*[Calcoli.Z120]^3+0.00033*SIN(166.56+132.87*[Calcoli.Z120]-0.009*173*[Calcoli.Z120]^2);4) -> 2457995.149 | AB124: JD_PQ | AC124: =of:=ROUND(2415020.75933+29.53058868*[Calcoli.AC116]+0.0001178*[Calcoli.AC120]^2-0.000000155*[Calcoli.AC120]^3+0.00033*SIN(166.56+132.87*[Calcoli.AC120]-0.009*173*[Calcoli.AC120]^2);4) -> 2458024.679 | AE124: JD_PQ | AF124: =of:=ROUND(2415020.75933+29.53058868*[Calcoli.AF116]+0.0001178*[Calcoli.AF120]^2-0.000000155*[Calcoli.AF120]^3+0.00033*SIN(166.56+132.87*[Calcoli.AF120]-0.009*173*[Calcoli.AF120]^2);4) -> 2458054.21 | AH124: JD_PQ | AI124: =of:=ROUND(2415020.75933+29.53058868*[Calcoli.AI116]+0.0001178*[Calcoli.AI120]^2-0.000000155*[Calcoli.AI120]^3+0.00033*SIN(166.56+132.87*[Calcoli.AI120]-0.009*173*[Calcoli.AI120]^2);4) -> 2458083.741 | AK124: JD_PQ | AL124: =of:=ROUND(2415020.75933+29.53058868*[Calcoli.AL116]+0.0001178*[Calcoli.AL120]^2-0.000000155*[Calcoli.AL120]^3+0.00033*SIN(166.56+132.87*[Calcoli.AL120]-0.009*173*[Calcoli.AL120]^2);4) -> 2458113.271 | AN124: JD_PQ | AO124: =of:=ROUND(2415020.75933+29.53058868*[Calcoli.AO116]+0.0001178*[Calcoli.AO120]^2-0.000000155*[Calcoli.AO120]^3+0.00033*SIN(166.56+132.87*[Calcoli.AO120]-0.009*173*[Calcoli.AO120]^2);4) -> 2458142.802
A125: JD_LP | B125: =of:=ROUND(2415020.75933+29.53058868*[Calcoli.B117]+0.0001178*[Calcoli.B121]^2-0.000000155*[Calcoli.B121]^3+0.00033*SIN(166.56+132.87*[Calcoli.B121]-0.009*173*[Calcoli.B121]^2);4) -> 2457766.286 | D125: JD_LP | E125: =of:=ROUND(2415020.75933+29.53058868*[Calcoli.E117]+0.0001178*[Calcoli.E121]^2-0.000000155*[Calcoli.E121]^3+0.00033*SIN(166.56+132.87*[Calcoli.E121]-0.009*173*[Calcoli.E121]^2);4) -> 2457795.817 | G125: JD_LP | H125: =of:=ROUND(2415020.75933+29.53058868*[Calcoli.H117]+0.0001178*[Calcoli.H121]^2-0.000000155*[Calcoli.H121]^3+0.00033*SIN(166.56+132.87*[Calcoli.H121]-0.009*173*[Calcoli.H121]^2);4) -> 2457825.348 | J125: JD_LP | K125: =of:=ROUND(2415020.75933+29.53058868*[Calcoli.K117]+0.0001178*[Calcoli.K121]^2-0.000000155*[Calcoli.K121]^3+0.00033*SIN(166.56+132.87*[Calcoli.K121]-0.009*173*[Calcoli.K121]^2);4) -> 2457854.878 | M125: JD_LP | N125: =of:=ROUND(2415020.75933+29.53058868*[Calcoli.N117]+0.0001178*[Calcoli.N121]^2-0.000000155*[Calcoli.N121]^3+0.00033*SIN(166.56+132.87*[Calcoli.N121]-0.009*173*[Calcoli.N121]^2);4) -> 2457884.409 | P125: JD_LP | Q125: =of:=ROUND(2415020.75933+29.53058868*[Calcoli.Q117]+0.0001178*[Calcoli.Q121]^2-0.000000155*[Calcoli.Q121]^3+0.00033*SIN(166.56+132.87*[Calcoli.Q121]-0.009*173*[Calcoli.Q121]^2);4) -> 2457913.94 | S125: JD_LP | T125: =of:=ROUND(2415020.75933+29.53058868*[Calcoli.T117]+0.0001178*[Calcoli.T121]^2-0.000000155*[Calcoli.T121]^3+0.00033*SIN(166.56+132.87*[Calcoli.T121]-0.009*173*[Calcoli.T121]^2);4) -> 2457943.47 | V125: JD_LP | W125: =of:=ROUND(2415020.75933+29.53058868*[Calcoli.W117]+0.0001178*[Calcoli.W121]^2-0.000000155*[Calcoli.W121]^3+0.00033*SIN(166.56+132.87*[Calcoli.W121]-0.009*173*[Calcoli.W121]^2);4) -> 2457973.001 | Y125: JD_LP | Z125: =of:=ROUND(2415020.75933+29.53058868*[Calcoli.Z117]+0.0001178*[Calcoli.Z121]^2-0.000000155*[Calcoli.Z121]^3+0.00033*SIN(166.56+132.87*[Calcoli.Z121]-0.009*173*[Calcoli.Z121]^2);4) -> 2458002.531 | AB125: JD_LP | AC125: =of:=ROUND(2415020.75933+29.53058868*[Calcoli.AC117]+0.0001178*[Calcoli.AC121]^2-0.000000155*[Calcoli.AC121]^3+0.00033*SIN(166.56+132.87*[Calcoli.AC121]-0.009*173*[Calcoli.AC121]^2);4) -> 2458032.062 | AE125: JD_LP | AF125: =of:=ROUND(2415020.75933+29.53058868*[Calcoli.AF117]+0.0001178*[Calcoli.AF121]^2-0.000000155*[Calcoli.AF121]^3+0.00033*SIN(166.56+132.87*[Calcoli.AF121]-0.009*173*[Calcoli.AF121]^2);4) -> 2458061.593 | AH125: JD_LP | AI125: =of:=ROUND(2415020.75933+29.53058868*[Calcoli.AI117]+0.0001178*[Calcoli.AI121]^2-0.000000155*[Calcoli.AI121]^3+0.00033*SIN(166.56+132.87*[Calcoli.AI121]-0.009*173*[Calcoli.AI121]^2);4) -> 2458091.123 | AK125: JD_LP | AL125: =of:=ROUND(2415020.75933+29.53058868*[Calcoli.AL117]+0.0001178*[Calcoli.AL121]^2-0.000000155*[Calcoli.AL121]^3+0.00033*SIN(166.56+132.87*[Calcoli.AL121]-0.009*173*[Calcoli.AL121]^2);4) -> 2458120.654 | AN125: JD_LP | AO125: =of:=ROUND(2415020.75933+29.53058868*[Calcoli.AO117]+0.0001178*[Calcoli.AO121]^2-0.000000155*[Calcoli.AO121]^3+0.00033*SIN(166.56+132.87*[Calcoli.AO121]-0.009*173*[Calcoli.AO121]^2);4) -> 2458150.184
A126: JD_UQ | B126: =of:=ROUND(2415020.75933+29.53058868*[Calcoli.B118]+0.0001178*[Calcoli.B122]^2-0.000000155*[Calcoli.B122]^3+0.00033*SIN(166.56+132.87*[Calcoli.B122]-0.009*173*[Calcoli.B122]^2);4) -> 2457773.669 | D126: JD_UQ | E126: =of:=ROUND(2415020.75933+29.53058868*[Calcoli.E118]+0.0001178*[Calcoli.E122]^2-0.000000155*[Calcoli.E122]^3+0.00033*SIN(166.56+132.87*[Calcoli.E122]-0.009*173*[Calcoli.E122]^2);4) -> 2457803.2 | G126: JD_UQ | H126: =of:=ROUND(2415020.75933+29.53058868*[Calcoli.H118]+0.0001178*[Calcoli.H122]^2-0.000000155*[Calcoli.H122]^3+0.00033*SIN(166.56+132.87*[Calcoli.H122]-0.009*173*[Calcoli.H122]^2);4) -> 2457832.73 | J126: JD_UQ | K126: =of:=ROUND(2415020.75933+29.53058868*[Calcoli.K118]+0.0001178*[Calcoli.K122]^2-0.000000155*[Calcoli.K122]^3+0.00033*SIN(166.56+132.87*[Calcoli.K122]-0.009*173*[Calcoli.K122]^2);4) -> 2457862.261 | M126: JD_UQ | N126: =of:=ROUND(2415020.75933+29.53058868*[Calcoli.N118]+0.0001178*[Calcoli.N122]^2-0.000000155*[Calcoli.N122]^3+0.00033*SIN(166.56+132.87*[Calcoli.N122]-0.009*173*[Calcoli.N122]^2);4) -> 2457891.792 | P126: JD_UQ | Q126: =of:=ROUND(2415020.75933+29.53058868*[Calcoli.Q118]+0.0001178*[Calcoli.Q122]^2-0.000000155*[Calcoli.Q122]^3+0.00033*SIN(166.56+132.87*[Calcoli.Q122]-0.009*173*[Calcoli.Q122]^2);4) -> 2457921.322 | S126: JD_UQ | T126: =of:=ROUND(2415020.75933+29.53058868*[Calcoli.T118]+0.0001178*[Calcoli.T122]^2-0.000000155*[Calcoli.T122]^3+0.00033*SIN(166.56+132.87*[Calcoli.T122]-0.009*173*[Calcoli.T122]^2);4) -> 2457950.853 | V126: JD_UQ | W126: =of:=ROUND(2415020.75933+29.53058868*[Calcoli.W118]+0.0001178*[Calcoli.W122]^2-0.000000155*[Calcoli.W122]^3+0.00033*SIN(166.56+132.87*[Calcoli.W122]-0.009*173*[Calcoli.W122]^2);4) -> 2457980.383 | Y126: JD_UQ | Z126: =of:=ROUND(2415020.75933+29.53058868*[Calcoli.Z118]+0.0001178*[Calcoli.Z122]^2-0.000000155*[Calcoli.Z122]^3+0.00033*SIN(166.56+132.87*[Calcoli.Z122]-0.009*173*[Calcoli.Z122]^2);4) -> 2458009.914 | AB126: JD_UQ | AC126: =of:=ROUND(2415020.75933+29.53058868*[Calcoli.AC118]+0.0001178*[Calcoli.AC122]^2-0.000000155*[Calcoli.AC122]^3+0.00033*SIN(166.56+132.87*[Calcoli.AC122]-0.009*173*[Calcoli.AC122]^2);4) -> 2458039.445 | AE126: JD_UQ | AF126: =of:=ROUND(2415020.75933+29.53058868*[Calcoli.AF118]+0.0001178*[Calcoli.AF122]^2-0.000000155*[Calcoli.AF122]^3+0.00033*SIN(166.56+132.87*[Calcoli.AF122]-0.009*173*[Calcoli.AF122]^2);4) -> 2458068.975 | AH126: JD_UQ | AI126: =of:=ROUND(2415020.75933+29.53058868*[Calcoli.AI118]+0.0001178*[Calcoli.AI122]^2-0.000000155*[Calcoli.AI122]^3+0.00033*SIN(166.56+132.87*[Calcoli.AI122]-0.009*173*[Calcoli.AI122]^2);4) -> 2458098.506 | AK126: JD_UQ | AL126: =of:=ROUND(2415020.75933+29.53058868*[Calcoli.AL118]+0.0001178*[Calcoli.AL122]^2-0.000000155*[Calcoli.AL122]^3+0.00033*SIN(166.56+132.87*[Calcoli.AL122]-0.009*173*[Calcoli.AL122]^2);4) -> 2458128.036 | AN126: JD_UQ | AO126: =of:=ROUND(2415020.75933+29.53058868*[Calcoli.AO118]+0.0001178*[Calcoli.AO122]^2-0.000000155*[Calcoli.AO122]^3+0.00033*SIN(166.56+132.87*[Calcoli.AO122]-0.009*173*[Calcoli.AO122]^2);4) -> 2458157.567
A127: M_LN | B127: =of:=ROUND(359.2242+29.10535608*[Calcoli.B115]-0.0000333*[Calcoli.B119]^2-0.00000347*[Calcoli.B119]^3;4) -> 42474.6744 | D127: M_LN | E127: =of:=ROUND(359.2242+29.10535608*[Calcoli.E115]-0.0000333*[Calcoli.E119]^2-0.00000347*[Calcoli.E119]^3;4) -> 42503.7798 | G127: M_LN | H127: =of:=ROUND(359.2242+29.10535608*[Calcoli.H115]-0.0000333*[Calcoli.H119]^2-0.00000347*[Calcoli.H119]^3;4) -> 42532.8851 | J127: M_LN | K127: =of:=ROUND(359.2242+29.10535608*[Calcoli.K115]-0.0000333*[Calcoli.K119]^2-0.00000347*[Calcoli.K119]^3;4) -> 42561.9905 | M127: M_LN | N127: =of:=ROUND(359.2242+29.10535608*[Calcoli.N115]-0.0000333*[Calcoli.N119]^2-0.00000347*[Calcoli.N119]^3;4) -> 42591.0958 | P127: M_LN | Q127: =of:=ROUND(359.2242+29.10535608*[Calcoli.Q115]-0.0000333*[Calcoli.Q119]^2-0.00000347*[Calcoli.Q119]^3;4) -> 42620.2012 | S127: M_LN | T127: =of:=ROUND(359.2242+29.10535608*[Calcoli.T115]-0.0000333*[Calcoli.T119]^2-0.00000347*[Calcoli.T119]^3;4) -> 42649.3065 | V127: M_LN | W127: =of:=ROUND(359.2242+29.10535608*[Calcoli.W115]-0.0000333*[Calcoli.W119]^2-0.00000347*[Calcoli.W119]^3;4) -> 42678.4119 | Y127: M_LN | Z127: =of:=ROUND(359.2242+29.10535608*[Calcoli.Z115]-0.0000333*[Calcoli.Z119]^2-0.00000347*[Calcoli.Z119]^3;4) -> 42707.5172 | AB127: M_LN | AC127: =of:=ROUND(359.2242+29.10535608*[Calcoli.AC115]-0.0000333*[Calcoli.AC119]^2-0.00000347*[Calcoli.AC119]^3;4) -> 42736.6226 | AE127: M_LN | AF127: =of:=ROUND(359.2242+29.10535608*[Calcoli.AF115]-0.0000333*[Calcoli.AF119]^2-0.00000347*[Calcoli.AF119]^3;4) -> 42765.728 | AH127: M_LN | AI127: =of:=ROUND(359.2242+29.10535608*[Calcoli.AI115]-0.0000333*[Calcoli.AI119]^2-0.00000347*[Calcoli.AI119]^3;4) -> 42794.8333 | AK127: M_LN | AL127: =of:=ROUND(359.2242+29.10535608*[Calcoli.AL115]-0.0000333*[Calcoli.AL119]^2-0.00000347*[Calcoli.AL119]^3;4) -> 42823.9387 | AN127: M_LN | AO127: =of:=ROUND(359.2242+29.10535608*[Calcoli.AO115]-0.0000333*[Calcoli.AO119]^2-0.00000347*[Calcoli.AO119]^3;4) -> 42853.044
A128: M_a | B128: =of:=ROUND(INT([Calcoli.B127])-(INT(INT([Calcoli.B127])/360))*360+[Calcoli.B127]-INT([Calcoli.B127]);4) -> 354.6744 | D128: M_a | E128: =of:=ROUND(INT([Calcoli.E127])-(INT(INT([Calcoli.E127])/360))*360+[Calcoli.E127]-INT([Calcoli.E127]);4) -> 23.7798 | G128: M_a | H128: =of:=ROUND(INT([Calcoli.H127])-(INT(INT([Calcoli.H127])/360))*360+[Calcoli.H127]-INT([Calcoli.H127]);4) -> 52.8851 | J128: M_a | K128: =of:=ROUND(INT([Calcoli.K127])-(INT(INT([Calcoli.K127])/360))*360+[Calcoli.K127]-INT([Calcoli.K127]);4) -> 81.9905 | M128: M_a | N128: =of:=ROUND(INT([Calcoli.N127])-(INT(INT([Calcoli.N127])/360))*360+[Calcoli.N127]-INT([Calcoli.N127]);4) -> 111.0958 | P128: M_a | Q128: =of:=ROUND(INT([Calcoli.Q127])-(INT(INT([Calcoli.Q127])/360))*360+[Calcoli.Q127]-INT([Calcoli.Q127]);4) -> 140.2012 | S128: M_a | T128: =of:=ROUND(INT([Calcoli.T127])-(INT(INT([Calcoli.T127])/360))*360+[Calcoli.T127]-INT([Calcoli.T127]);4) -> 169.3065 | V128: M_a | W128: =of:=ROUND(INT([Calcoli.W127])-(INT(INT([Calcoli.W127])/360))*360+[Calcoli.W127]-INT([Calcoli.W127]);4) -> 198.4119 | Y128: M_a | Z128: =of:=ROUND(INT([Calcoli.Z127])-(INT(INT([Calcoli.Z127])/360))*360+[Calcoli.Z127]-INT([Calcoli.Z127]);4) -> 227.5172 | AB128: M_a | AC128: =of:=ROUND(INT([Calcoli.AC127])-(INT(INT([Calcoli.AC127])/360))*360+[Calcoli.AC127]-INT([Calcoli.AC127]);4) -> 256.6226 | AE128: M_a | AF128: =of:=ROUND(INT([Calcoli.AF127])-(INT(INT([Calcoli.AF127])/360))*360+[Calcoli.AF127]-INT([Calcoli.AF127]);4) -> 285.728 | AH128: M_a | AI128: =of:=ROUND(INT([Calcoli.AI127])-(INT(INT([Calcoli.AI127])/360))*360+[Calcoli.AI127]-INT([Calcoli.AI127]);4) -> 314.8333 | AK128: M_a | AL128: =of:=ROUND(INT([Calcoli.AL127])-(INT(INT([Calcoli.AL127])/360))*360+[Calcoli.AL127]-INT([Calcoli.AL127]);4) -> 343.9387 | AN128: M_a | AO128: =of:=ROUND(INT([Calcoli.AO127])-(INT(INT([Calcoli.AO127])/360))*360+[Calcoli.AO127]-INT([Calcoli.AO127]);4) -> 13.044
A129: M_PQ | B129: =of:=ROUND(359.2242+29.10535608*[Calcoli.B116]-0.0000333*[Calcoli.B120]^2-0.00000347*[Calcoli.B120]^3;4) -> 42481.9507 | D129: M_PQ | E129: =of:=ROUND(359.2242+29.10535608*[Calcoli.E116]-0.0000333*[Calcoli.E120]^2-0.00000347*[Calcoli.E120]^3;4) -> 42511.0561 | G129: M_PQ | H129: =of:=ROUND(359.2242+29.10535608*[Calcoli.H116]-0.0000333*[Calcoli.H120]^2-0.00000347*[Calcoli.H120]^3;4) -> 42540.1614 | J129: M_PQ | K129: =of:=ROUND(359.2242+29.10535608*[Calcoli.K116]-0.0000333*[Calcoli.K120]^2-0.00000347*[Calcoli.K120]^3;4) -> 42569.2668 | M129: M_PQ | N129: =of:=ROUND(359.2242+29.10535608*[Calcoli.N116]-0.0000333*[Calcoli.N120]^2-0.00000347*[Calcoli.N120]^3;4) -> 42598.3722 | P129: M_PQ | Q129: =of:=ROUND(359.2242+29.10535608*[Calcoli.Q116]-0.0000333*[Calcoli.Q120]^2-0.00000347*[Calcoli.Q120]^3;4) -> 42627.4775 | S129: M_PQ | T129: =of:=ROUND(359.2242+29.10535608*[Calcoli.T116]-0.0000333*[Calcoli.T120]^2-0.00000347*[Calcoli.T120]^3;4) -> 42656.5829 | V129: M_PQ | W129: =of:=ROUND(359.2242+29.10535608*[Calcoli.W116]-0.0000333*[Calcoli.W120]^2-0.00000347*[Calcoli.W120]^3;4) -> 42685.6882 | Y129: M_PQ | Z129: =of:=ROUND(359.2242+29.10535608*[Calcoli.Z116]-0.0000333*[Calcoli.Z120]^2-0.00000347*[Calcoli.Z120]^3;4) -> 42714.7936 | AB129: M_PQ | AC129: =of:=ROUND(359.2242+29.10535608*[Calcoli.AC116]-0.0000333*[Calcoli.AC120]^2-0.00000347*[Calcoli.AC120]^3;4) -> 42743.8989 | AE129: M_PQ | AF129: =of:=ROUND(359.2242+29.10535608*[Calcoli.AF116]-0.0000333*[Calcoli.AF120]^2-0.00000347*[Calcoli.AF120]^3;4) -> 42773.0043 | AH129: M_PQ | AI129: =of:=ROUND(359.2242+29.10535608*[Calcoli.AI116]-0.0000333*[Calcoli.AI120]^2-0.00000347*[Calcoli.AI120]^3;4) -> 42802.1097 | AK129: M_PQ | AL129: =of:=ROUND(359.2242+29.10535608*[Calcoli.AL116]-0.0000333*[Calcoli.AL120]^2-0.00000347*[Calcoli.AL120]^3;4) -> 42831.215 | AN129: M_PQ | AO129: =of:=ROUND(359.2242+29.10535608*[Calcoli.AO116]-0.0000333*[Calcoli.AO120]^2-0.00000347*[Calcoli.AO120]^3;4) -> 42860.3204
A130: M_LP | B130: =of:=ROUND(359.2242+29.10535608*[Calcoli.B117]-0.0000333*[Calcoli.B121]^2-0.00000347*[Calcoli.B121]^3;4) -> 42489.2271 | D130: M_LP | E130: =of:=ROUND(359.2242+29.10535608*[Calcoli.E117]-0.0000333*[Calcoli.E121]^2-0.00000347*[Calcoli.E121]^3;4) -> 42518.3324 | G130: M_LP | H130: =of:=ROUND(359.2242+29.10535608*[Calcoli.H117]-0.0000333*[Calcoli.H121]^2-0.00000347*[Calcoli.H121]^3;4) -> 42547.4378 | J130: M_LP | K130: =of:=ROUND(359.2242+29.10535608*[Calcoli.K117]-0.0000333*[Calcoli.K121]^2-0.00000347*[Calcoli.K121]^3;4) -> 42576.5431 | M130: M_LP | N130: =of:=ROUND(359.2242+29.10535608*[Calcoli.N117]-0.0000333*[Calcoli.N121]^2-0.00000347*[Calcoli.N121]^3;4) -> 42605.6485 | P130: M_LP | Q130: =of:=ROUND(359.2242+29.10535608*[Calcoli.Q117]-0.0000333*[Calcoli.Q121]^2-0.00000347*[Calcoli.Q121]^3;4) -> 42634.7539 | S130: M_LP | T130: =of:=ROUND(359.2242+29.10535608*[Calcoli.T117]-0.0000333*[Calcoli.T121]^2-0.00000347*[Calcoli.T121]^3;4) -> 42663.8592 | V130: M_LP | W130: =of:=ROUND(359.2242+29.10535608*[Calcoli.W117]-0.0000333*[Calcoli.W121]^2-0.00000347*[Calcoli.W121]^3;4) -> 42692.9646 | Y130: M_LP | Z130: =of:=ROUND(359.2242+29.10535608*[Calcoli.Z117]-0.0000333*[Calcoli.Z121]^2-0.00000347*[Calcoli.Z121]^3;4) -> 42722.0699 | AB130: M_LP | AC130: =of:=ROUND(359.2242+29.10535608*[Calcoli.AC117]-0.0000333*[Calcoli.AC121]^2-0.00000347*[Calcoli.AC121]^3;4) -> 42751.1753 | AE130: M_LP | AF130: =of:=ROUND(359.2242+29.10535608*[Calcoli.AF117]-0.0000333*[Calcoli.AF121]^2-0.00000347*[Calcoli.AF121]^3;4) -> 42780.2806 | AH130: M_LP | AI130: =of:=ROUND(359.2242+29.10535608*[Calcoli.AI117]-0.0000333*[Calcoli.AI121]^2-0.00000347*[Calcoli.AI121]^3;4) -> 42809.386 | AK130: M_LP | AL130: =of:=ROUND(359.2242+29.10535608*[Calcoli.AL117]-0.0000333*[Calcoli.AL121]^2-0.00000347*[Calcoli.AL121]^3;4) -> 42838.4913 | AN130: M_LP | AO130: =of:=ROUND(359.2242+29.10535608*[Calcoli.AO117]-0.0000333*[Calcoli.AO121]^2-0.00000347*[Calcoli.AO121]^3;4) -> 42867.5967
A131: M_UQ | B131: =of:=ROUND(359.2242+29.10535608*[Calcoli.B118]-0.0000333*[Calcoli.B122]^2-0.00000347*[Calcoli.B122]^3;4) -> 42496.5034 | D131: M_UQ | E131: =of:=ROUND(359.2242+29.10535608*[Calcoli.E118]-0.0000333*[Calcoli.E122]^2-0.00000347*[Calcoli.E122]^3;4) -> 42525.6088 | G131: M_UQ | H131: =of:=ROUND(359.2242+29.10535608*[Calcoli.H118]-0.0000333*[Calcoli.H122]^2-0.00000347*[Calcoli.H122]^3;4) -> 42554.7141 | J131: M_UQ | K131: =of:=ROUND(359.2242+29.10535608*[Calcoli.K118]-0.0000333*[Calcoli.K122]^2-0.00000347*[Calcoli.K122]^3;4) -> 42583.8195 | M131: M_UQ | N131: =of:=ROUND(359.2242+29.10535608*[Calcoli.N118]-0.0000333*[Calcoli.N122]^2-0.00000347*[Calcoli.N122]^3;4) -> 42612.9248 | P131: M_UQ | Q131: =of:=ROUND(359.2242+29.10535608*[Calcoli.Q118]-0.0000333*[Calcoli.Q122]^2-0.00000347*[Calcoli.Q122]^3;4) -> 42642.0302 | S131: M_UQ | T131: =of:=ROUND(359.2242+29.10535608*[Calcoli.T118]-0.0000333*[Calcoli.T122]^2-0.00000347*[Calcoli.T122]^3;4) -> 42671.1355 | V131: M_UQ | W131: =of:=ROUND(359.2242+29.10535608*[Calcoli.W118]-0.0000333*[Calcoli.W122]^2-0.00000347*[Calcoli.W122]^3;4) -> 42700.2409 | Y131: M_UQ | Z131: =of:=ROUND(359.2242+29.10535608*[Calcoli.Z118]-0.0000333*[Calcoli.Z122]^2-0.00000347*[Calcoli.Z122]^3;4) -> 42729.3463 | AB131: M_UQ | AC131: =of:=ROUND(359.2242+29.10535608*[Calcoli.AC118]-0.0000333*[Calcoli.AC122]^2-0.00000347*[Calcoli.AC122]^3;4) -> 42758.4516 | AE131: M_UQ | AF131: =of:=ROUND(359.2242+29.10535608*[Calcoli.AF118]-0.0000333*[Calcoli.AF122]^2-0.00000347*[Calcoli.AF122]^3;4) -> 42787.557 | AH131: M_UQ | AI131: =of:=ROUND(359.2242+29.10535608*[Calcoli.AI118]-0.0000333*[Calcoli.AI122]^2-0.00000347*[Calcoli.AI122]^3;4) -> 42816.6623 | AK131: M_UQ | AL131: =of:=ROUND(359.2242+29.10535608*[Calcoli.AL118]-0.0000333*[Calcoli.AL122]^2-0.00000347*[Calcoli.AL122]^3;4) -> 42845.7677 | AN131: M_UQ | AO131: =of:=ROUND(359.2242+29.10535608*[Calcoli.AO118]-0.0000333*[Calcoli.AO122]^2-0.00000347*[Calcoli.AO122]^3;4) -> 42874.873
A132: M1_LN | B132: =of:=ROUND(306.0253+385.81691806*[Calcoli.B115]+0.0107306*[Calcoli.B119]^2+0.00001236*[Calcoli.B119]^3;4) -> 558583.1204 | D132: M1_LN | E132: =of:=ROUND(306.0253+385.81691806*[Calcoli.E115]+0.0107306*[Calcoli.E119]^2+0.00001236*[Calcoli.E119]^3;4) -> 558968.9374 | G132: M1_LN | H132: =of:=ROUND(306.0253+385.81691806*[Calcoli.H115]+0.0107306*[Calcoli.H119]^2+0.00001236*[Calcoli.H119]^3;4) -> 559354.7543 | J132: M1_LN | K132: =of:=ROUND(306.0253+385.81691806*[Calcoli.K115]+0.0107306*[Calcoli.K119]^2+0.00001236*[Calcoli.K119]^3;4) -> 559740.5713 | M132: M1_LN | N132: =of:=ROUND(306.0253+385.81691806*[Calcoli.N115]+0.0107306*[Calcoli.N119]^2+0.00001236*[Calcoli.N119]^3;4) -> 560126.3882 | P132: M1_LN | Q132: =of:=ROUND(306.0253+385.81691806*[Calcoli.Q115]+0.0107306*[Calcoli.Q119]^2+0.00001236*[Calcoli.Q119]^3;4) -> 560512.2051 | S132: M1_LN | T132: =of:=ROUND(306.0253+385.81691806*[Calcoli.T115]+0.0107306*[Calcoli.T119]^2+0.00001236*[Calcoli.T119]^3;4) -> 560898.0221 | V132: M1_LN | W132: =of:=ROUND(306.0253+385.81691806*[Calcoli.W115]+0.0107306*[Calcoli.W119]^2+0.00001236*[Calcoli.W119]^3;4) -> 561283.839 | Y132: M1_LN | Z132: =of:=ROUND(306.0253+385.81691806*[Calcoli.Z115]+0.0107306*[Calcoli.Z119]^2+0.00001236*[Calcoli.Z119]^3;4) -> 561669.6559 | AB132: M1_LN | AC132: =of:=ROUND(306.0253+385.81691806*[Calcoli.AC115]+0.0107306*[Calcoli.AC119]^2+0.00001236*[Calcoli.AC119]^3;4) -> 562055.4729 | AE132: M1_LN | AF132: =of:=ROUND(306.0253+385.81691806*[Calcoli.AF115]+0.0107306*[Calcoli.AF119]^2+0.00001236*[Calcoli.AF119]^3;4) -> 562441.2898 | AH132: M1_LN | AI132: =of:=ROUND(306.0253+385.81691806*[Calcoli.AI115]+0.0107306*[Calcoli.AI119]^2+0.00001236*[Calcoli.AI119]^3;4) -> 562827.1068 | AK132: M1_LN | AL132: =of:=ROUND(306.0253+385.81691806*[Calcoli.AL115]+0.0107306*[Calcoli.AL119]^2+0.00001236*[Calcoli.AL119]^3;4) -> 563212.9237 | AN132: M1_LN | AO132: =of:=ROUND(306.0253+385.81691806*[Calcoli.AO115]+0.0107306*[Calcoli.AO119]^2+0.00001236*[Calcoli.AO119]^3;4) -> 563598.7406
A133: M1_a | B133: =of:=ROUND(INT([Calcoli.B132])-INT((INT([Calcoli.B132])/360))*360+[Calcoli.B132]-INT([Calcoli.B132]);4) -> 223.1204 | D133: M1_a | E133: =of:=ROUND(INT([Calcoli.E132])-INT((INT([Calcoli.E132])/360))*360+[Calcoli.E132]-INT([Calcoli.E132]);4) -> 248.9374 | G133: M1_a | H133: =of:=ROUND(INT([Calcoli.H132])-INT((INT([Calcoli.H132])/360))*360+[Calcoli.H132]-INT([Calcoli.H132]);4) -> 274.7543 | J133: M1_a | K133: =of:=ROUND(INT([Calcoli.K132])-INT((INT([Calcoli.K132])/360))*360+[Calcoli.K132]-INT([Calcoli.K132]);4) -> 300.5713 | M133: M1_a | N133: =of:=ROUND(INT([Calcoli.N132])-INT((INT([Calcoli.N132])/360))*360+[Calcoli.N132]-INT([Calcoli.N132]);4) -> 326.3882 | P133: M1_a | Q133: =of:=ROUND(INT([Calcoli.Q132])-INT((INT([Calcoli.Q132])/360))*360+[Calcoli.Q132]-INT([Calcoli.Q132]);4) -> 352.2051 | S133: M1_a | T133: =of:=ROUND(INT([Calcoli.T132])-INT((INT([Calcoli.T132])/360))*360+[Calcoli.T132]-INT([Calcoli.T132]);4) -> 18.0221 | V133: M1_a | W133: =of:=ROUND(INT([Calcoli.W132])-INT((INT([Calcoli.W132])/360))*360+[Calcoli.W132]-INT([Calcoli.W132]);4) -> 43.839 | Y133: M1_a | Z133: =of:=ROUND(INT([Calcoli.Z132])-INT((INT([Calcoli.Z132])/360))*360+[Calcoli.Z132]-INT([Calcoli.Z132]);4) -> 69.6559 | AB133: M1_a | AC133: =of:=ROUND(INT([Calcoli.AC132])-INT((INT([Calcoli.AC132])/360))*360+[Calcoli.AC132]-INT([Calcoli.AC132]);4) -> 95.4729 | AE133: M1_a | AF133: =of:=ROUND(INT([Calcoli.AF132])-INT((INT([Calcoli.AF132])/360))*360+[Calcoli.AF132]-INT([Calcoli.AF132]);4) -> 121.2898 | AH133: M1_a | AI133: =of:=ROUND(INT([Calcoli.AI132])-INT((INT([Calcoli.AI132])/360))*360+[Calcoli.AI132]-INT([Calcoli.AI132]);4) -> 147.1068 | AK133: M1_a | AL133: =of:=ROUND(INT([Calcoli.AL132])-INT((INT([Calcoli.AL132])/360))*360+[Calcoli.AL132]-INT([Calcoli.AL132]);4) -> 172.9237 | AN133: M1_a | AO133: =of:=ROUND(INT([Calcoli.AO132])-INT((INT([Calcoli.AO132])/360))*360+[Calcoli.AO132]-INT([Calcoli.AO132]);4) -> 198.7406
